Workbook

Sheet Design Regulator
A1: LM70XX0/-Q1 Synchronous Buck Converter Design Tool
N2: http://www.ti.com/product/lm5175
A3: About | C3: xx | F3: = Input Box | N3: TERMS OF USE
A5: Step 1: Operating Specifications
D6: Input Voltage – Min, VIN(min) | E6: 12 | F6: V
D7: Input Voltage – Nom, VIN(nom) | E7: 12 | F7: V
D8: Input Voltage – Max, VIN(max) | E8: 12 | F8: V
D9: Output Voltage, VOUT | E9: 3.3 | F9: V
D10: Full Load Output Current, IOUT | E10: 4 | F10: A
D11: Switching Frequency, FSW | E11: 2200 | F11: kHz
D12: Frequency Set Resistor, RT | E12: ='Variable Management'!C443 -> 9.09 | F12: kΩ
D13: Ambient Temperature, TA | E13: 25 | F13: °C
A15: Step 2: Current Sense Resistor
D16: Required IOCP Setpoint at VIN(nom) | E16: 7 | F16: A
D17: Recommended Sense Resistance | E17: =Rs_ideal*1000 -> 6.856955503 | F17: mΩ
D18: Sense Resistance, RS | E18: 5 | F18: mΩ
D19: Min Inductor Sat Current, ILO(SAT) | E19: ='Variable Management'!B95 -> 11.2 | F19: A
D20: Max power loss in shunt | E20: ='Variable Management'!B105 -> 0.5055858871 | F20: W
D21: VIN(min) | E21: ='Variable Management'!B97 -> 10.03311019 | F21: A
C22: IOUT(typ) at OCP Inception: | D22: VIN(nom) | E22: ='Variable Management'!B98 -> 10.03311019 | F22: A
D23: VIN(max) | E23: ='Variable Management'!B99 -> 10.03311019 | F23: A
A25: Step 3: Buck Inductance
D26: Recommended Inductance | E26: =Lopt*1000000 -> 0.3125 | F26: µH
D27: Inductance, LO | E27: 0.47 | F27: µH
D28: Inductor DCR | E28: 3.5 | F28: mΩ
D29: DIL as a % at VIN(nom) | E29: ='Variable Management'!B68*100 -> 58.34449032 | F29: %
A31: Step 4: Output Capacitors
D32: Output Voltage Ripple Spec | E32: 100 | F32: mVpk-pk
D33: Minimum Output Capacitance | E33: ='Variable Management'!B121 -> 2.2 | F33: µF
D34: Output Capacitance (derated), COUT | E34: 40 | F34: µF | K34: =CHOOSE(SCH_MODE, "", "** For Single-Output Operation in 2-Phase Mode, tie MODE to VDDA and use FB1 to set VOUT **", "** For Single-Output Operation in 3-Phase Mode, tie both MODE pins to VDDA. Use FB1 of master IC to set VOUT. Connect FB2 of master IC to AGND. Connect FB2 of slave IC to VDDA to configure it as a slave **", "** For Single-Output Operation in 4-Phase Mode, tie both MODE pins to VDDA. Use FB1 of master IC to set VOUT. Connect FB2 of master IC to AGND. Connect FB2 of slave IC to VDDA to configure it as a slave **") -> 
D35: Maximum Permitted ESR | E35: ='Variable Management'!B125 -> 42.82539675 | F35: mΩ
D36: Output Capacitor ESR | E36: 1 | F36: mΩ | K36: =CHOOSE(SCH_MODE, "", "** Tie VCCX to GND if not used **", "** Slave controller (CNTRL2) not shown **","** Slave controller (CNTRL2) not shown **") ->  | P36: =IF(SCH_MODE=1, "** Tie VCCX to GND if not used **", "") -> ** Tie VCCX to GND if not used **
D37: Resulting Output Voltage Ripple (max) | E37: ='Variable Management'!B127*1000 -> 4.054125922 | F37: mVpk-pk | K37: =IF(OR(SCH_MODE=3, SCH_MODE=4),"** Tie VCCX to GND if not used **", "") -> 
D38: Output Capacitor RMS Current (max) | E38: ='Variable Management'!B114 -> 0.6737041439 | F38: A (rms)
A40: Step 5: Input Capacitors
D41: Input Voltage Ripple Spec | E41: 300 | F41: mVpk-pk
D42: Minimum Input Capacitance | E42: ='Variable Management'!B148 -> 2.2 | F42: µF
D43: Input Capacitance (derated), CIN | E43: 44 | F43: µF
D44: Maximum Permitted ESR | E44: ='Variable Management'!B154 -> 56.06262807 | F44: mΩ
D45: Input Capacitor ESR | E45: 1 | F45: mΩ
D46: Resulting Input Voltage Ripple (max) | E46: ='Variable Management'!B161*1000 -> 13.4493836 | F46: mVpk-pk
D47: Input Capacitor RMS Current (max) | E47: ='Variable Management'!B138 -> 1.825616064 | F47: A (rms)
A49: Step 6: Enable, CNFG, FPWM/PFM
D52: Input Voltage UVLO Turn-ON | E52: 6 | F52: V
D53: Input Voltage UVLO Turn-OFF | E53: 5 | F53: V
D54: Upper Enable Resistor, RUV1 | E54: =IF(UVLO_TYPE=1,'Variable Management'!B187,0) -> 0 | F54: kΩ
D55: Lower Enable Resistor, RUV2 | E55: =IF(UVLO_TYPE=1,'Variable Management'!B188,"DNP") -> DNP | F55: kΩ
D56: Configuration Resistor, RCNFG | E56: =IF(DITHER=1,"41.2","29.4") -> 41.2 | F56: kΩ
D57: =IF(DEMB=1, "* Tie PFM to GND", "* Tie PFM to VDDA") -> * Tie PFM to GND
A59: Step 7: Compensation Design
D60: Load Pole Frequency | E60: =Fp_dominant -> 7181.782315 | F60: Hz
D61: ESR Zero Frequency | E61: =Fesr/1000 -> 3978.873582 | F61: kHz
D62: Desired Crossover Frequency | E62: 50 | F62: =" kHz " -> kHz
D63: Error Amp Pole Frequency | E63: =Fp1_u -> 1.130255852 | F63: Hz
D64: =CHOOSE(VOUT_setting, "Upper Feedback Resistor","","","") ->  | E64: 100 | F64: kΩ
D65: =CHOOSE(VOUT_setting, "Lower Feedback Resistor", "PULLUP FB to VDDA with "&'Variable Management'!D419,"TIE FB TO VDDA","PULLUP FB to VDDA with"&'Variable Management'!D419) -> TIE FB TO VDDA | E65: =IF(Vout=Vref,"OPEN",Rfb2_u/1000) -> 792 | F65: =IF(Vout=Vref,"","kΩ") -> kΩ
A67: Compensation Components
B68: Calculated / | C68: Std Values | D68: =C68 -> Std Values | F68: Actual P/Z Frequencies
A69: RC1 | B69: =Rcea1/1000 -> 2.323126356 | C69: ='Standard Value Calculator'!S32 -> 2.32 | D69: 6 | E69: kΩ | F69: =Fp1_u -> 1.130255852 | G69: Hz (FPEA)
A70: CC1 | B70: =Cc1ea*1000000000 -> 13.70178965 | C70: ='Standard Value Calculator'!S33 -> 15 | D70: 2.2 | E70: nF | F70: =Fz1_u/1000 -> 12.05719267 | G70: kHz (FZCOMP)
A71: CC2 | B71: =IF(Cc2ea<0, "N/A", Cc2ea*1000000000000) -> 30.44987338 | C71: ='Standard Value Calculator'!S34 -> 33 | D71: 22 | E71: pF | F71: =Fp2_u/1000 -> 492.7612244 | G71: kHz (FPCOMP)
M72: ** Specify Inductor Core Loss ** | N72: 0.1 | O72: W
A74: Efficiency / Power Loss Analyzer
A76: Step 8: Efficiency
F77: Power MOSFETs | G77: (Q1, Q2)
E78: Internal NEXFETs
E79: High-side | F79: Low-side
D80: On-State Resistance, RDS(on) | E80: 24 | F80: 18 | G80: mΩ
D81: Total Gate Charge, QG | E81: 3 | F81: 4.1 | G81: nC
D82: Gate-Drain Charge, QGD | E82: 0.7 | F82: 1 | G82: nC
D83: Gate-Source Charge, QGS | E83: 0.7 | F83: 0.9 | G83: nC
D84: Output Charge, QOSS | F84: 3 | G84: nC
D85: Output Capacitance, COSS | E85: 250 | F85: 350 | G85: pF
D86: Gate Resistance, RG | E86: 3.5 | F86: 3 | G86: Ω
D87: Transconductance, gFS | E87: 71 | F87: 90 | G87: S
D88: Gate-Source Threshold Voltage, VTH | E88: 1.8 | F88: 1.8 | G88: V
D89: Body Diode Forward Voltage, VBD | E89: 0.8 | F89: 0.8 | G89: V
D90: Body Diode Rev Recovery Charge, QRR | F90: 30 | G90: nC
D91: Thermal Resistance, θJA | E91: 15 | F91: 15 | G91: °C/W
A93: External Schottky Diode (if applicable)
D94: Schottky Fwd Voltage, VFWDsch | F94: 0 | G94: V
D95: Schottky Rev Recovery Charge, QRRsch | F95: 0 | G95: nC
A99: Step 9: IC Power Loss
D100: BIAS Voltage | E100: 12 | F100: V
D101: IC Power Dissipation | E101: ='Variable Management'!B362 -> 0.18744 | F101: W
D102: IC Junction Temperature (estimate) | E102: ='Variable Management'!B364 -> 31.391704 | F102: °C
E103: =CHOOSE(Ext_VCC, "", "* Tie BIAS to PGND") -> 

Sheet Input Filters (hidden)
A1: LM(2)5149-Q1 Synchronous Buck Controller Design Tool
O2: http://www.ti.com/product/lm5175
A3: About | C3: xx | F3: = Input Box | O3: TERMS OF USE
E7: AEF | M7: Passive
B9: Design tab - LAEF | C9: ='Design Regulator'!E48 & " µH" -> µH | F9: LAEF | G9: 1 | H9: µH | J9: Suggested LIN Inductor | K9: 0.1-10 | L9: µH | N9: Chosen LIN | O9: 0.68 | P9: µH
B10: Design tab - CINJ | C10: ='Design Regulator'!#REF! & " µF" ->  | F10: CINJ | G10: 1 | H10: µF | J10: Suggested CF | K10: 0.1-10 | L10: µF | N10: Chosen CF | O10: 0.47 | P10: µF
B11: Design tab - CDAMP | C11: ='Design Regulator'!#REF! & " µF" ->  | F11: CDAMP | G11: 1 | H11: µF | J11: Suggested CDAMP | K11: 1-10 | L11: µF | N11: Chosen CDAMP | O11: 1 | P11: µF
B12: Design tab - RDAMP | C12: ='Design Regulator'!#REF! & " Ω" ->  | F12: RDAMP | G12: 10 | H12: Ω | J12: Suggested RDAMP | K12: =Rdamp_PassiveStd ->  | L12: Ω | N12: Chosen RDAMP | O12: 0.35 | P12: Ω
C14: VIN Ripple at Fsw | F14: =VinRipple_dBuV -> 82.57404761 | G14: dBµV | H14: VIN Ripple | I14: =VinRipple_dBuV -> 82.57404761 | J14: dBµV
D16: AEF Attenuation at Fsw | E16: =-#REF! ->  | F16: dB | L16: Passive Attenuation at Fsw | M16: =-#REF! ->  | N16: dB
D17: AEF EMI at Fsw | E17: =VinRipple_dBuV-E16 ->  | F17: dB-µV | L17: Passive EMI at Fsw | M17: =VinRipple_dBuV-M16 ->  | N17: dB-µV

Sheet BOM & Schematic (hidden)
A36: ** Tie DEMB to VDDA for FPWM, AGND for DEM **
A37: ** Tie VCCX to GND if not used ** | I37: =IF(OR(SCH_MODE=3, SCH_MODE=4),"** Tie VCCX to GND if not used **", "") -> 
A38: ** Tie DITH to VDDA to disable spread spectrum **
A39: ** Tie OSC to VDDA for 2.2MHz, AGND for 440kHz **
A40: ="VIN = "&VIN_min&" V to "&VIN_max&" V, VOUT = "& Vout &" V, IOUT = " &Iout & " A, Fsw = " & Fsw/1000 &" kHz, Current Limit = "&ROUNDUP(Ilimit_DC,0)&" A" -> VIN = 12 V to 12 V, VOUT = 3.3 V, IOUT = 4 A, Fsw = 2200 kHz, Current Limit = 7 A
A41: High Efficiency Synchronous Buck Regulator BOM
A42: Count | B42: Ref Des | C42: Value | D42: Description | H42: Size | I42: Part Number | J42: MFR
A43: 1 | B43: CBOOT | C43: 0.1 | D43: =C43 -> 0.1 | H43: 0603 | I43: Std | J43: Std
A44: 1 | B44: CC1 | C44: ='Design Regulator'!D70 -> 2.2 | D44: 2.2 | H44: 0603 | I44: Std | J44: Std
A45: 1 | B45: CC2 | C45: ='Design Regulator'!D71 -> 22 | D45: 22 | H45: 0603 | I45: Std | J45: Std
A46: 1 | B46: CRES | C46: =Cres_u*1000000000 -> 82 | D46: =C46 -> 82 | H46: 0603 | I46: Std | J46: Std
A47: 1 | B47: CDITH | C47: =Cdither*1000000000 -> 2.2 | D47: =C47 -> 2.2 | H47: 0603 | I47: Std | J47: Std
A48: =ROUNDUP('Design Regulator'!E43/10,0) -> 5 | B48: CIN | C48: 10 | D48: =C48 -> 10 | H48: 1210 | I48: Std | J48: Std
A49: =ROUNDUP('Design Regulator'!E34/47,0) -> 1 | B49: COUT | C49: 47 | D49: =C49 -> 47 | H49: 1210 | I49: Std | J49: Std
A50: 1 | B50: CSS | C50: ='Design Regulator'!#REF! ->  | D50: =C50 ->  | H50: 0603 | I50: Std | J50: Std
A51: 2 | B51: CVCC, CVCCX | C51: 2.2 | D51: 2.2 | H51: 0603 | I51: Std | J51: Std
A52: 1 | B52: CVDDA | C52: 0.47 | D52: 0.47 | H52: 0603 | I52: Std | J52: Std
A53: 1 | B53: DBOOT | C53: See description | D53: Schottky Diode, 60V, 200mA | H53: - | I53: - | J53: Various
A54: 1 | B54: LO | C54: ='Design Regulator'!E27 -> 0.47 | D54: ="Inductor, "&Lf*1000000&"µH, "&Rdcr*1000&"mΩ, >"&ROUNDUP(Ilimit_DC*1.1,0)&"A" -> Inductor, 0.47µH, 3.5mΩ, >8A | H54: - | I54: - | J54: Various
A55: 2 | B55: Q1, Q2 | C55: See description | D55: ='Design Regulator'!E80 -> 24 | H55: Std | I55: ='Design Regulator'!E78 -> Internal NEXFETs | J55: -
A56: 1 | B56: RC1 | C56: ='Design Regulator'!D69 -> 6 | D56: =C56 -> 6 | H56: 0603 | I56: Std | J56: Std
A57: 1 | B57: RS | C57: =Rs*1000 -> 5 | D57: 5 | H57: 0508 | I57: Std | J57: Std
A58: 1 | B58: RT | C58: ='Design Regulator'!E12 -> 9.09 | D58: 9.09 | H58: 0603 | I58: Std | J58: Std
A59: 1 | B59: RFB1 | C59: ='Design Regulator'!E64 -> 100 | D59: 100 | H59: 0603 | I59: Std | J59: Std
A60: 1 | B60: RFB2 | C60: ='Design Regulator'!E65 -> 792 | D60: 792 | H60: 0603 | I60: Std | J60: Std
A61: 1 | B61: RPGOOD | C61: 100 | D61: 100 | H61: 0603 | I61: Std | J61: Std
A62: 1 | B62: RCS | C62: 100 | D62: 100 | H62: 0603 | I62: Std | J62: Std
A63: 1 | B63: RDEMB | C63: 100 | D63: 100 | H63: 0603 | I63: Std | J63: Std
A64: 1 | B64: RVIN | C64: 2.2 | D64: 2.2 | H64: 0603 | I64: Std | J64: Std
A65: 1 | B65: U1 | C65: LM5141-Q1 | D65: IC, LM5141-Q1, Synchronous Buck PWM Controller, 3.8V–65V Input | H65: VQFN-24 | I65: LM5141QRGEQ1 | J65: TI
A68: NOTES:
A69: ** For information on TI NexFETTM MOSFETs, see ** | D69: http://www.ti.com/nexfet | E69: **
A70: ** Inductor saturation current should be higher than the peak inductor current at the OCP setpoint for all input voltages and operating temperatures **
A71: ** Effective input and output capacitances should be appropriately derated for applied voltage and temperature, particularly with ceramics **

Sheet EVM (hidden)
A1: LM25149-Q1 Quickstart Design Tool
B6: LM25149-Q1EVM-2100 PCB Layout

Sheet Variable Management (hidden)
A1: EXCEL Variables Names/Calculations
B2: Input from user =
B3: Output =
B4: Constant
A5: Variable Name | B5: Value | C5: STD Units | E5: Notes | I5: Iteration
A6: Step 1: Operational Specs
A7: VIN_min | B7: ='Design Regulator'!E6 -> 12 | C7: V | D7: Minimum input voltage | I7: 1
A8: VIN_nom | B8: ='Design Regulator'!E7 -> 12 | C8: V | D8: Nominal input voltage | K8: =CHOOSE(SCH_MODE, "Efficiency vs. IOUT (Ch1)", "Efficiency vs. IOUT - 2 Ph", "Efficiency vs. IOUT - 3 Ph", "Efficiency vs. IOUT - 4 Ph") -> Efficiency vs. IOUT (Ch1) | L8: 1 | N8: DITHER Enabled | O8: 1 | T8: Dual Outputs | U8: 1 | W8: FPWM | X8: 1
A9: VIN_max | B9: ='Design Regulator'!E8 -> 12 | C9: V | D9: Maximum input voltage | F9: =CHOOSE(GPN_setting,80,80,80,80,65,65,45) -> 80 | G9: IC max voltage | K9: =IF(MODE=1, "Efficiency vs. IOUT (Ch2)", "N/A - Do Not Use") -> Efficiency vs. IOUT (Ch2) | L9: 2 | N9: DITHER Disabled | O9: 2 | T9: Single Output – 2 Phases | U9: 2 | W9: PFM | X9: 2
K10: PLOT_TYPE | L10: 1 | N10: DITHER Yes/No | O10: 1 | P10: 1 = Yes, 2 = No | T10: Single Output – 3 Phases | U10: 3 | W10: FPWM/PFM | X10: 1
A11: Vout | B11: ='Design Regulator'!E9 -> 3.3 | C11: V | D11: Output voltage - channel 1 | T11: Single Output – 4 Phases | U11: 4
A12: Iout | B12: ='Design Regulator'!E10 -> 4 | C12: A | D12: Output current - channel 1 | F12: =CHOOSE(GPN_setting,10,8,6,4,10,6,10) -> 8 | G12: IC max current | I12: 1 | T12: Single/Dual Yes/No | U12: 1
I13: 1 | K13: Adjustable | L13: 1 | N13: 3.3V | O13: 1 | T13: MODE (Single/Dual), DUAL = 1, SINGLE = 2 | U13: =IF(U12=1, 1, 2) -> 1 | W13: BIAS Connected | X13: 1
A14: Rout | B14: =Vout/Iout -> 0.825 | C14: W | D14: Load resistance - Channel 1 | K14: 5V | L14: 2 | N14: 5V | O14: 2 | T14: SINGLE OUTPUT (1 = YES) | U14: =IF(U12=1, 2, 1) -> 2 | W14: No External BIAS | X14: 2
K15: 3.3V | L15: 3 | N15: Adjustable | O15: 3 | T15: Number of Phases | U15: =SCH_MODE -> 1 | W15: Ext_VCC | X15: 1
A16: Pout | B16: =Vout*Iout -> 13.2 | C16: W | D16: Output power | K16: 12V | L16: 4 | N16: Ch2 Output Setting | O16: =IF(Vout2=3.3, 1, IF(Vout2=5, 2, 3)) -> 3
K17: Output Voltage Setting | L17: =IF(Vout=3.3, 3, IF(Vout=5, 2, IF(Vout=12,4,1))) -> 3
A18: Efficiency | B18: 0.9 | D18: Estimate of efficiency
A19: Pin | B19: =Pout/Efficiency -> 14.66666667 | C19: W | D19: Calculate input power assuming finite efficiency | Z19: Internal Compensation | AA19: 1
Z20: External Compensation | AA20: 2
A21: Iin_Vinmin | B21: =Pin/VIN_min -> 1.222222222 | C21: A | L21: =Vout -> 3.3 | Z21: COMP_TYPE | AA21: 2
A22: Iin_Vinnom | B22: =Pin/VIN_nom -> 1.222222222 | C22: A | D22: Input currents at min, nom, max Vin | H22: =AND(OSC=1, OR(Fsw/1000>2530, Fsw/1000<1800)) -> FALSE
A23: Iin_Vinmax | B23: =Pin/VIN_max -> 1.222222222 | C23: A | H23: =AND(OSC=2, OR(Fsw/1000>500, Fsw/1000<300)) -> FALSE
H24: =OR(H22,H23) -> FALSE
A25: OSC setting | B25: =CHOOSE(OSC, 2200, 440) ->  | C25: kHz | K25: SetVout_IntComp_nEN | L25: 1 | N25: LM708A0(-Q1) | O25: 1 | Z25: UVLO Divider | AA25: 1
A26: Fsw | B26: ='Design Regulator'!E11*1000 -> 2200000 | C26: Hz | D26: Nominal switching frequency - determines RT resistor (SYNCIN must be 80-120% of this) | K26: SetVout_IntComp_EN | L26: 2 | N26: LM70880(-Q1) | O26: 2 | Z26: No UVLO Divider | AA26: 2
A27: RT resistor to AGND | B27: =((1000000000/Fsw)-53)/45+0.1 -> 9.023232323 | C27: kΩ | K27: SetVout_ExtComp_nEN | L27: 3 | N27: LM70860(-Q1) | O27: 3 | Z27: UVLO_TYPE | AA27: 2
C28: kΩ | I28: 1 | K28: SetVout_ExtComp_EN | L28: 4 | N28: LM70840(-Q1) | O28: 4
A29: Tsw | B29: =1/Fsw -> 4.545454545e-07 | C29: sec | D29: Switching period | K29: AdjVout_IntComp_nEN | L29: 5 | N29: LM706A0(-Q1) | O29: 5
A30: Vref | B30: 0.8 | C30: V | D30: Reference voltage | K30: AdjVout_IntComp_EN | L30: 6 | N30: LM70660(-Q1) | O30: 6
A31: Rt | B31: ='Standard Value Calculator'!S12/1000 -> 9.09 | C31: kΩ | D31: Frequency set resistor | F31: =IF(OR((Fsw=440000),(Fsw=2200000)),"N/A",Rfadj/1000) -> N/A | K31: AdjVout_ExtComp_nEN | L31: 7 | N31: LM704A0(-Q1) | O31: 7
K32: AdjVout_ExtComp_EN | L32: 8 | N32: GPN setting | O32: 2
A33: Step 2: Buck Inductor | B33: Channel 1 | K33: Schematic setting | L33: =(IF(OR(Vout=3.3,Vout=5,Vout=12),CHOOSE(COMP_TYPE,IF(UVLO_TYPE=2,1,2),IF(UVLO_TYPE=2,3,4)),CHOOSE(COMP_TYPE,IF(UVLO_TYPE=2,5,6),IF(UVLO_TYPE=2,7,8)))) -> 3
A34: Don1 | B34: =Vout/VIN_nom -> 0.275 | F34: Ideal Duty Cycle at VIN(nom)
A35: Doff1 | B35: =1-34:34 -> 0.725 | F35: Ideal 1- Duty Cycle at VIN(nom)
A37: D_Vinmin | B37: =Vout/VIN_min -> 0.275
A38: D_Vinnom | B38: =Vout/VIN_nom -> 0.275
A39: D_Vinmax | B39: =Vout/VIN_max -> 0.275
A41: L_Vinnom | B41: =(VIN_nom-Vout)*D1_Vinnom/(Fsw*(Iout/Number_of_Phases)*0.3) -> 9.0625e-07 | C41: H | F41: Calculated inductance for 35% ripple at VIN(nom)
A42: L_slopecomp | B42: =1000*Vout*Rs/24/Fsw -> 3.125e-07 | C42: H | F42: Calculated inductance based on one times inductor downslope
A44: Lopt | B44: =B42 -> 3.125e-07 | C44: H | F44: Slope comp
A46: Lo | B46: ='Design Regulator'!E27/1000000 -> 4.7e-07 | C46: H | F46: Chosen inductance
A47: Rdcr | B47: ='Design Regulator'!E28/1000 -> 0.0035 | C47: W | F47: Chosen inductor DCR
A49: Don2 | B49: =(Vout+Iout*(Rdcr+Rs))/(Vin+Iout*Rs) -> 0.2773710483
A50: Doff2 | B50: =1-_Don2 -> 0.7226289517
A52: D_Vinmin_2 | B52: =CHOOSE(MODE, (Vout+Iout*(Rdcr+Rs))/(VIN_min+Iout*Rs), (Vout+Iout/Number_of_Phases*(Rdcr+Rs))/(VIN_min+Iout/Number_of_Phases*Rs)) -> 0.2773710483 | F52: Duty cycles adjusted for DCR/shunt voltage drops
A53: D_Vinnom_2 | B53: =CHOOSE(MODE, (Vout+Iout*(Rdcr+Rs))/(VIN_nom+Iout*Rs), (Vout+Iout/Number_of_Phases*(Rdcr+Rs))/(VIN_nom+Iout/Number_of_Phases*Rs)) -> 0.2773710483 | F53: need to include RDS(on) later
A54: D_Vinmax_2 | B54: =CHOOSE(MODE, (Vout+Iout*(Rdcr+Rs))/(VIN_max+Iout*Rs), (Vout+Iout/Number_of_Phases*(Rdcr+Rs))/(VIN_max+Iout/Number_of_Phases*Rs)) -> 0.2773710483
A56: Iripple_Vinmin | B56: =(VIN_min-Vout)*D1_Vinmin_2/(Fsw*Lf) -> 2.333779613 | C56: A
A57: Iripple_Vinnom | B57: =(VIN_nom-Vout)*D1_Vinnom_2/(Fsw*Lf) -> 2.333779613 | C57: A
A58: Iripple_Vinmax | B58: =(VIN_max-Vout)*D1_Vinmax_2/(Fsw*Lf) -> 2.333779613 | C58: A
A60: Ishunt_rms_Vinmin | B60: =SQRT((Iout/Number_of_Phases)^2+(Iripple_Vinmin^2)/12) -> 4.056337914 | C60: A
A61: Ishunt_rms_Vinnom | B61: =SQRT((Iout/Number_of_Phases)^2+(Iripple_Vinnom^2)/12) -> 4.056337914 | C61: A
A62: Ishunt_rms_Vinmax | B62: =SQRT((Iout/Number_of_Phases)^2+(Iripple_Vinmax^2)/12) -> 4.056337914 | C62: A
A63: Max shunt power loss at full load | B63: =B61^2*Rs -> 0.08226938637 | C63: W | F63: Note this is power loss at full load - not loss near OCP!
A65: Max inductor ripple current | B65: =MAX(B56:B58) -> 2.333779613 | C65: A | F65: Ripple current at Vin(max)
B67: =B56/(Iout/Number_of_Phases) -> 0.5834449032
A68: % ripple current | B68: =B57/(Iout/Number_of_Phases) -> 0.5834449032
B69: =B58/(Iout/Number_of_Phases) -> 0.5834449032
A71: Inductor copper temerature | B71: 100 | C71: °C
A72: DCR at hot | B72: =Rdcr*(1+0.0039*(B71-25)) -> 0.00452375 | C72: W
A75: Step 3: Sense Resistors, Slope Comp, Current Limit
A77: Ilimit_DC | B77: ='Design Regulator'!E16 -> 7 | C77: A | F77: Chosen OCP level - based on output current
A79: Ilimit_inductor_Vinmin | B79: =CHOOSE(MODE, Ilimit_DC+Iripple_Vinmin/2, Ilimit_DC/Number_of_Phases+Iripple_Vinmin/2) -> 8.166889806 | C79: A | F79: Peak inductor current at current limit inception
A80: Ilimit_inductor_Vinnom | B80: =CHOOSE(MODE, Ilimit_DC+Iripple_Vinnom/2, Ilimit_DC/Number_of_Phases+Iripple_Vinnom/2) -> 8.166889806 | C80: A
A81: Ilimit_inductor_Vinmax | B81: =CHOOSE(MODE, Ilimit_DC+Iripple_Vinmax/2, Ilimit_DC/Number_of_Phases+Iripple_Vinmax/2) -> 8.166889806 | C81: A
A84: CS threshold_min | B84: 0.05 | C84: V
A85: CS threshold | B85: 0.056 | C85: V
A86: CS threshold_max | B86: 0.062 | C86: V
A88: Shunt required to get OCP at VIN(min) | B88: =Buck_CS_threshold/B79 -> 0.006856955503 | C88: W
A89: Shunt required to get OCP at VIN(nom) | B89: =Buck_CS_threshold/B80 -> 0.006856955503 | C89: W
A90: Shunt required to get OCP at VIN(max) | B90: =Buck_CS_threshold/B81 -> 0.006856955503 | C90: W
A92: Rs_ideal | B92: =B89 -> 0.006856955503 | C92: W | F92: Ideal Rs for the required OCP -- based on 73mV CL threshold
A93: Rs | B93: ='Design Regulator'!E18/1000 -> 0.005 | C93: W | F93: Selected (starndard value) current limit sense resistor
A95: Current limit - peak | B95: =Buck_CS_threshold/Rs -> 11.2 | C95: A | F95: Peak inductor current limit = min sat current
A97: Iout_OCP_Vinmin | B97: =Number_of_Phases*(Buck_CS_threshold/Rs-Iripple_Vinmin/2) -> 10.03311019 | C97: A | F97: Current limit setpoints (i.e. IOUT) after standard components are selected
A98: Iout_OCP_Vinnom | B98: =Number_of_Phases*(Buck_CS_threshold/Rs-Iripple_Vinnom/2) -> 10.03311019 | C98: A
A99: Iout_OCP_Vinmax | B99: =Number_of_Phases*(Buck_CS_threshold/Rs-Iripple_Vinmax/2) -> 10.03311019 | C99: A
A101: Irms_OCP_Vinmin | B101: =SQRT((Iout_OCP_Vinmin/Number_of_Phases)^2+(Iripple_Vinmin^2)/12) -> 10.05570373 | C101: A
A102: Irms_OCP_Vinnom | B102: =SQRT((Iout_OCP_Vinnom/Number_of_Phases)^2+(Iripple_Vinnom^2)/12) -> 10.05570373 | C102: A
A103: Irms_OCP_Vinmax | B103: =SQRT((Iout_OCP_Vinmax/Number_of_Phases)^2+(Iripple_Vinmax^2)/12) -> 10.05570373 | C103: A
A105: Pshunt_Vinmin | B105: =B101^2*Rs -> 0.5055858871 | C105: W | F105: Max power dissipations in shunt
A106: Pshunt_Vinnom | B106: =B102^2*Rs -> 0.5055858871 | C106: W
A107: Pshunt_Vinmax | B107: =B103^2*Rs -> 0.5055858871 | C107: W
A110: Step 4: Output Capacitor
A111: Icoutrms_VINmin | B111: =Iripple_Vinmin/SQRT(12) -> 0.6737041439 | C111: A | F111: Output Cap RMS current
A112: Icoutrms_VINnom | B112: =Iripple_Vinnom/SQRT(12) -> 0.6737041439 | C112: A
A113: Icoutrms_VINmax | B113: =Iripple_Vinmax/SQRT(12) -> 0.6737041439 | C113: A
A114: Max Cout rms current | B114: =MAX(B111:B113) -> 0.6737041439 | C114: A
A116: Vripple1 | B116: ='Design Regulator'!E32/1000 -> 0.1 | C116: V | F116: Output voltage ripple spec(pk-pk)
A118: Output Ripple Spec (pk-pk) | B118: =Vo1_ripple*1000 -> 100 | C118: mV | F118: Vout ripple spec at Vin(nom)
A120: Coutmin | B120: =Iripple_Vinnom/(Fsw*8*Vo1_ripple) -> 1.326011144e-06 | C120: F | F120: Minimum output capacitnace | H120: =Vo2_ripple -> 0 | I120: 1
A121: Reported Coutmin | B121: =IF(Cout_min*1000000<2, 2.2,Cout_min*1000000) -> 2.2 | C121: uF
A122: Cout | B122: ='Design Regulator'!E34/1000000 -> 4e-05 | C122: F | F122: Chosen output capacitance | I122: 1
A123: Resrmax | B123: =SQRT((Vo1_ripple/Iripple_Vinnom)^2-(1/(Fsw*Cout*8))^2) -> 0.04282539675 | C123: W | F123: Max ESR before ripple exceeds Vripple1 | I123: 1
A125: Reported Cout ESR max | B125: =IF(OR(CoutEsrMax>0.3, CoutEsrMax<0, (ISERROR(CoutEsrMax))), "N/A", CoutEsrMax*1000) -> 42.82539675 | C125: mΩ
A126: CoutEsr | B126: ='Design Regulator'!E36/1000 -> 0.001 | C126: W | F126: Chosen ESR | I126: 1 | K126: =ISERROR(CoutEsrMax) -> FALSE | L126: =ISERROR(B125) -> FALSE
A127: Vripple | B127: =Iripple_Vinnom*SQRT(Cout_ESR^2+(1/(8*Fsw*Cout))^2) -> 0.004054125922 | C127: Vp-p | L127: =OR(CoutEsrMax>0.3,CoutEsrMax<0) -> FALSE
K128: =OR(TRUE, FALSE, TRUE) -> TRUE
A129: Step 5: Input Capacitor
K130: Two channels operating at full load
A131: Icinrms_VINmin | B131: =SQRT(D1_Vinmin_2*(Iout^2*(1-D1_Vinmin_2)+Iripple_Vinmin^2/12)) -> 1.825616064 | C131: A | D131: =D1_Vinmax -> 0.275 | F131: Calculate input cap rms current with one output unloaded | K131: =SQRT(Iout^2*D1_Vinmin*(1-D1_Vinmin)+Iout2^2*D2_Vinmin*(1-D2_Vinmin)-2*Iout*Iout2*D1_Vinmin*D2_Vinmin) ->  | L131: A | M131: =SQRT(Iout^2*D1_Vinmin*(1-D1_Vinmin)+Iout2^2*D2_Vinmin*(1-D2_Vinmin)-2*Iout*Iout2*(0.5-D2_Vinmin*(1-D1_Vinmin))) ->  | N131: A
A132: Icinrms_VINnom | B132: =SQRT(D1_Vinnom_2*(Iout^2*(1-D1_Vinnom_2)+Iripple_Vinnom^2/12)) -> 1.825616064 | C132: A | D132: =D1_Vinmin -> 0.275 | K132: =SQRT(Iout^2*D1_Vinnom*(1-D1_Vinnom)+Iout2^2*D2_Vinnom*(1-D2_Vinnom)-2*Iout*Iout2*D1_Vinnom*D2_Vinnom) ->  | L132: A
A133: Icinrms_VINmax | B133: =SQRT(D1_Vinmax_2*(Iout^2*(1-D1_Vinmax_2)+Iripple_Vinmax^2/12)) -> 1.825616064 | C133: A | K133: =SQRT(Iout^2*D1_Vinmax*(1-D1_Vinmax)+Iout2^2*D2_Vinmax*(1-D2_Vinmax)-2*Iout*Iout2*D1_Vinmax*D2_Vinmax) ->  | L133: A
A134: Icinrms - multiphase | B134: =Iout*SQRT((D1_Vinmin-F136/Number_of_Phases)*((F136+1)/Number_of_Phases-D1_Vinmin)) -> 1.78605711 | C134: A | K134: =MAX(K131:K133) ->  | L134: A
A135: Max Cin rms current | B135: =MAX(B131:B133) -> 1.825616064 | C135: A | F135: =Number_of_Phases*D1_Vinnom -> 0.275 | G135: N*D
F136: =FLOOR(Number_of_Phases*D1_Vinnom,1) -> 0 | G136: floor(N*D)
A137: Icinrms - multiphase - max | B137: =Iout/2/Number_of_Phases -> 2 | C137: A
A138: Final result | B138: =IF(D1_Vinmin<0.5, B135, B137) -> 1.825616064 | C138: A | D138: …report this
A140: Vinripple1 | B140: ='Design Regulator'!E41/1000 -> 0.3 | C140: Vp-p | F140: Input voltage ripple spec (pk-pk)
A142: Cinmin_Vinmin | B142: =Iout/Number_of_Phases*D1_Vinmin*(1-D1_Vinmin)/(Vinripple1*Fsw) -> 1.208333333e-06 | C142: F
A143: Cinmin_Vinnom | B143: =Iout/Number_of_Phases*D1_Vinnom*(1-D1_Vinnom)/(Vinripple1*Fsw) -> 1.208333333e-06 | C143: F
A144: Cinmin_Vinmax | B144: =Iout/Number_of_Phases*D1_Vinmax*(1-D1_Vinmax)/(Vinripple1*Fsw) -> 1.208333333e-06 | C144: F | F144: Calculate cap at Vinmax and 50% duty cycle (Vin = 2*Vout)
A146: Cinmin_50%D | B146: =Iout*0.5*(1-0.5)/(Vinripple1*Fsw) -> 1.515151515e-06 | C146: F | F146: Buck 50% typically worst case
A147: Cinmin | B147: =IF(D1_Vinmin<0.5, B142,B146) -> 1.208333333e-06 | C147: F | D147: =(VIN_min+VIN_max)/2 -> 12
A148: Reported Cinmin | B148: =IF(Cinmin*1000000<2.2, 2.2,Cinmin*1000000) -> 2.2 | C148: uF | D148: =2*Vout -> 6.6 | F148: …report this
A150: Cin | B150: ='Design Regulator'!E43/1000000 -> 4.4e-05 | C150: F | F150: Input capacitance
A151: CinEsrMax_Vinmax | B151: =-(Iout/Number_of_Phases*D1_Vinmax*(1-D1_Vinmax)/(Cin*Fsw)-Vinripple1)/(Iout/Number_of_Phases+Iripple_Vinmax/2) -> 0.05646750261 | C151: W
A152: CinEsrMax_50%D | B152: =-(Iout/Number_of_Phases*0.5*(1-0.5)/(Cin*Fsw)-Vinripple1)/(Iout/Number_of_Phases+Iripple_Vinmax/2) -> 0.05606262807 | C152: W | F152: Calculate ESR at Vinmax and 50% duty cycle (Vin = 2*Vout)
A153: CinEsrMax | B153: =IF(VIN_max<2*Vout, B151,B152) -> 0.05606262807 | C153: W
A154: Reported Cin ESR max | B154: =IF(OR(CinEsrMax>0.3, CinEsrMax<0), "N/A",CinEsrMax*1000) -> 56.06262807 | C154: mΩ | F154: …report this
A155: RCinEsr | B155: ='Design Regulator'!E45/1000 -> 0.001 | C155: W | F155: Input capacitance series resistance (ESR)
A157: Vinripple2_Vinmin | B157: =Iout/Number_of_Phases*D1_Vinmin_2*(1-D1_Vinmin_2)/(Cin*Fsw)+(Iout/Number_of_Phases +Iripple_Vinmin/2)*RCinEsr -> 0.0134493836 | C157: Vp-p
A158: Vinripple2_Vinnom | B158: =Iout/Number_of_Phases*D1_Vinnom_2*(1-D1_Vinnom_2)/(Cin*Fsw)+(Iout/Number_of_Phases +Iripple_Vinnom/2)*RCinEsr -> 0.0134493836 | C158: Vp-p
A159: Vinripple2_Vinmax | B159: =Iout/Number_of_Phases*D1_Vinmax_2*(1-D1_Vinmax_2)/(Cin*Fsw)+(Iout/Number_of_Phases +Iripple_Vinmax/2)*RCinEsr -> 0.0134493836 | C159: Vp-p
A160: Vinripple2_50%D | B160: =Iout/Number_of_Phases*0.5*(1-0.5)/(Cin*Fsw)+(Iout/Number_of_Phases +Iripple_Vinmax/2)*RCinEsr -> 0.01549746832 | C160: Vp-p | F160: Calculate ripple at Vinmax and 50% duty cycle (Vin = 2*Vout)
A161: Vinripple2 | B161: =IF(D1_Vinmin<0.5, B157,B160) -> 0.0134493836 | C161: Vp-p | F161: …report highest of these
B163: =Iout*D1_Vinmax_2*(1-D1_Vinmax_2)/(Cin*Fsw) -> 0.008282493795 | C163: Vp-p
A165: Step 6a: Soft Start
A166: Tss | B166: ='Design Regulator'!E50/1000 -> 0 | C166: s | D166: Soft-start time
A167: Iss | B167: =Cout*Vout/Tss ->  | C167: A | D167: Load cap current during soft start
A168: Css | B168: =0.000022*Tss/1.2 -> 0 | C168: F
A169: Css_u | B169: ='Standard Value Calculator'!B4 -> 0 | C169: F
A171: Step 6b: Other Components - Dither, Hiccup, DEMB, MODE
A172: Tres | B172: ='Design Regulator'!E53/1000 -> 0.005 | C172: s | D172: Hiccup time
A173: Cres | B173: =0.00002*Tres/1.2 -> 8.333333333e-08 | C173: F
A174: Cres_u | B174: ='Standard Value Calculator'!G4 -> 8.2e-08 | C174: F
A176: RPG1/2 | B176: 100 | C176: kΩ
A177: RFB1/2 | C177: W | E177: Tie to VDDA or AGND for 3.3V/5V output, respectively.
A178: R_MODE | C178: W | E178: Tie to VDDA or AGND for Single/Dual operation, respectively.
A179: R_DEMB | C179: W | E179: Tie to VDDA or AGND for FPWM/DEM, respectively.
A181: Enable Hysteresis Current | B181: 1e-05 | C181: A | E181: 10 µA Hysteresis Current
A182: Turn ON Voltage | B182: ='Design Regulator'!E52 -> 6
A183: Hysteresis Voltage | B183: ='Design Regulator'!E52-'Design Regulator'!E53 -> 1
A185: Upper FB resistor | B185: =B183/B181 -> 100000 | C185: W
A186: Lower FB resister | B186: =B185/(B182-1) -> 20000 | C186: W
A187: Standard upper FB resistor | B187: ='Standard Value Calculator'!S40 -> 100 | C187: kΩ
A188: Standard lower FB resistor | B188: ='Standard Value Calculator'!S41 -> 20 | C188: kΩ
A190: Dither Modulation Frequency | B190: ='Design Regulator'!E56*1000 -> 41200 | C190: Hz
A191: Cdither_calculated | B191: =10*10^-6/Fdither/0.12 -> 2.022653722e-09 | C191: F
A192: Cdither_stdvalue | B192: ='Standard Value Calculator'!S21 -> 2.2e-09 | C192: F
A195: Step 7: Compensation
A196: Pi | B196: 3.14159265 | D196: p
A197: CS Amp Gain | B197: 10
A198: Ri | B198: =Rs*CSAmp_gain -> 0.05 | C198: W | F198: Current Sense effective resistance = shunt resistor Rs * CS amp gain
A199: gm | B199: =IF(COMP_TYPE=1,0.00003,0.0012) -> 0.0012 | C199: S | F199: Error Amp Transconductance
A201: Se_ext | B201: =B205/Ri*1000 -> 10000000 | C201: A/s | F201: Slope Comp Slope - referred to inductor current
A202: Sn | B202: =(Vin-Vout)/Lf -> 18510638.3 | C202: A/s | F202: On-time Slope
A203: Sf | B203: =Vout/Lf -> 7021276.596 | C203: A/s | F203: Off-time Slope
A205: Se_int | B205: =Fsw*0.001*(5/22) -> 500 | C205: mV/μs | F205: Slope Comp Slope - referred to IC
A206: Sn_int | B206: =Sn*Ri/1000 -> 925.5319149 | C206: mV/μs | F206: etc
A207: Sf_int | B207: =Sf*Ri/1000 -> 351.0638298 | C207: mV/μs | F207: etc
A209: mc_buck | B209: =1+Se_ext/Sn -> 1.540229885 | F209: mc = 1 + Se/Sn for peak current-mode buck
A210: k_buck | B210: =mc_buck*(1-D1_Vinnom_2) -> 1.113014707 | F210: mc*(1-d)
A212: mc | B212: =1+Se_ext/Sn -> 1.540229885
A213: k | B213: =mc_buck*(1-D1_Vinnom_2) -> 1.113014707
A214: Q | B214: =1/Pi/(k-0.5) -> 0.5192532622 | F214: 1/(Pi*(k-0.5)) | H214: Q = 2/Pi = 0.636 gives ideal one-cycle damping
A216: Error Amp (EA)
A217: GBW | B217: 6 | C217: MHz | F217: EA gain-bandwidth product
A218: Cbw | B218: =gm/(2*Pi*GBW*1000000) -> 3.183098865e-11 | C218: F | F218: EA effective bandwidth limiting capacitance = gm/(2*Pi*GBW)
A219: RoEA | B219: 64000000 | C219: W | F219: EA output resistance
A220: AEA | B220: =gm*RoEA -> 76800 | C220: V/V | F220: EA DC gain = gm*RoEA
A221: Afb | B221: =IF(VOUT_setting=1,Vref/Vout,SQRT((1+(Fcross*zterm1)^2)/((1+Afbr-pterm4*(Fcross)^2)^2+(Fcross*pterm3)^2))) -> 0.2253854052 | C221: V/V | F221: Feedback gain from Vout to FB
A222: Acs | B222: =1/Ri -> 20 | F222: Acs = 1/Ri
A223: Am_buck | B223: =(Ro/Number_of_Phases)/Ri/((1+Ro/Number_of_Phases*(k-0.5)/(Fsw*Lf))) -> 11.08046278
A224: Am | B224: =(Ro*Number_of_Phases)/Ri/((1+Ro*Number_of_Phases*(k-0.5)/(Fsw*Lf))) -> 11.08046278 | F224: Buck modulator gain
A226: Scaling factor to calculate Rcomp - buck | B226: =2*Pi*Ri/gm -> 261.7993875 | F226: 2*Pi*Ri/gm -- scaling factor to calculate Rcomp given desired buck crossover frequency
A227: DC Gain is Adc = AEA*Afb*Am
A229: Ro | B229: =Rout -> 0.825 | C229: W | F229: Output Resistance
A231: Fp_load_buck | B231: =1/(2*Pi*Ro*Cout)+(k-0.5)/(2*Pi*Fsw*Lf*Cout/Number_of_Phases) -> 7181.782315 | C231: Hz | F231: Buck dominant pole frequency -- note slope comp influence
A232: Fp_dominant | B232: =Fload_u -> 7181.782315 | C232: Hz
B233: =Cbw -> 3.183098865e-11
A234: Fp_EA | B234: =1/(2*Pi*(RoEA+Rcea1_u)*Cc1ea_u) -> 1.130255852 | C234: Hz | F234: Error Amp LF pole -- related to amplifier ouptut resistance and comp cap
A235: Fp_HF | B235: =1/(2*Pi*Rcea1_u*(Cc2ea_u+Cbw)) -> 492761.2244 | C235: Hz | F235: Error Amp HF pole cancels zero related to Output Cap ESR
A236: Fesr | B236: =1/(2*Pi*Cout*Cout_ESR) -> 3978873.582 | C236: Hz | F236: Cout ESR zero frequency
A237: F_mod | B237: =Fsw/2 -> 1100000 | C237: Hz | F237: Zero-order sample-and-hold effects of current-mode control modeled as pole at Fsw/2
D238: Internal Comp Crossover
A239: Desired Crossover Frequency | B239: =CHOOSE(COMP_TYPE,Fcross_Ch2,'Design Regulator'!E62*1000) -> 50000 | C239: Hz | D239: =Fsw/50 -> 44000
A240: Rcea1 | B240: =Fcross*Cout/Number_of_Phases*2*Pi*Ri/(gm*Afb) -> 2323.126356 | C240: W | F240: This component will largely determine the crossover frequency | K240: =Fcross/Fp_dominant/(gm*Afb*Am) -> 2323.126356
A241: Cc1ea, Cc3ea | B241: =10/(Rcea1*Fcross*2*Pi) -> 1.370178965e-08 | C241: F | F241: This along with Rcea1 will set a zero at Fcrossover/5 to optimize phase margin
A242: Cc2ea, Cc4ea | B242: =MAX(1/(Rcea1*2*Pi*Fesr)-Cbw, 1/(Rcea1*2*Pi*(Fsw/2))-Cbw) -> 3.044987338e-11 | C242: F | F242: This along with Rcea1 places a pole at the output cap ESR zero
A244: =CHOOSE(COMP_TYPE,"Internal Compensation","External Compensation") -> External Compensation
A245: Chosen Compensation Components from the standard value sheet | D245: Internal Values
A246: Rcea1_u | B246: =CHOOSE(COMP_TYPE,D246,'Design Regulator'!D69*1000) -> 6000 | C246: W | D246: 400000 | G246: =1/(Rcea1*2*Pi*(Fsw/2))-Cbw -> 3.044987338e-11
A247: Cc1ea_u | B247: =CHOOSE(COMP_TYPE,Cc3ea_u,'Design Regulator'!D70*0.000000001) -> 2.2e-09 | C247: F | D247: =50*0.000000000001 -> 5e-11
A248: Cc2ea_u | B248: =CHOOSE(COMP_TYPE,Cc4ea_u,'Design Regulator'!D71*0.000000000001) -> 2.2e-11 | C248: F | D248: =0.000000000001 -> 1e-12
A250: Resulting Pole/Zero Locations | F250: =Cout -> 4e-05 | G250: =Cout_ESR -> 0.001
A251: Fz1 | B251: =1/(2*Pi*Rcea1_u*Cc1ea_u) -> 12057.19267 | C251: Hz | F251: This zero is set at or close to the dominant load pole
A252: Fp2 | B252: =1/(2*Pi*Rcea1_u*(Cc1ea_u*(Cc2ea_u+Cbw)/(Cc1ea_u+Cc2ea_u+Cbw))) -> 504818.417 | C252: Hz | F252: This pole cancels the zero from the Output Cap ESR
D253: Internal Values
... 156 more rows

Sheet Schematic Management (hidden)
N1: 3.3V or 5V fixed (FB1/2)
A2: =IF(MODE=1, CHOOSE(SCH_SETTING, "SCH_SetVout_IntComp_nEN","SCH_SetVout_IntComp_EN","SCH_SetVout_ExtComp_nEN","SCH_SetVout_ExtComp_EN","SCH_AdjVout_IntComp_nEN","SCH_AdjVout_IntComp_EN","SCH_AdjVout_ExtComp_nEN","SCH_AdjVout_ExtComp_EN")) -> SCH_SetVout_ExtComp_nEN | J2: With/without dither (DITH) | N2: With/without VOUT connected to VCCX
J3: FPWM or DEM (DEMB)
J4: Shunt or inductor DCR current sensing

Sheet Stability Calculations (hidden)
A2: Divider Network & EA Poles/Zeros | E2: Modulator | J2: Power Stage Poles/Zeros | M2: Complex Pole Pair | P2: Feedback natural frequencies | T2: Total System
B3: Afb1 | C3: =Afb -> 0.2253854052 | D3: V/V | E3: Acs | F3: =Acs -> 20 | G3: A/V | H3: gm | I3: =gm -> 0.0012 | J3: z_ESR | K3: =Fesr -> 3978873.582 | L3: Hz | M3: p3 | N3: =Fsw/2 -> 1100000 | O3: Hz | P3: zterm1 | Q3: =((1/wffHz)+(1/wfftHz)) -> 5.810941093e-06 | T3: Adc | U3: =IF(VOUT_setting=1,Am*Afb*AEA,Am*AEA) -> 850979.5416 | V3: V/V
B4: EA zero, z1 | C4: =Fz1_u -> 12057.19267 | D4: Hz | E4: Am | F4: =Am -> 11.08046278 | G4: V/V | J4: p_dom | K4: =Fp_dominant -> 7181.782315 | L4: Hz | M4: pterm1 | N4: =Q*pole3 -> 571178.5884 | P4: pterm3 | Q4: =((1/wfbtHz)+(1/wffHz)+(1/wfftHz)+(Afbr/wffHz)) -> 4.051403657e-05 | T4: Crossover | U4: =AI7 -> 108.4 | V4: kHz
B5: EA pole, p1 | C5: =Fp1_u -> 1.130255852 | D5: Hz | E5: Q | F5: =Q -> 0.5192532622 | M5: pterm2 | N5: =pole3^2 -> 1210000000000 | P5: pterm4 | Q5: =1/(wffHz*wfbtHz) -> 1.593743715e-12 | T5: Phase Margin | U5: =AI9 -> 51.2514908 | V5: °
B6: Aea | C6: =AEA -> 76800 | D6: V/V | E6: mc | F6: =mc -> 1.540229885 | P6: Afbr | Q6: =Rfb1_/Rfb2_u -> 3.156565657 | T6: radconv | U6: =180/Pi -> 57.29577958 | AH6: XOVER SEARCH
B7: EA pole, p2 | C7: =Fp2_u -> 492761.2244 | D7: Hz | E7: k | F7: =k -> 1.113014707 | AH7: xover | AI7: =SUM(AH12:AH613)/1000 -> 108.4
AH9: phase margin | AI9: =SUM(AI13:AI613) -> 51.2514908
A10: Freq (Hz) | C10: Power Stage | I10: Error Amplifier | O10: Feedback Gain | S10: Sampling Double Pole | U10: System Response | AB10: ERROR AMP Response | AE10: PLANT Response
C11: p_dom | E11: z_ESR | G11: z_RHP | I11: p1 | K11: z1 | M11: p2 | O11: z1 | Q11: p1p2 | S11: p3
C12: Gain(V/V) | D12: Phase(rad) | E12: Gain(V/V) | F12: Phase(rad) | G12: Gain(V/V) | H12: Phase(rad) | I12: Gain(V/V) | J12: Phase(rad) | K12: Gain(V/V) | L12: Phase(rad) | M12: Gain(V/V) | N12: Phase(rad) | O12: Gain(V/V) | P12: Phase(rad) | Q12: Gain(V/V) | R12: Phase(rad) | S12: Gain(V/V) | T12: Phase(rad) | U12: Gain (dB) | V12: Phase (°) | W12: Phase Margin (°) | Z12: Fsquare | AB12: Gain(dB) | AC12: Phase(Deg) | AE12: Gain(dB) | AF12: Phase(Deg)
A13: 1 | B13: =A13/1000 -> 0.001 | C13: =SQRT(1+(A13/pole1)^2) -> 1.00000001 | D13: =ATAN(A13/pole1) -> 0.0001392412008 | E13: =SQRT(1+(A13/Zero1)^2) -> 1 | F13: =ATAN(A13/Zero1) -> 2.51327412e-07 | G13: =IF(VIN_nom>Vout, 1, SQRT(1+(A13/z_RHP)^2)) -> 1 | H13: =IF(VIN_nom>Vout, 0, -ATAN(A13/z_RHP)) -> 0 | I13: =SQRT(1+(A13/Pole2)^2) -> 1.335212406 | J13: =ATAN(A13/Pole2) -> 0.7243285592 | K13: =SQRT(1+(A13/Zero2)^2) -> 1.000000003 | L13: =ATAN(A13/Zero2) -> 8.293804577e-05 | M13: =SQRT(1+(A13/pole4)^2) -> 1 | N13: =ATAN(A13/pole4) -> 2.02938046e-06 | O13: =IF(VOUT_setting=1,1,SQRT(1+(A13*zterm1)^2)) -> 1 | P13: =IF(VOUT_setting=1,0,ATAN(((A13*zterm1)))) -> 5.810941093e-06 | Q13: =IF(VOUT_setting=1,1,SQRT((1+Afbr-pterm4*(A13)^2)^2+(A13*$Q$4)^2)) -> 4.156565657 | R13: =IF(VOUT_setting=1,0,ATAN(A13*$Q$4/(1+Afbr-$Q$5*(A13)^2))) -> 9.746997862e-06 | S13: =SQRT((1-(Z13/pterm2))^2+(A13/pterm1)^2) -> 1 | T13: =IF((ATAN((A13/pterm1)/(1-A13^2/pterm2))>0),ATAN((A13/pterm1)/(1-A13^2/pterm2)),PI()+ATAN((A13/pterm1)/(1-A13^2/pterm2))) -> 1.750765908e-06 | U13: =20*LOG10(((E13*K13*G13*O13)/(C13*I13*S13*M13*Q13))*Adc) -> 103.7126823 | V13: =((F13+L13+H13+P13)-(D13+J13+T13+N13+R13))*radconv -> -41.50462311 | W13: =IF(V13>0,V13,V13+180) -> 138.4953769 | Y13: =IF(U13<0,A13,1000000000) -> 1000000000 | Z13: =A13^2 -> 1 | AB13: =20*LOG10((K13/(I13*M13))*AEA) -> 95.19621726 | AC13: =(L13-(J13+N13))*radconv -> -41.49633375 | AE13: =20*LOG10((E13*G13/(C13*S13))*Acs*Am) -> 46.91175781 | AF13: =(F13+H13-(D13+T13))*radconv -> -0.008063844648 | AH13: =SUM((U14<0)*(U13>0))*A13 -> 0 | AI13: =IF(AH13>0,W11,0) -> 0
A14: 1.0965 | B14: =A14/1000 -> 0.0010965 | C14: 1.000000012 | D14: 0.0001526779765 | E14: 1 | F14: 2.755805073e-07 | G14: 1 | H14: 0 | I14: 1.393255401 | J14: 0.770240118 | K14: 1.000000004 | L14: 9.094156714e-05 | M14: 1 | N14: 2.225215674e-06 | O14: 1 | P14: 6.371696908e-06 | Q14: =IF(VOUT_setting=1,1,SQRT((1+Afbr-pterm4*(A14)^2)^2+(A14*$Q$4)^2)) -> 4.156565657 | R14: 1.068758316e-05 | S14: 1 | T14: 1.919714818e-06 | U14: 103.3430747 | V14: -44.13551424 | W14: 135.8644858 | Y14: 1000000000 | Z14: 1.20231225 | AB14: 94.82660973 | AC14: -44.12642495 | AE14: 46.9117578 | AF14: -0.008842005645 | AH14: 0 | AI14: 0
A15: 1.2023 | B15: 0.0012023 | C15: 1.000000014 | D15: 0.0001674096953 | E15: 1 | F15: 3.021709474e-07 | G15: 1 | H15: 0 | I15: 1.459981464 | J15: 0.8162747027 | K15: 1.000000005 | L15: 9.971641233e-05 | M15: 1 | N15: 2.439924127e-06 | O15: 1 | P15: 6.986494476e-06 | Q15: =IF(VOUT_setting=1,1,SQRT((1+Afbr-$Q$5*(A15)^2)^2+(A15*$Q$4)^2)) -> 4.156565657 | R15: 1.171881553e-05 | S15: 1 | T15: 2.104945851e-06 | U15: 102.9367426 | V15: -46.77348821 | W15: 133.2265118 | Y15: 1000000000 | Z15: 1.44552529 | AB15: 94.4202776 | AC15: -46.76352191 | AE15: 46.91175778 | AF15: -0.009695160393 | AH15: 0 | AI15: 0
A16: 1.3183 | B16: 0.0013183 | C16: 1.000000017 | D16: 0.0001835616742 | E16: 1 | F16: 3.313249272e-07 | G16: 1 | H16: 0 | I16: 1.536367848 | J16: 0.8620456945 | K16: 1.000000006 | L16: 0.0001093372256 | M16: 1 | N16: 2.67533226e-06 | O16: 1 | P16: 7.660563643e-06 | Q16: 4.156565657 | R16: 1.284946728e-05 | S16: 1 | T16: 2.308034696e-06 | U16: 102.4937852 | V16: -49.39639669 | W16: 130.6036033 | Y16: 1000000000 | Z16: 1.73791489 | AB16: 93.97732025 | AC16: -49.38546882 | AE16: 46.91175775 | AF16: -0.01063056635 | AH16: 0 | AI16: 0
A17: 1.4454 | B17: 0.0014454 | C17: 1.00000002 | D17: 0.0002012592303 | E17: 1 | F17: 3.632686413e-07 | G17: 1 | H17: 0 | I17: 1.623389864 | J17: 0.9071479227 | K17: 1.000000007 | L17: 0.0001198786511 | M17: 1 | N17: 2.933266516e-06 | O17: 1 | P17: 8.399134255e-06 | Q17: 4.156565657 | R17: 1.408831071e-05 | S17: 1 | T17: 2.530557043e-06 | U17: 102.0152328 | V17: -51.98102839 | W17: 128.0189716 | Y17: 1000000000 | Z17: 2.08918116 | AB17: 93.49876786 | AC17: -51.96904695 | AE17: 46.91175772 | AF17: -0.01165548097 | AH17: 0 | AI17: 0
A18: 1.5849 | B18: 0.0015849 | C18: 1.000000024 | D18: 0.000220683377 | E18: 1 | F18: 3.983288153e-07 | G18: 1 | H18: 0 | I18: 1.722295537 | J18: 0.9513057896 | K18: 1.000000009 | L18: 0.0001314485083 | M18: 1 | N18: 3.21636509e-06 | O18: 1 | P18: 9.209760538e-06 | Q18: 4.156565657 | R18: 1.544801691e-05 | S18: 1 | T18: 2.774788888e-06 | U18: 101.5015358 | V18: -54.51159748 | W18: 125.4884025 | Y18: 1000000000 | Z18: 2.51190801 | AB18: 92.98507095 | AC18: -54.49845967 | AE18: 46.91175769 | AF18: -0.01278038726 | AH18: 0 | AI18: 0
A19: 1.7378 | B19: 0.0017378 | C19: 1.000000029 | D19: 0.0002419733556 | E19: 1 | F19: 4.367567766e-07 | G19: 1 | H19: 0 | I19: 1.834118944 | J19: 0.9941437105 | K19: 1.00000001 | L19: 0.0001441297353 | M19: 1 | N19: 3.526657363e-06 | O19: 1 | P19: 1.009825343e-05 | Q19: 4.156565657 | R19: 1.693833288e-05 | S19: 1 | T19: 3.042480995e-06 | U19: 100.9551394 | V19: -56.9665882 | W19: 123.0334118 | Y19: 1000000000 | Z19: 3.01994884 | AB19: 92.43867456 | AC19: -56.95218294 | AE19: 46.91175764 | AF19: -0.01401334905 | AH19: 0 | AI19: 0
A20: 1.9055 | B20: 0.0019055 | C20: 1.000000035 | D20: 0.0002653241037 | E20: 1 | F20: 4.789043836e-07 | G20: 1 | H20: 0 | I20: 1.96016932 | J20: 1.035425506 | K20: 1.000000012 | L20: 0.0001580384453 | M20: 1 | N20: 3.866984466e-06 | O20: 1 | P20: 1.107274825e-05 | Q20: 4.156565657 | R20: 1.857290442e-05 | S20: 1 | T20: 3.336084438e-06 | U20: 100.3778175 | V20: -59.33247355 | W20: 120.6675264 | Y20: 1000000000 | Z20: 3.63093025 | AB20: 91.86135276 | AC20: -59.31667817 | AE20: 46.91175759 | AF20: -0.01536565572 | AH20: 0 | AI20: 0
A21: 2.0893 | B21: 0.0020893 | C21: 1.000000042 | D21: 0.0002909166346 | E21: 1 | F21: 5.250983619e-07 | G21: 1 | H21: 0 | I21: 2.101671811 | J21: 1.074909684 | K21: 1.000000015 | L21: 0.0001732824577 | M21: 1 | N21: 4.239984594e-06 | O21: 1 | P21: 1.214079922e-05 | Q21: 4.156565657 | R21: 2.036440263e-05 | S21: 1 | T21: 3.657875212e-06 | U21: 99.77239126 | V21: -61.59542188 | W21: 118.4045781 | Y21: 1000000000 | Z21: 4.36517449 | AB21: 91.25592655 | AC21: -61.57810291 | AE21: 46.91175753 | AF21: -0.01684779026 | AH21: 0 | AI21: 0
A22: 2.2909 | B22: 0.0022909 | C22: 1.000000051 | D22: 0.0003189876582 | E22: 1 | F22: 5.757659682e-07 | G22: 1 | H22: 0 | I22: 2.260147719 | J22: 1.112468696 | K22: 1.000000018 | L22: 0.0001900027672 | M22: 1 | N22: 4.649107695e-06 | O22: 1 | P22: 1.331228495e-05 | Q22: 4.156565658 | R22: 2.23293974e-05 | S22: 1 | T22: 4.010829619e-06 | U22: 99.14095271 | V22: -63.74813129 | W22: 116.2518687 | Y22: 1000000000 | Z22: 5.24822281 | AB22: 90.62448806 | AC22: -63.72914119 | AE22: 46.91175746 | AF22: -0.0184734612 | AH22: 0 | AI22: 0
A23: 2.5119 | B23: 0.0025119 | C23: 1.000000061 | D23: 0.0003497599603 | E23: 1 | F23: 6.313093262e-07 | G23: 1 | H23: 0 | I23: 2.437034681 | J23: 1.147975226 | K23: 1.000000022 | L23: 0.0002083320746 | M23: 1 | N23: 5.097600776e-06 | O23: 1 | P23: 1.459650293e-05 | Q23: 4.156565658 | R23: 2.448348393e-05 | S23: 1 | T23: 4.397748884e-06 | U23: 98.48645495 | V23: -65.78331307 | W23: 114.2166869 | Y23: 1000000000 | Z23: 6.30964161 | AB23: 89.9699904 | AC23: -65.76249101 | AE23: 46.91175737 | AF23: -0.02025557068 | AH23: 0 | AI23: 0
A24: 2.7542 | B24: 0.0027542 | C24: 1.000000074 | D24: 0.000383498099 | E24: 1 | F24: 6.922059581e-07 | G24: 1 | H24: 0 | I24: 2.634001154 | J24: 1.181377785 | K24: 1.000000026 | L24: 0.0002284279622 | M24: 1 | N24: 5.589319662e-06 | O24: 1 | P24: 1.600449396e-05 | Q24: 4.156565658 | R24: 2.684518151e-05 | S24: 1 | T24: 4.821959464e-06 | U24: 97.81136986 | V24: -67.69802401 | W24: 112.301976 | Y24: 1000000000 | Z24: 7.58561764 | AB24: 89.29490541 | AC24: -67.67519345 | AE24: 46.91175726 | AF24: -0.02220943999 | AH24: 0 | AI24: 0
A25: 3.02 | B25: 0.00302 | C25: 1.000000088 | D25: 0.0004205084044 | E25: 1 | F25: 7.590087842e-07 | G25: 1 | H25: 0 | I25: 2.852959461 | J25: 1.212677297 | K25: 1.000000031 | L25: 0.0002504728936 | M25: 1 | N25: 6.128728988e-06 | O25: 1 | P25: 1.75490421e-05 | Q25: 4.156565658 | R25: 2.943593354e-05 | S25: 1 | T25: 5.287313042e-06 | U25: 97.11777698 | V25: -69.49232508 | W25: 110.5076749 | Y25: 1000000000 | Z25: 9.1204 | AB25: 88.60131266 | AC25: -69.4672912 | AE25: 46.91175713 | AF25: -0.02435280957 | AH25: 0 | AI25: 0
A26: 3.3113 | B26: 0.0033113 | C26: 1.000000106 | D26: 0.0004610693586 | E26: 1 | F26: 8.322204594e-07 | G26: 1 | H26: 0 | I26: 3.095656199 | J26: 1.241863463 | K26: 1.000000038 | L26: 0.0002746327447 | M26: 1 | N26: 6.719887516e-06 | O26: 1 | P26: 1.924176924e-05 | Q26: 4.156565659 | R26: 3.227523401e-05 | S26: 1 | T26: 5.797311151e-06 | U26: 96.40863444 | V26: -71.16563355 | W26: 108.8343665 | Y26: 1000000000 | Z26: 10.96470769 | AB26: 87.89217028 | AC26: -71.13818498 | AE26: 46.91175698 | AF26: -0.02670180708 | AH26: 0 | AI26: 0
A27: 3.6308 | B27: 0.0036308 | C27: 1.000000128 | D27: 0.0005055569121 | E27: 1 | F27: 9.125195675e-07 | G27: 1 | H27: 0 | I27: 3.364419872 | J27: 1.26900813 | K27: 1.000000045 | L27: 0.0003011314482 | M27: 1 | N27: 7.368274573e-06 | O27: 1 | P27: 2.109836492e-05 | Q27: 4.156565659 | R27: 3.538939982e-05 | S27: 1 | T27: 6.356680859e-06 | U27: 95.68548498 | V27: -72.72207576 | W27: 107.2779242 | Y27: 1000000000 | Z27: 13.18270864 | AB27: 87.169021 | AC27: -72.69197873 | AE27: 46.91175679 | AF27: -0.02927820487 | AH27: 0 | AI27: 0
A28: 3.9811 | B28: 0.0039811 | C28: 1.000000154 | D28: 0.0005543330914 | E28: 1 | F28: 1.00055956e-06 | G28: 1 | H28: 0 | I28: 3.661501896 | J28: 1.294169817 | K28: 1.000000055 | L28: 0.0003301846428 | M28: 1 | N28: 8.079166548e-06 | O28: 1 | P28: 2.313393758e-05 | Q28: 4.15656566 | R28: 3.880377317e-05 | S28: 1 | T28: 6.969974156e-06 | U28: 94.95050336 | V28: -74.16501407 | W28: 105.8349859 | Y28: 1000000000 | Z28: 15.84915721 | AB28: 86.43403961 | AC28: -74.13201328 | AE28: 46.91175656 | AF28: -0.03210296888 | AH28: 0 | AI28: 0
A29: 4.3652 | B29: 0.0043652 | C29: 1.000000185 | D29: 0.0006078156189 | E29: 1 | F29: 1.097094419e-06 | G29: 1 | H29: 0 | I29: 3.989496471 | J29: 1.317436227 | K29: 1.000000066 | L29: 0.0003620411424 | M29: 1 | N29: 8.858651582e-06 | O29: 1 | P29: 2.536592005e-05 | Q29: 4.15656566 | R29: 4.254759504e-05 | S29: 1 | T29: 7.642443341e-06 | U29: 94.20532674 | V29: -75.49948453 | W29: 104.5005155 | Y29: 1000000000 | Z29: 19.05497104 | AB29: 85.68886327 | AC29: -75.4632998 | AE29: 46.91175629 | AF29: -0.03520029059 | AH29: 0 | AI29: 0
A30: 4.7863 | B30: 0.0047863 | C30: 1.000000222 | D30: 0.0006664500651 | E30: 1 | F30: 1.202928392e-06 | G30: 1 | H30: 0 | I30: 4.351175203 | J30: 1.338900549 | K30: 1.000000079 | L30: 0.0003969663485 | M30: 1 | N30: 9.713223693e-06 | O30: 1 | P30: 2.781290735e-05 | Q30: 4.156565661 | R30: 4.665205583e-05 | S30: 1 | T30: 8.379690865e-06 | U30: 93.45155682 | V30: -76.73083813 | W30: 103.2691619 | Y30: 1000000000 | Z30: 22.90866769 | AB30: 84.93509367 | AC30: -76.69116275 | AE30: 46.91175597 | AF30: -0.03859597423 | AH30: 0 | AI30: 0
A31: 5.2481 | B31: 0.0052481 | C31: 1.000000267 | D31: 0.0007307516207 | E31: 1 | F31: 1.318991391e-06 | G31: 1 | H31: 0 | I31: 4.749746862 | J31: 1.358671539 | K31: 1.000000095 | L31: 0.0004352671315 | M31: 1 | N31: 1.065039159e-05 | O31: 1 | P31: 3.049639994e-05 | Q31: 4.156565662 | R31: 5.115321944e-05 | S31: 1 | T31: 9.188194562e-06 | U31: 92.69027869 | V31: -77.86531968 | W31: 102.1346803 | Y31: 1000000000 | Z31: 27.54255361 | AB31: 84.17381593 | AC31: -77.82181627 | AE31: 46.91175558 | AF31: -0.04231985592 | AH31: 0 | AI31: 0
A32: 5.7544 | B32: 0.0057544 | C32: 1.000000321 | D32: 0.0008012493997 | E32: 1 | F32: 1.44623846e-06 | G32: 1 | H32: 0 | I32: 5.188515249 | J32: 1.376849347 | K32: 1.000000114 | L32: 0.0004772586554 | M32: 1 | N32: 1.167786692e-05 | O32: 1.000000001 | P32: 3.343847941e-05 | Q32: 4.156565663 | R32: 5.608812444e-05 | S32: 1 | T32: 1.007460734e-05 | U32: 91.92282573 | V32: -78.90868121 | W32: 101.0913188 | Y32: 1000000000 | Z32: 33.11311936 | AB32: 83.40636344 | AC32: -78.8609809 | AE32: 46.91175511 | AF32: -0.04640257812 | AH32: 0 | AI32: 0
A33: 6.3096 | B33: 0.0063096 | C33: 1.000000386 | D33: 0.0008785560603 | E33: 1 | F33: 1.585775439e-06 | G33: 1 | H33: 0 | I33: 5.671312002 | J33: 1.393543571 | K33: 1.000000137 | L33: 0.000523305847 | M33: 1 | N33: 1.280457895e-05 | O33: 1.000000001 | P33: 3.66647139e-05 | Q33: 4.156565664 | R33: 6.149965764e-05 | S33: 1 | T33: 1.104663257e-05 | U33: 91.15001651 | V33: -79.86721827 | W33: 100.1327817 | Y33: 1000000000 | Z33: 39.81105216 | AB33: 82.63355478 | AC33: -79.81491571 | AE33: 46.91175455 | AF33: -0.05087962157 | AH33: 0 | AI33: 0
A34: 6.9183 | B34: 0.0069183 | C34: 1.000000464 | D34: 0.0009633121079 | E34: 1 | F34: 1.738758434e-06 | G34: 1 | H34: 0 | I34: 6.20215153 | J34: 1.408855066 | K34: 1.000000165 | L34: 0.0005737902204 | M34: 1 | N34: 1.403986283e-05 | O34: 1.000000001 | P34: 4.020183374e-05 | Q34: 4.156565666 | R34: 6.743265521e-05 | S34: 1 | T34: 1.211232378e-05 | U34: 90.37283942 | V34: -80.74672627 | W34: 99.25327373 | Y34: 1000000000 | Z34: 47.86287489 | AB34: 81.85637838 | AC34: -80.68937798 | AE34: 46.91175387 | AF34: -0.05578807971 | AH34: 0 | AI34: 0
A35: 7.5858 | B35: 0.0075858 | C35: 1.000000558 | D35: 0.001056255515 | E35: 1 | F35: 1.906519482e-06 | G35: 1 | H35: 0 | I35: 6.785666924 | J35: 1.422888173 | K35: 1.000000198 | L35: 0.000629151346 | M35: 1 | N35: 1.539447429e-05 | O35: 1.000000001 | P35: 4.408063691e-05 | Q35: 4.156565668 | R35: 7.393877625e-05 | S35: 1 | T35: 1.328096002e-05 | U35: 89.59183558 | V35: -81.5532029 | W35: 98.4467971 | Y35: 1000000000 | Z35: 57.54436164 | AB35: 81.07537535 | AC35: -81.49032147 | AE35: 46.91175305 | AF35: -0.06117069062 | AH35: 0 | AI35: 0
A36: 8.3176 | B36: 0.0083176 | C36: 1.000000671 | D36: 0.001158152102 | E36: 1 | F36: 2.090440882e-06 | G36: 1 | H36: 0 | I36: 7.426674591 | J36: 1.435736325 | K36: 1.000000238 | L36: 0.0006898453816 | M36: 1 | N36: 1.687957491e-05 | O36: 1.000000001 | P36: 4.83330836e-05 | Q36: 4.15656567 | R36: 8.107162924e-05 | S36: 1 | T36: 1.456217052e-05 | U36: 88.80779781 | V36: -82.2920215 | W36: 97.7079785 | Y36: 1000000000 | Z36: 69.18246976 | AB36: 80.29133856 | AC36: -82.22307391 | AE36: 46.91175207 | AF36: -0.06707180501 | AH36: 0 | AI36: 0
A37: 9.1201 | B37: 0.0091201 | C37: 1.000000806 | D37: 0.001269893001 | E37: 1 | F37: 2.29213113e-06 | G37: 1 | H37: 0 | I37: 8.130786967 | J37: 1.447494808 | K37: 1.000000286 | L37: 0.0007564031287 | M37: 1 | N37: 1.850815273e-05 | O37: 1.000000001 | P37: 5.299636381e-05 | Q37: 4.156565673 | R37: 8.889359497e-05 | S37: 1 | T37: 1.596716016e-05 | U37: 88.0210333 | V37: -82.968665 | W37: 97.031335 | Y37: 1000000000 | Z37: 83.17622401 | AB37: 79.50457524 | AC37: -82.89306521 | AE37: 46.91175089 | AF37: -0.07354303093 | AH37: 0 | AI37: 0
A38: 10 | B38: 0.01 | C38: 1.000000969 | D38: 0.001392411117 | E38: 1 | F38: 2.51327412e-06 | G38: 1 | H38: 0 | I38: 8.903887734 | J38: 1.458248378 | K38: 1.000000344 | L38: 0.0008293802694 | M38: 1 | N38: 2.029380459e-05 | O38: 1.000000002 | P38: 5.810941086e-05 | Q38: 4.156565676 | R38: 9.746997832e-05 | S38: 1 | T38: 1.750765908e-05 | U38: 87.23209052 | V38: -83.58801401 | W38: 96.41198599 | Y38: 1000000000 | Z38: 100 | AB38: 78.71563388 | AC38: -83.50512042 | AE38: 46.91174948 | AF38: -0.08063839544 | AH38: 0 | AI38: 0
A39: 10.965 | B39: 0.010965 | C39: 1.000001166 | D39: 0.001526778591 | E39: 1 | F39: 2.755805073e-06 | G39: 1 | H39: 0 | I39: 9.752746345 | J39: 1.468080584 | K39: 1.000000414 | L39: 0.0009094154232 | M39: 1 | N39: 2.225215674e-05 | O39: 1.000000002 | P39: 6.3716969e-05 | Q39: 4.15656568 | R39: 0.0001068758312 | S39: 1 | T39: 1.919714818e-05 | U39: 86.44114434 | V39: -84.15488363 | W39: 95.84511637 | Y39: 1000000000 | Z39: 120.231225 | AB39: 77.92468941 | AC39: -84.06399082 | AE39: 46.91174777 | AF39: -0.08841998916 | AH39: 0 | AI39: 0
A40: 12.023 | B40: 0.012023 | C40: 1.000001401 | D40: 0.001674095404 | E40: 1 | F40: 3.021709474e-06 | G40: 1 | H40: 0 | I40: 10.68431502 | J40: 1.477063992 | K40: 1.000000497 | L40: 0.0009971637961 | M40: 1 | N40: 2.439924126e-05 | O40: 1.000000002 | P40: 6.986494465e-05 | Q40: 4.156565685 | R40: 0.0001171881548 | S40: 1 | T40: 2.104945851e-05 | U40: 85.6487479 | V40: -84.67346054 | W40: 95.32653946 | Y40: 1000000000 | Z40: 144.552529 | AB40: 77.13229502 | AC40: -84.5737976 | AE40: 46.91174573 | AF40: -0.09695151522 | AH40: 0 | AI40: 0
A41: 13.183 | B41: 0.013183 | C41: 1.000001685 | D41: 0.001835614701 | E41: 1 | F41: 3.313249272e-06 | G41: 1 | H41: 0 | I41: 11.70652025 | J41: 1.485269616 | K41: 1.000000598 | L41: 0.001093371824 | M41: 1 | N41: 2.675332259e-05 | O41: 1.000000003 | P41: 7.660563628e-05 | Q41: 4.156565691 | R41: 0.0001284946721 | S41: 1 | T41: 2.308034696e-05 | U41: 84.85512358 | V41: -85.14784634 | W41: 94.85215366 | Y41: 1000000000 | Z41: 173.791489 | AB41: 76.33867317 | AC41: -85.03856777 | AE41: 46.91174326 | AF41: -0.1063055465 | AH41: 0 | AI41: 0
A42: 14.454 | B42: 0.014454 | C42: 1.000002025 | D42: 0.002012589612 | E42: 1 | F42: 3.632686413e-06 | G42: 1 | H42: 0 | I42: 12.82729375 | J42: 1.492758377 | K42: 1.000000719 | L42: 0.001198785942 | M42: 1 | N42: 2.933266515e-05 | O42: 1.000000004 | P42: 8.399134236e-05 | Q42: 4.156565697 | R42: 0.0001408831062 | S42: 1 | T42: 2.530557043e-05 | U42: 84.06097727 | V42: -85.5815645 | W42: 94.4184355 | Y42: 1000000000 | Z42: 208.918116 | AB42: 75.54452983 | AC42: -85.46175018 | AE42: 46.91174031 | AF42: -0.1165546556 | AH42: 0 | AI42: 0
A43: 15.849 | B43: 0.015849 | C43: 1.000002435 | D43: 0.002206830224 | E43: 1 | F43: 3.983288153e-06 | G43: 1 | H43: 0 | I43: 14.05810057 | J43: 1.499602836 | K43: 1.000000864 | L43: 0.001314484333 | M43: 1.000000001 | N43: 3.216365089e-05 | O43: 1.000000004 | P43: 9.209760512e-05 | Q43: 4.156565706 | R43: 0.0001544801679 | S43: 1 | T43: 2.774788887e-05 | U43: 83.26514285 | V43: -85.97881992 | W43: 94.02118008 | Y43: 1000000000 | Z43: 251.190801 | AB43: 74.74869898 | AC43: -85.84744199 | AE43: 46.91173675 | AF43: -0.1278036694 | AH43: 0 | AI43: 0
A44: 17.378 | B44: 0.017378 | C44: 1.000002928 | D44: 0.002419728881 | E44: 1 | F44: 4.367567766e-06 | G44: 1 | H44: 0 | I44: 15.40776525 | J44: 1.505848337 | K44: 1.000001039 | L44: 0.001441296365 | M44: 1.000000001 | N44: 3.526657361e-05 | O44: 1.000000005 | P44: 0.000100982534 | Q44: 4.156565716 | R44: 0.0001693833273 | S44: 1 | T44: 3.042480995e-05 | U44: 82.46887994 | V44: -86.3422471 | W44: 93.6577529 | Y44: 1000000000 | Z44: 301.994884 | AB44: 73.95244036 | AC44: -86.1981948 | AE44: 46.91173247 | AF44: -0.1401332226 | AH44: 0 | AI44: 0
A45: 19.055 | B45: 0.019055 | C45: 1.00000352 | D45: 0.002653234873 | E45: 1 | F45: 4.789043836e-06 | G45: 1 | H45: 0 | I45: 16.88864637 | J45: 1.511550296 | K45: 1.000001249 | L45: 0.00158038315 | M45: 1.000000001 | N45: 3.866984464e-05 | O45: 1.000000006 | P45: 0.0001107274821 | Q45: 4.156565728 | R45: 0.0001857290422 | S45: 1 | T45: 3.336084437e-05 | U45: 81.67177282 | V45: -86.67507242 | W45: 93.32492758 | Y45: 1000000000 | Z45: 363.093025 | AB45: 73.1553384 | AC45: -86.51711894 | AE45: 46.91172732 | AF45: -0.153656204 | AH45: 0 | AI45: =IF(AH45>0,W43,0) -> 0
A46: 20.893 | B46: 0.020893 | C46: 1.000004232 | D46: 0.002909158221 | E46: 1 | F46: 5.250983619e-06 | G46: 1 | H46: 0 | I46: 18.51222408 | J46: 1.516751661 | K46: 1.000001501 | L46: 0.00173282286 | M46: 1.000000001 | N46: 4.239984592e-05 | O46: 1.000000007 | P46: 0.0001214079917 | Q46: 4.156565742 | R46: 0.0002036440236 | S46: 1 | T46: 3.657875211e-05 | U46: 80.87449368 | V46: -86.97980393 | W46: 93.02019607 | Y46: 1000000000 | Z46: 436.517449 | AB46: 72.35806546 | AC46: -86.80661472 | AE46: 46.91172114 | AF46: -0.1684774371 | AH46: 0 | AI46: 0
A47: 22.909 | B47: 0.022909 | C47: 1.000005088 | D47: 0.003189865871 | E47: 1 | F47: 5.757659681e-06 | G47: 1 | H47: 0 | I47: 20.29351549 | J47: 1.521499538 | K47: 1.000001805 | L47: 0.001900025408 | M47: 1.000000001 | N47: 4.649107692e-05 | O47: 1.000000009 | P47: 0.0001331228487 | Q47: 4.156565759 | R47: 0.0002232939704 | S47: 1 | T47: 4.010829618e-05 | U47: 80.07651508 | V47: -87.2592029 | W47: 92.7407971 | Y47: 1000000000 | Z47: 524.822281 | AB47: 71.56009432 | AC47: -87.06930247 | AE47: 46.91171371 | AF47: -0.1847339983 | AH47: 0 | AI47: 0
A48: 25.119 | B48: 0.025119 | C48: 1.000006117 | D48: 0.003497585484 | E48: 1 | F48: 6.313093262e-06 | G48: 1 | H48: 0 | I48: 22.24665825 | J48: 1.525830604 | K48: 1.00000217 | L48: 0.002083317762 | M48: 1.000000001 | N48: 5.097600772e-05 | O48: 1.000000011 | P48: 0.0001459650283 | Q48: 4.15656578 | R48: 0.0002448348345 | S48: 1 | T48: 4.397748884e-05 | U48: 79.27835936 | V48: -87.51542908 | W48: 92.48457092 | Y48: 1000000000 | Z48: 630.964161 | AB48: 70.76194757 | AC48: -87.30720936 | AE48: 46.91170477 | AF48: -0.2025548978 | AH48: 0 | AI48: 0
A49: 27.542 | B49: 0.027542 | C49: 1.000007354 | D49: 0.003834962378 | E49: 1 | F49: 6.922059581e-06 | G49: 1 | H49: 0 | I49: 24.38844414 | J49: 1.529781803 | K49: 1.000002609 | L49: 0.002284275689 | M49: 1.000000002 | N49: 5.589319656e-05 | O49: 1.000000013 | P49: 0.0001600449382 | Q49: 4.156565805 | R49: 0.0002684518088 | S49: 1.000000001 | T49: 4.821959463e-05 | U49: 78.47996615 | V49: -87.75066867 | W49: 92.24933133 | Y49: 1000000000 | Z49: 758.561764 | AB49: 69.96356514 | AC49: -87.52236408 | AE49: 46.91169402 | AF49: -0.2220933335 | AH49: 0 | AI49: 0
A50: 30.2 | B50: 0.0302 | C50: 1.000008841 | D50: 0.004205059506 | E50: 1 | F50: 7.590087842e-06 | G50: 1 | H50: 0 | I50: 26.73832023 | J50: 1.533388096 | K50: 1.000003137 | L50: 0.00250472375 | M50: 1.000000002 | N50: 6.12872898e-05 | O50: 1.000000015 | P50: 0.0001754904192 | Q50: 4.156565835 | R50: 0.000294359327 | S50: 1.000000001 | T50: 5.287313041e-05 | U50: 77.68095727 | V50: -87.96700511 | W50: 92.03299489 | Y50: 1000000000 | Z50: 912.04 | AB50: 69.16456922 | AC50: -87.71666773 | AE50: 46.9116811 | AF50: -0.2435266898 | AH50: 0 | AI50: 0
A51: 33.113 | B51: 0.033113 | C51: 1.000010629 | D51: 0.004610661241 | E51: 1 | F51: 8.322204593e-06 | G51: 1 | H51: 0 | I51: 29.31396818 | J51: 1.536676277 | K51: 1.000003771 | L51: 0.002746320611 | M51: 1.000000002 | N51: 6.719887506e-05 | O51: 1.000000019 | P51: 0.00019241769 | Q51: 4.156565871 | R51: 0.0003227523291 | S51: 1.000000001 | T51: 5.79731115e-05 | U51: 76.88213736 | V51: -88.16604672 | W51: 91.83395328 | Y51: 1000000000 | Z51: 1096.470769 | AB51: 68.3657649 | AC51: -87.89156288 | AE51: 46.91166557 | AF51: -0.2670162176 | AH51: 0 | AI51: 0
A52: 36.308 | B52: 0.036308 | C52: 1.000012779 | D52: 0.005055526481 | E52: 1 | F52: 9.125195675e-06 | G52: 1 | H52: 0 | I52: 32.13926115 | J52: 1.539676712 | K52: 1.000004534 | L52: 0.003011305471 | M52: 1.000000003 | N52: 7.368274559e-05 | O52: 1.000000022 | P52: 0.0002109836461 | Q52: 4.156565915 | R52: 0.0003538939838 | S52: 1.000000001 | T52: 6.356680857e-05 | U52: 76.08289972 | V52: -88.3496319 | W52: 91.6503681 | Y52: 1000000000 | Z52: 1318.270864 | AB52: 67.56654599 | AC52: -88.04866414 | AE52: 46.91164689 | AF52: -0.2927796056 | AH52: 0 | AI52: 0
A53: 39.811 | B53: 0.039811 | C53: 1.000015364 | D53: 0.005543274703 | E53: 1 | F53: 1.00055956e-05 | G53: 1 | H53: 0 | I53: 35.23719077 | J53: 1.542413409 | K53: 1.000005451 | L53: 0.003301834549 | M53: 1.000000003 | N53: 8.07916653e-05 | O53: 1.000000027 | P53: 0.0002313393717 | Q53: 4.156565967 | R53: 0.0003880377127 | S53: 1.000000001 | T53: 6.969974154e-05 | U53: 75.28357738 | V53: -88.51923118 | W53: 91.48076882 | Y53: 1000000000 | Z53: 1584.915721 | AB53: 66.76724617 | AC53: -88.18922656 | AE53: 46.91162444 | AF53: -0.3210264682 | AH53: 0 | AI53: 0
A54: 43.652 | B54: 0.043652 | C54: 1.000018472 | D54: 0.006078082089 | E54: 1 | F54: 1.097094419e-05 | G54: 1 | H54: 0 | I54: 38.634288 | J54: 1.544909692 | K54: 1.000006554 | L54: 0.003620395764 | M54: 1.000000004 | N54: 8.858651559e-05 | O54: 1.000000032 | P54: 0.0002536591951 | Q54: 4.15656603 | R54: 0.0004254759253 | S54: 1.000000001 | T54: 7.642443339e-05 | U54: 74.48412717 | V54: -88.67629046 | W54: 91.32370954 | Y54: 1000000000 | Z54: 1905.497104 | AB54: 65.96782303 | AC54: -88.31444743 | AE54: 46.91159745 | AF54: -0.3519986603 | AH54: 0 | AI54: 0
A55: 47.863 | B55: 0.047863 | C55: 1.000022208 | D55: 0.006664402971 | E55: 1 | F55: 1.202928392e-05 | G55: 1 | H55: 0 | I55: 42.35885462 | J55: 1.547186318 | K55: 1.000007879 | L55: 0.003969642842 | M55: 1.000000005 | N55: 9.713223663e-05 | O55: 1.000000039 | P55: 0.0002781290664 | Q55: 4.156566105 | R55: 0.0004665205252 | S55: 1.000000002 | T55: 8.379690862e-05 | U55: 73.68468021 | V55: -88.82211594 | W55: 91.17788406 | Y55: 1000000000 | Z55: 2290.866769 | AB55: 65.16840863 | AC55: -88.42536775 | AE55: 46.911565 | AF55: -0.3859541457 | AH55: 0 | AI55: 0
A56: 52.481 | B56: 0.052481 | C56: 1.0000267 | D56: 0.007307387438 | E56: 1 | F56: 1.318991391e-05 | G56: 1 | H56: 0 | I56: 46.44361662 | J56: 1.549263179 | K56: 1.000009473 | L56: 0.004352644102 | M56: 1.000000006 | N56: 0.0001065039155 | O56: 1.000000047 | P56: 0.00030496399 | Q56: 4.156566196 | R56: 0.0005115321507 | S56: 1.000000002 | T56: 9.188194557e-05 | U56: 72.88501844 | V56: -88.95798234 | W56: 91.04201766 | Y56: 1000000000 | Z56: 2754.255361 | AB56: 64.368786 | AC56: -88.52295567 | AE56: 46.91152598 | AF56: -0.4231911813 | AH56: 0 | AI56: 0
A57: 57.544 | B57: 0.057544 | C57: 1.0000321 | D57: 0.008012324251 | E57: 1 | F57: 1.44623846e-05 | G57: 1 | H57: 0 | I57: 50.92218621 | J57: 1.551157259 | K57: 1.000011389 | L57: 0.004772550681 | M57: 1.000000007 | N57: 0.0001167786686 | O57: 1.000000056 | P57: 0.0003343847818 | Q57: 4.156566305 | R57: 0.0005608811869 | S57: 1.000000002 | T57: 0.0001007460733 | U57: 72.08536784 | V57: -89.08500164 | W57: 90.91499836 | Y57: 1000000000 | Z57: 3311.311936 | AB57: 63.56918245 | AC57: -88.6080083 | AE57: 46.91147907 | AF57: -0.4640160554 | AH57: 0 | AI57: 0
A58: 63.096 | B58: 0.063096 | C58: 1.000038592 | D58: 0.008785336833 | E58: 1 | F58: 1.585775439e-05 | G58: 1 | H58: 0 | I58: 55.83348442 | J58: 1.55288497 | K58: 1.000013692 | L58: 0.00523301118 | M58: 1.000000008 | N58: 0.0001280457888 | O58: 1.000000067 | P58: 0.0003666471228 | Q58: 4.156566436 | R58: 0.0006149965005 | S58: 1.000000003 | T58: 0.0001104663256 | U58: 71.28557744 | V58: -89.20427473 | W58: 90.79572527 | Y58: 1000000000 | Z58: 3981.105216 | AB58: 62.76944862 | AC58: -88.68126197 | AE58: 46.91142267 | AF58: -0.5087833946 | AH58: 0 | AI58: 0
A59: 69.183 | B59: 0.069183 | C59: 1.000046397 | D59: 0.0096328261 | E59: 1 | F59: 1.738758434e-05 | G59: 1 | H59: 0 | I59: 61.21820285 | J59: 1.55446059 | K59: 1.000016462 | L59: 0.005737839864 | M59: 1.00000001 | N59: 0.0001403986274 | O59: 1.000000081 | P59: 0.000402018316 | Q59: 4.156566594 | R59: 0.0006743264521 | S59: 1.000000003 | T59: 0.0001211232377 | U59: 70.48581658 | V59: -89.31678755 | W59: 90.68321245 | Y59: 1000000000 | Z59: 4786.287489 | AB59: 61.96975578 | AC59: -88.74332154 | AE59: 46.91135488 | AF59: -0.5578638961 | AH59: 0 | AI59: 0
A60: 75.858 | B60: 0.075858 | C60: 1.000055782 | D60: 0.01056216629 | E60: 1 | F60: 1.906519482e-05 | G60: 1 | H60: 0 | I60: 67.12322668 | J60: 1.555897803 | K60: 1.000019791 | L60: 0.00629143128 | M60: 1.000000012 | N60: 0.0001539447417 | O60: 1.000000097 | P60: 0.0004408063409 | Q60: 4.156566784 | R60: 0.0007393876307 | S60: 1.000000004 | T60: 0.0001328096001 | U60: 69.68591873 | V60: -89.42351756 | W60: 90.57648244 | Y60: 1000000000 | Z60: 5754.436164 | AB60: 61.1699397 | AC60: -88.79472549 | AE60: 46.91127336 | AF60: -0.6116846262 | AH60: 0 | AI60: 0
A61: 83.176 | B61: 0.083176 | C61: 1.000067064 | D61: 0.01158100842 | E61: 1 | F61: 2.090440882e-05 | G61: 1 | H61: 0 | I61: 73.59721155 | J61: 1.557208437 | K61: 1.000023794 | L61: 0.006898345484 | M61: 1.000000014 | N61: 0.0001687957475 | O61: 1.000000117 | P61: 0.0004833307987 | Q61: 4.156567012 | R61: 0.0008107161187 | S61: 1.000000005 | T61: 0.000145621705 | U61: 68.88608449 | V61: -89.52534306 | W61: 90.47465694 | Y61: 1000000000 | Z61: 6918.246976 | AB61: 60.37020374 | AC61: -88.83589659 | AE61: 46.91117537 | AF61: -0.6706886804 | AH61: 0 | AI61: 0
A62: 91.201 | B62: 0.091201 | C62: 1.000080628 | D62: 0.01269825428 | E62: 1 | F62: 2.29213113e-05 | G62: 1 | H62: 0 | I62: 80.69677609 | J62: 1.558403941 | K62: 1.000028607 | L62: 0.007563888477 | M62: 1.000000017 | N62: 0.0001850815252 | O62: 1.00000014 | P62: 0.000529963589 | Q62: 4.156567286 | R62: 0.0008889357207 | S62: 1.000000006 | T62: 0.0001596716013 | U62: 68.08611159 | V62: -89.62315337 | W62: 90.37684663 | Y62: 1000000000 | Z62: 8317.622401 | AB62: 59.57034903 | AC62: -88.86719419 | AE62: 46.91105755 | AF62: -0.7353915928 | AH62: 0 | AI62: 0
A63: 100 | B63: 0.1 | C63: 1.000096936 | D63: 0.0139232204 | E63: 1 | F63: 2.513274119e-05 | G63: 1 | H63: 0 | I63: 88.48119393 | J63: 1.55949425 | K63: 1.000034393 | L63: 0.008293614435 | M63: 1.000000021 | N63: 0.0002029380432 | O63: 1.000000169 | P63: 0.0005810940439 | Q63: 4.156567615 | R63: 0.0009746994813 | S63: 1.000000007 | T63: 0.0001750765905 | U63: 67.28612394 | V63: -89.71776201 | W63: 90.28223799 | Y63: 1000000000 | Z63: 10000 | AB63: 58.77050347 | AC63: -88.88887716 | AE63: 46.91091591 | AF63: -0.8063329169 | AH63: 0 | AI63: 0
A64: 109.65 | B64: 0.10965 | C64: 1.000116546 | D64: 0.0152666116 | E64: 1 | F64: 2.755805072e-05 | G64: 1 | H64: 0 | I64: 97.0185865 | J64: 1.560488841 | K64: 1.000041351 | L64: 0.009093906045 | M64: 1.000000025 | N64: 0.0002225215637 | O64: 1.000000203 | P64: 0.0006371696046 | Q64: 4.156568011 | R64: 0.001068757914 | S64: 1.000000008 | T64: 0.0001919714814 | U64: 66.4859341 | V64: -89.80999257 | W64: 90.19000743 | Y64: 1000000000 | Z64: 12023.1225 | AB64: 57.97048449 | AC64: -88.90113178 | AE64: 46.91074558 | AF64: -0.8841326087 | AH64: 0 | AI64: 0
A65: 120.23 | B65: 0.12023 | C65: 1.00014012 | D65: 0.016739406 | E65: 1 | F65: 3.021709474e-05 | G65: 1 | H65: 0 | I65: 106.3788454 | J65: 1.561395823 | K65: 1.000049716 | L65: 0.00997131078 | M65: 1.00000003 | N65: 0.0002439924078 | O65: 1.000000244 | P65: 0.0006986493339 | Q65: 4.156568488 | R65: 0.001171881023 | S65: 1.00000001 | T65: 0.0002104945845 | U65: 65.68579473 | V65: -89.90059726 | W65: 90.09940274 | Y65: 1000000000 | Z65: 14455.2529 | AB65: 57.17055051 | AC65: -88.90405663 | AE65: 46.91054083 | AF65: -0.969426456 | AH65: 0 | AI65: 0
A66: 131.83 | B66: 0.13183 | C66: 1.00016846 | D66: 0.01835410634 | E66: 1.000000001 | F66: 3.313249271e-05 | G66: 1 | H66: 0 | I66: 116.6415948 | J66: 1.562222951 | K66: 1.000059771 | L66: 0.01093328693 | M66: 1.000000036 | N66: 0.0002675332196 | O66: 1.000000293 | P66: 0.0007660562144 | Q66: 4.15656906 | R66: 0.00128494603 | S66: 1.000000012 | T66: 0.0002308034689 | U66: 64.88567158 | V66: -89.99034791 | W66: 90.00965209 | Y66: 1000000000 | Z66: 17379.1489 | AB66: 56.37067426 | AC66: -88.89767917 | AE66: 46.91029469 | AF66: -1.062938544 | AH66: 0 | AI66: 0
A67: 144.54 | B67: 0.14454 | C67: 1.000202506 | D67: 0.0201232066 | E67: 1.000000001 | F67: 3.632686411e-05 | G67: 1 | H67: 0 | I67: 127.8864594 | J67: 1.562976811 | K67: 1.000071852 | L67: 0.01198729096 | M67: 1.000000043 | N67: 0.0002933266432 | O67: 1.000000353 | P67: 0.0008399132281 | Q67: 4.156569748 | R67: 0.00140883015 | S67: 1.000000015 | T67: 0.0002530557033 | U67: 64.08605754 | V67: -90.07994904 | W67: 89.92005096 | Y67: 1000000000 | Z67: 20891.8116 | AB67: 55.57135683 | AC67: -88.88196005 | AE67: 46.90999901 | AF67: -1.165392458 | AH67: 0 | AI67: 0
A68: 158.49 | B68: 0.15849 | C68: 1.000243476 | D68: 0.0220647566 | E68: 1.000000001 | F68: 3.983288151e-05 | G68: 1 | H68: 0 | I68: 140.2284535 | J68: 1.563665046 | K68: 1.00008639 | L68: 0.0131440939 | M68: 1.000000052 | N68: 0.000321636498 | O68: 1.000000424 | P68: 0.0009209757934 | Q68: 4.156570576 | R68: 0.001544800477 | S68: 1.000000018 | T68: 0.0002774788874 | U68: 63.2855952 | V68: -90.17031118 | W68: 89.82968882 | Y68: 1000000000 | Z68: 25119.0801 | AB68: 54.7712514 | AC68: -88.85673512 | AE68: 46.9096432 | AF68: -1.277833544 | AH68: 0 | AI68: 0
A69: 173.78 | B69: 0.17378 | C69: 1.000292713 | D69: 0.02419261509 | E69: 1.000000001 | F69: 4.367567763e-05 | G69: 1 | H69: 0 | I69: 153.7560503 | J69: 1.564292472 | K69: 1.000103862 | L69: 0.01441197573 | M69: 1.000000062 | N69: 0.0003526657216 | O69: 1.00000051 | P69: 0.001009825 | Q69: 4.156571571 | R69: 0.001693831688 | S69: 1.000000021 | T69: 0.0003042480977 | U69: 62.48539654 | V69: -90.26207267 | W69: 89.73792733 | Y69: 1000000000 | Z69: 30199.4884 | AB69: 53.97148166 | AC69: -88.82181754 | AE69: 46.90921562 | AF69: -1.401064442 | AH69: 0 | AI69: 0
A70: 190.55 | B70: 0.19055 | C70: 1.000351922 | D70: 0.02652618762 | E70: 1.000000001 | F70: 4.789043832e-05 | G70: 1 | H70: 0 | I70: 168.5931126 | J70: 1.564864852 | K70: 1.000124873 | L70: 0.01580252912 | M70: 1.000000075 | N70: 0.0003866984273 | O70: 1.000000613 | P70: 0.001107274373 | Q70: 4.156572768 | R70: 0.001857288333 | S70: 1.000000026 | T70: 0.0003336084414 | U70: 61.68491086 | V70: -90.35607124 | W70: 89.64392876 | Y70: 1000000000 | Z70: 36309.3025 | AB70: 53.17151174 | AC70: -88.77688957 | AE70: 46.90870146 | AF70: -1.536209035 | AH70: 0 | AI70: 0
A71: 208.93 | B71: 0.20893 | C71: 1.000423073 | D71: 0.02908346144 | E71: 1.000000001 | F71: 5.250983614e-05 | G71: 1 | H71: 0 | I71: 184.8546565 | J71: 1.565386645 | K71: 1.000150123 | L71: 0.01732651188 | M71: 1.00000009 | N71: 0.000423998434 | O71: 1.000000737 | P71: 0.001214079326 | Q71: 4.156574206 | R71: 0.002036437482 | S71: 1.000000031 | T71: 0.000365787518 | U71: 60.88469895 | V71: -90.45303222 | W71: 89.54696778 | Y71: 1000000000 | Z71: 43651.7449 | AB71: 52.37191957 | AC71: -88.72160548 | AE71: 46.90808366 | AF71: -1.684309085 | AH71: 0 | AI71: 0
A72: 229.09 | B72: 0.22909 | C72: 1.000508636 | D72: 0.03188795417 | E72: 1.000000002 | F72: 5.757659675e-05 | G72: 1 | H72: 0 | I72: 202.6910879 | J72: 1.565862691 | K72: 1.000180489 | L72: 0.01899799101 | M72: 1.000000108 | N72: 0.000464910736 | O72: 1.000000886 | P72: 0.001331227709 | Q72: 4.156575935 | R72: 0.002232936074 | S72: 1.000000037 | T72: 0.0004010829577 | U72: 60.08413212 | V72: -90.55384704 | W72: 89.44615296 | Y72: 1000000000 | Z72: 52482.2281 | AB72: 51.57209795 | AC72: -88.6554563 | AE72: 46.90734076 | AF72: -1.846726658 | AH72: 0 | AI72: 0
A73: 251.19 | B73: 0.25119 | C73: 1.000611473 | D73: 0.03496174564 | E73: 1.000000002 | F73: 6.313093254e-05 | G73: 1 | H73: 0 | I73: 222.2439658 | J73: 1.566296752 | K73: 1.000216988 | L73: 0.02083019452 | M73: 1.00000013 | N73: 0.0005097600335 | O73: 1.000001065 | P73: 0.001459649256 | Q73: 4.156578014 | R73: 0.00244834356 | S73: 1.000000045 | T73: 0.000439774883 | U73: 59.28364682 | V73: -90.65930691 | W73: 89.34069309 | Y73: 1000000000 | Z73: 63096.4161 | AB73: 50.77250823 | AC73: -88.57791831 | AE73: 46.90644796 | AF73: -2.02474058 | AH73: 0 | AI73: 0
A74: 275.42 | B74: 0.27542 | C74: 1.000735084 | D74: 0.03833102789 | E74: 1.000000002 | F74: 6.92205957e-05 | G74: 1 | H74: 0 | I74: 243.6813919 | J74: 1.566692596 | K74: 1.000260863 | L74: 0.02283882479 | M74: 1.000000156 | N74: 0.000558931908 | O74: 1.000001281 | P74: 0.001600448029 | Q74: 4.156580513 | R74: 0.002684511781 | S74: 1.000000054 | T74: 0.0004821959392 | U74: 58.48310345 | V74: -90.77030997 | W74: 89.22969003 | Y74: 1000000000 | Z74: 75856.1764 | AB74: 49.97304124 | AC74: -88.48832982 | AE74: 46.90537494 | AF74: -2.219867869 | AH74: 0 | AI74: 0
A75: 302 | B75: 0.302 | C75: 1.000883746 | D75: 0.04202608339 | E75: 1.000000003 | F75: 7.590087828e-05 | G75: 1 | H75: 0 | I75: 267.1980106 | J75: 1.567053775 | K75: 1.000313634 | L75: 0.02504205391 | M75: 1.000000188 | N75: 0.0006128728221 | O75: 1.00000154 | P75: 0.001754902409 | Q75: 4.156583519 | R75: 0.002943584956 | S75: 1.000000064 | T75: 0.0005287312948 | U75: 57.68205 | V75: -90.88784769 | W75: 89.11215231 | Y75: 1000000000 | Z75: 91204 | AB75: 49.17328213 | AC75: -88.38587872 | AE75: 46.90408463 | AF75: -2.433862482 | AH75: 0 | AI75: 0
A76: 331.13 | B76: 0.33113 | C76: 1.001062361 | D76: 0.04607430859 | E76: 1.000000003 | F76: 8.322204574e-05 | G76: 1 | H76: 0 | I76: 292.9707716 | J76: 1.56738301 | K76: 1.000377045 | L76: 0.02745637373 | M76: 1.000000226 | N76: 0.0006719886504 | O76: 1.000001851 | P76: 0.001924174549 | Q76: 4.156587131 | R76: 0.003227512331 | S76: 1.000000077 | T76: 0.0005797311027 | U76: 56.88122389 | V76: -91.01278631 | W76: 88.98721369 | Y76: 1000000000 | Z76: 109647.0769 | AB76: 48.37401089 | AC76: -88.26979925 | AE76: 46.90253461 | AF76: -2.668311303 | AH76: 0 | AI76: 0
A77: 363.08 | B77: 0.36308 | C77: =SQRT(1+(A77/pole1)^2) -> 1.001277124 | D77: =ATAN(A77/pole1) -> 0.05051269005 | E77: =SQRT(1+(A77/Zero1)^2) -> 1.000000004 | F77: =ATAN(A77/Zero1) -> 9.12519565e-05 | G77: =IF(VIN_nom>Vout, 1, SQRT(1+(A77/z_RHP)^2)) -> 1 | H77: =IF(VIN_nom>Vout, 0, -ATAN(A77/z_RHP)) -> 0 | I77: =SQRT(1+(A77/Pole2)^2) -> 321.2385574 | J77: =ATAN(A77/Pole2) -> 1.56768337 | K77: =SQRT(1+(A77/Zero2)^2) -> 1.000453298 | L77: =ATAN(A77/Zero2) -> 0.03010404846 | M77: =SQRT(1+(A77/pole4)^2) -> 1.000000271 | N77: =ATAN(A77/pole4) -> 0.0007368273239 | O77: =IF(VOUT_setting=1,1,SQRT(1+(A77*zterm1)^2)) -> 1.000002226 | P77: =IF(VOUT_setting=1,0,ATAN(((A77*zterm1)))) -> 0.002109833361 | Q77: 4.156591475 | R77: =IF(VOUT_setting=1,0,ATAN(A77*$Q$4/(1+Afbr-$Q$5*(A77)^2))) -> 0.003538925389 | S77: =SQRT((1-(Z77/pterm2))^2+(A77/pterm1)^2) -> 1.000000093 | T77: =IF((ATAN((A77/pterm1)/(1-A77^2/pterm2))>0),ATAN((A77/pterm1)/(1-A77^2/pterm2)),PI()+ATAN((A77/pterm1)/(1-A77^2/pterm2))) -> 0.0006356680695 | U77: =20*LOG10(((E77*K77*G77*O77)/(C77*I77*S77*M77*Q77))*Adc) -> 56.07994893 | V77: =((F77+L77+H77+P77)-(D77+J77+T77+N77+R77))*radconv -> -91.14626065 | W77: =IF(V77>0,V77,V77+180) -> 88.85373935 | Y77: =IF(U77<0,A77,1000000000) -> 1000000000 | Z77: =A77^2 -> 131827.0864 | AB77: =20*LOG10((K77/(I77*M77))*AEA) -> 47.57460511 | AC77: =(L77-(J77+N77))*radconv -> -88.13902301 | AE77: =20*LOG10((E77*G77/(C77*S77))*Acs*Am) -> 46.90067125 | AF77: =(F77+H77-(D77+T77))*radconv -> -2.925356701 | AH77: =SUM((U78<0)*(U77>0))*A77 -> 0 | AI77: =IF(AH77>0,W75,0) -> 0
A78: 398.11 | B78: =A78/1000 -> 0.39811 | C78: 1.001535248 | D78: 0.05537663981 | E78: 1.000000005 | F78: 0.0001000559557 | G78: 1 | H78: 0 | I78: 352.2314031 | J78: 1.56795728 | K78: 1.000544961 | L78: 0.0330064742 | M78: 1.000000326 | N78: 0.000807916479 | O78: 1.000002676 | P78: 0.002313389632 | Q78: 4.156596697 | R78: 0.003880358079 | S78: 1.000000112 | T78: 0.000696997394 | U78: 55.27849006 | V78: -91.2893239 | W78: 88.7106761 | Y78: 1000000000 | Z78: 158491.5721 | AB78: 46.77539229 | AC78: -87.99249325 | AE78: 46.8984322 | AF78: -3.207049973 | AH78: 0 | AI78: 0
A79: 436.52 | B79: 0.43652 | C79: 1.001845497 | D79: 0.0607068844 | E79: 1.000000006 | F79: 0.0001097094414 | G79: 1 | H79: 0 | I79: 386.2147342 | J79: 1.568207091 | K79: 1.000655154 | L79: 0.03618831021 | M79: 1.000000392 | N79: 0.0008858649265 | O79: 1.000003217 | P79: 0.002536586565 | Q79: =IF(VOUT_setting=1,1,SQRT((1+Afbr-$Q$5*(A79)^2)^2+(A79*$Q$4)^2)) -> 4.156602976 | R79: 0.004254734143 | S79: 1.000000135 | T79: 0.0007642443057 | U79: 54.47673189 | V79: -91.44315964 | W79: 88.55684036 | Y79: 1000000000 | Z79: 190549.7104 | AB79: 45.97633296 | AC79: -87.82896668 | AE79: 46.89574178 | AF79: -3.515750353 | AH79: 0 | AI79: 0
A80: 478.63 | B80: 0.47863 | C80: 1.002218319 | D80: 0.06654660926 | E80: 1.000000007 | F80: 0.0001202928386 | G80: 1 | H80: 0 | I80: 423.4716714 | J80: 1.568434892 | K80: 1.000787601 | L80: 0.03967580501 | M80: 1.000000472 | N80: 0.0009713220639 | O80: 1.000003868 | P80: 0.002781283564 | Q80: 4.156610523 | R80: 0.004665172152 | S80: 1.000000162 | T80: 0.000837969049 | U80: 53.67472822 | V80: -91.60899485 | W80: 88.39100515 | Y80: 1000000000 | Z80: 229086.6769 | AB80: 45.17757137 | AC80: -87.64709631 | AE80: 46.89250983 | AF80: -3.853959674 | AH80: 0 | AI80: 0
A81: 524.81 | B81: 0.52481 | C81: 1.002666436 | D81: 0.07294551689 | E81: 1.000000009 | F81: 0.0001318991383 | G81: 1 | H81: 0 | I81: 464.3295731 | J81: 1.568642682 | K81: 1.000946839 | L81: 0.0434992589 | M81: 1.000000567 | N81: 0.001065038756 | O81: 1.00000465 | P81: 0.003049630541 | Q81: 4.156619599 | R81: 0.005115277872 | S81: 1.000000194 | T81: 0.0009188194067 | U81: 52.87217443 | V81: -91.78821399 | W81: 88.21178601 | Y81: 1000000000 | Z81: 275425.5361 | AB81: 44.37891283 | AC81: -87.44530365 | AE81: 46.88862674 | AF81: -4.224557467 | AH81: 0 | AI81: 0
A82: 575.44 | B82: 0.57544 | C82: 1.003204869 | D82: 0.07995414696 | E82: 1.00000001 | F82: 0.000144623845 | G82: 1 | H82: 0 | I82: 509.1246457 | J82: 1.56883217 | K82: 1.001138232 | L82: 0.04768968261 | M82: 1.000000682 | N82: 0.001167786161 | O82: 1.000005591 | P82: 0.00334383548 | Q82: 4.156630509 | R82: 0.005608754348 | S82: 1.000000234 | T82: 0.001007460669 | U82: 52.06920055 | V82: -91.98219626 | W82: 88.01780374 | Y82: 1000000000 | Z82: 331131.1936 | AB82: 43.58061699 | AC82: -87.22195388 | AE82: 46.88396333 | AF82: -4.630472089 | AH82: 0 | AI82: 0
A83: 630.96 | B83: 0.63096 | C83: 1.003851887 | D83: 0.08763062858 | E83: 1.000000013 | F83: 0.0001585775425 | G83: 1 | H83: 0 | I83: 558.2461807 | J83: 1.569005001 | K83: 1.001368309 | L83: 0.05228289887 | M83: 1.00000082 | N83: 0.001280457195 | O83: 1.000006721 | P83: 0.003666454963 | Q83: 4.156643626 | R83: 0.006149889177 | S83: 1.000000281 | T83: 0.001104663171 | U83: 51.26554434 | V83: -92.19250226 | W83: 87.80749774 | Y83: 1000000000 | Z83: 398110.5216 | AB83: 42.78257893 | AC83: -86.97514006 | AE83: 46.87836277 | AF83: -5.075071893 | AH83: 0 | AI83: 0
A84: 691.83 | B84: 0.69183 | C84: 1.004629139 | D84: 0.09603491348 | E84: 1.000000015 | F84: 0.0001738758417 | G84: 1 | H84: 0 | I84: 612.1011648 | J84: 1.569162609 | K84: 1.001644824 | L84: 0.05731618177 | M84: 1.000000986 | N84: 0.001403985361 | O84: 1.000008081 | P84: 0.004020161719 | Q84: 4.156659396 | R84: 0.006743164562 | S84: 1.000000338 | T84: 0.001211232265 | U84: 50.46124791 | V84: -92.42071005 | W84: 87.57928995 | Y84: 1000000000 | Z84: 478628.7489 | AB84: 41.98502674 | AC84: -86.7028621 | AE84: 46.87163968 | AF84: -5.56183138 | AH84: 0 | AI84: 0
A85: 758.58 | B85: 0.75858 | C85: 1.00556291 | D85: 0.1052353862 | E85: 1.000000018 | F85: 0.0001906519459 | G85: 1 | H85: 0 | I85: 671.1585178 | J85: 1.569306365 | K85: 1.001977203 | L85: 0.06283232685 | M85: 1.000001185 | N85: 0.001539446213 | O85: 1.000009715 | P85: 0.004408035143 | Q85: 4.156678356 | R85: 0.007393744534 | S85: 1.000000406 | T85: 0.001328095853 | U85: 49.65599447 | V85: -92.66859099 | W85: 87.33140901 | Y85: 1000000000 | Z85: 575443.6164 | AB85: 41.18786879 | AC85: -86.40280822 | AE85: 46.86356961 | AF85: -6.094714229 | AH85: 0 | AI85: 0
A86: 831.76 | B86: 0.83176 | C86: 1.006684248 | D86: 0.115301573 | E86: 1.000000022 | F86: 0.0002090440852 | G86: 1 | H86: 0 | I86: 735.9048545 | J86: 1.569437455 | K86: 1.00237661 | L86: 0.06887543105 | M86: 1.000001425 | N86: 0.001687955888 | O86: 1.00001168 | P86: 0.004833270727 | Q86: 4.156701149 | R86: 0.008106987482 | S86: 1.000000489 | T86: 0.001456216855 | U86: 48.84981105 | V86: -92.93790512 | W86: 87.06209488 | Y86: 1000000000 | Z86: 691824.6976 | AB86: 40.39139715 | AC86: -86.07258372 | AE86: 46.85388838 | AF86: -6.677751247 | AH86: 0 | AI86: 0
A87: 912.01 | B87: 0.91201 | C87: 1.008030902 | D87: 0.1263132753 | E87: 1.000000026 | F87: 0.000229213109 | G87: 1 | H87: 0 | I87: 806.9064178 | J87: 1.569557025 | K87: 1.002856649 | L87: 0.07549656282 | M87: 1.000001713 | N87: 0.00185081316 | O87: 1.000014043 | P87: 0.005299586771 | Q87: 4.156728555 | R87: 0.008889128218 | S87: 1.000000587 | T87: 0.001596715756 | U87: 48.04228817 | V87: -93.23063801 | W87: 86.76936199 | Y87: 1000000000 | Z87: 831762.2401 | AB87: 39.5955233 | AC87: -85.70940272 | AE87: 46.84227611 | AF87: -7.315569709 | AH87: 0 | AI87: 0
A88: 1000 | B88: 1 | C88: 1.009647519 | D88: 0.1383516523 | E88: 1.000000032 | F88: 0.0002513274067 | G88: 1 | H88: 0 | I88: 884.7559934 | J88: 1.569666071 | K88: 1.003433465 | L88: 0.08274865781 | M88: 1.000002059 | N88: 0.002029377674 | O88: 1.000016883 | P88: 0.005810875688 | Q88: 4.156761503 | R88: 0.009746692949 | S88: 1.000000706 | T88: 0.001750765566 | U88: 47.23330885 | V88: -93.54875013 | W88: 86.45124987 | Y88: 1000000000 | Z88: 1000000 | AB88: 38.80050787 | AC88: -85.31036716 | AE88: 46.82835639 | AF88: -8.012877255 | AH88: 0 | AI88: 0
A89: 1096.5 | B89: 1.0965 | C89: 1.01158814 | D89: 0.1515079622 | E89: 1.000000038 | F89: 0.0002755805003 | G89: 1 | H89: 0 | I89: 970.1348425 | J89: 1.569765542 | K89: 1.00412667 | L89: 0.09069209739 | M89: 1.000002476 | N89: 0.002225212001 | O89: 1.000020299 | P89: 0.006371610683 | Q89: 4.156801124 | R89: 0.01068718118 | S89: 1.000000849 | T89: 0.001919714367 | U89: 46.42239862 | V89: -93.89439404 | W89: 86.10560596 | Y89: 1000000000 | Z89: 1202312.25 | AB89: 38.00633089 | AC89: -84.87216132 | AE89: 46.81167628 | AF89: -8.774968738 | AH89: 0 | AI89: 0
A90: 1202.3 | B90: 1.2023 | C90: 1.013916173 | D90: 0.1658715385 | E90: 1.000000046 | F90: 0.0003021709383 | G90: 1 | H90: 0 | I90: 1063.741921 | J90: 1.569856249 | K90: 1.004959384 | L90: 0.09938786507 | M90: 1.000002977 | N90: 0.002439919285 | O90: 1.000024405 | P90: 0.006986380806 | Q90: 4.156848755 | R90: 0.01171828562 | S90: 1.000001021 | T90: 0.002104945257 | U90: 45.60947926 | V90: -94.26957812 | W90: 85.73042188 | Y90: 1000000000 | Z90: 1445525.29 | AB90: 37.21344324 | AC90: -84.39142948 | AE90: 46.79170842 | AF90: -9.607030466 | AH90: 0 | AI90: =IF(AH90>0,W90,0) -> 0
A91: 1318.3 | B91: 1.3183 | C91: 1.016707868 | D91: 0.1815406831 | E91: 1.000000055 | F91: 0.0003313249151 | G91: 1 | H91: 0 | I91: 1166.37351 | J91: 1.569938968 | K91: 1.005959556 | L91: 0.1089046294 | M91: 1.000003579 | N91: 0.002675325877 | O91: 1.000029342 | P91: 0.007660413797 | Q91: 4.156906016 | R91: 0.01284876873 | S91: 1.000001227 | T91: 0.002308033913 | U91: 44.79412564 | V91: -94.67642921 | W91: 85.32357079 | Y91: 1000000000 | Z91: 1737914.89 | AB91: 36.42205078 | AC91: -83.86438633 | AE91: 46.76782403 | AF91: -10.51477204 | AH91: 0 | AI91: 0
A92: 1445.4 | B92: 1.4454 | C92: 1.020051606 | D92: 0.1986060671 | E92: 1.000000066 | F92: 0.0003632686253 | G92: 1 | H92: 0 | I92: 1278.825887 | J92: 1.570014359 | K92: 1.007159814 | L92: 0.1193092985 | M92: 1.000004302 | N92: 0.002933258104 | O92: 1.000035272 | P92: 0.008398936757 | Q92: 4.156974805 | R92: 0.01408739002 | S92: 1.000001475 | T92: 0.002530556011 | U92: 43.97638782 | V92: -95.11673094 | W92: 84.88326906 | Y92: 1000000000 | Z92: 2089181.16 | AB92: 35.63292643 | AC92: -83.28734071 | AE92: 46.73930278 | AF92: -11.50346586 | AH92: 0 | AI92: 0
A93: 1584.9 | B93: 1.5849 | C93: 1.024061109 | D93: 0.2172020434 | E93: 1.000000079 | F93: 0.0003983287942 | G93: 1 | H93: 0 | I93: 1402.249235 | J93: 1.570083187 | K93: 1.008602355 | L93: 0.1306991754 | M93: 1.000005172 | N93: 0.003216353999 | O93: 1.000042409 | P93: 0.009209500162 | Q93: 4.157057588 | R93: 0.01544680312 | S93: 1.000001774 | T93: 0.002774787526 | U93: 43.15434814 | V93: -95.59320514 | W93: 84.40679486 | Y93: 1000000000 | Z93: 2511908.01 | AB93: 34.8450748 | AC93: -82.65491255 | AE93: 46.70522572 | AF93: -12.58092146 | AH93: 0 | AI93: 0
A94: 1737.8 | B94: 1.7378 | C94: 1.028859129 | D94: 0.2374100287 | E94: 1.000000095 | F94: 0.0004367567488 | G94: 1 | H94: 0 | I94: 1537.528308 | J94: 1.570145932 | K94: 1.010333302 | L94: 0.1431439733 | M94: 1.000006219 | N94: 0.003526642742 | O94: 1.000050986 | P94: 0.0100979102 | Q94: 4.157157076 | R94: 0.01693673286 | S94: 1.000002133 | T94: 0.003042479201 | U94: 42.32853748 | V94: -96.10697669 | W94: 83.89302331 | Y94: 1000000000 | Z94: 3019948.84 | AB94: 34.06000134 | AC94: -81.96325144 | AE94: 46.6646219 | AF94: -13.75188957 | AH94: 0 | AI94: 0
A95: 1905.5 | B95: 1.9055 | C95: 1.034599866 | D95: 0.2593485489 | E95: 1.000000115 | F95: 0.000478904347 | G95: 1 | H95: 0 | I95: 1685.901765 | J95: 1.570203172 | K95: 1.012411058 | L95: 0.156742088 | M95: 1.000007477 | N95: 0.003866965191 | O95: 1.000061301 | P95: 0.01107229576 | Q95: 4.157276718 | R95: 0.01857079513 | S95: 1.000002564 | T95: 0.003336082072 | U95: 41.49769388 | V95: -96.65982941 | W95: 83.34017059 | Y95: 1000000000 | Z95: 3630930.25 | AB95: 33.27765175 | AC95: -81.20691552 | AE95: 46.61628827 | AF95: -15.02328152 | AH95: 0 | AI95: 0
A96: 2089.3 | B96: 2.0893 | C96: 1.041456909 | D96: 0.2831027479 | E96: 1.000000138 | F96: 0.0005250983136 | G96: 1 | H96: 0 | I96: 1848.519787 | J96: 1.570255353 | K96: 1.014902365 | L96: 0.1715786779 | M96: 1.000008989 | N96: 0.004239959186 | O96: 1.000073697 | P96: 0.01214020276 | Q96: 4.157420494 | R96: 0.0203616223 | S96: 1.000003082 | T96: 0.003657872093 | U96: 40.66161689 | V96: -97.25234226 | W96: 82.74765774 | Y96: 1000000000 | Z96: 4365174.49 | AB96: 32.49914954 | AC96: -80.38120226 | AE96: 46.55890622 | AF96: -16.40008736 | AH96: 0 | AI96: 0
A97: 2290.9 | B97: 2.2909 | C97: 1.049644289 | D97: 0.3087843775 | E97: 1.000000166 | F97: 0.0005757659045 | G97: 1 | H97: 0 | I97: 2026.886457 | J97: 1.570302959 | K97: 1.017890491 | L97: 0.1877646195 | M97: 1.000010807 | N97: 0.0046490742 | O97: 1.000088605 | P97: 0.01331149865 | Q97: 4.157593401 | R97: 0.02232573226 | S97: 1.000003706 | T97: 0.004010825508 | U97: 39.81877684 | V97: -97.8853179 | W97: 82.1146821 | Y97: 1000000000 | Z97: 5248222.81 | AB97: 31.72456326 | AC97: -79.4799843 | AE97: 46.49088421 | AF97: -17.88885605 | AH97: 0 | AI97: 0
A98: 2511.9 | B98: 2.5119 | C98: 1.059401737 | D98: 0.3364609723 | E98: 1.000000199 | F98: 0.0006313092423 | G98: 1 | H98: 0 | I98: 2222.417385 | J98: 1.570346366 | K98: 1.021470633 | L98: 0.2053941857 | M98: 1.000012993 | N98: 0.005097556623 | O98: 1.000106523 | P98: 0.01459546643 | Q98: 4.157801225 | R98: 0.02447865275 | S98: 1.000004456 | T98: 0.004397743466 | U98: 38.96867489 | V98: -98.55792711 | W98: 81.44207289 | Y98: 1000000000 | Z98: 6309641.61 | AB98: 30.95511674 | AC98: -78.49806775 | AE98: 46.41050732 | AF98: -19.49359449 | AH98: 0 | AI98: 0
A99: 2754.2 | B99: 2.7542 | C99: 1.071013915 | D99: 0.3662001805 | E99: 1.00000024 | F99: 0.0006922058476 | G99: 1 | H99: 0 | I99: 2436.793606 | J99: 1.570385951 | K99: 1.025757932 | L99: 0.2245748248 | M99: 1.00001562 | N99: 0.005589261459 | O99: 1.000128064 | P99: 0.01600312768 | Q99: 4.158051045 | R99: 0.02683881354 | S99: 1.000005357 | T99: 0.004821952321 | U99: 38.1101387 | V99: -99.26871969 | W99: 80.73128031 | Y99: 1000000000 | Z99: 7585617.64 | AB99: 30.19161148 | AC99: -77.42953876 | AE99: 46.31581119 | AF99: -21.21834187 | AH99: 0 | AI99: 0
A100: 3020 | B100: 3.02 | C100: 1.084816731 | D100: 0.3980601038 | E100: 1.000000288 | F100: 0.0007590086385 | G100: 1 | H100: 0 | I100: 2671.961581 | J100: 1.57042207 | K100: 1.030891203 | L100: 0.2454236948 | M100: 1.00001878 | N100: 0.006128652255 | O100: 1.000153973 | P100: 0.01754724091 | Q100: 4.158351516 | R100: 0.02942753898 | S100: 1.00000644 | T100: 0.005287303625 | U100: 37.24160414 | V100: -100.0152678 | W100: 79.98473215 | Y100: 1000000000 | Z100: 9120400 | AB100: 29.43471377 | AC100: -76.26796075 | AE100: 46.20457697 | AF100: -23.06661616 | AH100: 0 | AI100: 0
A101: 3311.3 | B101: 3.3113 | C101: 1.101174366 | D101: 0.4320210096 | E101: 1.000000346 | F101: 0.0008322202672 | G101: 1 | H101: 0 | I101: 2929.69082 | J101: 1.570454994 | K101: 1.037026108 | L101: 0.2680247509 | M101: 1.000022578 | N101: 0.006719786369 | O101: 1.000185106 | P101: 0.01923939504 | Q101: 4.158712555 | R101: 0.03226416963 | S101: 1.000007743 | T101: 0.005797298738 | U101: 36.36278776 | V101: -100.7924947 | W101: 79.20750529 | Y101: 1000000000 | Z101: 10964707.69 | AB101: 28.68638629 | AC101: -75.00877151 | AE101: 46.0745718 | AF101: -25.03745858 | AH101: 0 | AI101: 0
A102: 3630.8 | B102: 3.6308 | C102: 1.120530158 | D102: 0.4680832845 | E102: 1.000000416 | F102: 0.0009125193142 | G102: 1 | H102: 0 | I102: 3212.370165 | J102: 1.57048503 | K102: 1.044356335 | L102: 0.2924945051 | M102: 1.000027145 | N102: 0.007368141232 | O102: 1.000222546 | P102: 0.02109523517 | Q102: 4.159146707 | R102: 0.03537481558 | S102: 1.000009309 | T102: 0.006356664494 | U102: 35.47190881 | V102: -101.5949097 | W102: 78.40509025 | Y102: 1000000000 | Z102: 13182708.64 | AB102: 27.94745106 | AC102: -73.64562682 | AE102: 45.92320967 | AF102: -27.13112323 | AH102: 0 | AI102: 0
A103: 3981.1 | B103: 3.9811 | C103: 1.14336575 | D103: 0.5061639159 | E103: 1.000000501 | F103: 0.001000559226 | G103: 1 | H103: 0 | I103: 3522.299978 | J103: 1.570512421 | K103: 1.05310109 | L103: 0.3189140719 | M103: 1.000032636 | N103: 0.008078990771 | O103: 1.000267554 | P103: 0.02312981198 | Q103: 4.159668578 | R103: 0.03878455019 | S103: 1.000011192 | T103: 0.006969952584 | U103: 34.56832597 | V103: -102.4142229 | W103: 77.58577714 | Y103: 1000000000 | Z103: 15849157.21 | AB103: 27.21981538 | AC103: -72.17419523 | AE103: 45.74796146 | AF103: -29.3430772 | AH103: 0 | AI103: 0
A104: 4365.2 | B104: 4.3652 | C104: 1.170230711 | D104: 0.5461465237 | E104: 1.000000602 | F104: 0.001097093979 | G104: 1 | H104: 0 | I104: 3862.134525 | J104: 1.570537403 | K104: 1.063519534 | L104: 0.3473613783 | M104: 1.000039237 | N104: 0.008858419864 | O104: 1.000321663 | P104: 0.02536048176 | Q104: 4.160295925 | R104: 0.04252225862 | S104: 1.000013456 | T104: 0.007642414903 | U104: 33.65117061 | V104: -103.2405814 | W104: 76.75941856 | Y104: 1000000000 | Z104: 19054971.04 | AB104: 26.50524509 | AC104: -70.59037395 | AE104: 45.54621642 | AF104: -31.66691011 | AH104: 0 | AI104: 0
A105: 4786.3 | B105: 4.7863 | C105: 1.201730344 | D105: 0.587852702 | E105: 1.000000724 | F105: 0.001202927812 | G105: 1 | H105: 0 | I105: 4234.705024 | J105: 1.570560183 | K105: 1.075909986 | L105: 0.3778884457 | M105: 1.000047172 | N105: 0.009712918241 | O105: 1.000386704 | P105: 0.02780573905 | Q105: 4.161049932 | R105: 0.04661866416 | S105: 1.000016177 | T105: 0.008379653378 | U105: 32.72005305 | V105: -104.0621423 | W105: 75.93785768 | Y105: 1000000000 | Z105: 22908667.69 | AB105: 25.80587016 | AC105: -68.89156618 | AE105: 45.31548312 | AF105: -34.09267492 | AH105: 0 | AI105: 0
A106: 5248.1 | B106: 5.2481 | C106: 1.238546778 | D106: 0.6310679925 | E106: 1.00000087 | F106: 0.001318990626 | G106: 1 | H106: 0 | I106: 4643.285071 | J106: 1.570580962 | K106: 1.090622529 | L106: 0.4105347836 | M106: 1.000056714 | N106: 0.01064998892 | O106: 1.000464907 | P106: 0.03048695103 | Q106: 4.161956408 | R106: 0.05110921148 | S106: 1.000019449 | T106: 0.009188145143 | U106: 31.77454913 | V106: -104.86592 | W106: 75.13408001 | Y106: 1000000000 | Z106: 27542553.61 | AB106: 25.12371414 | AC106: -67.07594956 | AE106: 45.05334825 | AF106: -36.60840194 | AH106: 0 | AI106: 0
A107: 5370.3 | B107: 5.3703 | C107: 1.248661493 | D107: 0.6420704728 | E107: 1.000000911 | F107: 0.001349702781 | G107: 1 | H107: 0 | I107: 4751.402182 | J107: 1.570585863 | K107: 1.09470686 | L107: 0.4190238107 | M107: 1.000059386 | N107: 0.01089795043 | O107: 1.000486804 | P107: 0.03119637276 | Q107: 4.162210202 | R107: 0.05229715181 | S107: 1.000020365 | T107: 0.009402085204 | U107: 31.53607128 | V107: -105.0623335 | W107: 74.93766654 | Y107: 1000000000 | Z107: 28840122.09 | AB107: 24.95622954 | AC107: -66.60405207 | AE107: 44.98269454 | AF107: -37.24929581 | AH107: 0 | AI107: 0
A108: 5432.85 | B108: 5.43285 | C108: 1.253896642 | D108: 0.6476332396 | E108: 1.000000932 | F108: 0.001365423282 | G108: 1 | H108: 0 | I108: 4806.743633 | J108: 1.570588286 | K108: 1.096827842 | L108: 0.4233444315 | M108: 1.000060777 | N108: 0.01102487293 | O108: 1.000498207 | P108: 0.03155948938 | Q108: 4.162342364 | R108: 0.05290516157 | S108: 1.000020843 | T108: 0.009511593739 | U108: 31.41576721 | V108: -105.1603191 | W108: 74.83968086 | Y108: 1000000000 | Z108: 29515859.12 | AB108: 24.87244664 | AC108: -66.36390968 | AE108: 44.94635017 | AF108: -37.57339253 | AH108: 0 | AI108: 0
A109: 5495.4 | B109: 5.4954 | C109: 1.259170269 | D109: 0.6531495803 | E109: 1.000000954 | F109: 0.001381143782 | G109: 1 | H109: 0 | I109: 4862.085083 | J109: 1.570590654 | K109: 1.09896922 | L109: 0.4276482947 | M109: 1.000062184 | N109: 0.01115179507 | O109: 1.000509743 | P109: 0.03192259766 | Q109: 4.162476053 | R109: 0.05351313265 | S109: 1.000021325 | T109: 0.009621102231 | U109: 31.29662708 | V109: -105.2566 | W109: 74.74339998 | Y109: 1000000000 | Z109: 30199421.16 | AB109: 24.78994378 | AC109: -66.12472426 | AE109: 44.90989174 | AF109: -37.89482923 | AH109: 0 | AI109: 0
A110: 5559.4 | B110: 5.5594 | C110: 1.264605471 | D110: 0.6587460027 | E110: 1.000000976 | F110: 0.001397228705 | G110: 1 | H110: 0 | I110: 4918.70943 | J110: 1.570593021 | K110: 1.101181225 | L110: 0.432034519 | M110: 1.000063641 | N110: 0.01128165908 | O110: 1.000521682 | P110: 0.03229411461 | Q110: 4.16261442 | R110: 0.05413515691 | S110: 1.000021825 | T110: 0.009733149244 | U110: 31.17590642 | V110: -105.3533668 | W110: 74.64663318 | Y110: 1000000000 | Z110: 30906928.36 | AB110: 24.70682425 | AC110: -65.88098844 | AE110: 44.87247569 | AF110: -38.22097883 | AH110: 0 | AI110: 0
A111: 5623.4 | B111: 5.6234 | C111: 1.27007994 | D111: 0.6642943527 | E111: 1.000000999 | F111: 0.001413313628 | G111: 1 | H111: 0 | I111: 4975.333776 | J111: 1.570595335 | K111: 1.10341433 | L111: 0.4364030733 | M111: 1.000065115 | N111: 0.0114115227 | O111: 1.000533759 | P111: 0.03266562264 | Q111: 4.162754385 | R111: 0.05475713974 | S111: 1.00002233 | T111: 0.00984519621 | U111: 31.05635758 | V111: -105.4483867 | W111: 74.55161328 | Y111: 1000000000 | Z111: 31622627.56 | AB111: 24.62498681 | AC111: -65.63826193 | AE111: 44.83495149 | AF111: -38.5443741 | AH111: 0 | AI111: 0
A112: 5688.9 | B112: 5.6889 | C112: 1.275722848 | D112: 0.6699232583 | E112: 1.000001022 | F112: 0.00142977554 | G112: 1 | H112: 0 | I112: 5033.285255 | J112: 1.570597649 | K112: 1.105721488 | L112: 0.4408556578 | M112: 1.000066641 | N112: 0.01154442961 | O112: 1.000546262 | P112: 0.03304582855 | Q112: 4.162899284 | R112: 0.05539365691 | S112: 1.000022853 | T112: 0.009959869227 | U112: 30.93519679 | V112: -105.5438452 | W112: 74.45615481 | Y112: 1000000000 | Z112: 32363583.21 | AB112: 24.5425297 | AC112: -65.39089523 | AE112: 44.7964416 | AF112: -38.87251371 | AH112: 0 | AI112: 0
A113: 5754.4 | B113: 5.7544 | C113: 1.28140582 | D113: 0.6755024116 | E113: 1.000001046 | F113: 0.001446237451 | G113: 1 | H113: 0 | I113: 5091.236735 | J113: 1.570599911 | K113: 1.108050477 | L113: 0.4452896122 | M113: 1.000068184 | N113: 0.01167733611 | O113: 1.00055891 | P113: 0.0334260249 | Q113: 4.163045855 | R113: 0.0560301297 | S113: 1.000023383 | T113: 0.0100745422 | U113: 30.81521676 | V113: -105.6375154 | W113: 74.36248456 | Y113: 1000000000 | Z113: 33113119.36 | AB113: 24.46135725 | AC113: -65.1445929 | AE113: 44.75783004 | AF113: -39.19780273 | AH113: 0 | AI113: 0
A114: 5821.4 | B114: 5.8214 | C114: 1.287259834 | D114: 0.6811581846 | E114: 1.00000107 | F114: 0.001463076352 | G114: 1 | H114: 0 | I114: 5150.515347 | J114: 1.570602171 | K114: 1.110455243 | L114: 0.4498057738 | M114: 1.000069781 | N114: 0.01181328585 | O114: 1.000571997 | P114: 0.03381491804 | Q114: 4.163197514 | R114: 0.05668113176 | S114: 1.00002393 | T114: 0.01019184121 | U114: 30.69368741 | V114: -105.7315029 | W114: 74.2684971 | Y114: 1000000000 | Z114: 33888697.96 | AB114: 24.37962578 | AC114: -64.89375477 | AE114: 44.71823497 | AF114: -39.52761059 | AH114: 0 | AI114: 0
A115: 5888.4 | B115: 5.8884 | C115: 1.293154651 | D115: 0.6867625721 | E115: 1.000001095 | F115: 0.001479915252 | G115: 1 | H115: 0 | I115: 5209.79396 | J115: 1.570604381 | K115: 1.112882559 | L115: 0.4543023263 | M115: 1.000071396 | N115: 0.01194923515 | O115: 1.000585235 | P115: 0.03420380094 | Q115: 4.163350923 | R115: 0.05733208631 | S115: 1.000024484 | T115: 0.01030914017 | U115: 30.57334699 | V115: -105.8236646 | W115: 74.17633539 | Y115: 1000000000 | Z115: 34673254.56 | AB115: 24.29918005 | AC115: -64.64403719 | AE115: 44.67854542 | AF115: -39.85447428 | AH115: 0 | AI115: 0
A116: 5957 | B116: 5.957 | C116: 1.299231936 | D116: 0.6924479202 | E116: 1.000001121 | F116: 0.001497156275 | G116: 1 | H116: 0 | I116: 5270.488181 | J116: 1.570606591 | K116: 1.115391053 | L116: 0.4588858866 | M116: 1.00007307 | N116: 0.01208843054 | O116: 1.000598947 | P116: 0.03460195988 | Q116: 4.163509808 | R116: 0.05799853626 | S116: 1.000025058 | T116: 0.01042924024 | U116: 30.45134131 | V116: -105.9161597 | W116: 74.08384031 | Y116: 1000000000 | Z116: 35485849 | AB116: 24.218116 | AC116: -64.38952049 | AE116: 44.63781624 | AF116: -40.18611412 | AH116: 0 | AI116: 0
A117: 6025.6 | B117: 6.0256 | C117: 1.305350825 | D117: 0.6980801484 | E117: 1.000001147 | F117: 0.001514397296 | G117: 1 | H117: 0 | I117: 5331.182402 | J117: 1.570608751 | K117: 1.117922874 | L117: 0.463448781 | M117: 1.000074762 | N117: 0.01222762546 | O117: 1.000612817 | P117: 0.03500010784 | Q117: 4.163670528 | R117: 0.05866493526 | S117: 1.000025639 | T117: 0.01054934026 | U117: 30.33053545 | V117: -106.0067901 | W117: 73.99320992 | Y117: 1000000000 | Z117: 36307855.36 | AB117: 24.13834106 | AC117: -64.13618494 | AE117: 44.59700021 | AF117: -40.51471041 | AH117: 0 | AI117: 0
A118: 6095.8 | B118: 6.0958 | C118: 1.311654891 | D118: 0.7037891531 | E118: 1.000001174 | F118: 0.001532040439 | G118: 1 | H118: 0 | I118: 5393.292232 | J118: 1.570610911 | K118: 1.120537731 | L118: 0.4680966529 | M118: 1.000076514 | N118: 0.01237006642 | O118: 1.000627174 | P118: 0.03540753056 | Q118: 4.163836895 | R118: 0.05934682375 | S118: 1.00002624 | T118: 0.01067224138 | U118: 30.20813076 | V118: -106.0976301 | W118: 73.90236988 | Y118: 1000000000 | Z118: 37158777.64 | AB118: 24.05801047 | AC118: -63.87816653 | AE118: 44.55514852 | AF118: -40.84784312 | AH118: 0 | AI118: 0
A119: 6166 | B119: 6.166 | C119: 1.318001297 | D119: 0.7094433609 | E119: 1.000001201 | F119: 0.001549683582 | G119: 1 | H119: 0 | I119: 5455.402062 | J119: 1.570613022 | K119: 1.123176682 | L119: 0.4727227836 | M119: 1.000078287 | N119: 0.01251250688 | O119: 1.000641698 | P119: 0.03581494152 | Q119: 4.164005181 | R119: 0.06002865766 | S119: 1.000026847 | T119: 0.01079514244 | U119: 30.08693592 | V119: -106.1865709 | W119: 73.8134291 | Y119: 1000000000 | Z119: 38019556 | AB119: 23.97897074 | AC119: -63.62139095 | AE119: 44.51321838 | AF119: -41.17783621 | AH119: 0 | AI119: 0
A120: 6237.8 | B120: 6.2378 | C120: 1.324535516 | D120: 0.7151702021 | E120: 1.000001229 | F120: 0.001567728846 | G120: 1 | H120: 0 | I120: 5518.927501 | J120: 1.570615132 | K120: 1.125900528 | L120: 0.4774318167 | M120: 1.00008012 | N120: 0.01265819331 | O120: 1.000656725 | P120: 0.0362316259 | Q120: 4.16417929 | R120: 0.06072597484 | S120: 1.000027476 | T120: 0.0109208446 | U120: 29.964207 | V120: -106.2756025 | W120: 73.72439753 | Y120: 1000000000 | Z120: 38910148.84 | AB120: 23.89943519 | AC120: -63.36005133 | AE120: 44.47025776 | AF120: -41.51212832 | AH120: 0 | AI120: 0
A121: 6309.6 | B121: 6.3096 | C121: 1.331112748 | D121: 0.7208406333 | E121: 1.000001257 | F121: 0.00158577411 | G121: 1 | H121: 0 | I121: 5582.45294 | J121: 1.570617194 | K121: 1.128649219 | L121: 0.4821180168 | M121: 1.000081975 | N121: 0.01280387922 | O121: 1.000671925 | P121: 0.03664829768 | Q121: 4.164355407 | R121: 0.06142323361 | S121: 1.000028112 | T121: 0.01104654669 | U121: 29.84269713 | V121: -106.3627048 | W121: 73.63729518 | Y121: 1000000000 | Z121: 39811052.16 | AB121: 23.8211907 | AC121: -63.10001717 | AE121: 44.42722779 | AF121: -41.84318837 | AH121: 0 | AI121: 0
A122: 6383.05 | B122: 6.38305 | C122: 1.337884974 | D122: 0.7265834946 | E122: 1.000001287 | F122: 0.001604234061 | G122: 1 | H122: 0 | I122: 5647.438225 | J122: 1.570619255 | K122: 1.131486597 | L122: 0.4868882416 | M122: 1.000083895 | N122: 0.01295291249 | O122: 1.000687654 | P122: 0.03707453163 | Q122: 4.164537649 | R122: 0.06213645461 | S122: 1.000028771 | T122: 0.01117513741 | U122: 29.71963295 | V122: -106.449843 | W122: 73.55015696 | Y122: 1000000000 | Z122: 40743327.3 | AB122: 23.74245423 | AC122: -62.83536051 | AE122: 44.38314366 | AF122: -42.17854012 | AH122: 0 | AI122: 0
A123: 6456.5 | B123: 6.4565 | C123: 1.344700878 | D123: 0.732268324 | E123: 1.000001317 | F123: 0.001622694011 | G123: 1 | H123: 0 | I123: 5712.42351 | J123: 1.57062127 | K123: 1.134349592 | L123: 0.4916344947 | M123: 1.000085837 | N123: 0.01310194519 | O123: 1.000703565 | P123: 0.03750075209 | Q123: 4.164721992 | R123: 0.06284961309 | S123: 1.000029437 | T123: 0.01130372807 | U123: 29.59779788 | V123: -106.5350242 | W123: 73.46497578 | Y123: 1000000000 | Z123: 41686392.25 | AB123: 23.66500929 | AC123: -62.57207459 | AE123: 44.33899988 | AF123: -42.51056688 | AH123: 0 | AI123: 0
A124: 6531.7 | B124: 6.5317 | C124: 1.351723739 | D124: 0.7380290123 | E124: 1.000001347 | F124: 0.001641593782 | G124: 1 | H124: 0 | I124: 5778.957117 | J124: 1.570623285 | K124: 1.13730714 | L124: 0.4964689622 | M124: 1.000087848 | N124: 0.0132545281 | O124: 1.000720044 | P124: 0.03793711344 | Q124: 4.164912903 | R124: 0.06357969758 | S124: 1.000030126 | T124: 0.01143538241 | U124: 29.47430997 | V124: -106.6202401 | W124: 73.37975994 | Y124: 1000000000 | Z124: 42663104.89 | AB124: 23.58702727 | AC124: -62.30393784 | AE124: 44.29374911 | AF124: -42.84709037 | AH124: 0 | AI124: 0
A125: 6606.9 | B125: 6.6069 | C125: 1.358790993 | D125: 0.7437299639 | E125: 1.000001379 | F125: 0.001660493552 | G125: 1 | H125: 0 | I125: 5845.490725 | J125: 1.570625255 | K125: 1.14029113 | L125: 0.5012782394 | M125: 1.000089882 | N125: 0.01340711039 | O125: 1.000736713 | P125: 0.03837346034 | Q125: 4.165106017 | R125: 0.06430971503 | S125: 1.000030824 | T125: 0.01156703668 | U125: 29.35206363 | V125: -106.7034709 | W125: 73.29652915 | Y125: 1000000000 | Z125: 43651127.61 | AB125: 23.51033914 | AC125: -62.03724173 | AE125: 44.24844896 | AF125: -43.18019119 | AH125: 0 | AI125: 0
A126: 6683.85 | B126: 6.68385 | C126: 1.366067947 | D126: 0.7495023296 | E126: 1.000001411 | F126: 0.001679833143 | G126: 1 | H126: 0 | I126: 5913.572654 | J126: 1.570627224 | K126: 1.143371719 | L126: 0.5061733326 | M126: 1.000091988 | N126: 0.01356324282 | O126: 1.000753968 | P126: 0.03881994646 | Q126: 4.165305903 | R126: 0.06505665073 | S126: 1.000031546 | T126: 0.01170175463 | U126: 29.22823421 | V126: -106.7866186 | W126: 73.21338138 | Y126: 1000000000 | Z126: 44673850.82 | AB126: 23.43317562 | AC126: -61.76583212 | AE126: 44.20205013 | AF126: -43.51753408 | AH126: 0 | AI126: 0
A127: 6760.8 | B127: 6.7608 | C127: 1.373389935 | D127: 0.7552133352 | E127: 1.000001444 | F127: 0.001699172732 | G127: 1 | H127: 0 | I127: 5981.654583 | J127: 1.570629149 | K127: 1.146479557 | L127: 0.511042003 | M127: 1.000094118 | N127: 0.01371937459 | O127: 1.000771421 | P127: 0.03926641709 | Q127: 4.165508094 | R127: 0.06580351463 | S127: 1.000032277 | T127: 0.0118364725 | U127: 29.10565785 | V127: -106.8677588 | W127: 73.1322412 | Y127: 1000000000 | Z127: 45708416.64 | AB127: 23.35730663 | AC127: -61.49593382 | AE127: 44.15561288 | AF127: -43.85136128 | AH127: 0 | AI127: 0
A128: 6839.55 | B128: 6.83955 | C128: 1.380929077 | D128: 0.7609950347 | E128: 1.000001477 | F128: 0.001718964708 | G128: 1 | H128: 0 | I128: 6051.329072 | J128: 1.570631074 | K128: 1.149688077 | L128: 0.5159971871 | M128: 1.000096323 | N128: 0.01387915787 | O128: 1.00078949 | P128: 0.03972331526 | Q128: 4.165717401 | R128: 0.06656777383 | S128: 1.000033033 | T128: 0.01197434158 | U128: 28.98148797 | V128: -106.9487556 | W128: 73.05124436 | Y128: 1000000000 | Z128: 46779444.2 | AB128: 23.28097292 | AC128: -61.22128788 | AE128: 44.10805633 | AF128: -44.18939358 | AH128: 0 | AI128: 0
A129: 6918.3 | B129: 6.9183 | C129: 1.388513879 | D129: 0.7667137581 | E129: 1.000001512 | F129: 0.001738756682 | G129: 1 | H129: 0 | I129: 6121.003561 | J129: 1.570632955 | K129: 1.152924668 | L129: 0.5209246704 | M129: 1.000098554 | N129: 0.01403894044 | O129: 1.000807767 | P129: 0.04018019684 | Q129: 4.16592912 | R129: 0.06733195612 | S129: 1.000033798 | T129: 0.01211221057 | U129: 28.85858326 | V129: -107.0277254 | W129: 72.97227465 | Y129: 1000000000 | Z129: 47862874.89 | AB129: 23.2059344 | AC129: -60.94822653 | AE129: 44.06047296 | AF129: -44.52381761 | AH129: 0 | AI129: 0
A130: 6998.9 | B130: 6.9989 | C130: 1.396323368 | D130: 0.7725022976 | E130: 1.000001547 | F130: 0.00175901361 | G130: 1 | H130: 0 | I130: 6192.314848 | J130: 1.570634836 | K130: 1.156266116 | L130: 0.52593922 | M130: 1.000100864 | N130: 0.01420247589 | O130: 1.000826691 | P130: 0.04064779413 | Q130: 4.166148313 | R130: 0.06811401005 | S130: 1.00003459 | T130: 0.0122533183 | U130: 28.73407764 | V130: -107.1064907 | W130: 72.89350933 | Y130: 1000000000 | Z130: 48984601.21 | AB130: 23.13044373 | AC130: -60.67039169 | AE130: 44.01175077 | AF130: -44.86240073 | AH130: 0 | AI130: 0
A131: 7079.5 | B131: 7.0795 | C131: 1.404179122 | D131: 0.7782262585 | E131: 1.000001583 | F131: 0.001779270536 | G131: 1 | H131: 0 | I131: 6263.626134 | J131: 1.570636675 | K131: 1.159636471 | L131: 0.5309247459 | M131: 1.0001032 | N131: 0.01436601059 | O131: 1.000845833 | P131: 0.04111537363 | Q131: 4.166370032 | R131: 0.06889598157 | S131: 1.000035392 | T131: 0.01239442594 | U131: 28.61084985 | V131: -107.1832126 | W131: 72.81678736 | Y131: 1000000000 | Z131: 50119320.25 | AB131: 23.05624882 | AC131: -60.39421728 | AE131: 43.96301401 | AF131: -45.19728377 | AH131: 0 | AI131: 0
A132: 7161.95 | B132: 7.16195 | C132: 1.412262254 | D132: 0.7840155175 | E132: 1.00000162 | F132: 0.001799992414 | G132: 1 | H132: 0 | I132: 6336.574219 | J132: 1.570638513 | K132: 1.163113833 | L132: 0.535994679 | M132: 1.000105618 | N132: 0.01453329807 | O132: 1.000865641 | P132: 0.04159366681 | Q132: 4.166599454 | R132: 0.0696958153 | S132: 1.000036221 | T132: 0.0125387723 | U132: 28.48609193 | V132: -107.2596232 | W132: 72.74037677 | Y132: 1000000000 | Z132: 51293527.8 | AB132: 22.98166096 | AC132: -60.11342168 | AE132: 43.91315033 | AF132: -45.53606704 | AH132: 0 | AI132: 0
A133: 7244.4 | B133: 7.2444 | C133: 1.42039218 | D133: 0.7897386944 | E133: 1.000001658 | F133: 0.001820714292 | G133: 1 | H133: 0 | I133: 6409.522303 | J133: 1.570640309 | K133: 1.166620913 | L133: 0.5410342588 | M133: 1.000108063 | N133: 0.01470058474 | O133: 1.000885677 | P133: 0.04207194094 | Q133: 4.166831521 | R133: 0.07049556082 | S133: 1.00003706 | T133: 0.01268311856 | U133: 28.36262343 | V133: -107.3339803 | W133: 72.66601969 | Y133: 1000000000 | Z133: 52481331.36 | AB133: 22.90836772 | AC133: -59.83436277 | AE133: 43.86328496 | AF133: -45.87106408 | AH133: 0 | AI133: 0
A134: 7328.75 | B134: 7.32875 | C134: 1.428757043 | D134: 0.7955261626 | E134: 1.000001696 | F134: 0.001841913688 | G134: 1 | H134: 0 | I134: 6484.151422 | J134: 1.570642105 | K134: 1.170239287 | L134: 0.5461585801 | M134: 1.000110594 | N134: 0.01487172556 | O134: 1.000906413 | P134: 0.04256121663 | Q134: 4.16707167 | R134: 0.07131364355 | S134: 1.000037928 | T134: 0.01283079107 | U134: 28.23762 | V134: -107.40797 | W134: 72.59203001 | Y134: 1000000000 | Z134: 53710576.56 | AB134: 22.83469436 | AC134: -59.55066931 | AE134: 43.81227552 | AF134: -46.20990796 | AH134: 0 | AI134: 0
A135: 7413.1 | B135: 7.4131 | C135: 1.437169204 | D135: 0.8012460692 | E135: 1.000001736 | F135: 0.001863113082 | G135: 1 | H135: 0 | I135: 6558.780542 | J135: 1.570643859 | K135: 1.173888199 | L135: 0.5512511776 | M135: 1.000113155 | N135: 0.01504286551 | O135: 1.000927388 | P135: 0.04305047192 | Q135: 4.167314585 | R135: 0.07213163184 | S135: 1.000038806 | T135: 0.01297846347 | U135: 28.11391804 | V135: -107.4798997 | W135: 72.52010033 | Y135: 1000000000 | Z135: 54954051.61 | AB135: 22.76231435 | AC135: -59.26879111 | AE135: 43.76127787 | AF135: -46.54488083 | AH135: 0 | AI135: 0
A136: 7499.45 | B136: 7.49945 | C136: 1.445828955 | D136: 0.8070324592 | E136: 1.000001776 | F136: 0.001884815128 | G136: 1 | H136: 0 | I136: 6635.179172 | J136: 1.570645615 | K136: 1.177654968 | L136: 0.5564316967 | M136: 1.000115806 | N136: 0.0152180624 | O136: 1.000949108 | P136: 0.04355130645 | Q136: 4.167566125 | R136: 0.07296891629 | S136: 1.000039715 | T136: 0.01312963719 | U136: 27.98860691 | V136: -107.5514475 | W136: 72.44855251 | Y136: 1000000000 | Z136: 56241750.3 | AB136: 22.68952685 | AC136: -58.98210786 | AE136: 43.70909001 | AF136: -46.88383474 | AH136: 0 | AI136: 0
A137: 7585.8 | B137: 7.5858 | C137: 1.454536539 | D137: 0.8127497584 | E137: 1.000001817 | F137: 0.001906517172 | G137: 1 | H137: 0 | I137: 6711.577802 | J137: 1.570647331 | K137: 1.181453139 | L137: 0.5615790442 | M137: 1.000118488 | N137: 0.01539325835 | O137: 1.00097108 | P137: 0.04405211912 | Q137: 4.167820562 | R137: 0.07380609951 | S137: 1.000040635 | T137: 0.01328081078 | U137: 27.86461118 | V137: -107.6209304 | W137: 72.37906962 | Y137: 1000000000 | Z137: 57544361.64 | AB137: 22.61803272 | AC137: -58.69732285 | AE137: 43.65692803 | AF137: -47.21883003 | AH137: 0 | AI137: 0
A138: 7674.15 | B138: 7.67415 | C138: 1.46349442 | D138: 0.8185288693 | E138: 1.00000186 | F138: 0.001928721867 | G138: 1 | H138: 0 | I138: 6789.745944 | J138: 1.570649046 | K138: 1.185371471 | L138: 0.5668113288 | M138: 1.000121264 | N138: 0.01557251114 | O138: 1.00099382 | P138: 0.0445645085 | Q138: 4.168083891 | R138: 0.07466256723 | S138: 1.000041587 | T138: 0.01343548568 | U138: 27.73908051 | V138: -107.6899341 | W138: 72.31006585 | Y138: 1000000000 | Z138: 58892578.22 | AB138: 22.54619011 | AC138: -58.40790373 | AE138: 43.60359142 | AF138: -47.55753868 | AH138: 0 | AI138: 0
A139: 7762.5 | B139: 7.7625 | C139: 1.472500584 | D139: 0.8242374761 | E139: 1.000001903 | F139: 0.00195092656 | G139: 1 | H139: 0 | I139: 6867.914085 | J139: 1.570650722 | K139: 1.18932204 | L139: 0.5720089949 | M139: 1.000124072 | N139: 0.01575176292 | O139: 1.001016823 | P139: 0.04507687446 | Q139: 4.168350252 | R139: 0.07551892655 | S139: 1.00004255 | T139: 0.01359016045 | U139: 27.61487793 | V139: -107.7568747 | W139: 72.24312534 | Y139: 1000000000 | Z139: 60256406.25 | AB139: 22.47563906 | AC139: -58.12046582 | AE139: 43.55029534 | AF139: -47.89220773 | AH139: 0 | AI139: 0
A140: 7852.9 | B140: 7.8529 | C140: 1.481764776 | D140: 0.8300065202 | E140: 1.000001948 | F140: 0.001973646471 | G140: 1 | H140: 0 | I140: 6947.895975 | J140: 1.570652398 | K140: 1.193397309 | L140: 0.5772914976 | M140: 1.000126978 | N140: 0.01593517287 | O140: 1.001040632 | P140: 0.04560110443 | Q140: 4.168625931 | R140: 0.07639504266 | S140: 1.000043547 | T140: 0.01374842403 | U140: 27.48914342 | V140: -107.8232837 | W140: 72.17671625 | Y140: 1000000000 | Z140: 61668038.41 | AB140: 22.40475648 | AC140: -57.82840536 | AE140: 43.49581125 | AF140: -48.23051569 | AH140: 0 | AI140: 0
A141: 7943.3 | B141: 7.9433 | C141: =SQRT(1+(A141/pole1)^2) -> 1.491077671 | D141: =ATAN(A141/pole1) -> 0.835703688 | E141: =SQRT(1+(A141/Zero1)^2) -> 1.000001993 | F141: =ATAN(A141/Zero1) -> 0.00199636638 | G141: =IF(VIN_nom>Vout, 1, SQRT(1+(A141/z_RHP)^2)) -> 1 | H141: =IF(VIN_nom>Vout, 0, -ATAN(A141/z_RHP)) -> 0 | I141: =SQRT(1+(A141/Pole2)^2) -> 7027.877865 | J141: =ATAN(A141/Pole2) -> 1.570654036 | K141: =SQRT(1+(A141/Zero2)^2) -> 1.197505652 | L141: =ATAN(A141/Zero2) -> 0.5825379 | M141: =SQRT(1+(A141/pole4)^2) -> 1.000129918 | N141: =ATAN(A141/pole4) -> 0.01611858174 | O141: =IF(VOUT_setting=1,1,SQRT(1+(A141*zterm1)^2)) -> 1.001064716 | P141: =IF(VOUT_setting=1,0,ATAN(((A141*zterm1)))) -> 0.04612530931 | Q141: 4.168904784 | R141: =IF(VOUT_setting=1,0,ATAN(A141*$Q$4/(1+Afbr-$Q$5*(A141)^2))) -> 0.07727104272 | S141: =SQRT((1-(Z141/pterm2))^2+(A141/pterm1)^2) -> 1.000044555 | T141: =IF((ATAN((A141/pterm1)/(1-A141^2/pterm2))>0),ATAN((A141/pterm1)/(1-A141^2/pterm2)),PI()+ATAN((A141/pterm1)/(1-A141^2/pterm2))) -> 0.01390668749 | U141: =20*LOG10(((E141*K141*G141*O141)/(C141*I141*S141*M141*Q141))*Adc) -> 27.36474988 | V141: =((F141+L141+H141+P141)-(D141+J141+T141+N141+R141))*radconv -> -107.8876356 | W141: =IF(V141>0,V141,V141+180) -> 72.11236444 | Y141: =IF(U141<0,A141,1000000000) -> 1000000000 | Z141: =A141^2 -> 63096014.89 | AB141: =20*LOG10((K141/(I141*M141))*AEA) -> 22.33516334 | AC141: =(L141-(J141+N141))*radconv -> -57.53841105 | AE141: =20*LOG10((E141*G141/(C141*S141))*Acs*Am) -> 43.44138288 | AF141: =(F141+H141-(D141+T141))*radconv -> -48.56470543 | AH141: =SUM((U142<0)*(U141>0))*A141 -> 0 | AI141: 0
A142: 8035.8 | B142: =A142/1000 -> 8.0358 | C142: 1.500656371 | D142: 0.841459815 | E142: 1.000002039 | F142: 0.002019614071 | G142: 1 | H142: 0 | I142: 7109.717741 | J142: 1.570655674 | K142: 1.201743314 | L142: 0.5878688953 | M142: 1.000132962 | N142: 0.0163062501 | O142: 1.001089644 | P142: 0.04666166526 | Q142: 4.169193399 | R142: 0.07816727083 | S142: 1.000045599 | T142: 0.01406862728 | U142: 27.23882975 | V142: -107.9514059 | W142: 72.04859411 | Y142: 1000000000 | Z142: 64574081.64 | AB142: 22.26525669 | AC142: -57.24381397 | AE142: 43.38575443 | AF142: -48.90245369 | AH142: 0 | AI142: 0
A143: 8128.3 | B143: 8.1283 | C143: 1.510284161 | D143: 0.8471427398 | E143: 1.000002087 | F143: 0.002042861761 | G143: 1 | H143: 0 | I143: 7191.557617 | J143: 1.570657275 | K143: 1.206014888 | L143: 0.5931622766 | M143: 1.00013604 | N143: 0.01649391731 | O143: 1.00111486 | P143: 0.04719799435 | Q143: =IF(VOUT_setting=1,1,SQRT((1+Afbr-$Q$5*(A143)^2)^2+(A143*$Q$4)^2)) -> 4.169485334 | R143: 0.07906337467 | S143: 1.000046655 | T143: 0.01423056693 | U143: 27.11426362 | V143: -108.0131294 | W143: 71.98687062 | Y143: 1000000000 | Z143: 66069260.89 | AB143: 22.19663695 | AC143: -56.95136981 | AE143: 43.33019744 | AF143: -49.23600776 | AH143: 0 | AI143: 0
A144: 8222.95 | B144: 8.22295 | C144: 1.520185573 | D144: 0.8528830517 | E144: 1.000002136 | F144: 0.0020666498 | G144: 1 | H144: 0 | I144: 7275.299718 | J144: 1.570658875 | K144: 1.210420478 | L144: 0.5985398652 | M144: 1.000139227 | N144: 0.01668594531 | O144: 1.00114096 | P144: 0.04774676133 | Q144: 4.169787493 | R144: 0.07998017676 | S144: 1.000047748 | T144: 0.01439627043 | U144: 26.98817847 | V144: -108.074224 | W144: 71.92577599 | Y144: 1000000000 | Z144: 67616906.7 | AB144: 22.12772264 | AC144: -56.65435078 | AE144: 43.27342959 | AF144: -49.57303456 | AH144: 0 | AI144: 0
A145: 8270.275 | B145: 8.270275 | C145: 1.525154881 | D145: 0.855725211 | E145: 1.00000216 | F145: 0.002078543819 | G145: 1 | H145: 0 | I145: 7317.170768 | J145: 1.570659662 | K145: 1.212636327 | L145: 0.601213968 | M145: 1.000140834 | N145: 0.01678195885 | O145: 1.001154124 | P145: 0.04802113405 | Q145: 4.169939875 | R145: 0.080438528 | S145: 1.000048299 | T145: 0.01447912213 | U145: 26.9256501 | V145: -108.1040059 | W145: 71.89599406 | Y145: 1000000000 | Z145: 68397448.58 | AB145: 22.09374889 | AC145: -56.50668221 | AE145: 43.24507817 | AF145: -49.73994387 | AH145: 0 | AI145: 0
A146: 8317.6 | B146: 8.3176 | C146: 1.530136429 | D146: 0.858548887 | E146: 1.000002185 | F146: 0.002090437837 | G146: 1 | H146: 0 | I146: 7359.041818 | J146: 1.57066044 | K146: 1.214860816 | L146: 0.6038782969 | M146: 1.00014245 | N146: 0.01687797207 | O146: 1.001167362 | P146: 0.04829549954 | Q146: 4.170093127 | R146: 0.08089684578 | S146: 1.000048853 | T146: 0.01456197378 | U146: 26.86346039 | V146: -108.1332868 | W146: 71.86671318 | Y146: 1000000000 | Z146: 69182469.76 | AB146: 22.06009226 | AC146: -56.35957311 | AE146: 43.21674946 | AF146: -49.90579416 | AH146: 0 | AI146: 0
A147: 8366.05 | B147: 8.36605 | C147: 1.535248952 | D147: 0.8614206803 | E147: 1.00000221 | F147: 0.002102614597 | G147: 1 | H147: 0 | I147: 7401.908218 | J147: 1.570661226 | K147: 1.217147085 | L147: 0.6065958531 | M147: 1.000144114 | N147: 0.01697626739 | O147: 1.001180993 | P147: 0.04857637964 | Q147: 4.170250922 | R147: 0.08136602374 | S147: 1.000049424 | T147: 0.01464679493 | U147: 26.80013999 | V147: -108.1627518 | W147: 71.83724816 | Y147: 1000000000 | Z147: 69990792.6 | AB147: 22.02596009 | AC147: -56.20954561 | AE147: 43.18777163 | AF147: -50.07449801 | AH147: 0 | AI147: 0
A148: 8414.5 | B148: 8.4145 | C148: 1.540374052 | D148: 0.864273387 | E148: 1.000002236 | F148: 0.002114791356 | G148: 1 | H148: 0 | I148: 7444.774618 | J148: 1.570662004 | K148: =SQRT(1+(A148/Zero2)^2) -> 1.21944231 | L148: =ATAN(A148/Zero2) -> 0.6093031993 | M148: 1.000145788 | N148: 0.01707456237 | O148: 1.001194704 | P148: 0.04885725208 | Q148: 4.170409627 | R148: 0.08183516624 | S148: 1.000049998 | T148: 0.01473161604 | U148: 26.73716813 | V148: -108.1917061 | W148: 71.80829386 | Y148: 1000000000 | Z148: 70803810.25 | AB148: 21.99215229 | AC148: -56.06010256 | AE148: 43.15881917 | AF148: -50.24210828 | AH148: 0 | AI148: 0
A149: 8462.95 | B149: 8.46295 | C149: 1.545511605 | D149: 0.8671071509 | E149: 1.000002262 | F149: 0.002126968114 | G149: 1 | H149: 0 | I149: 7487.641019 | J149: 1.570662773 | K149: 1.22174644 | L149: 0.6120003534 | M149: 1.000147472 | N149: 0.01717285703 | O149: 1.001208493 | P149: 0.0491381168 | Q149: 4.170569242 | R149: 0.08230427308 | S149: 1.000050576 | T149: 0.01481643711 | U149: 26.67454164 | V149: -108.2201569 | W149: 71.77984308 | Y149: 1000000000 | Z149: 71621522.7 | AB149: 21.95866492 | AC149: -55.91124294 | AE149: 43.12989285 | AF149: -50.40863321 | AH149: 0 | AI149: 0
A150: 8511.4 | B150: 8.5114 | C150: 1.550661487 | D150: 0.8699221149 | E150: 1.000002288 | F150: 0.002139144872 | G150: 1 | H150: 0 | I150: 7530.507419 | J150: 1.570663534 | K150: 1.224059423 | L150: 0.6146873339 | M150: 1.000149165 | N150: 0.01727115135 | O150: 1.001222361 | P150: 0.04941897376 | Q150: 4.170729768 | R150: 0.08277334406 | S150: 1.000051156 | T150: 0.01490125814 | U150: 26.61225738 | V150: -108.2481113 | W150: 71.75188867 | Y150: 1000000000 | Z150: 72443929.96 | AB150: 21.92549408 | AC150: -55.7629657 | AE150: 43.10099343 | AF150: -50.57408098 | AH150: 0 | AI150: 0
A151: 8560.95 | B151: 8.56095 | C151: 1.555940914 | D151: 0.8727816927 | E151: 1.000002315 | F151: 0.002151598088 | G151: 1 | H151: 0 | I151: 7574.34705 | J151: 1.570664302 | K151: 1.226434026 | L151: 0.6174248161 | M151: 1.000150907 | N151: 0.01737167699 | O151: 1.001236626 | P151: 0.04970619918 | Q151: 4.17089488 | R151: 0.08325302744 | S151: 1.000051754 | T151: 0.01498800489 | U151: 26.54890979 | V151: -108.2761944 | W151: 71.72380565 | Y151: 1000000000 | Z151: 73289864.9 | AB151: 21.89189356 | AC151: -55.61192325 | AE151: 43.07146647 | AF151: -50.74217942 | AH151: 0 | AI151: 0
A152: 8610.5 | B152: 8.6105 | C152: 1.561232978 | D152: 0.8756219075 | E152: 1.000002342 | F152: 0.002164051303 | G152: 1 | H152: 0 | I152: 7618.186681 | J152: 1.570665062 | K152: 1.228817784 | L152: 0.620151698 | M152: 1.000152658 | N152: 0.01747220227 | O152: 1.001250974 | P152: 0.04999341639 | Q152: 4.171060943 | R152: 0.0837326729 | S152: 1.000052355 | T152: 0.01507475159 | U152: 26.48591366 | V152: -108.3037731 | W152: 71.69622691 | Y152: 1000000000 | Z152: 74140710.25 | AB152: 21.85861608 | AC152: -55.46148764 | AE152: 43.04196917 | AF152: -50.90916844 | AH152: 0 | AI152: 0
A153: 8660.05 | B153: 8.66005 | C153: 1.566537552 | D153: 0.87844291 | E153: 1.000002369 | F153: 0.002176504517 | G153: 1 | H153: 0 | I153: 7662.026312 | J153: 1.570665813 | K153: 1.231210644 | L153: 0.6228680005 | M153: 1.00015442 | N153: 0.0175727272 | O153: 1.001265404 | P153: 0.05028062534 | Q153: 4.171227958 | R153: 0.0842122802 | S153: 1.000052959 | T153: 0.01516149825 | U153: 26.42326577 | V153: -108.330855 | W153: 71.66914505 | Y153: 1000000000 | Z153: 74996466 | AB153: 21.82565768 | AC153: -55.31165765 | AE153: 43.01250229 | AF153: -51.07505668 | AH153: 0 | AI153: 0
A154: 8709.6 | B154: 8.7096 | C154: 1.571854508 | D154: 0.88124485 | E154: 1.000002396 | F154: 0.002188957731 | G154: 1 | H154: 0 | I154: 7705.865943 | J154: 1.570666556 | K154: 1.233612553 | L154: 0.6255737454 | M154: 1.000156192 | N154: 0.01767325178 | O154: 1.001279916 | P154: 0.050567826 | Q154: 4.171395925 | R154: 0.08469184916 | S154: 1.000053567 | T154: 0.01524824487 | U154: 26.36096294 | V154: -108.3574473 | W154: 71.6425527 | Y154: 1000000000 | Z154: 75857132.16 | AB154: 21.79301445 | AC154: -55.16243207 | AE154: 42.98306655 | AF154: -51.23985272 | AH154: 0 | AI154: =IF(AH154>0,W154,0) -> 0
A155: 8760.325 | B155: 8.760325 | C155: 1.577310242 | D155: 0.8840936433 | E155: 1.000002424 | F155: 0.002201706253 | G155: 1 | H155: 0 | I155: 7750.745162 | J155: 1.570667307 | K155: 1.236080738 | L155: 0.6283327396 | M155: 1.000158017 | N155: 0.01777615976 | O155: 1.001294858 | P155: 0.05086182851 | Q155: 4.17156886 | R155: 0.08518275037 | S155: 1.000054192 | T155: 0.0153370485 | U155: 26.29753687 | V155: -108.3841708 | W155: 71.61582925 | Y155: 1000000000 | Z155: 76743294.11 | AB155: 21.75991961 | AC155: -55.01029259 | AE155: 42.95296579 | AF155: -51.40743419 | AH155: 0 | AI155: 0
A156: 8811.05 | B156: 8.81105 | C156: 1.58277869 | D156: 0.8869227745 | E156: 1.000002452 | F156: 0.002214454774 | G156: 1 | H156: 0 | I156: 7795.624381 | J156: 1.57066805 | K156: 1.238558294 | L156: 0.6310807167 | M156: 1.000159852 | N156: 0.01787906737 | O156: 1.001309887 | P156: 0.05115582222 | Q156: 4.171742793 | R156: 0.08567361094 | S156: 1.000054822 | T156: 0.01542585209 | U156: 26.23446583 | V156: -108.4103965 | W156: 71.58960346 | Y156: 1000000000 | Z156: 77634602.1 | AB156: 21.72714699 | AC156: -54.85878383 | AE156: 42.92289915 | AF156: -51.5738891 | AH156: 0 | AI156: 0
A157: 8861.775 | B157: 8.861775 | C157: 1.588259718 | D157: 0.8897324015 | E157: 1.00000248 | F157: 0.002227203294 | G157: 1 | H157: 0 | I157: 7840.503599 | J157: 1.570668784 | K157: 1.241045166 | L157: 0.6338177013 | M157: 1.000161697 | N157: 0.01798197461 | O157: 1.001325003 | P157: 0.05144980709 | Q157: 4.171917722 | R157: 0.08616443063 | S157: 1.000055455 | T157: 0.01551465563 | U157: 26.17174656 | V157: -108.4361323 | W157: 71.5638677 | Y157: 1000000000 | Z157: 78531056.15 | AB157: 21.6946926 | AC157: -54.70790438 | AE157: 42.89286735 | AF157: -51.7392265 | AH157: 0 | AI157: 0
A158: 8912.5 | B158: 8.9125 | C158: 1.593753198 | D158: 0.8925226815 | E158: 1.000002509 | F158: 0.002239951813 | G158: 1 | H158: 0 | I158: 7885.382818 | J158: 1.57066951 | K158: =SQRT(1+(A158/Zero2)^2) -> 1.243541298 | L158: =ATAN(A158/Zero2) -> 0.6365437185 | M158: 1.000163554 | N158: 0.01808488146 | O158: 1.001340205 | P158: 0.05174378305 | Q158: 4.172093649 | R158: 0.08665520922 | S158: 1.000056092 | T158: 0.01560345912 | U158: 26.10937583 | V158: -108.4613856 | W158: 71.5386144 | Y158: 1000000000 | Z158: 79432656.25 | AB158: 21.66255252 | AC158: -54.55765282 | AE158: 42.86287111 | AF158: -51.9034554 | AH158: 0 | AI158: 0
A159: 8964.4 | B159: 8.9644 | C159: 1.599386683 | D159: 0.8953577344 | E159: 1.000002538 | F159: 0.00225299564 | G159: 1 | H159: 0 | I159: 7931.301624 | J159: 1.570670244 | K159: 1.246104775 | L159: 0.6393215567 | M159: 1.000165464 | N159: 0.01819017166 | O159: 1.001355848 | P159: 0.05204455944 | Q159: 4.172274681 | R159: 0.08715731347 | S159: 1.000056747 | T159: 0.01569431962 | U159: 26.04591776 | V159: -108.4867323 | W159: 71.51326769 | Y159: 1000000000 | Z159: 80360467.36 | AB159: 21.6299892 | AC159: -54.40456917 | AE159: 42.83221755 | AF159: -52.07035053 | AH159: 0 | AI159: 0
A160: 9016.3 | B160: 9.0163 | C160: 1.605032933 | D160: 0.8981728632 | E160: 1.000002567 | F160: 0.002266039466 | G160: 1 | H160: 0 | I160: 7977.220431 | J160: 1.57067097 | K160: 1.248677829 | L160: 0.642087968 | M160: 1.000167385 | N160: 0.01829546146 | O160: 1.001371582 | P160: 0.05234532641 | Q160: 4.172456758 | R160: 0.08765937421 | S160: 1.000057406 | T160: 0.01578518006 | U160: 25.98281787 | V160: -108.5115897 | W160: 71.48841029 | Y160: 1000000000 | Z160: 81293665.69 | AB160: 21.59774679 | AC160: -54.25213972 | AE160: 42.80160264 | AF160: -52.23610409 | AH160: 0 | AI160: 0
A161: 9068.2 | B161: 9.0682 | C161: 1.610691814 | D161: 0.9009682331 | E161: 1.000002597 | F161: 0.002279083291 | G161: 1 | H161: 0 | I161: 8023.139237 | J161: 1.570671687 | K161: 1.2512604 | L161: 0.6448429807 | M161: 1.000169318 | N161: 0.01840075085 | O161: 1.001387407 | P161: 0.0526460839 | Q161: 4.172639877 | R161: 0.08816139118 | S161: 1.000058068 | T161: 0.01587604046 | U161: 25.92007285 | V161: -108.5359656 | W161: 71.46403437 | Y161: 1000000000 | Z161: 82232251.24 | AB161: 21.56582127 | AC161: -54.10036286 | AE161: 42.77102707 | AF161: -52.40072555 | AH161: 0 | AI161: 0
A162: 9120.1 | B162: 9.1201 | C162: 1.616363192 | D162: 0.9037440082 | E162: 1.000002627 | F162: 0.002292127116 | G162: 1 | H162: 0 | I162: 8069.058043 | J162: 1.570672397 | K162: 1.253852428 | L162: 0.6475866236 | M162: 1.000171261 | N162: 0.01850603983 | O162: 1.001403323 | P162: 0.05294683185 | Q162: 4.172824039 | R162: 0.08866336415 | S162: 1.000058735 | T162: 0.01596690081 | U162: 25.85767943 | V162: -108.5598678 | W162: 71.44013217 | Y162: 1000000000 | Z162: 83176224.01 | AB162: 21.53420869 | AC162: -53.94923696 | AE162: 42.74049152 | AF162: -52.56422431 | AH162: 0 | AI162: 0
A163: 9173.2 | B163: 9.1732 | C163: 1.622178498 | D163: 0.9065638534 | E163: 1.000002658 | F163: 0.002305472531 | G163: 1 | H163: 0 | I163: 8116.038556 | J163: 1.570673114 | K163: 1.256514115 | L163: 0.6503819665 | M163: 1.000173261 | N163: 0.01861376282 | O163: 1.0014197 | P163: 0.05325452359 | Q163: 4.173013538 | R163: 0.08917689764 | S163: 1.000059421 | T163: 0.01605986192 | U163: 25.79420389 | V163: -108.5838404 | W163: 71.41615961 | Y163: 1000000000 | Z163: 84147598.24 | AB163: 21.50218501 | AC163: -53.79528879 | AE163: 42.70929206 | AF163: -52.73035118 | AH163: 0 | AI163: 0
A164: 9226.3 | B164: 9.2263 | C164: 1.628006612 | D164: 0.9093635311 | E164: 1.000002688 | F164: 0.002318817945 | G164: 1 | H164: 0 | I164: 8163.019069 | J164: 1.570673823 | K164: 1.259185579 | L164: 0.6531654699 | M164: 1.000175273 | N164: 0.01872148537 | O164: 1.001436172 | P164: 0.05356220524 | Q164: 4.173204129 | R164: 0.08969038454 | S164: 1.000060111 | T164: 0.01615282298 | U164: 25.7310896 | V164: -108.6073332 | W164: 71.3926668 | Y164: 1000000000 | Z164: 85124611.69 | AB164: 21.47048074 | AC164: -53.64201846 | AE164: 42.67813586 | AF164: -52.89532254 | AH164: 0 | AI164: 0
A165: 9279.4 | B165: 9.2794 | C165: 1.633847394 | D165: 0.9121432136 | E165: 1.000002719 | F165: 0.002332163359 | G165: 1 | H165: 0 | I165: 8209.999582 | J165: 1.570674524 | K165: 1.261866758 | L165: 0.6559371662 | M165: 1.000177296 | N165: 0.01882920749 | O165: 1.001452738 | P165: 0.05386987674 | Q165: 4.173395811 | R165: 0.0902038246 | S165: 1.000060805 | T165: 0.01624578399 | U165: 25.6683332 | V165: -108.6303543 | W165: 71.36964573 | Y165: 1000000000 | Z165: 86107264.36 | AB165: 21.43909186 | AC165: -53.48942415 | AE165: 42.6470236 | AF165: -53.05914825 | AH165: 0 | AI165: 0
A166: 9332.5 | B166: 9.3325 | C166: 1.639700711 | D166: 0.9149030718 | E166: 1.000002751 | F166: 0.002345508771 | G166: 1 | H166: 0 | I166: 8256.980095 | J166: 1.570675217 | K166: 1.26455759 | L166: 0.6586970879 | M166: 1.00017933 | N166: 0.01893692917 | O166: 1.0014694 | P166: 0.05417753804 | Q166: 4.173588585 | R166: 0.09071721756 | S166: 1.000061503 | T166: 0.01633874494 | U166: 25.60593134 | V166: -108.6529115 | W166: 71.34708847 | Y166: 1000000000 | Z166: 87095556.25 | AB166: 21.40801439 | AC166: -53.33750399 | AE166: 42.6159559 | AF166: -53.22183811 | AH166: 0 | AI166: 0
A167: 9386.85 | B167: 9.38685 | C167: 1.645704658 | D167: 0.9177075456 | E167: 1.000002783 | F167: 0.002359168341 | G167: 1 | H167: 0 | I167: 8305.066552 | J167: 1.570675918 | K167: 1.267321697 | L167: 0.6615098204 | M167: 1.000181425 | N167: 0.01904718622 | O167: 1.001486552 | P167: 0.05449243119 | Q167: 4.173787026 | R167: 0.091242647 | S167: 1.000062221 | T167: 0.01643389419 | U167: 25.54242427 | V167: -108.6755276 | W167: 71.32447236 | Y167: 1000000000 | Z167: 88112952.92 | AB167: 21.37652377 | AC167: -53.18270373 | AE167: 42.58420367 | AF167: -53.38719164 | AH167: 0 | AI167: 0
A168: 9441.2 | B168: 9.4412 | C168: 1.651721455 | D168: 0.9204916093 | E168: 1.000002815 | F168: 0.002372827909 | G168: 1 | H168: 0 | I168: 8353.153009 | J168: 1.570676612 | K168: 1.270095787 | L168: 0.6643102881 | M168: 1.000183532 | N168: 0.01915744281 | O168: 1.001503803 | P168: 0.05480731353 | Q168: 4.17398661 | R168: 0.09176802653 | S168: 1.000062944 | T168: 0.01652904337 | U168: 25.47928174 | V168: -108.6976743 | W168: 71.30232568 | Y168: 1000000000 | Z168: 89136257.44 | AB168: 21.34535119 | AC168: -53.0286057 | AE168: 42.55249944 | AF168: -53.55137575 | AH168: 0 | AI168: 0
A169: 9495.55 | B169: 9.49555 | C169: 1.657750961 | D169: 0.9232554421 | E169: 1.000002848 | F169: 0.002386487476 | G169: 1 | H169: 0 | I169: 8401.239467 | J169: 1.570677297 | K169: 1.272879795 | L169: 0.6670985274 | M169: 1.000185651 | N169: 0.01926769893 | O169: 1.001521153 | P169: 0.05512218499 | Q169: 4.174187336 | R169: 0.09229335588 | S169: 1.000063671 | T169: 0.0166241925 | U169: 25.41650033 | V169: -108.7193598 | W169: 71.28064024 | Y169: 1000000000 | Z169: 90165469.8 | AB169: 21.31449259 | AC169: -52.87520783 | AE169: 42.52084385 | AF169: -53.71440071 | AH169: 0 | AI169: 0
A170: 9549.9 | B170: 9.5499 | C170: 1.663793039 | D170: 0.925999222 | E170: 1.00000288 | F170: 0.002400147043 | G170: 1 | H170: 0 | I170: 8449.325924 | J170: 1.570677974 | K170: 1.275673655 | L170: 0.6698745751 | M170: 1.000187782 | N170: 0.01937795458 | O170: 1.001538603 | P170: 0.05543704551 | Q170: 4.174389206 | R170: 0.09281863478 | S170: 1.000064402 | T170: 0.01671934158 | U170: 25.35407665 | V170: -108.740592 | W170: 71.25940797 | Y170: 1000000000 | Z170: 91200590.01 | AB170: 21.28394398 | AC170: -52.72250801 | AE170: 42.48923749 | AF170: -53.87627672 | AH170: 0 | AI170: 0
A171: 9605.525 | B171: 9.605525 | C171: 1.669989733 | D171: 0.9287867885 | E171: 1.000002914 | F171: 0.002414127049 | G171: 1 | H171: 0 | I171: 8498.540444 | J171: 1.57067866 | K171: 1.278543191 | L171: 0.6727031613 | M171: 1.000189976 | N171: 0.01949079624 | O171: 1.001556565 | P171: 0.05575928097 | Q171: 4.174596993 | R171: 0.09335618369 | S171: 1.000065154 | T171: 0.0168167227 | U171: 25.29055551 | V171: -108.7618615 | W171: 71.23813851 | Y171: 1000000000 | Z171: 92266110.53 | AB171: 21.25299561 | AC171: -52.56694658 | AE171: 42.45694129 | AF171: -54.04077106 | AH171: 0 | AI171: 0
A172: 9661.15 | B172: 9.66115 | C172: 1.676199308 | D172: 0.931553723 | E172: 1.000002948 | F172: 0.002428107055 | G172: 1 | H172: 0 | I172: 8547.754964 | J172: 1.570679337 | K172: 1.28142291 | L172: 0.6755190566 | M172: 1.000192182 | N172: 0.0196036374 | O172: 1.001574631 | P172: 0.05608150484 | Q172: 4.174805977 | R172: 0.09389367916 | S172: 1.000065911 | T172: 0.01691410376 | U172: 25.22740206 | V172: -108.7826731 | W172: 71.21732694 | Y172: 1000000000 | Z172: 93337819.32 | AB172: 21.2223637 | AC172: -52.4121118 | AE172: 42.42469789 | AF172: -54.20408325 | AH172: 0 | AI172: 0
A173: 9716.775 | B173: 9.716775 | C173: 1.68242162 | D173: 0.9343002119 | E173: 1.000002982 | F173: 0.002442087059 | G173: 1 | H173: 0 | I173: 8596.969485 | J173: 1.570680007 | K173: 1.284312745 | L173: 0.678322302 | M173: 1.000194401 | N173: 0.01971647806 | O173: 1.001592801 | P173: 0.05640371705 | Q173: 4.175016157 | R173: 0.09443112088 | S173: 1.000066672 | T173: 0.01701148475 | U173: 25.16461282 | V173: -108.8030351 | W173: 71.19696492 | Y173: 1000000000 | Z173: 94415716.4 | AB173: 21.19204416 | AC173: -52.25800134 | AE173: 42.3925079 | AF173: -54.366224 | AH173: 0 | AI173: 0
A174: 9772.4 | B174: 9.7724 | C174: 1.68865653 | D174: 0.9370264398 | E174: 1.000003016 | F174: 0.002456067062 | G174: 1 | H174: 0 | I174: 8646.184005 | J174: 1.570680669 | K174: 1.287212626 | L174: 0.6811129387 | M174: 1.000196633 | N174: 0.01982931822 | O174: 1.001611075 | P174: 0.05672591754 | Q174: 4.175227533 | R174: 0.09496850857 | S174: 1.000067437 | T174: 0.01710886569 | U174: 25.10218436 | V174: -108.8229558 | W174: 71.17704423 | Y174: 1000000000 | Z174: 95499801.76 | AB174: 21.16203298 | AC174: -52.10461283 | AE174: 42.36037189 | AF174: -54.52720387 | AH174: 0 | AI174: 0
A175: 9829.3 | B175: 9.8293 | C175: 1.695047241 | D175: 0.9397943847 | E175: 1.000003051 | F175: 0.002470367505 | G175: 1 | H175: 0 | I175: 8696.526589 | J175: 1.570681338 | K175: 1.290189302 | L175: 0.6839545386 | M175: 1.000198929 | N175: 0.01994474431 | O175: 1.001629875 | P175: 0.05705549109 | Q175: 4.175444991 | R175: 0.09551815768 | S175: 1.000068225 | T175: 0.01720847866 | U175: 25.03869468 | V175: -108.8428849 | W175: 71.15711511 | Y175: 1000000000 | Z175: 96615138.49 | AB175: 21.13164884 | AC175: -51.94845294 | AE175: 42.32755569 | AF175: -54.69068349 | AH175: 0 | AI175: 0
A176: 9886.2 | B176: 9.8862 | C176: 1.701450842 | D176: 0.9425415157 | E176: 1.000003087 | F176: 0.002484667947 | G176: 1 | H176: 0 | I176: 8746.869172 | J176: 1.570682 | K176: 1.293176347 | L176: 0.6867830338 | M176: 1.000201239 | N176: 0.02006016986 | O176: 1.001648784 | P176: 0.05738505224 | Q176: 4.175663701 | R176: 0.09606774961 | S176: 1.000069017 | T176: 0.01730809157 | U176: 24.97557537 | V176: -108.8623693 | W176: 71.13763074 | Y176: 1000000000 | Z176: 97736950.44 | AB176: 21.10157907 | AC176: -51.79304342 | AE176: 42.29479713 | AF176: -54.85297054 | AH176: 0 | AI176: 0
A177: 9943.1 | B177: 9.9431 | C177: 1.707867186 | D177: 0.9452680255 | E177: 1.000003122 | F177: 0.002498968388 | G177: 1 | H177: 0 | I177: 8797.211756 | J177: 1.570682654 | K177: 1.29617369 | L177: 0.68959847 | M177: 1.000203562 | N177: 0.02017559488 | O177: 1.001667802 | P177: 0.05771460092 | Q177: 4.175883661 | R177: 0.09661728405 | S177: 1.000069814 | T177: 0.01740770442 | U177: 24.91282289 | V177: -108.8814173 | W177: 71.1185827 | Y177: 1000000000 | Z177: 98865237.61 | AB177: 21.07181958 | AC177: -51.63838166 | AE177: 42.26209676 | AF177: -55.01407609 | AH177: 0 | AI177: 0
A178: 10000 | B178: 10 | C178: 1.714296131 | D178: 0.9479741055 | E178: 1.000003158 | F178: 0.002513268828 | G178: 1 | H178: 0 | I178: 8847.554339 | J178: 1.570683301 | K178: 1.29918126 | L178: 0.692400893 | M178: 1.000205898 | N178: 0.02029101936 | O178: 1.001686929 | P178: 0.05804413704 | Q178: 4.176104872 | R178: 0.09716676067 | S178: 1.000070615 | T178: 0.01750731719 | U178: 24.85043374 | V178: -108.9000373 | W178: 71.09996265 | Y178: 1000000000 | Z178: 100000000 | AB178: 21.04236635 | AC178: -51.48446504 | AE178: 42.22945509 | AF178: -55.17401108 | AH178: 0 | AI178: 0
A179: 10058.25 | B179: 10.05825 | C179: 1.720890514 | D179: 0.9507234246 | E179: 1.000003195 | F179: 0.002527908557 | G179: 1 | H179: 0 | I179: 8899.091343 | J179: 1.570683956 | K179: 1.302270707 | L179: 0.6952563741 | M179: 1.000208304 | N179: 0.02040918182 | O179: 1.001706622 | P179: 0.05838147861 | Q179: 4.176332626 | R179: 0.09772921386 | S179: 1.00007144 | T179: 0.0176092933 | U179: 24.78693713 | V179: -108.9186644 | W179: 71.08133563 | Y179: 1000000000 | Z179: 101168393.1 | AB179: 21.01252743 | AC179: -51.32766574 | AE179: 42.19610034 | AF179: -55.33653947 | AH179: 0 | AI179: 0
A180: 10116.5 | B180: 10.1165 | C180: 1.727497805 | D180: 0.9534517331 | E180: 1.000003232 | F180: 0.002542548285 | G180: 1 | H180: 0 | I180: 8950.628346 | J180: 1.570684603 | K180: 1.305370722 | L180: 0.6980983159 | M180: 1.000210723 | N180: 0.02052734372 | O180: 1.001726429 | P180: 0.05871880687 | Q180: 4.176561691 | R180: 0.09829160578 | S180: 1.00007227 | T180: 0.01771126933 | U180: 24.72381404 | V180: -108.9368601 | W180: 71.06313988 | Y180: 1000000000 | Z180: 102343572.2 | AB180: 20.98300115 | AC180: -51.17164172 | AE180: 42.16280818 | AF180: -55.49786404 | AH180: 0 | AI180: 0
A181: 10174.75 | B181: 10.17475 | C181: 1.734117858 | D181: 0.9561592309 | E181: 1.00000327 | F181: 0.002557188011 | G181: 1 | H181: 0 | I181: 9002.165349 | J181: 1.570685242 | K181: 1.308481231 | L181: 0.7009267687 | M181: 1.000213156 | N181: 0.02064550504 | O181: 1.00174635 | P181: 0.05905612176 | Q181: 4.176792066 | R181: 0.0988539361 | S181: 1.000073105 | T181: 0.0178132453 | U181: 24.66106087 | V181: -108.9546331 | W181: 71.04536687 | Y181: 1000000000 | Z181: 103525537.6 | AB181: 20.95378338 | AC181: -51.0163901 | AE181: 42.12957913 | AF181: -55.65799623 | AH181: 0 | AI181: 0
A182: 10233 | B182: 10.233 | C182: 1.740750525 | D182: 0.9588461159 | E182: 1.000003307 | F182: 0.002571827737 | G182: 1 | H182: 0 | I182: 9053.702353 | J182: 1.570685875 | K182: 1.311602157 | L182: 0.7037417835 | M182: 1.000215604 | N182: 0.02076366578 | O182: 1.001766386 | P182: 0.05939342319 | Q182: 4.177023751 | R182: 0.09941620447 | S182: 1.000073944 | T182: 0.01791522119 | U182: 24.59867405 | V182: -108.9719918 | W182: 71.02800818 | Y182: 1000000000 | Z182: 104714289 | AB182: 20.92487008 | AC182: -50.86190797 | AE182: 42.09641368 | AF182: -55.81694739 | AH182: 0 | AI182: 0
A183: 10292.5 | B183: 10.2925 | C183: 1.747538399 | D183: 0.9615695822 | E183: 1.000003346 | F183: 0.002586781618 | G183: 1 | H183: 0 | I183: 9106.345301 | J183: 1.570686513 | K183: 1.314800735 | L183: 0.706603386 | M183: 1.000218118 | N183: 0.02088436157 | O183: 1.001786968 | P183: 0.05973794889 | Q183: 4.177261759 | R183: 0.09999047437 | S183: 1.000074807 | T183: 0.01801938534 | U183: 24.53532305 | V183: -108.9893039 | W183: 71.01069611 | Y183: 1000000000 | Z183: 105935556.2 | AB183: 20.89564654 | AC183: -50.70490217 | AE183: 42.06260267 | AF183: -55.97810189 | AH183: 0 | AI183: 0
A184: 10352 | B184: 10.352 | C184: 1.754339135 | D184: 0.9642719532 | E184: 1.000003385 | F184: 0.002601735499 | G184: 1 | H184: 0 | I184: 9158.988248 | J184: 1.570687144 | K184: 1.318010028 | L184: 0.7094510759 | M184: 1.000220647 | N184: 0.02100505674 | O184: 1.00180767 | P184: 0.06008246038 | Q184: 4.177501134 | R184: 0.1005646789 | S184: 1.000075674 | T184: 0.0181235494 | U184: 24.47234695 | V184: -109.006201 | W184: 70.99379897 | Y184: 1000000000 | Z184: 107163904 | AB184: 20.86673235 | AC184: -50.54869305 | AE184: 42.02885899 | AF184: -56.13804771 | AH184: 0 | AI184: 0
A185: 10411.5 | B185: 10.4115 | C185: 1.761152583 | D185: 0.9669534341 | E185: 1.000003424 | F185: 0.002616689378 | G185: 1 | H185: 0 | I185: 9211.631196 | J185: 1.570687768 | K185: 1.321229956 | L185: 0.7122849087 | M185: 1.00022319 | N185: 0.0211257513 | O185: 1.00182849 | P185: 0.0604269576 | Q185: 4.177741875 | R185: 0.1011388177 | S185: 1.000076547 | T185: 0.0182277134 | U185: 24.4097421 | V185: -109.0226918 | W185: 70.97730819 | Y185: 1000000000 | Z185: 108399332.2 | AB185: 20.83812341 | AC185: -50.39327743 | AE185: 41.9951831 | AF185: -56.29679662 | AH185: 0 | AI185: 0
A186: 10471 | B186: 10.471 | C186: 1.767978598 | D186: 0.9696142281 | E186: 1.000003463 | F186: 0.002631643256 | G186: 1 | H186: 0 | I186: 9264.274144 | J186: 1.570688385 | K186: 1.324460443 | L186: 0.71510494 | M186: 1.000225748 | N186: 0.02124644525 | O186: 1.00184943 | P186: 0.06077144045 | Q186: 4.177983982 | R186: 0.1017128905 | S186: 1.000077424 | T186: 0.01833187732 | U186: 24.3475049 | V186: -109.0387847 | W186: 70.96121533 | Y186: 1000000000 | Z186: 109641841 | AB186: 20.80981568 | AC186: -50.23865213 | AE186: 41.96157544 | AF186: -56.45436024 | AH186: 0 | AI186: 0
A187: 10532 | B187: 10.532 | C187: 1.774989589 | D187: 0.9723208358 | E187: 1.000003503 | F187: 0.002646974121 | G187: 1 | H187: 0 | I187: 9318.244224 | J187: 1.57068901 | K187: 1.327783252 | L187: 0.7179817956 | M187: 1.000228386 | N187: 0.02137018126 | O187: 1.001871021 | P187: 0.06112459276 | Q187: 4.17823361 | R187: 0.1023013667 | S187: 1.000078329 | T187: 0.01843866714 | U187: 24.28407666 | V187: -109.0548788 | W187: 70.94512116 | Y187: 1000000000 | Z187: 110923024 | AB187: 20.78110285 | AC187: -50.08094582 | AE187: 41.9271918 | AF187: -56.61467765 | AH187: 0 | AI187: 0
A188: 10593 | B188: 10.593 | C188: 1.782013481 | D188: 0.9750061266 | E188: 1.000003544 | F188: 0.002662304985 | G188: 1 | H188: 0 | I188: 9372.214305 | J188: 1.570689628 | K188: 1.331116995 | L188: 0.7208442647 | M188: 1.000231039 | N188: 0.02149391662 | O188: 1.001892736 | P188: 0.0614777298 | Q188: 4.178484672 | R188: 0.1028897726 | S188: 1.000079239 | T188: 0.01854545688 | U188: 24.22102733 | V188: -109.0705723 | W188: 70.92942769 | Y188: 1000000000 | Z188: 112211649 | AB188: 20.75269821 | AC188: -49.92406334 | AE188: 41.89288074 | AF188: -56.77377369 | AH188: 0 | AI188: 0
A189: 10654 | B189: 10.654 | C189: 1.789050122 | D189: 0.9776703131 | E189: 1.000003585 | F189: 0.002677635848 | G189: 1 | H189: 0 | I189: 9426.184386 | J189: 1.570690239 | K189: 1.33446159 | L189: 0.7236924085 | M189: 1.000233707 | N189: 0.02161765131 | O189: 1.001914577 | P189: 0.06183085149 | Q189: 4.17873717 | R189: 0.103478108 | S189: 1.000080154 | T189: 0.01865224654 | U189: 24.15835319 | V189: -109.0858738 | W189: 70.91412624 | Y189: 1000000000 | Z189: 113507716 | AB189: 20.72459763 | AC189: -49.7680012 | AE189: 41.8586427 | AF189: -56.93166053 | AH189: 0 | AI189: 0
A190: 10715 | B190: 10.715 | C190: 1.796099362 | D190: 0.9803136057 | E190: 1.000003626 | F190: 0.00269296671 | G190: 1 | H190: 0 | I190: 9480.154467 | J190: 1.570690843 | K190: 1.337816956 | L190: 0.7265262884 | M190: 1.00023639 | N190: 0.02174138535 | O190: 1.001936542 | P190: 0.06218395774 | Q190: 4.178991102 | R190: 0.1040663723 | S190: 1.000081075 | T190: 0.01875903612 | U190: 24.09605056 | V190: -109.1007917 | W190: 70.89920828 | Y190: 1000000000 | Z190: 114811225 | AB190: 20.69679703 | AC190: -49.61275589 | AE190: 41.82447805 | AF190: -57.08835024 | AH190: 0 | AI190: 0
A191: 10777.5 | B191: 10.7775 | C191: 1.803334857 | D191: 0.9830004442 | E191: 1.000003668 | F191: 0.002708674558 | G191: 1 | H191: 0 | I191: 9535.451681 | J191: 1.570691455 | K191: 1.341265918 | L191: 0.7294151241 | M191: 1.000239156 | N191: 0.02186816133 | O191: 1.001959178 | P191: 0.06254573083 | Q191: 4.179252765 | R191: 0.1046690281 | S191: 1.000082023 | T191: 0.01886845158 | U191: 24.03259743 | V191: -109.1156875 | W191: 70.88431247 | Y191: 1000000000 | Z191: 116154506.2 | AB191: 20.66861976 | AC191: -49.45453657 | AE191: 41.7895498 | AF191: -57.2476638 | AH191: 0 | AI191: 0
A192: 10840 | B192: 10.84 | C192: 1.810583266 | D192: 0.9856657891 | E192: 1.000003711 | F192: 0.002724382406 | G192: 1 | H192: 0 | I192: 9590.748895 | J192: 1.57069206 | K192: 1.344726016 | L192: 0.7322891172 | M192: 1.000241937 | N192: 0.02199493661 | O192: 1.001981944 | P192: 0.06290748752 | Q192: 4.179515934 | R192: 0.1052716086 | S192: 1.000082977 | T192: 0.01897786696 | U192: 23.96952663 | V192: -109.1301984 | W192: 70.86980157 | Y192: 1000000000 | Z192: 117505600 | AB192: 20.64074895 | AC192: -49.29716723 | AE192: 41.75469939 | AF192: -57.40574586 | AH192: 0 | AI192: 0
A193: 10902.5 | B193: 10.9025 | C193: 1.817844435 | D193: 0.9883098598 | E193: 1.000003754 | F193: 0.002740090252 | G193: 1 | H193: 0 | I193: 9646.046109 | J193: 1.570692657 | K193: 1.348197164 | L193: 0.7351483347 | M193: 1.000244735 | N193: 0.02212171119 | O193: 1.002004841 | P193: 0.06326922773 | Q193: 4.179780608 | R193: 0.1058741133 | S193: 1.000083937 | T193: 0.01908728226 | U193: 23.90683435 | V193: -109.1443332 | W193: 70.85566684 | Y193: 1000000000 | Z193: 118864506.2 | AB193: 20.61318043 | AC193: -49.14064403 | AE193: 41.71992717 | AF193: -57.562609 | AH193: 0 | AI193: 0
A194: 10965 | B194: 10.965 | C194: 1.825118212 | D194: 0.9909328736 | E194: 1.000003797 | F194: 0.002755798096 | G194: 1 | H194: 0 | I194: 9701.343323 | J194: 1.570693248 | K194: 1.351679277 | L194: 0.7379928438 | M194: 1.000247549 | N194: 0.02224848505 | O194: 1.00202787 | P194: 0.06363095136 | Q194: 4.180046787 | R194: 0.1064765417 | S194: 1.000084902 | T194: 0.01919669746 | U194: 23.84451685 | V194: -109.1581003 | W194: 70.84189973 | Y194: 1000000000 | Z194: 120231225 | AB194: 20.58591011 | AC194: -48.98496312 | AE194: 41.68523349 | AF194: -57.71826565 | AH194: 0 | AI194: 0
A195: 11028.75 | B195: 11.02875 | C195: 1.832550297 | D195: 0.9935868775 | E195: 1.000003842 | F195: 0.002771820096 | G195: 1 | H195: 0 | I195: 9757.746481 | J195: 1.570693844 | K195: 1.355242241 | L195: 0.7408791607 | M195: 1.000250435 | N195: 0.02237779365 | O195: 1.002051494 | P195: 0.06399989228 | Q195: 4.180319839 | R195: 0.1070909398 | S195: 1.000085892 | T195: 0.01930830088 | U195: 23.78133525 | V195: -109.1717728 | W195: 70.82822723 | Y195: 1000000000 | Z195: 121633326.6 | AB195: 20.5583974 | AC195: -48.82703233 | AE195: 41.64992718 | AF195: -57.87580528 | AH195: 0 | AI195: 0
A196: 11092.5 | B196: 11.0925 | C196: 1.839995185 | D196: 0.9962194229 | E196: 1.000003886 | F196: 0.002787842095 | G196: 1 | H196: 0 | I196: 9814.149639 | J196: 1.570694433 | K196: 1.358816436 | L196: 0.7437503172 | M196: 1.000253338 | N196: 0.02250710151 | O196: 1.002075255 | P196: 0.06436881576 | Q196: 4.180594456 | R196: 0.1077052577 | S196: 1.000086888 | T196: 0.01941990421 | U196: 23.71853582 | V196: -109.1850804 | W196: 70.81491963 | Y196: 1000000000 | Z196: 123043556.2 | AB196: 20.53118653 | AC196: -48.66996972 | AE196: 41.61470326 | AF196: -58.03211543 | AH196: 0 | AI196: 0
A197: 11156.25 | B197: 11.15625 | C197: 1.847452722 | D197: 0.9988307328 | E197: 1.000003931 | F197: 0.002803864092 | G197: 1 | H197: 0 | I197: 9870.552797 | J197: 1.570695015 | K197: 1.362401773 | L197: 0.7466063855 | M197: 1.000256258 | N197: 0.02263640861 | O197: 1.002099152 | P197: 0.06473772169 | Q197: 4.180870638 | R197: 0.1083194951 | S197: 1.00008789 | T197: 0.01953150744 | U197: 23.65611473 | V197: -109.1980317 | W197: 70.80196828 | Y197: 1000000000 | Z197: 124461914.1 | AB197: 20.50427334 | AC197: -48.51377117 | AE197: 41.57956201 | AF197: -58.18720887 | AH197: 0 | AI197: 0
A198: 11220 | B198: 11.22 | C198: 1.854922756 | D198: 1.001421028 | E198: 1.000003976 | F198: 0.002819886088 | G198: 1 | H198: 0 | I198: 9926.955956 | J198: 1.570695591 | K198: 1.365998165 | L198: 0.7494474379 | M198: 1.000259195 | N198: 0.02276571495 | O198: 1.002123185 | P198: 0.06510660998 | Q198: 4.181148384 | R198: 0.1089336514 | S198: 1.000088897 | T198: 0.01964311059 | U198: 23.59406819 | V198: -109.2106353 | W198: 70.7893647 | Y198: 1000000000 | Z198: 125888400 | AB198: 20.47765378 | AC198: -48.35843254 | AE198: 41.54450374 | AF198: -58.34109825 | AH198: 0 | AI198: 0
A199: 11285.5 | B199: 11.2855 | C199: 1.862610707 | D199: 1.004060771 | E199: 1.000004022 | F199: 0.002836347902 | G199: 1 | H199: 0 | I199: 9984.907436 | J199: 1.570696176 | K199: 1.369704705 | L199: 0.7523509166 | M199: 1.00026223 | N199: 0.02289857009 | O199: 1.00214802 | P199: 0.06548560613 | Q199: 4.181435383 | R199: 0.109564582 | S199: 1.000089938 | T199: 0.01975777725 | U199: 23.53070462 | V199: -109.2232314 | W199: 70.7767686 | Y199: 1000000000 | Z199: 127362510.2 | AB199: 20.45060509 | AC199: -48.199721 | AE199: 41.50856978 | AF199: -58.49797111 | AH199: 0 | AI199: 0
A200: 11351 | B200: 11.351 | C200: 1.87031153 | D200: 1.006678794 | E200: 1.000004069 | F200: 0.002852809714 | G200: 1 | H200: 0 | I200: 10042.85892 | J200: 1.570696754 | K200: 1.373422729 | L200: 0.7552386994 | M200: 1.000265282 | N200: 0.02303142442 | O200: 1.002172999 | P200: 0.06586458345 | Q200: 4.181724033 | R200: 0.1101954261 | S200: 1.000090985 | T200: 0.01987244381 | U200: 23.46772851 | V200: -109.235478 | W200: 70.76452195 | Y200: 1000000000 | Z200: 128845201 | AB200: 20.42385787 | AC200: -48.04190834 | AE200: 41.47272397 | AF200: -58.65359952 | AH200: 0 | AI200: 0
A201: 11416.5 | B201: 11.4165 | C201: 1.878025068 | D201: 1.00927533 | E201: 1.000004116 | F201: 0.002869271525 | G201: 1 | H201: 0 | I201: 10100.8104 | J201: 1.570697325 | K201: 1.377152144 | L201: 0.7581108655 | M201: 1.000268352 | N201: 0.02316427794 | O201: 1.002198122 | P201: 0.06624354182 | Q201: 4.182014333 | R201: 0.1108261833 | S201: 1.000092038 | T201: 0.01998711027 | U201: 23.40513592 | V201: -109.247384 | W201: 70.75261604 | Y201: 1000000000 | Z201: 130336472.2 | AB201: 20.39740791 | AC201: -47.88499003 | AE201: 41.43696656 | AF201: -58.80799674 | AH201: 0 | AI201: 0
A202: 11482 | B202: 11.482 | C202: 1.885751163 | D202: 1.011850606 | E202: 1.000004164 | F202: 0.002885733334 | G202: 1 | H202: 0 | I202: 10158.76188 | J202: 1.57069789 | K202: 1.380892859 | L202: 0.7609674941 | M202: 1.00027144 | N202: 0.02329713063 | O202: 1.002223389 | P202: 0.06662248113 | Q202: 4.182306284 | R202: 0.111456853 | S202: 1.000093097 | T202: 0.02010177663 | U202: 23.34292295 | V202: -109.2589577 | W202: 70.74104231 | Y202: 1000000000 | Z202: 131836324 | AB202: 20.37125109 | AC202: -47.72896152 | AE202: 41.40129779 | AF202: -58.96117589 | AH202: 0 | AI202: 0
... 433 more rows

Sheet Bode Plot Management (hidden)
J1: Single or dual output (MODE) | N1: 3.3V or 5V fixed (FB1/2)
A2: =CHOOSE(BODE_PLOT_TYPE, "BODE_PLOT_Ch1", "BODE_PLOT_Ch2") ->  | J2: With/without dither (DITH) | N2: With/without VOUT connected to VCCX
J3: FPWM or DEM (DEMB)
J4: Shunt or inductor DCR current sensing
F6: =INDIRECT(A2) -> 

Sheet Efficiency Calculations (hidden)
A1: BUCK CONTROLLER POWER DESIGN TOOL
H2: =AV19 -> 0.7802427646 | I2: 10% load
H3: =AV59 -> 0.8614018812 | I3: 50% load | AP3: =IF(MODE=1, (Qg_Q1+Qg_Q2)*Fsw*Vin, (Qg_Q1+Qg_Q2+Qg_Q3+Qg_Q4)*Fsw*Vin) -> 0.18744
H4: =AV109 -> 0.8625625935 | I4: 100% load | AO4: I_VCC | AP4: =(Qg_Q1+Qg_Q2)*Fsw*1000 -> 15.62 | AQ4: mA | AR4: =AP4*5/1000 -> 0.0781
A6: Enter the values of your design and MOSFET datasheet specifications below. Note that thermal resistance (θJA) will change when components are placed on the PCB
G7: Operating Point Condtions | R7: Filter Inductor | V7: Cout | Y7: Cin | AB7: High-side BUCK "Control" MOSFET Losses | AH7: Low-side BUCK "Sync" MOSFET Losses | AL7: External Diode | AM7: Diode/FET | AN7: Sense Rs | AO7: Controller IC Losses | AT7: RESULTS | AZ7: Consolidated Buck/Boost Efficiency & Losses
A8: Input Parameters | G8: Step | H8: Vin | I8: Mode | J8: Iout | K8: Iout/ phase | L8: Iin | M8: Duty Cycle BUCK Leg | N8: Ripple Current pk-pk | O8: Peak Inductor Current | P8: Valley Inductor Current | Q8: SW node voltage at Q1 turn-on | R8: Irms Lf | S8: DCR Loss | T8: Core Loss | U8: Total Inductor Loss | V8: Irms Cout | W8: Cout ESR Loss | X8: Total Cout Loss | Y8: Irms Cin | Z8: Cin ESR Loss | AA8: Total Cin Loss | AB8: Irms | AC8: RDS(on) Loss | AD8: Transition Loss (not including capacitive loss) | AE8: MOSFET Output Capacitance Loss | AF8: Dead Time Loss | AG8: Total Control MOSFET Loss | AH8: Irms | AI8: RDS(on) Loss | AJ8: Deadtime Loss | AK8: Total Sync MOSFET Loss | AL8: Deadtime Loss | AM8: Reverse Recovery Loss | AN8: Isense Shunt Loss | AO8: IQ Loss | AP8: Switching Current Loss | AQ8: Switching Current Diss | AR8: LDO Loss Saved from Gate Drive Current (ext VCC) | AS8: Total IC Loss | AT8: Total Loss | AU8: Pout | AV8: EFF, h | AW8: =IF(Vin>Vout, "High-side MOSFET Temp Rise", "Boost ''CONTROL'' MOSFET Temp Rise") -> High-side MOSFET Temp Rise | AX8: =IF(Vin>Vout, "Low-side MOSFET Temp Rise", "Boost ''SYNC'' MOSFET Temp Rise") -> Low-side MOSFET Temp Rise | AZ8: h | BA8: Inductor Cu & Core Loss | BB8: Total MOSFET Loss | BC8: Control MOSFET Loss | BD8: SYNC MOSFET Loss | BE8: Shunt Loss | BF8: FETs+IC Losses | BG8: Temp rise
A9: Design | B9: Input Value | C9: Units | D9: Description | G9: 0 | H9: =Vin -> 12 | I9: =MODE -> 1 | J9: 0 | K9: =Iout*G9/100/Number_of_Phases -> 0 | L9: =Vout*K9/(Vin*Efficiency) -> 0 | M9: =(Vout+(Rdson2+Rs+Rdcr)*K9)/(Vin+(Rs+Rdson2-Rdson1)*K9) -> 0.275 | N9: =(Vin-(Rdson1+Rdcr)*K9-Vout)*M9/(Fsw*Lf) -> 2.313829787 | O9: =K9+N9/2 -> 1.156914894 | P9: =K9-N9/2 -> -1.156914894 | Q9: =IF(MIN(Vin, -P9/(Coss_Q1+Coss_Q2)*0.00000002)<0, 0, MIN(Vin, -P9/(Coss_Q1+Coss_Q2)*0.00000002)) -> 12 | R9: =SQRT(K9^2+(N9^2)/12) -> 0.6679451253 | S9: =R9^2*Rdcr -> 0.001561527416 | T9: =Core_Loss_Ch1 -> 0.1 | U9: =(T9+S9*(1+Ltc*(Ta-25)))/(1-S9*Ltc*ThetaCa) -> 0.1015742163 | V9: =N9/SQRT(12) -> 0.6679451253 | W9: =RCoutEsr*V9^2 -> 0.0004461506904 | X9: =W9 -> 0.0004461506904 | Y9: =SQRT(M9*(1-M9))*SQRT(K9^2+(N9^2)/12) -> 0.298247035 | Z9: =RCinEsr*Y9^2 -> 8.895129389e-05 | AA9: =Z9 -> 8.895129389e-05 | AB9: =SQRT(M9)*SQRT(K9^2+(N9^2)/12) -> 0.3502733787 | AC9: =Rdson1*AB9^2 -> 0.002944594556 | AD9: =(Vin*K9/2)*Fsw*(Tr_buck+Tf_buck) -> 0 | AE9: =(0.5*Coss_Q1*(Vin-Q9)^2-0.5*Coss_Q2*(Vin-Q9)^2+(Qoss_Q2*(Vin-Q9)/Vin)*Vin)*Fsw -> 0 | AF9: =IF(K9>N9/2,0,ABS(K9-N9/2)*Vsd_Q1*Deadtime*Fsw) -> 0.02850638298 | AG9: =(AF9+AE9+AD9+AC9*(1+RdsonTopTc*Ta-RdsonTopTc*25))/(1-AC9*RdsonTopTc*ThetaJA_Q1) -> 0.03145653514 | AH9: =SQRT((1-M9))*SQRT(K9^2+(N9^2)/12) -> 0.5687347805 | AI9: =Rdson2*AH9^2 -> 0.005822266509 | AJ9: =IF(K9<N9/2,Deadtime*Fsw*IF(VfdSky_Q2>0,0,Vsd_Q2)*(K9+N9/2),2*Deadtime*Fsw*IF(VfdSky_Q2>0,0,Vsd_Q2)*K9) -> 0.02850638298 | AK9: =(AJ9+AI9*(1+RdsonBotTc*Ta-RdsonBotTc*25))/(1-AI9*RdsonBotTc*ThetaJA_Q2) -> 0.03434064591 | AL9: =2*Deadtime*Fsw*IF(VfdSky_Q2>0,VfdSky_Q2,Vsd_Q2)*K9 -> 0 | AM9: =IF(QrrSky_Q2>0,QrrSky_Q2,Qrr_Q2*K9/(Iout/Number_of_Phases))*Fsw*Vin -> 0 | AN9: =Rs*R9^2 -> 0.002230753452 | AO9: =Iq*Vin -> 2.64e-05 | AP9: =IF(Ext_VCC=1, (Qg_Q1+Qg_Q2)*Fsw*VCC, (Qg_Q1+Qg_Q2)*Fsw*Vout) -> 0.0781 | AQ9: =(Vin-VCC)*Fsw*(Qg_Q1+Qg_Q2)+(RdsonDRT+RdsonDRT2)*Fsw*Qg_Q1*VCC/(RdsonDRT+2*Rgate1+RdsonDRT2)+(RdsonDRB+RdsonDRB2)*Fsw*Qg_Q2*VCC/(RdsonDRB+2*Rgate2+RdsonDRB2) -> 0.1241835294 | AR9: =(Qg_Q1+Qg_Q2)*Fsw*(Vin-VCC) -> 0.10934 | AS9: =SUM(AO9:AP9) -> 0.0781264 | AT9: =SUM(U9,X9,AA9,AG9,AK9,AL9,AM9,AS9,AN9) -> 0.2482636528 | AU9: =Vout*K9 -> 0 | AV9: =AU9/(AU9+AT9) -> 0 | AW9: =ThetaJA_Q1*BC9 -> 0.4718480271 | AX9: =ThetaJA_Q2*BD9 -> 0.5151096887 | AZ9: =AV9*100 -> 0 | BA9: =U9 -> 0.1015742163 | BB9: =AG9+AK9+AM9 -> 0.06579718105 | BC9: =AG9+AM9*0.66 -> 0.03145653514 | BD9: =AK9+AM9*0.33 -> 0.03434064591 | BE9: =AN9 -> 0.002230753452 | BF9: =BB9+AS9 -> 0.1439235811 | BG9: =BF9*$B$63 -> 2.820902189
G10: 1 | H10: 12 | I10: 1 | J10: =Iout*G10/100 -> 0.04 | K10: 0.04 | L10: 0.01222222222 | M10: 0.2750892503 | N10: 2.314288085 | O10: =K10+N10/2 -> 1.197144042 | P10: =K10-N10/2 -> -1.117144042 | Q10: 12 | R10: =SQRT(K10^2+(N10^2)/12) -> 0.669273819 | S10: 0.001567746057 | T10: 0.1 | U10: 0.1015804862 | V10: =N10/SQRT(12) -> 0.6680774243 | W10: 0.0004463274449 | X10: =W10 -> 0.0004463274449 | Y10: =SQRT(M10*(1-M10))*SQRT(K10^2+(N10^2)/12) -> 0.2988704079 | Z10: 8.93235207e-05 | AA10: =Z10 -> 8.93235207e-05 | AB10: =SQRT(M10)*SQRT(K10^2+(N10^2)/12) -> 0.3510271001 | AC10: 0.0029572806 | AD10: 0.001988206789 | AE10: 0 | AF10: 0.0275264292 | AG10: 0.03247767933 | AH10: 0.569831045 | AI10: 0.005844733557 | AJ10: 0.0294976292 | AK10: 0.03535476111 | AL10: 0.0019712 | AM10: 0.00792 | AN10: 0.002239637224 | AO10: 2.64e-05 | AP10: 0.0781 | AQ10: 0.1241835294 | AR10: 0.10934 | AS10: =SUM(AO10:AP10) -> 0.0781264 | AT10: 0.2602058149 | AU10: 0.132 | AV10: =AU10/(AU10+AT10) -> 0.3365579882 | AW10: 0.5655731899 | AX10: 0.5695254166 | AZ10: =AV10*100 -> 33.65579882 | BA10: 0.1015804862 | BB10: 0.07575244044 | BC10: 0.03770487933 | BD10: 0.03796836111 | BE10: 0.002239637224 | BF10: =BB10+AS10 -> 0.1538788404 | BG10: =BF10*$B$63 -> 3.016025273
A11: Vin | B11: =Vin -> 12 | C11: V | D11: Vin | G11: 2 | H11: 12 | I11: 1 | J11: 0.08 | K11: 0.08 | L11: 0.02444444444 | M11: 0.2751785012 | N11: 2.314746197 | O11: 1.237373098 | P11: -1.077373098 | Q11: 12 | R11: 0.6729815473 | S11: 0.001585164571 | T11: 0.1 | U11: 0.1015980485 | V11: 0.66820967 | W11: 0.000446504163 | X11: 0.000446504163 | Y11: 0.3005563722 | Z11: 9.033413284e-05 | AA11: 9.033413284e-05 | AB11: 0.3530290197 | AC11: 0.00299110773 | AD11: 0.003976413579 | AE11: 0 | AF11: 0.02654647315 | AG11: 0.03352001017 | AH11: 0.5729525934 | AI11: 0.005908944137 | AJ11: 0.03048887315 | AK11: 0.03641072622 | AL11: 0.0039424 | AM11: 0.01584 | AN11: 0.002264520815 | AO11: 2.64e-05 | AP11: 0.0781 | AQ11: 0.1241835294 | AR11: 0.10934 | AS11: 0.0781264 | AT11: 0.272238944 | AU11: 0.264 | AV11: 0.4923178425 | AW11: 0.6596161526 | AX11: 0.6245688933 | AZ11: 49.23178425 | BA11: 0.1015980485 | BB11: 0.08577073639 | BC11: 0.04397441017 | BD11: 0.04163792622 | BE11: 0.002264520815 | BF11: 0.1638971364 | BG11: =BF11*$B$63 -> 3.212383873
A12: Vout | B12: =Vout -> 3.3 | C12: V | D12: Vout | G12: 3 | H12: 12 | I12: 1 | J12: 0.12 | K12: 0.12 | L12: 0.03666666667 | M12: 0.2752677527 | N12: 2.315204124 | O12: 1.277602062 | P12: -1.037602062 | Q12: 12 | R12: 0.6790293402 | S12: 0.001613782957 | T12: 0.1 | U12: 0.1016269033 | V12: 0.6683418622 | W12: 0.0004466808448 | X12: 0.0004466808448 | Y12: 0.3032878425 | Z12: 9.198351542e-05 | AA12: 9.198351542e-05 | AB12: 0.3562592988 | AC12: 0.003046096511 | AD12: 0.005964620368 | AE12: 0 | AF12: 0.02556651481 | AG12: 0.03458355238 | AH12: 0.5780658759 | AI12: 0.006014882824 | AJ12: 0.03148011481 | AK12: 0.0375085342 | AL12: 0.0059136 | AM12: 0.02376 | AN12: 0.002305404224 | AO12: 2.64e-05 | AP12: 0.0781 | AQ12: 0.1241835294 | AR12: 0.10934 | AS12: 0.0781264 | AT12: 0.2843630584 | AU12: 0.396 | AV12: 0.5820421834 | AW12: 0.7539772857 | AX12: 0.6802400131 | AZ12: 58.20421834 | BA12: 0.1016269033 | BB12: 0.09585208659 | BC12: 0.05026515238 | BD12: 0.0453493342 | BE12: 0.002305404224 | BF12: 0.1739784866 | BG12: 3.409978337
A13: Fsw | B13: =Fsw/1000 -> 2200 | C13: kHz | D13: Switching Frequency | G13: 4 | H13: 12 | I13: 1 | J13: 0.16 | K13: 0.16 | L13: 0.04888888889 | M13: 0.2753570048 | N13: 2.315661867 | O13: 1.317830934 | P13: -0.9978309336 | Q13: 12 | R13: 0.6873554322 | S13: 0.001653601216 | T13: 0.1 | U13: 0.1016670506 | V13: 0.6684740012 | W13: 0.0004468574902 | X13: 0.0004468574902 | Y13: 0.3070375436 | Z13: 9.427205321e-05 | AA13: 9.427205321e-05 | AB13: 0.3606861231 | AC13: 0.003122267505 | AD13: 0.007952827157 | AE13: 0 | AF13: 0.0245865542 | AG13: 0.03566833083 | AH13: 0.5851179461 | AI13: 0.006162534195 | AJ13: 0.0324713542 | AK13: 0.03864817864 | AL13: 0.0078848 | AM13: 0.03168 | AN13: 0.002362287451 | AO13: 2.64e-05 | AP13: 0.0781 | AQ13: 0.1241835294 | AR13: 0.10934 | AS13: 0.0781264 | AT13: 0.296578177 | AU13: 0.528 | AV13: 0.6403273998 | AW13: 0.8486569624 | AX13: 0.7365386796 | AZ13: 64.03273998 | BA13: 0.1016670506 | BB13: 0.1059965095 | BC13: 0.05657713083 | BD13: 0.04910257864 | BE13: 0.002362287451 | BF13: 0.1841229095 | BG13: 3.608809026
A14: Iout | B14: =Iout -> 4 | C14: A | D14: Max Output Current | G14: 5 | H14: 12 | I14: 1 | J14: 0.2 | K14: 0.2 | L14: 0.06111111111 | M14: 0.2754462574 | N14: 2.316119425 | O14: 1.358059712 | P14: -0.9580597124 | Q14: 12 | R14: 0.6978782839 | S14: 0.001704619347 | T14: 0.1 | U14: 0.1017184907 | V14: 0.6686060867 | W14: 0.0004470340992 | X14: 0.0004470340992 | Y14: 0.311769355 | Z14: 9.72001307e-05 | AA14: 9.72001307e-05 | AB14: 0.3662672793 | AC14: 0.003219641277 | AD14: 0.009941033947 | AE14: 0 | AF14: 0.02360659131 | AG14: 0.03677437055 | AH14: 0.5940390385 | AI14: 0.006351882828 | AJ14: 0.03346259131 | AK14: 0.03982965374 | AL14: 0.009856 | AM14: 0.0396 | AN14: 0.002435170496 | AO14: 2.64e-05 | AP14: 0.0781 | AQ14: 0.1241835294 | AR14: 0.10934 | AS14: 0.0781264 | AT14: 0.3088843197 | AU14: 0.66 | AV14: 0.681195873 | AW14: 0.9436555583 | AX14: 0.7934648061 | AZ14: 68.1195873 | BA14: 0.1017184907 | BB14: 0.1162040243 | BC14: 0.06291037055 | BD14: 0.05289765374 | BE14: 0.002435170496 | BF14: 0.1943304243 | BG14: 3.808876316
A15: Ta | B15: =Ta -> 25 | C15: °C | D15: Ambient Temperature | G15: 6 | H15: 12 | I15: 1 | J15: 0.24 | K15: 0.24 | L15: 0.07333333333 | M15: 0.2755355107 | N15: 2.316576798 | O15: 1.398288399 | P15: -0.9182883988 | Q15: 12 | R15: 0.7105002967 | S15: 0.001766837351 | T15: 0.1 | U15: 0.1017812238 | V15: 0.6687381189 | W15: 0.0004472106716 | X15: 0.0004472106716 | Y15: 0.3174399661 | Z15: 0.0001007681321 | AA15: 0.0001007681321 | AB15: 0.3729520964 | AC15: 0.003338238389 | AD15: 0.01192924074 | AE15: 0 | AF15: 0.02262662615 | AG15: 0.03790169677 | AH15: 0.6047457362 | AI15: 0.006582913297 | AJ15: 0.03445382615 | AK15: 0.04105295433 | AL15: 0.0118272 | AM15: 0.04752 | AN15: 0.002524053358 | AO15: 2.64e-05 | AP15: 0.0781 | AQ15: 0.1241835294 | AR15: 0.10934 | AS15: 0.0781264 | AT15: 0.3212815071 | AU15: 0.792 | AV15: 0.711410362 | AW15: 1.038973452 | AX15: 0.8510183149 | AZ15: 71.1410362 | BA15: 0.1017812238 | BB15: 0.1264746511 | BC15: 0.06926489677 | BD15: 0.05673455433 | BE15: 0.002524053358 | BF15: 0.2046010511 | BG15: 4.010180601
A16: Vcc | B16: =VCC -> 5 | C16: V | D16: Subregulated VCC Voltage | G16: 7 | H16: 12 | I16: 1 | J16: 0.28 | K16: 0.28 | L16: 0.08555555556 | M16: 0.2756247646 | N16: 2.317033986 | O16: 1.438516993 | P16: -0.8785169928 | Q16: 12 | R16: 0.7251118586 | S16: 0.001840255226 | T16: 0.1 | U16: 0.1018552504 | V16: 0.6688700977 | W16: 0.0004473872075 | X16: 0.0004473872075 | Y16: 0.3240006809 | Z16: 0.0001049764412 | AA16: 0.0001049764412 | AB16: 0.3806835632 | AC16: 0.003478079407 | AD16: 0.01391744753 | AE16: 0 | AF16: 0.0216466587 | AG16: 0.03905033485 | AH16: 0.6171444177 | AI16: 0.00685561018 | AJ16: 0.0354450587 | AK16: 0.04231807586 | AL16: 0.0137984 | AM16: 0.05544 | AN16: 0.002628936038 | AO16: 2.64e-05 | AP16: 0.0781 | AQ16: 0.1241835294 | AR16: 0.10934 | AS16: 0.0781264 | AT16: 0.3337697608 | AU16: 0.924 | AV16: 0.7346336578 | AW16: 1.134611023 | AX16: 0.9091991379 | AZ16: 73.46336578 | BA16: 0.1018552504 | BB16: 0.1368084107 | BC16: 0.07564073485 | BD16: 0.06061327586 | BE16: 0.002628936038 | BF16: 0.2149348107 | BG16: 4.21272229
A17: Components | B17: Input Value | C17: Units | D17: Description | G17: 8 | H17: 12 | I17: 1 | J17: 0.32 | K17: 0.32 | L17: 0.09777777778 | M17: 0.275714019 | N17: 2.317490989 | O17: 1.478745494 | P17: -0.8387454943 | Q17: 12 | R17: 0.7415953795 | S17: 0.001924872974 | T17: 0.1 | U17: 0.1019405708 | V17: 0.6690020231 | W17: 0.0004475637069 | X17: 0.0004475637069 | Y17: 0.3313992181 | Z17: 0.0001098254417 | AA17: 0.0001098254417 | AB17: 0.3894004416 | AC17: 0.003639184895 | AD17: 0.01590565431 | AE17: 0 | AF17: 0.02066668898 | AG17: 0.04022031034 | AH17: 0.6311346948 | AI17: 0.007169958053 | AJ17: 0.03643628898 | AK17: 0.0436250144 | AL17: 0.0157696 | AM17: 0.06336 | AN17: 0.002749818534 | AO17: 2.64e-05 | AP17: 0.0781 | AQ17: 0.1241835294 | AR17: 0.10934 | AS17: 0.0781264 | AT17: 0.3463491032 | AU17: 1.056 | AV17: 0.7530221951 | AW17: 1.230568655 | AX17: 0.9680072161 | AZ17: 75.30221951 | BA17: 0.1019405708 | BB17: 0.1472053247 | BC17: 0.08203791034 | BD17: 0.0645338144 | BE17: 0.002749818534 | BF17: 0.2253317247 | BG17: 4.416501805
A18: L | B18: =Lf*1000000 -> 0.47 | C18: uH | D18: Filter Inductance | G18: 9 | H18: 12 | I18: 1 | J18: 0.36 | K18: 0.36 | L18: 0.11 | M18: 0.2758032741 | N18: 2.317947807 | O18: 1.518973903 | P18: -0.7989739034 | Q18: 12 | R18: 0.7598290397 | S18: 0.002020690594 | T18: 0.1 | U18: 0.1020371854 | V18: 0.6691338951 | W18: 0.0004477401696 | X18: 0.0004477401696 | Y18: 0.3395813847 | Z18: 0.0001153155169 | AA18: 0.0001153155169 | AB18: 0.3990392325 | AC18: 0.003821575417 | AD18: 0.0178938611 | AE18: 0 | AF18: 0.01968671698 | AG18: 0.04141164897 | AH18: 0.6466126047 | AI18: 0.00752594149 | AJ18: 0.03742751698 | AK18: 0.04497376667 | AL18: 0.0177408 | AM18: 0.07128 | AN18: 0.002886700848 | AO18: 2.64e-05 | AP18: 0.0781 | AQ18: 0.1241835294 | AR18: 0.10934 | AS18: 0.0781264 | AT18: 0.3590195576 | AU18: 1.188 | AV18: 0.767928236 | AW18: 1.326846734 | AX18: 1.0274425 | AZ18: 76.7928236 | BA18: 0.1020371854 | BB18: 0.1576654156 | BC18: 0.08845644897 | BD18: 0.06849616667 | BE18: 0.002886700848 | BF18: 0.2357918156 | BG18: 4.621519586
A19: Rdcr | B19: =Rdcr*1000 -> 3.5 | C19: mW | D19: Inductor DCR at 25°C | G19: 10 | H19: 12 | I19: 1 | J19: 0.4 | K19: 0.4 | L19: 0.1222222222 | M19: 0.2758925298 | N19: 2.31840444 | O19: 1.55920222 | P19: -0.75920222 | Q19: 12 | R19: 0.7796900638 | S19: 0.002127708085 | T19: 0.1 | U19: 0.1021450949 | V19: 0.6692657138 | W19: 0.0004479165956 | X19: 0.0004479165956 | Y19: 0.3484925388 | Z19: 0.0001214470496 | AA19: 0.0001214470496 | AB19: 0.4095358927 | AC19: 0.004025271539 | AD19: 0.01988206789 | AE19: 0 | AF19: 0.0187067427 | AG19: 0.04262437662 | AH19: 0.6634733967 | AI19: 0.007923545067 | AJ19: 0.0384187427 | AK19: 0.04636432996 | AL19: 0.019712 | AM19: 0.0792 | AN19: 0.003039582978 | AO19: 2.64e-05 | AP19: 0.0781 | AQ19: 0.1241835294 | AR19: 0.10934 | AS19: 0.0781264 | AT19: 0.3717811481 | AU19: 1.32 | AV19: 0.7802427646 | AW19: 1.423445649 | AX19: 1.087504949 | AZ19: 78.02427646 | BA19: 0.1021450949 | BB19: 0.1681887066 | BC19: 0.09489637662 | BD19: 0.07250032996 | BE19: 0.003039582978 | BF19: 0.2463151066 | BG19: 4.827776089
A20: LTc | B20: =Ltc*1000000 -> 4000 | C20: ppm | D20: Inductor Series Resistance Temp Co | G20: 11 | H20: 12 | I20: 1 | J20: 0.44 | K20: 0.44 | L20: 0.1344444444 | M20: 0.275981786 | N20: 2.318860888 | O20: 1.599430444 | P20: -0.7194304442 | Q20: 12 | R20: 0.8010574168 | S20: 0.002245925447 | T20: 0.1 | U20: 0.1022642997 | V20: 0.6693974791 | W20: 0.000448092985 | X20: 0.000448092985 | Y20: 0.358078794 | Z20: 0.0001282204227 | AA20: 0.0001282204227 | AB20: 0.420827252 | AC20: 0.004250293825 | AD20: 0.02187027468 | AE20: 0 | AF20: 0.01772676614 | AG20: 0.04385851935 | AH20: 0.6816138268 | AI20: 0.00836275336 | AJ20: 0.03940996614 | AK20: 0.04779670223 | AL20: 0.0216832 | AM20: 0.08712 | AN20: 0.003208464925 | AO20: 2.64e-05 | AP20: 0.0781 | AQ20: 0.1241835294 | AR20: 0.10934 | AS20: 0.0781264 | AT20: 0.3846338996 | AU20: 1.452 | AV20: 0.7905767177 | AW20: 1.52036579 | AX20: 1.148194533 | AZ20: 79.05767177 | BA20: 0.1022642997 | BB20: 0.1787752216 | BC20: 0.1013577193 | BD20: 0.07654630223 | BE20: 0.003208464925 | BF20: 0.2569016216 | BG20: 5.035271783
A21: ThetaCa | B21: =ThetaCa -> 20 | C21: °C/W | D21: Core to Ambient Thermal Resistance | G21: 12 | H21: 12 | I21: 1 | J21: 0.48 | K21: 0.48 | L21: 0.1466666667 | M21: 0.2760710428 | N21: 2.319317152 | O21: 1.639658576 | P21: -0.6796585759 | Q21: 12 | R21: 0.8238138974 | S21: 0.002375342681 | T21: 0.1 | U21: 0.1023948005 | V21: 0.669529191 | W21: 0.0004482693376 | X21: 0.0004482693376 | Y21: 0.3682879558 | Z21: 0.0001356360184 | AA21: 0.0001356360184 | AB21: 0.432852113 | AC21: 0.004496662842 | AD21: 0.02385848147 | AE21: 0 | AF21: 0.01674678731 | AG21: 0.0451141034 | AH21: 0.7009339382 | AI21: 0.008843550944 | AJ21: 0.04040118731 | AK21: 0.04927088203 | AL21: 0.0236544 | AM21: 0.09504 | AN21: 0.003393346688 | AO21: 2.64e-05 | AP21: 0.0781 | AQ21: 0.1241835294 | AR21: 0.10934 | AS21: 0.0781264 | AT21: 0.397577838 | AU21: 1.584 | AV21: 0.7993629973 | AW21: 1.617607551 | AX21: 1.20951123 | AZ21: 79.93629973 | BA21: 0.1023948005 | BB21: 0.1894249854 | BC21: 0.1078405034 | BD21: 0.08063408203 | BE21: 0.003393346688 | BF21: 0.2675513854 | BG21: 5.244007154
A22: Cin | B22: =Cin*1000000 -> 44 | C22: μF | D22: Input Capacitance | G22: 13 | H22: 12 | I22: 1 | J22: 0.52 | K22: 0.52 | L22: 0.1588888889 | M22: 0.2761603003 | N22: 2.31977323 | O22: 1.679886615 | P22: -0.6398866152 | Q22: 12 | R22: 0.8478476593 | S22: 0.002515959787 | T22: 0.1 | U22: 0.102536598 | V22: 0.6696608495 | W22: 0.0004484456533 | X22: 0.0004484456533 | Y22: 0.3790702032 | Z22: 0.0001436942189 | AA22: 0.0001436942189 | AB22: 0.4455520525 | AC22: 0.004764399156 | AD22: 0.02584668826 | AE22: 0 | AF22: 0.0157668062 | AG22: 0.04639115517 | AH22: 0.7213383546 | AI22: 0.009365922393 | AJ22: 0.0413924062 | AK22: 0.05078686854 | AL22: 0.0256256 | AM22: 0.10296 | AN22: 0.003594228267 | AO22: 2.64e-05 | AP22: 0.0781 | AQ22: 0.1241835294 | AR22: 0.10934 | AS22: 0.0781264 | AT22: 0.4106129899 | AU22: 1.716 | AV22: 0.8069169182 | AW22: 1.715171328 | AX22: 1.271455028 | AZ22: 80.69169182 | BA22: 0.102536598 | BB22: 0.2001380237 | BC22: 0.1143447552 | BD22: 0.08476366854 | BE22: 0.003594228267 | BF22: 0.2782644237 | BG22: 5.453982705
A23: RCinEsr | B23: =RCinEsr*1000 -> 1 | C23: mW | D23: Input Capacitor ESR | G23: 14 | H23: 12 | I23: 1 | J23: 0.56 | K23: 0.56 | L23: 0.1711111111 | M23: 0.2762495583 | N23: 2.320229124 | O23: 1.720114562 | P23: -0.600114562 | Q23: 12 | R23: 0.8730532242 | S23: 0.002667776763 | T23: 0.1 | U23: 0.102689693 | V23: 0.6697924546 | W23: 0.0004486219323 | X23: 0.0004486219323 | Y23: 0.3903785419 | Z23: 0.000152395406 | AA23: 0.000152395406 | AB23: 0.4588719561 | AC23: 0.005053523331 | AD23: 0.02783489505 | AE23: 0 | AF23: 0.01478682281 | AG23: 0.04768970125 | AH23: 0.7427371407 | AI23: 0.009929852283 | AJ23: 0.04238362281 | AK23: 0.05234466157 | AL23: 0.0275968 | AM23: 0.11088 | AN23: 0.003811109661 | AO23: 2.64e-05 | AP23: 0.0781 | AQ23: 0.1241835294 | AR23: 0.10934 | AS23: 0.0781264 | AT23: 0.4237393828 | AU23: 1.848 | AV23: 0.8134735938 | AW23: 1.813057519 | AX23: 1.334025924 | AZ23: 81.34735938 | BA23: 0.102689693 | BB23: 0.2109143628 | BC23: 0.1208705012 | BD23: 0.08893506157 | BE23: 0.003811109661 | BF23: 0.2890407628 | BG23: 5.665198951
A24: Cout | B24: =Cout*1000000 -> 40 | C24: μF | D24: Output Capcitance | G24: 15 | H24: 12 | I24: 1 | J24: 0.6 | K24: 0.6 | L24: 0.1833333333 | M24: 0.2763388169 | N24: 2.320684833 | O24: 1.760342416 | P24: -0.5603424163 | Q24: 12 | R24: 0.8993320712 | S24: 0.00283079361 | T24: 0.1 | U24: 0.1028540863 | V24: 0.6699240064 | W24: 0.0004487981744 | X24: 0.0004487981744 | Y24: 0.4021690702 | Z24: 0.000161739961 | AA24: 0.000161739961 | AB24: 0.4727603311 | AC24: 0.005364055935 | AD24: 0.02982310184 | AE24: 0 | AF24: 0.01380683714 | AG24: 0.04900976838 | AH24: 0.7650463017 | AI24: 0.01053532519 | AJ24: 0.04337483714 | AK24: 0.05394426154 | AL24: 0.029568 | AM24: 0.1188 | AN24: 0.004043990872 | AO24: 2.64e-05 | AP24: 0.0781 | AQ24: 0.1241835294 | AR24: 0.10934 | AS24: 0.0781264 | AT24: 0.4369570452 | AU24: 1.98 | AV24: 0.8192119111 | AW24: 1.911266526 | AX24: 1.397223923 | AZ24: 81.92119111 | BA24: 0.1028540863 | BB24: 0.2217540299 | BC24: 0.1274177684 | BD24: 0.09314826154 | BE24: 0.004043990872 | BF24: 0.2998804299 | BG24: 5.877656427
A25: RCoutEsr | B25: =Cout_ESR*1000 -> 1 | C25: mW | D25: Output Capacitor ESR | G25: 16 | H25: 12 | I25: 1 | J25: 0.64 | K25: 0.64 | L25: 0.1955555556 | M25: 0.2764280762 | N25: 2.321140356 | O25: 1.800570178 | P25: -0.5205701782 | Q25: 12 | R25: 0.9265928877 | S25: 0.003005010328 | T25: 0.1 | U25: 0.1030297788 | V25: 0.6700555048 | W25: 0.0004489743795 | X25: 0.0004489743795 | Y25: 0.4144010922 | Z25: 0.0001717282653 | AA25: 0.0001717282653 | AB25: 0.4871694407 | AC25: 0.005696017535 | AD25: 0.03181130863 | AE25: 0 | AF25: 0.01282684919 | AG25: 0.0503513835 | AH25: 0.788187995 | AI25: 0.01118232568 | AJ25: 0.04436604919 | AK25: 0.05558566949 | AL25: 0.0315392 | AM25: 0.12672 | AN25: 0.004292871897 | AO25: 2.64e-05 | AP25: 0.0781 | AQ25: 0.1241835294 | AR25: 0.10934 | AS25: 0.0781264 | AT25: 0.4502660063 | AU25: 2.112 | AV25: 0.8242703899 | AW25: 2.009798752 | AX25: 1.461049042 | AZ25: 82.42703899 | BA25: 0.1030297788 | BB25: 0.232657053 | BC25: 0.1339865835 | BD25: 0.09740326949 | BE25: 0.004292871897 | BF25: 0.310783453 | BG25: 6.091355679
A26: Top Driver | B26: Input Value | C26: Units | D26: Description | G26: 17 | H26: 12 | I26: 1 | J26: 0.68 | K26: 0.68 | L26: 0.2077777778 | M26: 0.276517336 | N26: 2.321595695 | O26: 1.840797848 | P26: -0.4807978476 | Q26: 12 | R26: 0.9547515633 | S26: 0.003190426917 | T26: 0.1 | U26: 0.1032167714 | V26: 0.6701869498 | W26: 0.0004491505477 | X26: 0.0004491505477 | Y26: 0.4270371173 | Z26: 0.0001823606996 | AA26: 0.0001823606996 | AB26: 0.5020553048 | AC26: 0.006049428697 | AD26: 0.03379951542 | AE26: 0 | AF26: 0.01184685897 | AG26: 0.0517145737 | AH26: 0.8120905237 | AI26: 0.01187083834 | AJ26: 0.04535725897 | AK26: 0.05726888708 | AL26: 0.0335104 | AM26: 0.13464 | AN26: 0.004557752738 | AO26: 2.64e-05 | AP26: 0.0781 | AQ26: 0.1241835294 | AR26: 0.10934 | AS26: 0.0781264 | AT26: 0.4636662961 | AU26: 2.244 | AV26: 0.8287579615 | AW26: 2.108654605 | AX26: 1.525501306 | AZ26: 82.87579615 | BA26: 0.1032167714 | BB26: 0.2436234608 | BC26: 0.1405769737 | BD26: 0.1017000871 | BE26: 0.004557752738 | BF26: 0.3217498608 | BG26: 6.306297271
A27: RdsonDRT | B27: 0.7 | C27: W | D27: Drain to Source Resistance of pullup Top FET Driver | G27: 18 | H27: 12 | I27: 1 | J27: 0.72 | K27: 0.72 | L27: 0.22 | M27: 0.2766065964 | N27: 2.322050849 | O27: 1.881025425 | P27: -0.4410254246 | Q27: 12 | R27: 0.9837309992 | S27: 0.003387043376 | T27: 0.1 | U27: 0.1034150651 | V27: 0.6703183414 | W27: 0.0004493266788 | X27: 0.0004493266788 | Y27: 0.4400427758 | Z27: 0.0001936376445 | AA27: 0.0001936376445 | AB27: 0.5173776018 | AC27: 0.006424309989 | AD27: 0.03578772221 | AE27: 0 | AF27: 0.01086686646 | AG27: 0.05309936627 | AH27: 0.8366881713 | AI27: 0.01260084773 | AJ27: 0.04634846646 | AK27: 0.05899391659 | AL27: 0.0354816 | AM27: 0.14256 | AN27: 0.004838633394 | AO27: 2.64e-05 | AP27: 0.0781 | AQ27: 0.1241835294 | AR27: 0.10934 | AS27: 0.0781264 | AT27: 0.4771579457 | AU27: 2.376 | AV27: 0.8327614683 | AW27: 2.207834494 | AX27: 1.590580749 | AZ27: 83.27614683 | BA27: 0.1034150651 | BB27: 0.2546532829 | BC27: 0.1471889663 | BD27: 0.1060387166 | BE27: 0.004838633394 | BF27: 0.3327796829 | BG27: 6.522481784
A28: RdsonDRT2 | B28: =RdsonDRT2 -> 0.5 | C28: W | D28: Drain to Source Resistance of pulldown Top FET Driver | G28: 19 | H28: 12 | I28: 1 | J28: 0.76 | K28: 0.76 | L28: 0.2322222222 | M28: 0.2766958574 | N28: 2.322505818 | O28: 1.921252909 | P28: -0.4012529091 | Q28: 12 | R28: 1.01346079 | S28: 0.003594859705 | T28: 0.1 | U28: 0.103624661 | V28: 0.6704496797 | W28: 0.000449502773 | X28: 0.000449502773 | Y28: 0.4533866787 | Z28: 0.0002055594804 | AA28: 0.0002055594804 | AB28: 0.5330995052 | AC28: 0.006820681978 | AD28: 0.037775929 | AE28: 0 | AF28: 0.00988687168 | AG28: 0.05450578865 | AH28: 0.8619209306 | AI28: 0.01337233843 | AJ28: 0.04733967168 | AK28: 0.06076076092 | AL28: 0.0374528 | AM28: 0.15048 | AN28: 0.005135513865 | AO28: 2.64e-05 | AP28: 0.0781 | AQ28: 0.1241835294 | AR28: 0.10934 | AS28: 0.0781264 | AT28: 0.4907409867 | AU28: 2.508 | AV28: 0.8363509923 | AW28: 2.30733883 | AX28: 1.656287414 | AZ28: 83.63509923 | BA28: 0.103624661 | BB28: 0.2657465496 | BC28: 0.1538225887 | BD28: 0.1104191609 | BE28: 0.005135513865 | BF28: 0.3438729496 | BG28: 6.739909812
A29: Bottom Driver | B29: Input Value | C29: Units | D29: Description | G29: 20 | H29: 12 | I29: 1 | J29: 0.8 | K29: 0.8 | L29: 0.2444444444 | M29: 0.276785119 | N29: 2.322960602 | O29: 1.961480301 | P29: -0.3614803011 | Q29: 12 | R29: 1.043876827 | S29: 0.003813875905 | T29: 0.1 | U29: 0.1038455602 | V29: 0.6705809645 | W29: 0.00044967883 | X29: 0.00044967883 | Y29: 0.4670402415 | Z29: 0.0002181265872 | AA29: 0.0002181265872 | AB29: 0.5491874768 | AC29: 0.007238565231 | AD29: 0.03976413579 | AE29: 0 | AF29: 0.00890687462 | AG29: 0.0559338685 | AH29: 0.8877341637 | AI29: 0.01418529502 | AJ29: 0.04833087462 | AK29: 0.06256942358 | AL29: 0.039424 | AM29: 0.1584 | AN29: 0.00544839415 | AO29: 2.64e-05 | AP29: 0.0781 | AQ29: 0.1241835294 | AR29: 0.10934 | AS29: 0.0781264 | AT29: 0.5044154519 | AU29: 2.64 | AV29: 0.8395837129 | AW29: 2.407168027 | AX29: 1.722621354 | AZ29: 83.95837129 | BA29: 0.1038455602 | BB29: 0.2769032921 | BC29: 0.1604778685 | BD29: 0.1148414236 | BE29: 0.00544839415 | BF29: 0.3550296921 | BG29: 6.958581965
A30: RdsonDRB | B30: 0.7 | C30: W | D30: Drain to Source Resistance of pullup Bottom FET Driver | G30: 21 | H30: 12 | I30: 1 | J30: 0.84 | K30: 0.84 | L30: 0.2566666667 | M30: 0.2768743812 | N30: 2.323415201 | O30: 2.001707601 | P30: -0.3217076007 | Q30: 10.72358669 | R30: 1.074920857 | S30: 0.004044091975 | T30: 0.1 | U30: 0.104077764 | V30: 0.670712196 | W30: 0.0004498548499 | X30: 0.0004498548499 | Y30: 0.4809774886 | Z30: 0.0002313393445 | AA30: 0.0002313393445 | AB30: 0.5656110382 | AC30: 0.007677980318 | AD30: 0.04175234258 | AE30: 0.008245112438 | AF30: 0.007926875282 | AG30: 0.06563254614 | AH30: 0.914078226 | AI30: 0.01503970206 | AJ30: 0.04932207528 | AK30: 0.06441990872 | AL30: 0.0413952 | AM30: 0.16632 | AN30: 0.005777274249 | AO30: 2.64e-05 | AP30: 0.0781 | AQ30: 0.1241835294 | AR30: 0.10934 | AS30: 0.0781264 | AT30: 0.5264302873 | AU30: 2.772 | AV30: 0.8403997534 | AW30: 2.631056192 | AX30: 1.789582631 | AZ30: 84.03997534 | BA30: 0.104077764 | BB30: 0.2963724549 | BC30: 0.1754037461 | BD30: 0.1193055087 | BE30: 0.005777274249 | BF30: 0.3744988549 | BG30: 7.340177555
A31: RdsonDRB2 | B31: 0.5 | C31: W | D31: Drain to Source Resistance of pulldown Bottom FET Driver | G31: 22 | H31: 12 | I31: 1 | J31: 0.88 | K31: 0.88 | L31: 0.2688888889 | M31: 0.276963644 | N31: 2.323869616 | O31: 2.041934808 | P31: -0.2819348078 | Q31: 9.397826928 | R31: 1.106540028 | S31: 0.004285507914 | T31: 0.1 | U31: 0.1043212735 | V31: 0.6708433741 | W31: 0.0004500308326 | X31: 0.0004500308326 | Y31: 0.4951748497 | Z31: 0.0002451981318 | AA31: 0.0002451981318 | AB31: 0.5823425325 | AC31: 0.008138947805 | AD31: 0.04374054937 | AE31: 0.01642949876 | AF31: 0.006946873665 | AG31: 0.07529263777 | AH31: 0.9409080759 | AI31: 0.01593554413 | AJ31: 0.05031327367 | AK31: 0.06631222108 | AL31: 0.0433664 | AM31: 0.17424 | AN31: 0.006122154163 | AO31: 2.64e-05 | AP31: 0.0781 | AQ31: 0.1241835294 | AR31: 0.10934 | AS31: 0.0781264 | AT31: 0.5484763155 | AU31: 2.904 | AV31: 0.8411353865 | AW31: 2.854365566 | AX31: 1.857171316 | AZ31: 84.11353865 | BA31: 0.1043212735 | BB31: 0.3158448588 | BC31: 0.1902910378 | BD31: 0.1238114211 | BE31: 0.006122154163 | BF31: 0.3939712588 | BG31: 7.721836673
A32: Deadtime | B32: Input Value | C32: Units | D32: Description | G32: 23 | H32: 12 | I32: 1 | J32: 0.92 | K32: 0.92 | L32: 0.2811111111 | M32: 0.2770529074 | N32: 2.324323845 | O32: 2.082161923 | P32: -0.2421619225 | Q32: 8.072064083 | R32: 1.138686427 | S32: 0.004538123723 | T32: 0.1 | U32: 0.1045760901 | V32: 0.6709744988 | W32: 0.000450206778 | X32: 0.000450206778 | Y32: 0.5096109575 | Z32: 0.0002597033281 | AA32: 0.0002597033281 | AB32: 0.5993568867 | AC32: 0.008621488262 | AD32: 0.04572875616 | AE32: 0.02422722219 | AF32: 0.00596686977 | AG32: 0.08458809289 | AH32: 0.9681828858 | AI32: 0.01687280581 | AJ32: 0.05130446977 | AK32: 0.06824636604 | AL32: 0.0453376 | AM32: 0.18216 | AN32: 0.00648303389 | AO32: 2.64e-05 | AP32: 0.0781 | AQ32: 0.1241835294 | AR32: 0.10934 | AS32: 0.0781264 | AT32: 0.570227493 | AU32: 3.036 | AV32: 0.8418770047 | AW32: 3.072205393 | AX32: 1.925387491 | AZ32: 84.18770047 | BA32: 0.1045760901 | BB32: 0.3349944589 | BC32: 0.2048136929 | BD32: 0.128359166 | BE32: 0.00648303389 | BF32: 0.4131208589 | BG32: 8.097168835
A33: Deadtime | B33: =Deadtime*1000000000 -> 14 | C33: ns | D33: Total Deadtime | G33: 24 | H33: 12 | I33: 1 | J33: 0.96 | K33: 0.96 | L33: 0.2933333333 | M33: 0.2771421714 | N33: 2.324777889 | O33: 2.122388945 | P33: -0.2023889447 | Q33: 6.746298156 | R33: 1.171316646 | S33: 0.004801939402 | T33: 0.1 | U33: 0.1048422151 | V33: 0.6711055701 | W33: 0.0004503826862 | X33: 0.0004503826862 | Y33: 0.5242664514 | Z33: 0.0002748553121 | AA33: 0.0002748553121 | AB33: 0.6166313816 | AC33: 0.009125622258 | AD33: 0.04771696294 | AE33: 0.03163828003 | AF33: 0.004986863597 | AG33: 0.09351893394 | AH33: 0.9958656664 | AI33: 0.01785147166 | AJ33: 0.0522956636 | AK33: 0.07022234959 | AL33: 0.0473088 | AM33: 0.19008 | AN33: 0.006859913431 | AO33: 2.64e-05 | AP33: 0.0781 | AQ33: 0.1241835294 | AR33: 0.10934 | AS33: 0.0781264 | AT33: 0.59168385 | AU33: 3.168 | AV33: 0.8426240414 | AW33: 3.284576009 | AX33: 1.994231244 | AZ33: 84.26240414 | BA33: 0.1048422151 | BB33: 0.3538212835 | BC33: 0.2189717339 | BD33: 0.1329487496 | BE33: 0.006859913431 | BF33: 0.4319476835 | BG33: 8.466174597
A34: IQ | B34: Input Value | C34: Units | D34: Description | G34: 25 | H34: 12 | I34: 1 | J34: 1 | K34: 1 | L34: 0.3055555556 | M34: 0.277231436 | N34: 2.325231749 | O34: 2.162615874 | P34: -0.1626158744 | Q34: 5.420529147 | R34: 1.204391364 | S34: 0.00507695495 | T34: 0.1 | U34: 0.10511965 | V34: 0.6712365881 | W34: 0.0004505585572 | X34: 0.0004505585572 | Y34: 0.5391237913 | Z34: 0.0002906544624 | AA34: 0.0002906544624 | AB34: 0.6341454342 | AC34: 0.009651370362 | AD34: 0.04970516973 | AE34: 0.03866266959 | AF34: 0.004006855146 | AG34: 0.1020851805 | AH34: 1.02392291 | AI34: 0.01887152626 | AJ34: 0.05328685515 | AK34: 0.07224017835 | AL34: 0.04928 | AM34: 0.198 | AN34: 0.007252792786 | AO34: 2.64e-05 | AP34: 0.0781 | AQ34: 0.1241835294 | AR34: 0.10934 | AS34: 0.0781264 | AT34: 0.6128454147 | AU34: 3.3 | AV34: 0.8433760219 | AW34: 3.491477708 | AX34: 2.063702675 | AZ34: 84.33760219 | BA34: 0.10511965 | BB34: 0.3723253589 | BC34: 0.2327651805 | BD34: 0.1375801783 | BE34: 0.007252792786 | BF34: 0.4504517589 | BG34: 8.828854474
A35: IQ | B35: =Iq*1000 -> 0.0022 | C35: mA | D35: Quiescent Current Of Controller (Not Switching!) | G35: 26 | H35: 12 | I35: 1 | J35: 1.04 | K35: 1.04 | L35: 0.3177777778 | M35: 0.2773207011 | N35: 2.325685423 | O35: 2.202842712 | P35: -0.1228427117 | Q35: 4.094757056 | R35: 1.23787495 | S35: 0.005363170367 | T35: 0.1 | U35: 0.1054083962 | V35: 0.6713675526 | W35: 0.0004507343907 | X35: 0.0004507343907 | Y35: 0.5541670841 | Z35: 0.0003071011571 | AA35: 0.0003071011571 | AB35: 0.6518803936 | AC35: 0.01019875314 | AD35: 0.05169337652 | AE35: 0.04530038817 | AF35: 0.003026844416 | AG35: 0.1102868496 | AH35: 1.052324258 | AI35: 0.01993295418 | AJ35: 0.05427804442 | AK35: 0.07429985953 | AL35: 0.0512512 | AM35: 0.20592 | AN35: 0.007661671954 | AO35: 2.64e-05 | AP35: 0.0781 | AQ35: 0.1241835294 | AR35: 0.10934 | AS35: 0.0781264 | AT35: 0.6337122128 | AU35: 3.432 | AV35: 0.8441325456 | AW35: 3.692910743 | AX35: 2.133801893 | AZ35: 84.41325456 | BA35: 0.1054083962 | BB35: 0.3905067091 | BC35: 0.2461940496 | BD35: 0.1422534595 | BE35: 0.007661671954 | BF35: 0.4686331091 | BG35: 9.185208938
A36: High-side FET | B36: Input Value | C36: Units | D36: Description | G36: 27 | H36: 12 | I36: 1 | J36: 1.08 | K36: 1.08 | L36: 0.33 | M36: 0.2774099669 | N36: 2.326138913 | O36: 2.243069456 | P36: -0.08306945647 | Q36: 2.768981882 | R36: 1.271735109 | S36: 0.005660585654 | T36: 0.1 | U36: 0.1057084554 | V36: 0.6714984638 | W36: 0.0004509101869 | X36: 0.0004509101869 | Y36: 0.5693819229 | Z36: 0.0003241957741 | AA36: 0.0003241957741 | AB36: 0.6698193528 | AC36: 0.01076779117 | AD36: 0.05368158331 | AE36: 0.05155143307 | AF36: 0.002046831408 | AG36: 0.118123955 | AH36: 1.081042192 | AI36: 0.02103573999 | AJ36: 0.05526923141 | AK36: 0.07640140099 | AL36: 0.0532224 | AM36: 0.21384 | AN36: 0.008086550934 | AO36: 2.64e-05 | AP36: 0.0781 | AQ36: 0.1241835294 | AR36: 0.10934 | AS36: 0.0781264 | AT36: 0.6542842683 | AU36: 3.564 | AV36: 0.8448932726 | AW36: 3.888875325 | AX36: 2.204529015 | AZ36: 84.48932726 | BA36: 0.1057084554 | BB36: 0.408365356 | BC36: 0.259258355 | BD36: 0.146968601 | BE36: 0.008086550934 | BF36: 0.486491756 | BG36: 9.535238418
A37: RdsonTop | B37: =Rdson1*1000 -> 24 | C37: mW | D37: Drain-Source Resistance of Top FET | G37: 28 | H37: 12 | I37: 1 | J37: 1.12 | K37: 1.12 | L37: 0.3422222222 | M37: 0.2774992333 | N37: 2.326592218 | O37: 2.283296109 | P37: -0.0432961088 | Q37: 1.443203627 | R37: 1.305942551 | S37: 0.00596920081 | T37: 0.1 | U37: 0.1060198291 | V37: 0.6716293216 | W37: 0.0004510859456 | X37: 0.0004510859456 | Y37: 0.5847552402 | Z37: 0.0003419386909 | AA37: 0.0003419386909 | AB37: 0.6879469763 | AC37: 0.01135850501 | AD37: 0.0556697901 | AE37: 0.0574158016 | AF37: 0.001066816121 | AG37: 0.1255965082 | AH37: 1.110051757 | AI37: 0.02217986826 | AJ37: 0.05626041612 | AK37: 0.07854481119 | AL37: 0.0551936 | AM37: 0.22176 | AN37: 0.008527429728 | AO37: 2.64e-05 | AP37: 0.0781 | AQ37: 0.1241835294 | AR37: 0.10934 | AS37: 0.0781264 | AT37: 0.6745616028 | AU37: 3.696 | AV37: 0.8456579122 | AW37: 4.079371622 | AX37: 2.275884168 | AZ37: 84.56579122 | BA37: 0.1060198291 | BB37: 0.4259013193 | BC37: 0.2719581082 | BD37: 0.1517256112 | BE37: 0.008527429728 | BF37: 0.5040277193 | BG37: 9.878943299
A38: RdsonTopTc | B38: =RdsonTopTc*1000000 -> 4000 | C38: ppm | D38: Drain to Source Resistance Temp Co | G38: 29 | H38: 12 | I38: 1 | J38: 1.16 | K38: 1.16 | L38: 0.3544444444 | M38: 0.2775885002 | N38: 2.327045337 | O38: 2.323522669 | P38: -0.003522668652 | Q38: 0.1174222884 | R38: 1.340470689 | S38: 0.006289015834 | T38: 0.1 | U38: 0.106342519 | V38: 0.671760126 | W38: 0.0004512616668 | X38: 0.0004512616668 | Y38: 0.6002751742 | Z38: 0.0003603302848 | AA38: 0.0003603302848 | AB38: 0.7062493435 | AC38: 0.01197091524 | AD38: 0.05765799689 | AE38: 0.06289349106 | AF38: 8.679855558e-05 | AG38: 0.1327045174 | AH38: 1.1393303 | AI38: 0.02336532357 | AJ38: 0.05725159856 | AK38: 0.08073009922 | AL38: 0.0571648 | AM38: 0.22968 | AN38: 0.008984308334 | AO38: 2.64e-05 | AP38: 0.0781 | AQ38: 0.1241835294 | AR38: 0.10934 | AS38: 0.0781264 | AT38: 0.6945442359 | AU38: 3.828 | AV38: 0.846426215 | AW38: 4.264399761 | AX38: 2.347867488 | AZ38: 84.6426215 | BA38: 0.106342519 | BB38: 0.4431146166 | BC38: 0.2842933174 | BD38: 0.1565244992 | BE38: 0.008984308334 | BF38: 0.5212410166 | BG38: 10.21632393
A39: QgTop | B39: =Qg_Q1*1000000000 -> 3 | C39: nC | D39: Gate Charge Of Top FET | G39: 30 | H39: 12 | I39: 1 | J39: 1.2 | K39: 1.2 | L39: 0.3666666667 | M39: 0.2776777678 | N39: 2.327498272 | O39: 2.363749136 | P39: 0.03625086396 | Q39: 0 | R39: 1.375295368 | S39: 0.006620030727 | T39: 0.1 | U39: 0.1066765269 | V39: 0.671890877 | W39: 0.0004514373505 | X39: 0.0004514373505 | Y39: 0.6159309481 | Z39: 0.0003793709328 | AA39: 0.0003793709328 | AB39: 0.7247138065 | AC39: 0.01260504243 | AD39: 0.05964620368 | AE39: 0.06336 | AF39: 0 | AG39: 0.1357138869 | AH39: 1.168857241 | AI39: 0.02459209048 | AJ39: 0.059136 | AK39: 0.08385181597 | AL39: 0.059136 | AM39: 0.2376 | AN39: 0.009457186753 | AO39: 2.64e-05 | AP39: 0.0781 | AQ39: 0.1241835294 | AR39: 0.10934 | AS39: 0.0781264 | AT39: 0.7113926248 | AU39: 3.96 | AV39: 0.8477129452 | AW39: 4.387948303 | AX39: 2.43389724 | AZ39: 84.77129452 | BA39: 0.1066765269 | BB39: 0.4571657028 | BC39: 0.2925298869 | BD39: 0.162259816 | BE39: 0.009457186753 | BF39: 0.5352921028 | BG39: 10.49172522
A40: QgdTop | B40: =Qgd_Q1*1000000000 -> 0.7 | C40: nC | D40: Gate to Drain Charge | G40: 31 | H40: 12 | I40: 1 | J40: 1.24 | K40: 1.24 | L40: 0.3788888889 | M40: 0.2777670359 | N40: 2.327951022 | O40: 2.403975511 | P40: 0.07602448905 | Q40: 0 | R40: 1.410394624 | S40: 0.006962245488 | T40: 0.1 | U40: 0.1070218545 | V40: 0.6720215746 | W40: 0.0004516129967 | X40: 0.0004516129967 | Y40: 0.6317127603 | Z40: 0.0003990610116 | AA40: 0.0003990610116 | AB40: 0.7433288626 | AC40: 0.01326090715 | AD40: 0.06163441047 | AE40: 0.06336 | AF40: 0 | AG40: 0.1383654087 | AH40: 1.198613866 | AI40: 0.02586015358 | AJ40: 0.0611072 | AK40: 0.08710250262 | AL40: 0.0611072 | AM40: 0.24552 | AN40: 0.009946064983 | AO40: 2.64e-05 | AP40: 0.0781 | AQ40: 0.1241835294 | AR40: 0.10934 | AS40: 0.0781264 | AT40: 0.7280401048 | AU40: 4.092 | AV40: 0.8489555919 | AW40: 4.50612913 | AX40: 2.521861539 | AZ40: 84.89555919 | BA40: 0.1070218545 | BB40: 0.4709879113 | BC40: 0.3004086087 | BD40: 0.1681241026 | BE40: 0.009946064983 | BF40: 0.5491143113 | BG40: 10.7626405
A41: QgsTop | B41: =Qgs_Q1*1000000000 -> 0.7 | C41: nC | G41: 32 | H41: =Vin -> 12 | I41: =MODE -> 1 | J41: 1.28 | K41: =Iout*G41/100/Number_of_Phases -> 1.28 | L41: =Vout*K41/(Vin*Efficiency) -> 0.3911111111 | M41: =(Vout+(Rdson2+Rs+Rdcr)*K41)/(Vin+(Rs+Rdson2-Rdson1)*K41) -> 0.2778563047 | N41: =(Vin-(Rdson1+Rdcr)*K41-Vout)*M41/(Fsw*Lf) -> 2.328403587 | O41: 2.444201793 | P41: 0.1157982066 | Q41: =IF(MIN(Vin, -P41/(Coss_Q1+Coss_Q2)*0.00000002)<0, 0, MIN(Vin, -P41/(Coss_Q1+Coss_Q2)*0.00000002)) -> 0 | R41: 1.445748458 | S41: =R41^2*Rdcr -> 0.007315660118 | T41: =Core_Loss_Ch1 -> 0.1 | U41: =(T41+S41*(1+Ltc*(Ta-25)))/(1-S41*Ltc*ThetaCa) -> 0.1073785037 | V41: 0.6721522188 | W41: 0.0004517886052 | X41: 0.0004517886052 | Y41: 0.6476116872 | Z41: 0.0004194008974 | AA41: 0.0004194008974 | AB41: 0.7620840386 | AC41: =Rdson1*AB41^2 -> 0.01393852997 | AD41: =(Vin*K41/2)*Fsw*(Tr_buck+Tf_buck) -> 0.06362261726 | AE41: =(0.5*Coss_Q1*(Vin-Q41)^2-0.5*Coss_Q2*(Vin-Q41)^2+(Qoss_Q2*(Vin-Q41)/Vin)*Vin)*Fsw -> 0.06336 | AF41: =IF(K41>N41/2,0,ABS(K41-N41/2)*Vsd_Q1*Deadtime*Fsw) -> 0 | AG41: =(AF41+AE41+AD41+AC41*(1+RdsonTopTc*Ta-RdsonTopTc*25))/(1-AC41*RdsonTopTc*ThetaJA_Q1) -> 0.1410390999 | AH41: =SQRT((1-M41))*SQRT(K41^2+(N41^2)/12) -> 1.228583137 | AI41: =Rdson2*AH41^2 -> 0.02716949742 | AJ41: =IF(K41<N41/2,Deadtime*Fsw*IF(VfdSky_Q2>0,0,Vsd_Q2)*(K41+N41/2),2*Deadtime*Fsw*IF(VfdSky_Q2>0,0,Vsd_Q2)*K41) -> 0.0630784 | AK41: =(AJ41+AI41*(1+RdsonBotTc*Ta-RdsonBotTc*25))/(1-AI41*RdsonBotTc*ThetaJA_Q2) -> 0.09039525704 | AL41: =2*Deadtime*Fsw*IF(VfdSky_Q2>0,VfdSky_Q2,Vsd_Q2)*K41 -> 0.0630784 | AM41: =IF(QrrSky_Q2>0,QrrSky_Q2,Qrr_Q2*K41/(Iout/Number_of_Phases))*Fsw*Vin -> 0.25344 | AN41: =Rs*R41^2 -> 0.01045094303 | AO41: =Iq*Vin -> 2.64e-05 | AP41: =IF(Ext_VCC=1, (Qg_Q1+Qg_Q2)*Fsw*VCC, (Qg_Q1+Qg_Q2)*Fsw*Vout) -> 0.0781 | AQ41: 0.1241835294 | AR41: =(Qg_Q1+Qg_Q2)*Fsw*(Vin-VCC) -> 0.10934 | AS41: =SUM(AO41:AP41) -> 0.0781264 | AT41: =SUM(U41,X41,AA41,AG41,AK41,AL41,AM41,AS41,AN41) -> 0.7447797931 | AU41: =Vout*K41 -> 4.224 | AV41: 0.8501081102 | AW41: =ThetaJA_Q1*BC41 -> 4.624642498 | AX41: =ThetaJA_Q2*BD41 -> 2.610456856 | AZ41: 85.01081102 | BA41: =U41 -> 0.1073785037 | BB41: =AG41+AK41+AM41 -> 0.4848743569 | BC41: =AG41+AM41*0.66 -> 0.3083094999 | BD41: =AK41+AM41*0.33 -> 0.174030457 | BE41: =AN41 -> 0.01045094303 | BF41: 0.5630007569 | BG41: 11.03481484
A42: RGateTop | B42: =Rgate1 -> 3.5 | C42: W | D42: Gate Resistance | G42: 33 | H42: 12 | I42: 1 | J42: =Iout*G42/100 -> 1.32 | K42: 1.32 | L42: 0.4033333333 | M42: 0.277945574 | N42: 2.328855967 | O42: 2.484427983 | P42: 0.1555720166 | Q42: 0 | R42: 1.481338643 | S42: 0.007680274616 | T42: 0.1 | U42: 0.1077464764 | V42: 0.6722828096 | W42: 0.0004519641761 | X42: 0.0004519641761 | Y42: 0.6636195946 | Z42: 0.0004403909664 | AA42: 0.0004403909664 | AB42: 0.7809697885 | AC42: 0.01463793145 | AD42: 0.06561082405 | AE42: 0.06336 | AF42: 0 | AG42: 0.1437349945 | AH42: 1.258749525 | AI42: 0.02852010658 | AJ42: 0.0650496 | AK42: 0.09373009812 | AL42: 0.0650496 | AM42: =IF(QrrSky_Q2>0,QrrSky_Q2,Qrr_Q2*K42/(Iout/Number_of_Phases))*Fsw*Vin -> 0.26136 | AN42: 0.01097182088 | AO42: 2.64e-05 | AP42: 0.0781 | AQ42: 0.1241835294 | AR42: 0.10934 | AS42: 0.0781264 | AT42: 0.761611745 | AU42: 4.356 | AV42: 0.8511782873 | AW42: 4.743488917 | AX42: 2.699683472 | AZ42: 85.11782873 | BA42: 0.1077464764 | BB42: 0.4988250926 | BC42: 0.3162325945 | BD42: 0.1799788981 | BE42: 0.01097182088 | BF42: 0.5769514926 | BG42: 11.30824926
A43: GfsTop | B43: =Gfs_Q1 -> 71 | C43: S | D43: Transconductance of Top FET | G43: 34 | H43: 12 | I43: 1 | J43: 1.36 | K43: 1.36 | L43: 0.4155555556 | M43: 0.2780348439 | N43: 2.329308162 | O43: 2.524654081 | P43: 0.1953459192 | Q43: 0 | R43: 1.517148546 | S43: 0.008056088983 | T43: 0.1 | U43: 0.1081257747 | V43: 0.6724133471 | W43: 0.0004521397093 | X43: 0.0004521397093 | Y43: 0.6797290595 | Z43: 0.0004620315943 | AA43: 0.0004620315943 | AB43: 0.7999774002 | AC43: 0.01535913218 | AD43: 0.06759903084 | AE43: 0.06336 | AF43: 0 | AG43: 0.1464531266 | AH43: 1.289098859 | AI43: 0.02991196563 | AJ43: 0.0670208 | AK43: 0.09710704539 | AL43: 0.0670208 | AM43: 0.26928 | AN43: 0.01150869855 | AO43: 2.64e-05 | AP43: 0.0781 | AQ43: 0.1241835294 | AR43: 0.10934 | AS43: 0.0781264 | AT43: 0.7785360165 | AU43: 4.488 | AV43: 0.8521730386 | AW43: 4.862668899 | AX43: 2.789541681 | AZ43: 85.21730386 | BA43: 0.1081257747 | BB43: 0.512840172 | BC43: 0.3241779266 | BD43: 0.1859694454 | BE43: 0.01150869855 | BF43: 0.590966572 | BG43: 11.58294481
A44: VthTop | B44: =Vth_Q1 -> 1.8 | C44: V | D44: Threshold Voltage of Top FET | G44: 35 | H44: 12 | I44: 1 | J44: 1.4 | K44: 1.4 | L44: 0.4277777778 | M44: 0.2781241145 | N44: 2.329760172 | O44: 2.564880086 | P44: 0.2351199141 | Q44: 0 | R44: 1.553162968 | S44: 0.008443103217 | T44: 0.1 | U44: 0.1085164004 | V44: 0.6725438311 | W44: 0.0004523152048 | X44: 0.0004523152048 | Y44: 0.6959332989 | Z44: 0.0004843231565 | AA44: 0.0004843231565 | AB44: 0.8190989136 | AC44: 0.01610215272 | AD44: 0.06958723763 | AE44: 0.06336 | AF44: 0 | AG44: 0.1491935306 | AH44: 1.319618193 | AI44: 0.03134505914 | AJ44: 0.068992 | AK44: 0.100526119 | AL44: 0.068992 | AM44: 0.2772 | AN44: 0.01206157602 | AO44: 2.64e-05 | AP44: 0.0781 | AQ44: 0.1241835294 | AR44: 0.10934 | AS44: 0.0781264 | AT44: 0.7955526644 | AU44: 4.62 | AV44: 0.8530985268 | AW44: 4.982182959 | AX44: 2.880031785 | AZ44: 85.30985268 | BA44: 0.1085164004 | BB44: 0.5269196495 | BC44: 0.3321455306 | BD44: 0.192002119 | BE44: 0.01206157602 | BF44: 0.6050460495 | BG44: 11.85890257
A45: VspTop | B45: =Vsp_Q1 -> 1.856338028 | C45: V | G45: 36 | H45: 12 | I45: 1 | J45: 1.44 | K45: 1.44 | L45: 0.44 | M45: 0.2782133856 | N45: 2.330211997 | O45: 2.605105998 | P45: 0.2748940016 | Q45: 0 | R45: 1.589368007 | S45: 0.008841317319 | T45: 0.1 | U45: 0.1089183559 | V45: 0.6726742618 | W45: 0.0004524906625 | X45: 0.0004524906625 | Y45: 0.7122261076 | Z45: 0.0005072660283 | AA45: 0.0005072660283 | AB45: 0.8383270457 | AC45: 0.01686701365 | AD45: 0.07157544442 | AE45: 0.06336 | AF45: 0 | AG45: 0.151956241 | AH45: 1.350295681 | AI45: 0.03281937168 | AJ45: 0.0709632 | AK45: 0.1039873396 | AL45: 0.0709632 | AM45: 0.28512 | AN45: 0.01263045331 | AO45: 2.64e-05 | AP45: 0.0781 | AQ45: 0.1241835294 | AR45: 0.10934 | AS45: 0.0781264 | AT45: 0.8126617464 | AU45: 4.752 | AV45: 0.8539602615 | AW45: 5.102031614 | AX45: 2.971154095 | AZ45: 85.39602615 | BA45: 0.1089183559 | BB45: 0.5410635806 | BC45: 0.340135441 | BD45: 0.1980769396 | BE45: 0.01263045331 | BF45: 0.6191899806 | BG45: 12.13612362
A46: VsdTop | B46: =Vsd_Q1 -> 0.8 | C46: V | G46: 37 | H46: 12 | I46: 1 | J46: 1.48 | K46: 1.48 | L46: 0.4522222222 | M46: 0.2783026573 | N46: 2.330663637 | O46: 2.645331818 | P46: 0.3146681815 | Q46: 0 | R46: 1.625750929 | S46: 0.009250731288 | T46: 0.1 | U46: 0.1093316431 | V46: 0.6728046391 | W46: 0.0004526660824 | X46: 0.0004526660824 | Y46: 0.7286018011 | Z46: 0.0005308605845 | AA46: 0.0005308605845 | AB46: 0.8576551255 | AC46: 0.01765373554 | AD46: 0.07356365121 | AE46: 0.06336 | AF46: 0 | AG46: 0.1547412925 | AH46: 1.381120476 | AI46: 0.03433488783 | AJ46: 0.0729344 | AK46: 0.1074907288 | AL46: 0.0729344 | AM46: 0.29304 | AN46: 0.01321533041 | AO46: 2.64e-05 | AP46: 0.0781 | AQ46: 0.1241835294 | AR46: 0.10934 | AS46: 0.0781264 | AT46: 0.8298633214 | AU46: 4.884 | AV46: 0.854763183 | AW46: 5.222215387 | AX46: 3.062908931 | AZ46: 85.4763183 | BA46: 0.1093316431 | BB46: 0.5552720212 | BC46: 0.3481476925 | BD46: 0.2041939288 | BE46: 0.01321533041 | BF46: 0.6333984212 | BG46: 12.41460906
A47: θJATop | B47: =ThetaJA_Q1 -> 15 | C47: °C/W | D47: Junction to Ambient Resistance | G47: 38 | H47: 12 | I47: 1 | J47: 1.52 | K47: 1.52 | L47: 0.4644444444 | M47: 0.2783919296 | N47: 2.331115092 | O47: 2.685557546 | P47: 0.3544424539 | Q47: 0 | R47: 1.662300052 | S47: 0.009671345125 | T47: 0.1 | U47: 0.1097562644 | V47: 0.672934963 | W47: 0.0004528414644 | X47: 0.0004528414644 | Y47: 0.7450551655 | Z47: 0.0005551071996 | AA47: 0.0005551071996 | AB47: 0.8770770339 | AC47: 0.01846233896 | AD47: 0.075551858 | AE47: 0.06336 | AF47: 0 | AG47: 0.15754872 | AH47: 1.412082625 | AI47: 0.03589159214 | AJ47: 0.0749056 | AK47: 0.1110363083 | AL47: 0.0749056 | AM47: 0.30096 | AN47: 0.01381620732 | AO47: 2.64e-05 | AP47: 0.0781 | AQ47: 0.1241835294 | AR47: 0.10934 | AS47: 0.0781264 | AT47: 0.8471574487 | AU47: 5.016 | AV47: 0.8555117347 | AW47: 5.3427348 | AX47: 3.155296625 | AZ47: 85.55117347 | BA47: 0.1097562644 | BB47: 0.5695450284 | BC47: 0.35618232 | BD47: 0.2103531083 | BE47: 0.01381620732 | BF47: 0.6476714284 | BG47: 12.69436
A48: Low-side FET | B48: Input Value | C48: Units | D48: Description | G48: 39 | H48: 12 | I48: 1 | J48: 1.56 | K48: 1.56 | L48: 0.4766666667 | M48: 0.2784812026 | N48: 2.331566362 | O48: 2.725783181 | P48: 0.3942168188 | Q48: 0 | R48: 1.699004652 | S48: 0.01010315883 | T48: 0.1 | U48: 0.110192222 | V48: 0.6730652335 | W48: 0.0004530168085 | X48: 0.0004530168085 | Y48: 0.7615814126 | Z48: 0.000580006248 | AA48: 0.000580006248 | AB48: 0.8965871515 | AC48: 0.01929284448 | AD48: 0.07754006479 | AE48: 0.06336 | AF48: 0 | AG48: 0.1603785588 | AH48: 1.443172993 | AI48: 0.03748946919 | AJ48: 0.0768768 | AK48: 0.114624101 | AL48: 0.0768768 | AM48: 0.30888 | AN48: 0.01443308404 | AO48: 2.64e-05 | AP48: 0.0781 | AQ48: 0.1241835294 | AR48: 0.10934 | AS48: 0.0781264 | AT48: 0.8645441889 | AU48: 5.148 | AV48: 0.8562099235 | AW48: 5.463590382 | AX48: 3.248317515 | AZ48: 85.62099235 | BA48: 0.110192222 | BB48: 0.5838826598 | BC48: 0.3642393588 | BD48: 0.216554501 | BE48: 0.01443308404 | BF48: 0.6620090598 | BG48: 12.97537757
A49: RdsonBot | B49: =Rdson2*1000 -> 18 | C49: mW | D49: Drain-Source Resistance of Low-side FET | G49: 40 | H49: 12 | I49: 1 | J49: 1.6 | K49: 1.6 | L49: 0.4888888889 | M49: 0.2785704761 | N49: 2.332017448 | O49: 2.766008724 | P49: 0.4339912762 | Q49: 0 | R49: 1.735854866 | S49: 0.0105461724 | T49: 0.1 | U49: 0.1106395183 | V49: 0.6731954506 | W49: 0.0004531921147 | X49: 0.0004531921147 | Y49: 0.7781761391 | Z49: 0.0006055581034 | AA49: 0.0006055581034 | AB49: 0.9161803108 | AC49: 0.02014527268 | AD49: 0.07952827157 | AE49: 0.06336 | AF49: 0 | AG49: 0.1632308441 | AH49: 1.474383177 | AI49: 0.03912850355 | AJ49: 0.078848 | AK49: 0.11825413 | AL49: 0.078848 | AM49: 0.3168 | AN49: 0.01506596057 | AO49: 2.64e-05 | AP49: 0.0781 | AQ49: 0.1241835294 | AR49: 0.10934 | AS49: 0.0781264 | AT49: 0.8820236031 | AU49: 5.28 | AV49: 0.8568613722 | AW49: 5.584782661 | AX49: 3.34197195 | AZ49: 85.68613722 | BA49: 0.1106395183 | BB49: 0.598284974 | BC49: 0.3723188441 | BD49: 0.22279813 | BE49: 0.01506596057 | BF49: 0.676411374 | BG49: 13.25766293
A50: RdsonBotTc | B50: =RdsonBotTc*1000000 -> 4000 | C50: ppm | D50: Drain To Source Resitance Temp Co | G50: 41 | H50: 12 | I50: 1 | J50: 1.64 | K50: 1.64 | L50: 0.5011111111 | M50: 0.2786597502 | N50: 2.332468348 | O50: 2.806234174 | P50: 0.4737658261 | Q50: 0 | R50: 1.772841612 | S50: 0.01100038584 | T50: 0.1 | U50: 0.1110981556 | V50: 0.6733256143 | W50: 0.0004533673828 | X50: 0.0004533673828 | Y50: 0.7948352909 | Z50: 0.0006317631397 | AA50: 0.0006317631397 | AB50: 0.9358517541 | AC50: 0.02101964414 | AD50: 0.08151647836 | AE50: 0.06336 | AF50: 0 | AG50: 0.1661056114 | AH50: 1.505705442 | AI50: 0.04080867979 | AJ50: 0.0808192 | AK50: 0.1219264192 | AL50: 0.0808192 | AM50: 0.32472 | AN50: 0.01571483691 | AO50: 2.64e-05 | AP50: 0.0781 | AQ50: 0.1241835294 | AR50: 0.10934 | AS50: 0.0781264 | AT50: 0.8995957536 | AU50: 5.412 | AV50: 0.8574693645 | AW50: 5.70631217 | AX50: 3.436260287 | AZ50: 85.74693645 | BA50: 0.1110981556 | BB50: 0.6127520305 | BC50: 0.3804208114 | BD50: 0.2290840192 | BE50: 0.01571483691 | BF50: 0.6908784305 | BG50: 13.54121724
A51: QgBot | B51: =Qg_Q2*1000000000 -> 4.1 | C51: nC | D51: Gate Charge Of Top FET | G51: 42 | H51: 12 | I51: 1 | J51: 1.68 | K51: 1.68 | L51: 0.5133333333 | M51: 0.2787490249 | N51: 2.332919063 | O51: 2.846459532 | P51: 0.5135404684 | Q51: 0 | R51: 1.809956522 | S51: 0.01146579915 | T51: 0.1 | U51: 0.1115681366 | V51: 0.6734557246 | W51: 0.000453542613 | X51: 0.000453542613 | Y51: 0.8115551307 | Z51: 0.0006586217301 | AA51: 0.0006586217301 | AB51: 0.9555970955 | AC51: 0.02191597941 | AD51: 0.08350468515 | AE51: 0.06336 | AF51: 0 | AG51: 0.1690028964 | AH51: 1.537132657 | AI51: 0.04252998247 | AJ51: 0.0827904 | AK51: 0.125640993 | AL51: 0.0827904 | AM51: 0.33264 | AN51: 0.01637971306 | AO51: 2.64e-05 | AP51: 0.0781 | AQ51: 0.1241835294 | AR51: 0.10934 | AS51: 0.0781264 | AT51: 0.9172607034 | AU51: 5.544 | AV51: 0.8580368839 | AW51: 5.828179446 | AX51: 3.531182895 | AZ51: 85.80368839 | BA51: 0.1115681366 | BB51: 0.6272838894 | BC51: 0.3885452964 | BD51: 0.235412193 | BE51: 0.01637971306 | BF51: 0.7054102894 | BG51: 13.82604167
A52: RGateBot | B52: =Rgate2 -> 3 | C52: W | D52: Gate Resistance | G52: 43 | H52: 12 | I52: 1 | J52: 1.72 | K52: 1.72 | L52: 0.5255555556 | M52: 0.2788383002 | N52: 2.333369594 | O52: 2.886684797 | P52: 0.5533152032 | Q52: 0 | R52: 1.84719187 | S52: 0.01194241232 | T52: 0.1 | U52: 0.1120494636 | V52: 0.6735857815 | W52: 0.000453717805 | X52: 0.000453717805 | Y52: 0.8283322086 | Z52: 0.0006861342477 | AA52: 0.0006861342477 | AB52: 0.9754122865 | AC52: 0.02283429909 | AD52: 0.08549289194 | AE52: 0.06336 | AF52: 0 | AG52: 0.1719227351 | AH52: 1.568658241 | AI52: 0.04429239617 | AJ52: 0.0847616 | AK52: 0.1293978767 | AL52: 0.0847616 | AM52: 0.34056 | AN52: 0.01706058903 | AO52: 2.64e-05 | AP52: 0.0781 | AQ52: 0.1241835294 | AR52: 0.10934 | AS52: 0.0781264 | AT52: 0.9350185165 | AU52: 5.676 | AV52: 0.8585666469 | AW52: 5.950385027 | AX52: 3.62674015 | AZ52: 85.85666469 | BA52: 0.1120494636 | BB52: 0.6418806118 | BC52: 0.3966923351 | BD52: 0.2417826767 | BE52: 0.01706058903 | BF52: 0.7200070118 | BG52: 14.11213743
A53: VsdBot | B53: =Vsd_Q2 -> 0.8 | C53: V | D53: Diode Forward Voltage of Bottom FET Body Diode | G53: 44 | H53: 12 | I53: 1 | J53: 1.76 | K53: 1.76 | L53: 0.5377777778 | M53: 0.278927576 | N53: 2.333819939 | O53: 2.926909969 | P53: 0.5930900305 | Q53: 0 | R53: 1.884540517 | S53: 0.01243022536 | T53: 0.1 | U53: 0.1125421393 | V53: 0.673715785 | W53: 0.000453892959 | X53: 0.000453892959 | Y53: 0.8451633365 | Z53: 0.0007143010653 | AA53: 0.0007143010653 | AB53: 0.995293586 | AC53: 0.02377462374 | AD53: 0.08748109873 | AE53: 0.06336 | AF53: 0 | AG53: 0.1748651637 | AH53: 1.600276113 | AI53: 0.04609590546 | AJ53: 0.0867328 | AK53: 0.1331970959 | AL53: 0.0867328 | AM53: 0.34848 | AN53: 0.01775746479 | AO53: 2.64e-05 | AP53: 0.0781 | AQ53: 0.1241835294 | AR53: 0.10934 | AS53: 0.0781264 | AT53: 0.9528692577 | AU53: 5.808 | AV53: 0.8590611323 | AW53: 6.072929455 | AX53: 3.722932439 | AZ53: 85.90611323 | BA53: 0.1125421393 | BB53: 0.6565422596 | BC53: 0.4048619637 | BD53: 0.2481954959 | BE53: 0.01775746479 | BF53: 0.7346686596 | BG53: 14.39950573
A54: QrrBot | B54: =Qrr_Q2*1000000000 -> 30 | C54: nC | D54: Reverse Recovery Charge of Body Diode | G54: 45 | H54: 12 | I54: 1 | J54: 1.8 | K54: 1.8 | L54: 0.55 | M54: 0.2790168525 | N54: 2.334270099 | O54: 2.96713505 | P54: 0.6328649503 | Q54: 0 | R54: 1.921995857 | S54: 0.01292923826 | T54: 0.1 | U54: 0.1130461663 | V54: 0.6738457351 | W54: 0.0004540680748 | X54: 0.0004540680748 | Y54: 0.8620455645 | Z54: 0.0007431225552 | AA54: 0.0007431225552 | AB54: 1.015237532 | AC54: 0.02473697393 | AD54: 0.08946930552 | AE54: 0.06336 | AF54: 0 | AG54: 0.1778302183 | AH54: 1.631980646 | AI54: 0.0479404949 | AJ54: 0.088704 | AK54: 0.137038677 | AL54: 0.088704 | AM54: 0.3564 | AN54: 0.01847034037 | AO54: 2.64e-05 | AP54: 0.0781 | AQ54: 0.1241835294 | AR54: 0.10934 | AS54: 0.0781264 | AT54: 0.9708129927 | AU54: 5.94 | AV54: 0.859522607 | AW54: 6.195813275 | AX54: 3.819760155 | AZ54: 85.9522607 | BA54: 0.1130461663 | BB54: 0.6712688954 | BC54: 0.4130542183 | BD54: 0.254650677 | BE54: 0.01847034037 | BF54: 0.7493952954 | BG54: 14.68814779
A55: TrrBot | B55: =Trr_Q2*1000000000 -> 40 | C55: ns | D55: Reverse Recovery Time of Body Diode | G55: 46 | H55: 12 | I55: 1 | J55: 1.84 | K55: 1.84 | L55: 0.5622222222 | M55: 0.2791061296 | N55: 2.334720075 | O55: 3.007360037 | P55: 0.6726399626 | Q55: 0 | R55: 1.959551773 | S55: 0.01343945103 | T55: 0.1 | U55: 0.1135615474 | V55: 0.6739756319 | W55: 0.0004542431523 | X55: 0.0004542431523 | Y55: 0.8789761599 | Z55: 0.0007725990897 | AA55: 0.0007725990897 | AB55: 1.035240919 | AC55: 0.02572137025 | AD55: 0.09145751231 | AE55: 0.06336 | AF55: 0 | AG55: 0.1808179357 | AH55: 1.663766628 | AI55: 0.04982614905 | AJ55: 0.0906752 | AK55: 0.140922647 | AL55: 0.0906752 | AM55: 0.36432 | AN55: 0.01919921576 | AO55: 2.64e-05 | AP55: 0.0781 | AQ55: 0.1241835294 | AR55: 0.10934 | AS55: 0.0781264 | AT55: 0.9888497881 | AU55: 6.072 | AV55: 0.8599531476 | AW55: 6.319037035 | AX55: 3.917223705 | AZ55: 85.99531476 | BA55: 0.1135615474 | BB55: 0.6860605827 | BC55: 0.4212691357 | BD55: 0.261148247 | BE55: 0.01919921576 | BF55: 0.7641869827 | BG55: 14.97806486
A56: θJABot | B56: =ThetaJA_Q2 -> 15 | C56: °C/W | D56: Junction to Ambient Resistance | G56: 47 | H56: 12 | I56: 1 | J56: 1.88 | K56: 1.88 | L56: 0.5744444444 | M56: 0.2791954073 | N56: 2.335169865 | O56: 3.047584933 | P56: 0.7124150673 | Q56: 0 | R56: 1.997202592 | S56: 0.01396086367 | T56: 0.1 | U56: 0.1140882854 | V56: 0.6741054752 | W56: 0.0004544181917 | X56: 0.0004544181917 | Y56: 0.8959525884 | Z56: 0.0008027310406 | AA56: 0.0008027310406 | AB56: 1.055300772 | AC56: 0.02672783327 | AD56: 0.0934457191 | AE56: 0.06336 | AF56: 0 | AG56: 0.1838283524 | AH56: 1.695629226 | AI56: 0.0517528525 | AJ56: 0.0926464 | AK56: 0.1448490335 | AL56: 0.0926464 | AM56: 0.37224 | AN56: 0.01994409096 | AO56: 2.64e-05 | AP56: 0.0781 | AQ56: 0.1241835294 | AR56: 0.10934 | AS56: 0.0781264 | AT56: 1.006979711 | AU56: 6.204 | AV56: 0.8603546603 | AW56: 6.442601286 | AX56: 4.015323503 | AZ56: 86.03546603 | BA56: 0.1140882854 | BB56: 0.7009173859 | BC56: 0.4295067524 | BD56: 0.2676882335 | BE56: 0.01994409096 | BF56: 0.7790437859 | BG56: 15.2692582
A57: Bottom Schottky | B57: Input Value | C57: Units | D57: Std Units | G57: 48 | H57: 12 | I57: 1 | J57: 1.92 | K57: 1.92 | L57: 0.5866666667 | M57: 0.2792846855 | N57: 2.335619471 | O57: 3.087809735 | P57: 0.7521902646 | Q57: 0 | R57: 2.034943044 | S57: 0.01449347617 | T57: 0.1 | U57: 0.114626383 | V57: 0.6742352651 | W57: 0.0004545931927 | X57: 0.0004545931927 | Y57: 0.9129724965 | Z57: 0.0008335187794 | AA57: 0.0008335187794 | AB57: 1.07541433 | AC57: 0.02775638356 | AD57: 0.09543392589 | AE57: 0.06336 | AF57: 0 | AG57: 0.1868615054 | AH57: 1.727563953 | AI57: 0.0537205898 | AJ57: 0.0946176 | AK57: 0.1488178648 | AL57: 0.0946176 | AM57: 0.38016 | AN57: 0.02070496596 | AO57: 2.64e-05 | AP57: 0.0781 | AQ57: 0.1241835294 | AR57: 0.10934 | AS57: 0.0781264 | AT57: 1.025202831 | AU57: 6.336 | AV57: 0.8607288979 | AW57: 6.566506581 | AX57: 4.114059972 | AZ57: 86.07288979 | BA57: 0.114626383 | BB57: 0.7158393702 | BC57: 0.4377671054 | BD57: 0.2742706648 | BE57: 0.02070496596 | BF57: 0.7939657702 | BG57: 15.5617291
A58: VfdSky | B58: =VfdSky_Q2 -> 0 | C58: V | D58: Diode Forward Voltage | G58: 49 | H58: 12 | I58: 1 | J58: 1.96 | K58: 1.96 | L58: 0.5988888889 | M58: 0.2793739644 | N58: 2.336068891 | O58: 3.128034446 | P58: 0.7919655543 | Q58: 0 | R58: 2.072768235 | S58: 0.01503728854 | T58: 0.1 | U58: 0.1151758431 | V58: 0.6743650017 | W58: 0.0004547681555 | X58: 0.0004547681555 | Y58: 0.9300336969 | Z58: 0.0008649626774 | AA58: 0.0008649626774 | AB58: 1.095579027 | AC58: 0.0288070417 | AD58: 0.09742213268 | AE58: 0.06336 | AF58: 0 | AG58: 0.1899174319 | AH58: 1.759566637 | AI58: 0.05572934552 | AJ58: 0.0965888 | AK58: 0.1528291697 | AL58: 0.0965888 | AM58: 0.38808 | AN58: 0.02148184078 | AO58: 2.64e-05 | AP58: 0.0781 | AQ58: 0.1241835294 | AR58: 0.10934 | AS58: 0.0781264 | AT58: 1.043519216 | AU58: 6.468 | AV58: 0.861077475 | AW58: 6.690753479 | AX58: 4.213433545 | AZ58: 86.1077475 | BA58: 0.1151758431 | BB58: 0.7308266016 | BC58: 0.4460502319 | BD58: 0.2808955697 | BE58: 0.02148184078 | BF58: 0.8089530016 | BG58: 15.85547883
A59: QrrSky | B59: =QrrSky_Q2*1000000000 -> 0 | C59: nC | D59: Diode Reverse Recovery Charge | G59: 50 | H59: 12 | I59: 1 | J59: 2 | K59: 2 | L59: 0.6111111111 | M59: 0.2794632439 | N59: 2.336518127 | O59: 3.168259063 | P59: 0.8317409365 | Q59: 0 | R59: 2.110673608 | S59: 0.01559230078 | T59: 0.1 | U59: 0.1157366689 | V59: 0.6744946848 | W59: 0.0004549430798 | X59: 0.0004549430798 | Y59: 0.9471341539 | Z59: 0.0008970631055 | AA59: 0.0008970631055 | AB59: 1.115792474 | AC59: 0.02987982826 | AD59: 0.09941033947 | AE59: 0.06336 | AF59: 0 | AG59: 0.1929961693 | AH59: 1.791633399 | AI59: 0.05777910424 | AJ59: 0.09856 | AK59: 0.1568829777 | AL59: 0.09856 | AM59: 0.396 | AN59: 0.0222747154 | AO59: 2.64e-05 | AP59: 0.0781 | AQ59: 0.1241835294 | AR59: 0.10934 | AS59: 0.0781264 | AT59: 1.061928937 | AU59: 6.6 | AV59: 0.8614018812 | AW59: 6.815342539 | AX59: 4.313444666 | AZ59: 86.14018812 | BA59: 0.1157366689 | BB59: 0.745879147 | BC59: 0.4543561693 | BD59: 0.2875629777 | BE59: 0.0222747154 | BF59: 0.824005547 | BG59: 16.15050872
A60: Ireverse | B60: =Ireverse -> 0 | C60: mA | D60: Reverse Leakage Current | G60: 51 | H60: 12 | I60: 1 | J60: 2.04 | K60: 2.04 | L60: 0.6233333333 | M60: 0.2795525239 | N60: 2.336967178 | O60: 3.208483589 | P60: 0.8715164112 | Q60: 0 | R60: 2.14865492 | S60: 0.01615851288 | T60: 0.1 | U60: 0.1163088631 | V60: 0.6746243145 | W60: 0.0004551179657 | X60: 0.0004551179657 | Y60: 0.9642719711 | Z60: 0.0009298204343 | AA60: 0.0009298204343 | AB60: 1.136052446 | AC60: 0.03097476383 | AD60: 0.1013985463 | AE60: 0.06336 | AF60: 0 | AG60: 0.196097755 | AH60: 1.823760622 | AI60: 0.05986985051 | AJ60: 0.1005312 | AK60: 0.160979319 | AL60: 0.1005312 | AM60: 0.40392 | AN60: 0.02308358983 | AO60: 2.64e-05 | AP60: 0.0781 | AQ60: 0.1241835294 | AR60: 0.10934 | AS60: 0.0781264 | AT60: 1.080432065 | AU60: 6.732 | AV60: 0.8617034931 | AW60: 6.940274325 | AX60: 4.414093785 | AZ60: 86.17034931 | BA60: 0.1163088631 | BB60: 0.760997074 | BC60: 0.462684955 | BD60: 0.294272919 | BE60: 0.02308358983 | BF60: 0.839123474 | BG60: 16.44682009
A61: Controller | B61: Input Value | C61: Units | D61: Std Units | G61: 52 | H61: 12 | I61: 1 | J61: 2.08 | K61: 2.08 | L61: 0.6355555556 | M61: 0.2796418046 | N61: 2.337416043 | O61: 3.248708022 | P61: 0.9112919784 | Q61: 0 | R61: 2.186708214 | S61: 0.01673592485 | T61: 0.1 | U61: 0.1168924291 | V61: 0.6747538909 | W61: 0.0004552928132 | X61: 0.0004552928132 | Y61: 0.9814453802 | Z61: 0.0009632350342 | AA61: 0.0009632350342 | AB61: 1.156356868 | AC61: 0.03209186897 | AD61: 0.103386753 | AE61: 0.06336 | AF61: 0 | AG61: 0.1992222268 | AH61: 1.855944936 | AI61: 0.06200156891 | AJ61: 0.1025024 | AK61: 0.1651182242 | AL61: 0.1025024 | AM61: 0.41184 | AN61: 0.02390846407 | AO61: 2.64e-05 | AP61: 0.0781 | AQ61: 0.1241835294 | AR61: 0.10934 | AS61: 0.0781264 | AT61: 1.099028672 | AU61: 6.864 | AV61: 0.8619835847 | AW61: 7.065549403 | AX61: 4.515381364 | AZ61: 86.19835847 | BA61: 0.1168924291 | BB61: 0.7761804511 | BC61: 0.4710366268 | BD61: 0.3010254242 | BE61: 0.02390846407 | BF61: 0.8543068511 | BG61: 16.74441428
A62: θJA | B62: 30 | C62: °C/W | D62: Junction to Ambient Resistance | G62: 53 | H62: 12 | I62: 1 | J62: 2.12 | K62: 2.12 | L62: 0.6477777778 | M62: 0.2797310858 | N62: 2.337864724 | O62: 3.288932362 | P62: 0.9510676381 | Q62: 0 | R62: 2.224829796 | S62: 0.01732453668 | T62: 0.1 | U62: 0.1174873698 | V62: 0.6748834138 | W62: 0.0004554676222 | X62: 0.0004554676222 | Y62: 0.9986527301 | Z62: 0.0009973072753 | AA62: 0.0009973072753 | AB62: 1.176703805 | AC62: 0.03323116427 | AD62: 0.1053749598 | AE62: 0.06336 | AF62: 0 | AG62: 0.2023696228 | AH62: 1.888183195 | AI62: 0.064174244 | AJ62: 0.1044736 | AK62: 0.1692997249 | AL62: 0.1044736 | AM62: 0.41976 | AN62: 0.02474933811 | AO62: 2.64e-05 | AP62: 0.0781 | AQ62: 0.1241835294 | AR62: 0.10934 | AS62: 0.0781264 | AT62: 1.117718831 | AU62: 6.996 | AV62: 0.862243337 | AW62: 7.191168342 | AX62: 4.617307874 | AZ62: 86.2243337 | BA62: 0.1174873698 | BB62: 0.7914293477 | BC62: 0.4794112228 | BD62: 0.3078205249 | BE62: 0.02474933811 | BF62: 0.8695557477 | BG62: 17.04329266
A63: Theta Ja | B63: 19.6 | C63: °C/W | D63: Junction to Ambient Resistance | G63: 54 | H63: 12 | I63: 1 | J63: 2.16 | K63: 2.16 | L63: 0.66 | M63: 0.2798203677 | N63: 2.338313219 | O63: 3.32915661 | P63: 0.9908433903 | Q63: 0 | R63: 2.263016216 | S63: 0.01792434837 | T63: 0.1 | U63: 0.1180936886 | V63: 0.6750128833 | W63: 0.0004556423927 | X63: 0.0004556423927 | Y63: 1.015892478 | Z63: 0.001032037527 | AA63: 0.001032037527 | AB63: 1.197091446 | AC63: 0.0343926703 | AD63: 0.1073631666 | AE63: 0.06336 | AF63: 0 | AG63: 0.2055399811 | AH63: 1.920472458 | AI63: 0.06638786034 | AJ63: 0.1064448 | AK63: 0.173523853 | AL63: 0.1064448 | AM63: 0.42768 | AN63: 0.02560621196 | AO63: 2.64e-05 | AP63: 0.0781 | AQ63: 0.1241835294 | AR63: 0.10934 | AS63: 0.0781264 | AT63: 1.136502614 | AU63: 7.128 | AV63: 0.862483846 | AW63: 7.317131716 | AX63: 4.719873795 | AZ63: 86.2483846 | BA63: 0.1180936886 | BB63: 0.806743834 | BC63: 0.4878087811 | BD63: 0.314658253 | BE63: 0.02560621196 | BF63: 0.884870234 | BG63: 17.34345659
G64: 55 | H64: 12 | I64: 1 | J64: 2.2 | K64: 2.2 | L64: 0.6722222222 | M64: 0.2799096501 | N64: 2.33876153 | O64: 3.369380765 | P64: 1.030619235 | Q64: 0 | R64: 2.301264245 | S64: 0.01853535994 | T64: 0.1 | U64: 0.1187113886 | V64: 0.6751422995 | W64: 0.0004558171245 | X64: 0.0004558171245 | Y64: 1.033163181 | Z64: 0.001067426159 | AA64: 0.001067426159 | AB64: 1.217518098 | AC64: 0.03557640764 | AD64: 0.1093513734 | AE64: 0.06336 | AF64: 0 | AG64: 0.20873334 | AH64: 1.952809977 | AI64: 0.06864240251 | AJ64: 0.108416 | AK64: 0.1777906411 | AL64: 0.108416 | AM64: 0.4356 | AN64: 0.02647908562 | AO64: 2.64e-05 | AP64: 0.0781 | AQ64: 0.1241835294 | AR64: 0.10934 | AS64: 0.0781264 | AT64: 1.155380099 | AU64: 7.26 | AV64: 0.8627061303 | AW64: 7.4434401 | AX64: 4.823079617 | AZ64: 86.27061303 | BA64: 0.1187113886 | BB64: 0.8221239811 | BC64: 0.49622934 | BD64: 0.3215386411 | BE64: 0.02647908562 | BF64: 0.9002503811 | BG64: 17.64490747
G65: 56 | H65: 12 | I65: 1 | J65: 2.24 | K65: 2.24 | L65: 0.6844444444 | M65: 0.2799989331 | N65: 2.339209656 | O65: 3.409604828 | P65: 1.070395172 | Q65: 0 | R65: 2.339570862 | S65: 0.01915757136 | T65: 0.1 | U65: 0.1193404733 | V65: 0.6752716622 | W65: 0.0004559918178 | X65: 0.0004559918178 | Y65: 1.050463489 | Z65: 0.001103473541 | AA65: 0.001103473541 | AB65: 1.237982177 | AC65: 0.03678239687 | AD65: 0.1113395802 | AE65: 0.06336 | AF65: 0 | AG65: 0.2119497382 | AH65: 1.985193177 | AI65: 0.07093785507 | AJ65: 0.1103872 | AK65: 0.1821001226 | AL65: 0.1103872 | AM65: 0.44352 | AN65: 0.02736795909 | AO65: 2.64e-05 | AP65: 0.0781 | AQ65: 0.1241835294 | AR65: 0.10934 | AS65: 0.0781264 | AT65: 1.174351359 | AU65: 7.392 | AV65: 0.8629111381 | AW65: 7.570094073 | AX65: 4.926925839 | AZ65: 86.29111381 | BA65: 0.1193404733 | BB65: 0.8375698608 | BC65: 0.5046729382 | BD65: 0.3284617226 | BE65: 0.02736795909 | BF65: 0.9156962608 | BG65: 17.94764671
A66: Outputs | G66: 57 | H66: 12 | I66: 1 | J66: 2.28 | K66: 2.28 | L66: 0.6966666667 | M66: 0.2800882168 | N66: 2.339657596 | O66: 3.449828798 | P66: 1.110171202 | Q66: 0 | R66: 2.377933235 | S66: 0.01979098265 | T66: 0.1 | U66: 0.1199809459 | V66: 0.6754009715 | W66: 0.0004561664723 | X66: 0.0004561664723 | Y66: 1.067792134 | Z66: 0.001140180041 | AA66: 0.001140180041 | AB66: 1.258482197 | AC66: 0.03801065856 | AD66: 0.113327787 | AE66: 0.06336 | AF66: 0 | AG66: 0.2151892146 | AH66: 2.017619645 | AI66: 0.07327420259 | AJ66: 0.1123584 | AK66: 0.1864523313 | AL66: 0.1123584 | AM66: 0.45144 | AN66: 0.02827283236 | AO66: 2.64e-05 | AP66: 0.0781 | AQ66: 0.1241835294 | AR66: 0.10934 | AS66: 0.0781264 | AT66: 1.193416471 | AU66: 7.524 | AV66: 0.8630997527 | AW66: 7.697094219 | AX66: 5.03141297 | AZ66: 86.30997527 | BA66: 0.1199809459 | BB66: 0.8530815459 | BC66: 0.5131396146 | BD66: 0.3354275313 | BE66: 0.02827283236 | BF66: 0.9312079459 | BG66: 18.25167574
A67: Design | B67: Value | C67: Units | G67: 58 | H67: 12 | I67: 1 | J67: 2.32 | K67: 2.32 | L67: 0.7088888889 | M67: 0.280177501 | N67: 2.340105352 | O67: 3.490052676 | P67: 1.149947324 | Q67: 0 | R67: 2.41634871 | S67: 0.02043559381 | T67: 0.1 | U67: 0.1206328101 | V67: 0.6755302275 | W67: 0.0004563410882 | X67: 0.0004563410882 | Y67: 1.085147929 | Z67: 0.001177546028 | AA67: 0.001177546028 | AB67: 1.279016766 | AC67: 0.03926121329 | AD67: 0.1153159938 | AE67: 0.06336 | AF67: 0 | AG67: 0.2184518081 | AH67: 2.05008712 | AI67: 0.07565142962 | AJ67: 0.1143296 | AK67: 0.1908473019 | AL67: 0.1143296 | AM67: 0.45936 | AN67: 0.02919370544 | AO67: 2.64e-05 | AP67: 0.0781 | AQ67: 0.1241835294 | AR67: 0.10934 | AS67: 0.0781264 | AT67: 1.212575513 | AU67: 7.656 | AV67: 0.8632727983 | AW67: 7.824441121 | AX67: 5.136541528 | AZ67: 86.32727983 | BA67: 0.1206328101 | BB67: 0.8686591099 | BC67: 0.5216294081 | BD67: 0.3424361019 | BE67: 0.02919370544 | BF67: 0.9467855099 | BG67: 18.55699599
A68: Dmax | B68: =D1_Vinmin -> 0.275 | C68: index | G68: 59 | H68: 12 | I68: 1 | J68: 2.36 | K68: 2.36 | L68: 0.7211111111 | M68: 0.2802667858 | N68: 2.340552923 | O68: 3.530276461 | P68: 1.189723539 | Q68: 0 | R68: 2.454814792 | S68: 0.02109140483 | T68: 0.1 | U68: 0.1212960692 | V68: 0.67565943 | W68: 0.0004565156653 | X68: 0.0004565156653 | Y68: 1.102529759 | Z68: 0.001215571869 | AA68: 0.001215571869 | AB68: 1.299584575 | AC68: 0.04053408164 | AD68: 0.1173042006 | AE68: 0.06336 | AF68: 0 | AG68: 0.2217375579 | AH68: 2.082593479 | AI68: 0.07806952074 | AJ68: 0.1163008 | AK68: 0.1952850695 | AL68: 0.1163008 | AM68: 0.46728 | AN68: 0.03013057833 | AO68: 2.64e-05 | AP68: 0.0781 | AQ68: 0.1241835294 | AR68: 0.10934 | AS68: 0.0781264 | AT68: 1.231828562 | AU68: 7.788 | AV68: 0.8634310448 | AW68: 7.952135369 | AX68: 5.242312042 | AZ68: 86.34310448 | BA68: 0.1212960692 | BB68: 0.8843026274 | BC68: 0.5301423579 | BD68: 0.3494874695 | BE68: 0.03013057833 | BF68: 0.9624290274 | BG68: 18.86360894
A69: Dprime | B69: =1-B68 -> 0.725 | C69: index | G69: 60 | H69: 12 | I69: 1 | J69: 2.4 | K69: 2.4 | L69: 0.7333333333 | M69: 0.2803560712 | N69: 2.341000308 | O69: 3.570500154 | P69: 1.229499846 | Q69: 0 | R69: 2.493329141 | S69: 0.02175841571 | T69: 0.1 | U69: 0.1219707269 | V69: 0.6757885791 | W69: 0.0004566902037 | X69: 0.0004566902037 | Y69: 1.119936576 | Z69: 0.001254257934 | AA69: 0.001254257934 | AB69: 1.320184397 | AC69: 0.04182928419 | AD69: 0.1192924074 | AE69: 0.06336 | AF69: 0 | AG69: 0.2250465036 | AH69: 2.115136724 | AI69: 0.08052846052 | AJ69: 0.118272 | AK69: 0.1997656698 | AL69: 0.118272 | AM69: 0.4752 | AN69: 0.03108345102 | AO69: 2.64e-05 | AP69: 0.0781 | AQ69: 0.1241835294 | AR69: 0.10934 | AS69: 0.0781264 | AT69: 1.251175699 | AU69: 7.92 | AV69: 0.8635752121 | AW69: 8.080177554 | AX69: 5.348725047 | AZ69: 86.35752121 | BA69: 0.1219707269 | BB69: 0.9000121734 | BC69: 0.5386785036 | BD69: 0.3565816698 | BE69: 0.03108345102 | BF69: 0.9781385734 | BG69: 19.17151604
A70: Ipp | B70: =Iripple_Vinnom -> 2.333779613 | C70: A | G70: 61 | H70: 12 | I70: 1 | J70: 2.44 | K70: 2.44 | L70: 0.7455555556 | M70: 0.2804453572 | N70: 2.341447509 | O70: 3.610723755 | P70: 1.269276245 | Q70: 0 | R70: 2.531889552 | S70: 0.02243662646 | T70: 0.1 | U70: 0.1226567868 | V70: 0.6759176748 | W70: 0.0004568647031 | X70: 0.0004568647031 | Y70: 1.137367394 | Z70: 0.001293604589 | AA70: 0.001293604589 | AB70: 1.340815074 | AC70: 0.04314684153 | AD70: 0.1212806142 | AE70: 0.06336 | AF70: 0 | AG70: 0.2283786848 | AH70: 2.147714981 | AI70: 0.08302823351 | AJ70: 0.1202432 | AK70: 0.2042891395 | AL70: 0.1202432 | AM70: 0.48312 | AN70: 0.03205232352 | AO70: 2.64e-05 | AP70: 0.0781 | AQ70: 0.1241835294 | AR70: 0.10934 | AS70: 0.0781264 | AT70: 1.270617004 | AU70: 8.052 | AV70: 0.863705974 | AW70: 8.208568272 | AX70: 5.455781092 | AZ70: 86.3705974 | BA70: 0.1226567868 | BB70: 0.9157878243 | BC70: 0.5472378848 | BD70: 0.3637187395 | BE70: 0.03205232352 | BF70: 0.9939142243 | BG70: 19.4807188
A71: Top FET | B71: Value | C71: Units | G71: 62 | H71: 12 | I71: 1 | J71: 2.48 | K71: 2.48 | L71: 0.7577777778 | M71: 0.2805346438 | N71: 2.341894525 | O71: 3.650947262 | P71: 1.309052738 | Q71: 0 | R71: 2.570493953 | S71: 0.02312603707 | T71: 0.1 | U71: 0.1233542527 | V71: 0.6760467171 | W71: 0.0004570391638 | X71: 0.0004570391638 | Y71: 1.154821286 | Z71: 0.001333612202 | AA71: 0.001333612202 | AB71: 1.36147552 | AC71: 0.04448677422 | AD71: 0.1232688209 | AE71: 0.06336 | AF71: 0 | AG71: 0.2317341414 | AH71: 2.180326483 | AI71: 0.08556882428 | AJ71: 0.1222144 | AK71: 0.2088555155 | AL71: 0.1222144 | AM71: 0.49104 | AN71: 0.03303719582 | AO71: 2.64e-05 | AP71: 0.0781 | AQ71: 0.1241835294 | AR71: 0.10934 | AS71: 0.0781264 | AT71: 1.290152557 | AU71: 8.184 | AV71: 0.8638239622 | AW71: 8.337308121 | AX71: 5.563480733 | AZ71: 86.38239622 | BA71: 0.1233542527 | BB71: 0.931629657 | BC71: 0.5558205414 | BD71: 0.3708987155 | BE71: 0.03303719582 | BF71: 1.009756057 | BG71: 19.79121872
A72: Tr | B72: =(Qgd_Q1+Qgs_Q1/2)*(RdsonDRT+Rgate1)/(VCC-Vsp_Q1)*1000000000 -> 1.503024194 | C72: ns | D72: Turn on of MOSFET -> Rise time of current | G72: 63 | H72: 12 | I72: 1 | J72: 2.52 | K72: 2.52 | L72: 0.77 | M72: 0.280623931 | N72: 2.342341355 | O72: 3.691170678 | P72: 1.348829322 | Q72: 0 | R72: 2.609140392 | S72: 0.02382664755 | T72: 0.1 | U72: 0.1240631282 | V72: 0.676175706 | W72: 0.0004572135854 | X72: 0.0004572135854 | Y72: 1.172297377 | Z72: 0.00137428114 | AA72: 0.00137428114 | AB72: 1.38216471 | AC72: 0.04584910285 | AD72: 0.1252570277 | AE72: 0.06336 | AF72: 0 | AG72: 0.2351129135 | AH72: 2.212969566 | AI72: 0.0881502174 | AJ72: 0.1241856 | AK72: 0.2134648357 | AL72: 0.1241856 | AM72: 0.49896 | AN72: 0.03403806793 | AO72: 2.64e-05 | AP72: 0.0781 | AQ72: 0.1241835294 | AR72: 0.10934 | AS72: 0.0781264 | AT72: 1.30978244 | AU72: 8.316 | AV72: 0.863929769 | AW72: 8.466397703 | AX72: 5.671824536 | AZ72: 86.3929769 | BA72: 0.1240631282 | BB72: 0.9475377492 | BC72: 0.5644265135 | BD72: 0.3781216357 | BE72: 0.03403806793 | BF72: 1.025664149 | BG72: 20.10301733
A73: Tf | B73: =(Qgd_Q1+Qgs_Q1/2)*(RdsonDRT2+Rgate1)/(Vsp_Q1)*1000000000 -> 2.262518968 | C73: ns | D73: Turn off of MOSFET -> Fall time of current | G73: 64 | H73: =Vin -> 12 | I73: =MODE -> 1 | J73: 2.56 | K73: =Iout*G73/100/Number_of_Phases -> 2.56 | L73: =Vout*K73/(Vin*Efficiency) -> 0.7822222222 | M73: =(Vout+(Rdson2+Rs+Rdcr)*K73)/(Vin+(Rs+Rdson2-Rdson1)*K73) -> 0.2807132188 | N73: =(Vin-(Rdson1+Rdcr)*K73-Vout)*M73/(Fsw*Lf) -> 2.342788001 | O73: 3.731394001 | P73: 1.388605999 | Q73: =IF(MIN(Vin, -P73/(Coss_Q1+Coss_Q2)*0.00000002)<0, 0, MIN(Vin, -P73/(Coss_Q1+Coss_Q2)*0.00000002)) -> 0 | R73: 2.647827028 | S73: =R73^2*Rdcr -> 0.02453845789 | T73: =Core_Loss_Ch1 -> 0.1 | U73: =(T73+S73*(1+Ltc*(Ta-25)))/(1-S73*Ltc*ThetaCa) -> 0.1247834173 | V73: 0.6763046415 | W73: 0.0004573879682 | X73: 0.0004573879682 | Y73: 1.189794844 | Z73: 0.00141561177 | AA73: 0.00141561177 | AB73: 1.402881677 | AC73: =Rdson1*AB73^2 -> 0.04723384799 | AD73: =(Vin*K73/2)*Fsw*(Tr_buck+Tf_buck) -> 0.1272452345 | AE73: =(0.5*Coss_Q1*(Vin-Q73)^2-0.5*Coss_Q2*(Vin-Q73)^2+(Qoss_Q2*(Vin-Q73)/Vin)*Vin)*Fsw -> 0.06336 | AF73: =IF(K73>N73/2,0,ABS(K73-N73/2)*Vsd_Q1*Deadtime*Fsw) -> 0 | AG73: =(AF73+AE73+AD73+AC73*(1+RdsonTopTc*Ta-RdsonTopTc*25))/(1-AC73*RdsonTopTc*ThetaJA_Q1) -> 0.2385150415 | AH73: =SQRT((1-M73))*SQRT(K73^2+(N73^2)/12) -> 2.245642663 | AI73: =Rdson2*AH73^2 -> 0.09077239743 | AJ73: =IF(K73<N73/2,Deadtime*Fsw*IF(VfdSky_Q2>0,0,Vsd_Q2)*(K73+N73/2),2*Deadtime*Fsw*IF(VfdSky_Q2>0,0,Vsd_Q2)*K73) -> 0.1261568 | AK73: =(AJ73+AI73*(1+RdsonBotTc*Ta-RdsonBotTc*25))/(1-AI73*RdsonBotTc*ThetaJA_Q2) -> 0.2181171384 | AL73: =2*Deadtime*Fsw*IF(VfdSky_Q2>0,VfdSky_Q2,Vsd_Q2)*K73 -> 0.1261568 | AM73: =IF(QrrSky_Q2>0,QrrSky_Q2,Qrr_Q2*K73/(Iout/Number_of_Phases))*Fsw*Vin -> 0.50688 | AN73: =Rs*R73^2 -> 0.03505493984 | AO73: =Iq*Vin -> 2.64e-05 | AP73: =IF(Ext_VCC=1, (Qg_Q1+Qg_Q2)*Fsw*VCC, (Qg_Q1+Qg_Q2)*Fsw*Vout) -> 0.0781 | AQ73: =(Vin-VCC)*Fsw*(Qg_Q1+Qg_Q2)+(RdsonDRT+RdsonDRT2)*Fsw*Qg_Q1*VCC/(RdsonDRT+2*Rgate1+RdsonDRT2)+(RdsonDRB+RdsonDRB2)*Fsw*Qg_Q2*VCC/(RdsonDRB+2*Rgate2+RdsonDRB2) -> 0.1241835294 | AR73: =(Qg_Q1+Qg_Q2)*Fsw*(Vin-VCC) -> 0.10934 | AS73: 0.0781264 | AT73: =SUM(U73,X73,AA73,AG73,AK73,AL73,AM73,AS73,AN73) -> 1.329506737 | AU73: =Vout*K73 -> 8.448 | AV73: 0.8640239508 | AW73: =ThetaJA_Q1*BC73 -> 8.595837623 | AX73: =ThetaJA_Q2*BD73 -> 5.780813076 | AZ73: 86.40239508 | BA73: =U73 -> 0.1247834173 | BB73: 0.9635121799 | BC73: 0.5730558415 | BD73: 0.3853875384 | BE73: 0.03505493984 | BF73: 1.04163858 | BG73: 20.41611617
A74: Part Power | B74: Value | C74: Units | G74: 65 | H74: 12 | I74: 1 | J74: =Iout*G74/100 -> 2.6 | K74: 2.6 | L74: 0.7944444444 | M74: 0.2808025072 | N74: 2.343234462 | O74: =K74+N74/2 -> 3.771617231 | P74: =K74-N74/2 -> 1.428382769 | Q74: 0 | R74: =SQRT(K74^2+(N74^2)/12) -> 2.686552123 | S74: 0.02526146809 | T74: 0.1 | U74: 0.1255151238 | V74: =N74/SQRT(12) -> 0.6764335236 | W74: =RCoutEsr*V74^2 -> 0.0004575623119 | X74: =W74 -> 0.0004575623119 | Y74: =SQRT(M74*(1-M74))*SQRT(K74^2+(N74^2)/12) -> 1.207312908 | Z74: =RCinEsr*Y74^2 -> 0.001457604458 | AA74: =Z74 -> 0.001457604458 | AB74: =SQRT(M74)*SQRT(K74^2+(N74^2)/12) -> 1.42362551 | AC74: 0.04864103023 | AD74: 0.1292334413 | AE74: 0.06336 | AF74: 0 | AG74: 0.2419405658 | AH74: 2.278344293 | AI74: 0.09343534894 | AJ74: 0.128128 | AK74: 0.2228124625 | AL74: 0.128128 | AM74: 0.5148 | AN74: 0.03608781156 | AO74: 2.64e-05 | AP74: 0.0781 | AQ74: 0.1241835294 | AR74: 0.10934 | AS74: 0.0781264 | AT74: 1.349325531 | AU74: 8.58 | AV74: =AU74/(AU74+AT74) -> 0.8641070306 | AW74: 8.725628488 | AX74: 5.890446938 | AZ74: =AV74*100 -> 86.41070306 | BA74: 0.1255151238 | BB74: =AG74+AK74+AM74 -> 0.9795530284 | BC74: =AG74+AM74*0.66 -> 0.5817085658 | BD74: =AK74+AM74*0.33 -> 0.3926964625 | BE74: =AN74 -> 0.03608781156 | BF74: =BB74+AS74 -> 1.057679428 | BG74: 20.7305168
A75: Power Dis | B75: =AS9 -> 0.0781264 | C75: W | G75: 66 | H75: 12 | I75: 1 | J75: 2.64 | K75: 2.64 | L75: 0.8066666667 | M75: 0.2808917962 | N75: 2.343680737 | O75: 3.811840369 | P75: 1.468159631 | Q75: 0 | R75: 2.72531404 | S75: 0.02599567816 | T75: 0.1 | U75: 0.1262582517 | V75: 0.6765623523 | W75: 0.0004577366166 | X75: 0.0004577366166 | Y75: 1.224850836 | Z75: 0.00150025957 | AA75: 0.00150025957 | AB75: 1.444395349 | AC75: 0.05007067016 | AD75: 0.1312216481 | AE75: 0.06336 | AF75: 0 | AG75: 0.2453895273 | AH75: 2.311073061 | AI75: 0.09613905648 | AJ75: 0.1300992 | AK75: 0.2275508479 | AL75: 0.1300992 | AM75: 0.52272 | AN75: 0.03713668308 | AO75: 2.64e-05 | AP75: 0.0781 | AQ75: 0.1241835294 | AR75: 0.10934 | AS75: =SUM(AO75:AP75) -> 0.0781264 | AT75: 1.369238906 | AU75: 8.712 | AV75: 0.8641795003 | AW75: 8.85577091 | AX75: 6.000726719 | AZ75: 86.41795003 | BA75: 0.1262582517 | BB75: 0.9956603752 | BC75: 0.5903847273 | BD75: 0.4000484479 | BE75: 0.03713668308 | BF75: 1.073786775 | BG75: =BF75*$B$63 -> 21.04622079
A76: Temp rise | B76: =B75*B62 -> 2.343792 | C76: °C | G76: 67 | H76: 12 | I76: 1 | J76: 2.68 | K76: 2.68 | L76: 0.8188888889 | M76: 0.2809810858 | N76: 2.344126828 | O76: 3.852063414 | P76: 1.507936586 | Q76: 0 | R76: 2.764111228 | S76: 0.02674108809 | T76: 0.1 | U76: 0.1270128049 | V76: 0.6766911276 | W76: 0.0004579108822 | X76: 0.0004579108822 | Y76: 1.242407933 | Z76: 0.001543577472 | AA76: 0.001543577472 | AB76: 1.465190379 | AC76: 0.05152278834 | AD76: 0.1332098549 | AE76: 0.06336 | AF76: 0 | AG76: 0.248861967 | AH76: 2.343827646 | AI76: 0.09888350463 | AJ76: 0.1320704 | AK76: 0.2323323348 | AL76: 0.1320704 | AM76: 0.53064 | AN76: 0.03820155441 | AO76: 2.64e-05 | AP76: 0.0781 | AQ76: 0.1241835294 | AR76: 0.10934 | AS76: 0.0781264 | AT76: 1.389246949 | AU76: 8.844 | AV76: 0.8642418231 | AW76: 8.986265505 | AX76: 6.111653021 | AZ76: 86.42418231 | BA76: 0.1270128049 | BB76: 1.011834302 | BC76: 0.599084367 | BD76: 0.4074435348 | BE76: 0.03820155441 | BF76: 1.089960702 | BG76: 21.36322975
A77: Current (switching) | B77: =(Qg_Q1+Qg_Q2)*Fsw+Iq -> 0.0156222 | C77: A | G77: 68 | H77: 12 | I77: 1 | J77: 2.72 | K77: 2.72 | L77: 0.8311111111 | M77: 0.281070376 | N77: 2.344572734 | O77: 3.892286367 | P77: 1.547713633 | Q77: 0 | R77: 2.802942224 | S77: 0.02749769788 | T77: 0.1 | U77: 0.1277787877 | V77: 0.6768198495 | W77: 0.0004580851086 | X77: 0.0004580851086 | Y77: 1.259983543 | Z77: 0.001587558529 | AA77: 0.001587558529 | AB77: 1.486009833 | AC77: 0.05299740536 | AD77: 0.1351980617 | AE77: 0.06336 | AF77: 0 | AG77: 0.252357926 | AH77: 2.376606801 | AI77: 0.1016686779 | AJ77: 0.1340416 | AK77: 0.237156964 | AL77: 0.1340416 | AM77: 0.53856 | AN77: 0.03928242554 | AO77: 2.64e-05 | AP77: 0.0781 | AQ77: 0.1241835294 | AR77: 0.10934 | AS77: 0.0781264 | AT77: 1.409349747 | AU77: 8.976 | AV77: 0.8642944358 | AW77: 9.117112889 | AX77: 6.223226461 | AZ77: 86.42944358 | BA77: 0.1277787877 | BB77: 1.02807489 | BC77: 0.607807526 | BD77: 0.414881764 | BE77: 0.03928242554 | BF77: 1.10620129 | BG77: 21.68154528
A78: Qrr Current | B78: =Qrr_Q2*Fsw -> 0.066 | C78: A | G78: 69 | H78: 12 | I78: 1 | J78: 2.76 | K78: 2.76 | L78: 0.8433333333 | M78: 0.2811596667 | N78: 2.345018454 | O78: 3.932509227 | P78: 1.587490773 | Q78: 0 | R78: 2.84180564 | S78: 0.02826550754 | T78: 0.1 | U78: 0.128556204 | V78: 0.6769485179 | W78: 0.0004582592959 | X78: 0.0004582592959 | Y78: 1.277577046 | Z78: 0.001632203108 | AA78: 0.001632203108 | AB78: 1.506852982 | AC78: 0.0544945418 | AD78: 0.1371862685 | AE78: 0.06336 | AF78: 0 | AG78: 0.2558774457 | AH78: 2.409409344 | AI78: 0.104494561 | AJ78: 0.1360128 | AK78: 0.2420247774 | AL78: 0.1360128 | AM78: 0.54648 | AN78: 0.04037929648 | AO78: 2.64e-05 | AP78: 0.0781 | AQ78: 0.1241835294 | AR78: 0.10934 | AS78: 0.0781264 | AT78: 1.429547386 | AU78: 9.108 | AV78: 0.8643377502 | AW78: 9.248313686 | AX78: 6.33544766 | AZ78: 86.43377502 | BA78: 0.128556204 | BB78: 1.044382223 | BC78: 0.6165542457 | BD78: 0.4223631774 | BE78: 0.04037929648 | BF78: 1.122508623 | BG78: 22.00116901
A79: Diode Current | B79: =Deadtime*Fsw*(Iripple_Vinnom/2)*(Vsd_Q2)/Vin -> 0.002396013736 | G79: 70 | H79: 12 | I79: 1 | J79: 2.8 | K79: 2.8 | L79: 0.8555555556 | M79: 0.2812489581 | N79: 2.34546399 | O79: 3.972731995 | P79: 1.627268005 | Q79: 0 | R79: 2.880700166 | S79: 0.02904451705 | T79: 0.1 | U79: 0.1293450582 | V79: 0.677077133 | W79: 0.000458433444 | X79: 0.000458433444 | Y79: 1.295187852 | Z79: 0.001677511572 | AA79: 0.001677511572 | AB79: 1.527719136 | AC79: 0.05601421824 | AD79: 0.1391744753 | AE79: 0.06336 | AF79: 0 | AG79: 0.2594205679 | AH79: 2.442234158 | AI79: 0.1073611383 | AJ79: 0.137984 | AK79: 0.2469358169 | AL79: 0.137984 | AM79: 0.5544 | AN79: 0.04149216722 | AO79: 2.64e-05 | AP79: 0.0781 | AQ79: 0.1241835294 | AR79: 0.10934 | AS79: 0.0781264 | AT79: 1.449839955 | AU79: 9.24 | AV79: 0.8643721551 | AW79: 9.379868519 | AX79: 6.448317254 | AZ79: 86.43721551 | BA79: 0.1293450582 | BB79: 1.060756385 | BC79: 0.6253245679 | BD79: 0.4298878169 | BE79: 0.04149216722 | BF79: 1.138882785 | BG79: 22.32210258
A80: Total | B80: =SUM(B77:B79) -> 0.08401821374 | C80: A | G80: 71 | H80: 12 | I80: 1 | J80: 2.84 | K80: 2.84 | L80: 0.8677777778 | M80: 0.2813382501 | N80: 2.345909341 | O80: 4.01295467 | P80: 1.66704533 | Q80: 0 | R80: 2.919624557 | S80: 0.02983472643 | T80: 0.1 | U80: 0.1301453545 | V80: 0.6772056946 | W80: 0.0004586075528 | X80: 0.0004586075528 | Y80: 1.312815404 | Z80: 0.001723484286 | AA80: 0.001723484286 | AB80: 1.548607644 | AC80: 0.05755645526 | AD80: 0.141162682 | AE80: 0.06336 | AF80: 0 | AG80: 0.2629873344 | AH80: 2.475080184 | AI80: 0.1102683945 | AJ80: 0.1399552 | AK80: 0.2518901257 | AL80: 0.1399552 | AM80: 0.56232 | AN80: 0.04262103776 | AO80: 2.64e-05 | AP80: 0.0781 | AQ80: 0.1241835294 | AR80: 0.10934 | AS80: 0.0781264 | AT80: 1.470227544 | AU80: 9.372 | AV80: 0.864398018 | AW80: 9.511778017 | AX80: 6.561835885 | AZ80: 86.4398018 | BA80: 0.1301453545 | BB80: 1.07719746 | BC80: 0.6341185344 | BD80: 0.4374557257 | BE80: 0.04262103776 | BF80: 1.15532386 | BG80: 22.64434766
G81: 72 | H81: 12 | I81: 1 | J81: 2.88 | K81: 2.88 | L81: 0.88 | M81: 0.2814275426 | N81: 2.346354506 | O81: 4.053177253 | P81: 1.706822747 | Q81: 0 | R81: 2.958577635 | S81: 0.03063613568 | T81: 0.1 | U81: 0.1309570972 | V81: 0.6773342029 | W81: 0.0004587816224 | X81: 0.0004587816224 | Y81: 1.330459174 | Z81: 0.001770121615 | AA81: 0.001770121615 | AB81: 1.569517886 | AC81: 0.05912127346 | AD81: 0.1431508888 | AE81: 0.06336 | AF81: 0 | AG81: 0.2665777874 | AH81: 2.507946417 | AI81: 0.1132163141 | AJ81: 0.1419264 | AK81: 0.2568877471 | AL81: 0.1419264 | AM81: 0.57024 | AN81: 0.04376590811 | AO81: 2.64e-05 | AP81: 0.0781 | AQ81: 0.1241835294 | AR81: 0.10934 | AS81: 0.0781264 | AT81: 1.490710243 | AU81: 9.504 | AV81: 0.8644156863 | AW81: 9.644042811 | AX81: 6.676004207 | AZ81: 86.44156863 | BA81: 0.1309570972 | BB81: 1.093705535 | BC81: 0.6429361874 | BD81: 0.4450669471 | BE81: 0.04376590811 | BF81: 1.171831935 | BG81: 22.96790592
G82: 73 | H82: 12 | I82: 1 | J82: 2.92 | K82: 2.92 | L82: 0.8922222222 | M82: 0.2815168358 | N82: 2.346799487 | O82: 4.093399743 | P82: 1.746600257 | Q82: 0 | R82: 2.997558282 | S82: 0.03144874478 | T82: 0.1 | U82: 0.1317802908 | V82: 0.6774626577 | W82: 0.0004589556526 | X82: 0.0004589556526 | Y82: 1.34811866 | Z82: 0.001817423922 | AA82: 0.001817423922 | AB82: 1.590449273 | AC82: 0.0607086934 | AD82: 0.1451390956 | AE82: 0.06336 | AF82: 0 | AG82: 0.2701919691 | AH82: 2.540831903 | AI82: 0.1162048817 | AJ82: 0.1438976 | AK82: 0.2619287255 | AL82: 0.1438976 | AM82: 0.57816 | AN82: 0.04492677826 | AO82: 2.64e-05 | AP82: 0.0781 | AQ82: 0.1241835294 | AR82: 0.10934 | AS82: 0.0781264 | AT82: 1.511288143 | AU82: 9.636 | AV82: 0.8644254886 | AW82: 9.776663537 | AX82: 6.790822882 | AZ82: 86.44254886 | BA82: 0.1317802908 | BB82: 1.110280695 | BC82: 0.6517775691 | BD82: 0.4527215255 | BE82: 0.04492677826 | BF82: 1.188407095 | BG82: 23.29277905
G83: 74 | H83: 12 | I83: 1 | J83: 2.96 | K83: 2.96 | L83: 0.9044444444 | M83: 0.2816061295 | N83: 2.347244282 | O83: 4.133622141 | P83: 1.786377859 | Q83: 0 | R83: 3.036565435 | S83: 0.03227255375 | T83: 0.1 | U83: 0.1326149396 | V83: 0.6775910591 | W83: 0.0004591296434 | X83: 0.0004591296434 | Y83: 1.365793385 | Z83: 0.001865391572 | AA83: 0.001865391572 | AB83: 1.611401249 | AC83: 0.06231873567 | AD83: 0.1471273024 | AE83: 0.06336 | AF83: 0 | AG83: 0.2738299222 | AH83: 2.57373574 | AI83: 0.1192340818 | AJ83: 0.1458688 | AK83: 0.2670131056 | AL83: 0.1458688 | AM83: 0.58608 | AN83: 0.04610364822 | AO83: 2.64e-05 | AP83: 0.0781 | AQ83: 0.1241835294 | AR83: 0.10934 | AS83: 0.0781264 | AT83: 1.531961337 | AU83: 9.768 | AV83: 0.8644277364 | AW83: 9.909640832 | AX83: 6.906292584 | AZ83: 86.44277364 | BA83: 0.1326149396 | BB83: 1.126923028 | BC83: 0.6606427222 | BD83: 0.4604195056 | BE83: 0.04610364822 | BF83: 1.205049428 | BG83: 23.61896878
G84: 75 | H84: 12 | I84: 1 | J84: 3 | K84: 3 | L84: 0.9166666667 | M84: 0.2816954239 | N84: 2.347688893 | O84: 4.173844446 | P84: 1.826155554 | Q84: 0 | R84: 3.075598087 | S84: 0.03310756258 | T84: 0.1 | U84: 0.1334610482 | V84: 0.6777194071 | W84: 0.0004593035948 | X84: 0.0004593035948 | Y84: 1.383482897 | Z84: 0.001914024927 | AA84: 0.001914024927 | AB84: 1.632373283 | AC84: 0.06395142085 | AD84: 0.1491155092 | AE84: 0.06336 | AF84: 0 | AG84: 0.2774916893 | AH84: 2.606657066 | AI84: 0.1223038991 | AJ84: 0.14784 | AK84: 0.2721409329 | AL84: 0.14784 | AM84: 0.594 | AN84: 0.04729651797 | AO84: 2.64e-05 | AP84: 0.0781 | AQ84: 0.1241835294 | AR84: 0.10934 | AS84: 0.0781264 | AT84: 1.552729917 | AU84: 9.9 | AV84: 0.8644227247 | AW84: 10.04297534 | AX84: 7.022413993 | AZ84: 86.44227247 | BA84: 0.1334610482 | BB84: 1.143632622 | BC84: 0.6695316893 | BD84: 0.4681609329 | BE84: 0.04729651797 | BF84: 1.221759022 | BG84: 23.94647684
G85: 76 | H85: 12 | I85: 1 | J85: 3.04 | K85: 3.04 | L85: 0.9288888889 | M85: 0.2817847188 | N85: 2.348133318 | O85: 4.214066659 | P85: 1.865933341 | Q85: 0 | R85: 3.114655279 | S85: 0.03395377127 | T85: 0.1 | U85: 0.1343186212 | V85: 0.6778477017 | W85: 0.0004594775067 | X85: 0.0004594775067 | Y85: 1.401186765 | Z85: 0.001963324351 | AA85: 0.001963324351 | AB85: 1.653364871 | AC85: 0.06560676953 | AD85: 0.151103716 | AE85: 0.06336 | AF85: 0 | AG85: 0.2811773136 | AH85: 2.639595065 | AI85: 0.125414318 | AJ85: 0.1498112 | AK85: 0.2773122536 | AL85: 0.1498112 | AM85: 0.60192 | AN85: 0.04850538753 | AO85: 2.64e-05 | AP85: 0.0781 | AQ85: 0.1241835294 | AR85: 0.10934 | AS85: 0.0781264 | AT85: 1.573593978 | AU85: 10.032 | AV85: 0.8644107332 | AW85: 10.1766677 | AX85: 7.139187804 | AZ85: 86.44107332 | BA85: 0.1343186212 | BB85: 1.160409567 | BC85: 0.6784445136 | BD85: 0.4759458536 | BE85: 0.04850538753 | BF85: 1.238535967 | BG85: 24.27530496
G86: 77 | H86: 12 | I86: 1 | J86: 3.08 | K86: 3.08 | L86: 0.9411111111 | M86: 0.2818740143 | N86: 2.348577559 | O86: 4.254288779 | P86: 1.905711221 | Q86: 0 | R86: 3.153736099 | S86: 0.03481117983 | T86: 0.1 | U86: 0.1351876632 | V86: 0.6779759429 | W86: 0.0004596513791 | X86: 0.0004596513791 | Y86: 1.41890458 | Z86: 0.002013290207 | AA86: 0.002013290207 | AB86: 1.674375534 | AC86: 0.0672848023 | AD86: 0.1530919228 | AE86: 0.06336 | AF86: 0 | AG86: 0.2848868384 | AH86: 2.672548961 | AI86: 0.1285653231 | AJ86: 0.1517824 | AK86: 0.2825271145 | AL86: 0.1517824 | AM86: 0.60984 | AN86: 0.0497302569 | AO86: 2.64e-05 | AP86: 0.0781 | AQ86: 0.1241835294 | AR86: 0.10934 | AS86: 0.0781264 | AT86: 1.594553615 | AU86: 10.164 | AV86: 0.8643920276 | AW86: 10.31071858 | AX86: 7.256614717 | AZ86: 86.43920276 | BA86: 0.1351876632 | BB86: 1.177253953 | BC86: 0.6873812384 | BD86: 0.4837743145 | BE86: 0.0497302569 | BF86: 1.255380353 | BG86: 24.60545492
G87: 78 | H87: 12 | I87: 1 | J87: 3.12 | K87: 3.12 | L87: 0.9533333333 | M87: 0.2819633105 | N87: 2.349021614 | O87: 4.294510807 | P87: 1.945489193 | Q87: 0 | R87: 3.192839678 | S87: 0.03567978824 | T87: 0.1 | U87: 0.1360681789 | V87: 0.6781041306 | W87: 0.000459825212 | X87: 0.000459825212 | Y87: 1.436635951 | Z87: 0.002063922857 | AA87: 0.002063922857 | AB87: 1.695404815 | AC87: 0.06898553972 | AD87: 0.1550801296 | AE87: 0.06336 | AF87: 0 | AG87: 0.2886203069 | AH87: 2.705518014 | AI87: 0.131756899 | AJ87: 0.1537536 | AK87: 0.287785563 | AL87: 0.1537536 | AM87: 0.61776 | AN87: 0.05097112606 | AO87: 2.64e-05 | AP87: 0.0781 | AQ87: 0.1241835294 | AR87: 0.10934 | AS87: 0.0781264 | AT87: 1.615608923 | AU87: 10.296 | AV87: 0.8643668598 | AW87: 10.4451286 | AX87: 7.374695445 | AZ87: 86.43668598 | BA87: 0.1360681789 | BB87: 1.19416587 | BC87: 0.6963419069 | BD87: 0.491646363 | BE87: 0.05097112606 | BF87: 1.27229227 | BG87: 24.93692849
G88: 79 | H88: 12 | I88: 1 | J88: 3.16 | K88: 3.16 | L88: 0.9655555556 | M88: 0.2820526072 | N88: 2.349465484 | O88: 4.334732742 | P88: 1.985267258 | Q88: 0 | R88: 3.231965192 | S88: 0.03655959652 | T88: 0.1 | U88: 0.1369601732 | V88: 0.678232265 | W88: 0.0004599990052 | X88: 0.0004599990052 | Y88: 1.454380508 | Z88: 0.002115222663 | AA88: 0.002115222663 | AB88: 1.716452281 | AC88: 0.07070900239 | AD88: 0.1570683364 | AE88: 0.06336 | AF88: 0 | AG88: 0.2923777632 | AH88: 2.738501519 | AI88: 0.1349890303 | AJ88: 0.1557248 | AK88: 0.2930876473 | AL88: 0.1557248 | AM88: 0.62568 | AN88: 0.05222799503 | AO88: 2.64e-05 | AP88: 0.0781 | AQ88: 0.1241835294 | AR88: 0.10934 | AS88: 0.0781264 | AT88: 1.63676 | AU88: 10.428 | AV88: 0.8643354696 | AW88: 10.57989845 | AX88: 7.49343071 | AZ88: 86.43354696 | BA88: 0.1369601732 | BB88: 1.21114541 | BC88: 0.7053265632 | BD88: 0.4995620473 | BE88: 0.05222799503 | BF88: 1.28927181 | BG88: 25.26972749
G89: 80 | H89: 12 | I89: 1 | J89: 3.2 | K89: 3.2 | L89: 0.9777777778 | M89: 0.2821419045 | N89: 2.34990917 | O89: 4.374954585 | P89: 2.025045415 | Q89: 0 | R89: 3.271111854 | S89: 0.03745060466 | T89: 0.1 | U89: 0.1378636508 | V89: 0.6783603459 | W89: 0.0004601727589 | X89: 0.0004601727589 | Y89: 1.472137897 | Z89: 0.002167189988 | AA89: 0.002167189988 | AB89: 1.737517517 | AC89: 0.0724552109 | AD89: 0.1590565431 | AE89: 0.06336 | AF89: 0 | AG89: 0.2961592509 | AH89: 2.771498807 | AI89: 0.1382617015 | AJ89: 0.157696 | AK89: 0.2984334162 | AL89: 0.157696 | AM89: 0.6336 | AN89: 0.05350086379 | AO89: 2.64e-05 | AP89: 0.0781 | AQ89: 0.1241835294 | AR89: 0.10934 | AS89: 0.0781264 | AT89: 1.658006944 | AU89: 10.56 | AV89: 0.8642980846 | AW89: 10.71502876 | AX89: 7.612821243 | AZ89: 86.42980846 | BA89: 0.1378636508 | BB89: 1.228192667 | BC89: 0.7143352509 | BD89: 0.5075214162 | BE89: 0.05350086379 | BF89: 1.306319067 | BG89: 25.60385372
G90: 81 | H90: 12 | I90: 1 | J90: 3.24 | K90: 3.24 | L90: 0.99 | M90: 0.2822312024 | N90: 2.35035267 | O90: 4.415176335 | P90: 2.064823665 | Q90: 0 | R90: 3.310278912 | S90: 0.03835281265 | T90: 0.1 | U90: 0.1387786167 | V90: 0.6784883734 | W90: 0.0004603464728 | X90: 0.0004603464728 | Y90: 1.48990778 | Z90: 0.002219825192 | AA90: 0.002219825192 | AB90: 1.758600128 | AC90: 0.07422418582 | AD90: 0.1610447499 | AE90: 0.06336 | AF90: 0 | AG90: 0.2999648144 | AH90: 2.804509238 | AI90: 0.1415748971 | AJ90: 0.1596672 | AK90: 0.3038229191 | AL90: 0.1596672 | AM90: 0.64152 | AN90: 0.05478973236 | AO90: 2.64e-05 | AP90: 0.0781 | AQ90: 0.1241835294 | AR90: 0.10934 | AS90: 0.0781264 | AT90: 1.679349854 | AU90: 10.692 | AV90: 0.8642549217 | AW90: 10.85052022 | AX90: 7.732867786 | AZ90: 86.42549217 | BA90: 0.1387786167 | BB90: 1.245307733 | BC90: 0.7233680144 | BD90: 0.5155245191 | BE90: 0.05478973236 | BF90: 1.323434133 | BG90: 25.93930902
G91: 82 | H91: 12 | I91: 1 | J91: 3.28 | K91: 3.28 | L91: 1.002222222 | M91: 0.2823205009 | N91: 2.350795985 | O91: 4.455397993 | P91: 2.104602007 | Q91: 0 | R91: 3.349465651 | S91: 0.03926622051 | T91: 0.1 | U91: 0.1397050757 | V91: 0.6786163475 | W91: 0.0004605201471 | X91: 0.0004605201471 | Y91: 1.507689835 | Z91: 0.002273128637 | AA91: 0.002273128637 | AB91: 1.779699738 | AC91: 0.07601594774 | AD91: 0.1630329567 | AE91: 0.06336 | AF91: 0 | AG91: 0.3037944981 | AH91: 2.837532201 | AI91: 0.1449286018 | AJ91: 0.1616384 | AK91: 0.309256206 | AL91: 0.1616384 | AM91: 0.64944 | AN91: 0.05609460074 | AO91: 2.64e-05 | AP91: 0.0781 | AQ91: 0.1241835294 | AR91: 0.10934 | AS91: 0.0781264 | AT91: 1.700788829 | AU91: 10.824 | AV91: 0.8642061872 | AW91: 10.98637347 | AX91: 7.85357109 | AZ91: 86.42061872 | BA91: 0.1397050757 | BB91: 1.262490704 | BC91: 0.7324248981 | BD91: 0.523571406 | BE91: 0.05609460074 | BF91: 1.340617104 | BG91: 26.27609524
G92: 83 | H92: 12 | I92: 1 | J92: 3.32 | K92: 3.32 | L92: 1.014444444 | M92: 0.2824098 | N92: 2.351239116 | O92: 4.495619558 | P92: 2.144380442 | Q92: 0 | R92: 3.388671389 | S92: 0.04019082824 | T92: 0.1 | U92: 0.140643033 | V92: 0.6787442682 | W92: 0.0004606937816 | X92: 0.0004606937816 | Y92: 1.525483754 | Z92: 0.002327100685 | AA92: 0.002327100685 | AB92: 1.800815987 | AC92: 0.07783051725 | AD92: 0.1650211635 | AE92: 0.06336 | AF92: 0 | AG92: 0.3076483466 | AH92: 2.870567115 | AI92: 0.1483228001 | AJ92: 0.1636096 | AK92: 0.3147333278 | AL92: 0.1636096 | AM92: 0.65736 | AN92: 0.05741546891 | AO92: 2.64e-05 | AP92: 0.0781 | AQ92: 0.1241835294 | AR92: 0.10934 | AS92: 0.0781264 | AT92: 1.722323971 | AU92: 10.956 | AV92: 0.8641520776 | AW92: 11.1225892 | AX92: 7.974931918 | AZ92: 86.41520776 | BA92: 0.140643033 | BB92: 1.279741674 | BC92: 0.7415059466 | BD92: 0.5316621278 | BE92: 0.05741546891 | BF92: 1.357868074 | BG92: 26.61421426
G93: 84 | H93: 12 | I93: 1 | J93: 3.36 | K93: 3.36 | L93: 1.026666667 | M93: 0.2824990997 | N93: 2.351682061 | O93: 4.53584103 | P93: 2.18415897 | Q93: 0 | R93: 3.427895473 | S93: 0.04112663582 | T93: 0.1 | U93: 0.1415924937 | V93: 0.6788721355 | W93: 0.0004608673763 | X93: 0.0004608673763 | Y93: 1.543289245 | Z93: 0.002381741695 | AA93: 0.002381741695 | AB93: 1.821948533 | AC93: 0.07966791493 | AD93: 0.1670093703 | AE93: 0.06336 | AF93: 0 | AG93: 0.3115264048 | AH93: 2.903613425 | AI93: 0.1517574766 | AJ93: 0.1655808 | AK93: 0.320254336 | AL93: 0.1655808 | AM93: 0.66528 | AN93: 0.05875233688 | AO93: 2.64e-05 | AP93: 0.0781 | AQ93: 0.1241835294 | AR93: 0.10934 | AS93: 0.0781264 | AT93: 1.74395538 | AU93: 11.088 | AV93: 0.8640927802 | AW93: 11.25916807 | AX93: 8.09695104 | AZ93: 86.40927802 | BA93: 0.1415924937 | BB93: 1.297060741 | BC93: 0.7506112048 | BD93: 0.539796736 | BE93: 0.05875233688 | BF93: 1.375187141 | BG93: 26.95366796
G94: 85 | H94: 12 | I94: 1 | J94: 3.4 | K94: 3.4 | L94: 1.038888889 | M94: 0.2825884 | N94: 2.352124821 | O94: 4.576062411 | P94: 2.223937589 | Q94: 0 | R94: 3.467137282 | S94: 0.04207364326 | T94: 0.1 | U94: 0.1425534627 | V94: 0.6789999493 | W94: 0.0004610409312 | X94: 0.0004610409312 | Y94: 1.561106027 | Z94: 0.002437052029 | AA94: 0.002437052029 | AB94: 1.843097047 | AC94: 0.08152816137 | AD94: 0.1689975771 | AE94: 0.06336 | AF94: 0 | AG94: 0.3154287179 | AH94: 2.936670599 | AI94: 0.1552326157 | AJ94: 0.167552 | AK94: 0.3258192825 | AL94: 0.167552 | AM94: 0.6732 | AN94: 0.06010520466 | AO94: 2.64e-05 | AP94: 0.0781 | AQ94: 0.1241835294 | AR94: 0.10934 | AS94: 0.0781264 | AT94: 1.765683161 | AU94: 11.22 | AV94: 0.8640284736 | AW94: 11.39611077 | AX94: 8.219629238 | AZ94: 86.40284736 | BA94: 0.1425534627 | BB94: 1.314448 | BC94: 0.7597407179 | BD94: 0.5479752825 | BE94: 0.06010520466 | BF94: 1.3925744 | BG94: 27.29445825
G95: 86 | H95: 12 | I95: 1 | J95: 3.44 | K95: 3.44 | L95: 1.051111111 | M95: 0.2826777009 | N95: 2.352567396 | O95: 4.616283698 | P95: 2.263716302 | Q95: 0 | R95: 3.506396219 | S95: 0.04303185056 | T95: 0.1 | U95: 0.1435259455 | V95: 0.6791277097 | W95: 0.0004612144461 | X95: 0.0004612144461 | Y95: 1.578933832 | Z95: 0.002493032045 | AA95: 0.002493032045 | AB95: 1.864261216 | AC95: 0.08341127715 | AD95: 0.1709857839 | AE95: 0.06336 | AF95: 0 | AG95: 0.3193553312 | AH95: 2.969738131 | AI95: 0.1587482022 | AJ95: 0.1695232 | AK95: 0.3314282202 | AL95: 0.1695232 | AM95: 0.68112 | AN95: 0.06147407223 | AO95: 2.64e-05 | AP95: 0.0781 | AQ95: 0.1241835294 | AR95: 0.10934 | AS95: 0.0781264 | AT95: 1.787507416 | AU95: 11.352 | AV95: 0.8639593282 | AW95: 11.53341797 | AX95: 8.342967303 | AZ95: 86.39593282 | BA95: 0.1435259455 | BB95: 1.331903551 | BC95: 0.7688945312 | BD95: 0.5561978202 | BE95: 0.06147407223 | BF95: 1.410029951 | BG95: 27.63658705
G96: 87 | H96: 12 | I96: 1 | J96: 3.48 | K96: 3.48 | L96: 1.063333333 | M96: 0.2827670024 | N96: 2.353009786 | O96: 4.656504893 | P96: 2.303495107 | Q96: 0 | R96: 3.545671717 | S96: 0.04400125772 | T96: 0.1 | U96: 0.1445099473 | V96: 0.6792554168 | W96: 0.0004613879212 | X96: 0.0004613879212 | Y96: 1.596772402 | Z96: 0.002549682105 | AA96: 0.002549682105 | AB96: 1.88544074 | AC96: 0.08531728286 | AD96: 0.1729739907 | AE96: 0.06336 | AF96: 0 | AG96: 0.3233062904 | AH96: 3.002815535 | AI96: 0.1623042204 | AJ96: 0.1714944 | AK96: 0.3370812025 | AL96: 0.1714944 | AM96: 0.68904 | AN96: 0.06285893961 | AO96: 2.64e-05 | AP96: 0.0781 | AQ96: 0.1241835294 | AR96: 0.10934 | AS96: 0.0781264 | AT96: 1.80942825 | AU96: 11.484 | AV96: 0.8638855067 | AW96: 11.67109036 | AX96: 8.466966038 | AZ96: 86.38855067 | BA96: 0.1445099473 | BB96: 1.349427493 | BC96: 0.7780726904 | BD96: 0.5644644025 | BE96: 0.06285893961 | BF96: 1.427553893 | BG96: 27.9800563
G97: 88 | H97: 12 | I97: 1 | J97: 3.52 | K97: 3.52 | L97: 1.075555556 | M97: 0.2828563045 | N97: 2.353451991 | O97: 4.696725996 | P97: 2.343274004 | Q97: 0 | R97: 3.584963229 | S97: 0.04498186475 | T97: 0.1 | U97: 0.1455054733 | V97: 0.6793830704 | W97: 0.0004615613563 | X97: 0.0004615613563 | Y97: 1.614621494 | Z97: 0.002607002568 | AA97: 0.002607002568 | AB97: 1.906635334 | AC97: 0.08724619908 | AD97: 0.1749621975 | AE97: 0.06336 | AF97: 0 | AG97: 0.3272816413 | AH97: 3.035902347 | AI97: 0.1659006551 | AJ97: 0.1734656 | AK97: 0.3427782836 | AL97: 0.1734656 | AM97: 0.69696 | AN97: 0.06425980678 | AO97: 2.64e-05 | AP97: 0.0781 | AQ97: 0.1241835294 | AR97: 0.10934 | AS97: 0.0781264 | AT97: 1.831445769 | AU97: 11.616 | AV97: 0.8638071645 | AW97: 11.80912862 | AX97: 8.591626254 | AZ97: 86.38071645 | BA97: 0.1455054733 | BB97: 1.367019925 | BC97: 0.7872752413 | BD97: 0.5727750836 | BE97: 0.06425980678 | BF97: 1.445146325 | BG97: 28.32486797
G98: 89 | H98: 12 | I98: 1 | J98: 3.56 | K98: 3.56 | L98: 1.087777778 | M98: 0.2829456072 | N98: 2.353894011 | O98: 4.736947006 | P98: 2.383052994 | Q98: 0 | R98: 3.624270237 | S98: 0.04597367163 | T98: 0.1 | U98: 0.1465125291 | V98: 0.6795106705 | W98: 0.0004617347514 | X98: 0.0004617347514 | Y98: 1.63248087 | Z98: 0.002664993792 | AA98: 0.002664993792 | AB98: 1.927844721 | AC98: 0.08919804641 | AD98: 0.1769504043 | AE98: 0.06336 | AF98: 0 | AG98: 0.33128143 | AH98: 3.068998124 | AI98: 0.1695374907 | AJ98: 0.1754368 | AK98: 0.3485195182 | AL98: 0.1754368 | AM98: 0.70488 | AN98: 0.06567667376 | AO98: 2.64e-05 | AP98: 0.0781 | AQ98: 0.1241835294 | AR98: 0.10934 | AS98: 0.0781264 | AT98: 1.85356008 | AU98: 11.748 | AV98: 0.8637244501 | AW98: 11.94753345 | AX98: 8.716948773 | AZ98: 86.37244501 | BA98: 0.1465125291 | BB98: 1.384680948 | BC98: 0.79650223 | BD98: 0.5811299182 | BE98: 0.06567667376 | BF98: 1.462807348 | BG98: 28.67102403
G99: 90 | H99: 12 | I99: 1 | J99: 3.6 | K99: 3.6 | L99: 1.1 | M99: 0.2830349105 | N99: 2.354335846 | O99: 4.777167923 | P99: 2.422832077 | Q99: 0 | R99: 3.663592241 | S99: 0.04697667837 | T99: 0.1 | U99: 0.1475311201 | V99: 0.6796382173 | W99: 0.0004619081064 | X99: 0.0004619081064 | Y99: 1.650350307 | Z99: 0.002723656137 | AA99: 0.002723656137 | AB99: 1.949068639 | AC99: 0.09117284542 | AD99: 0.178938611 | AE99: 0.06336 | AF99: 0 | AG99: 0.335305703 | AH99: 3.10210244 | AI99: 0.1732147118 | AJ99: 0.177408 | AK99: 0.3543049618 | AL99: 0.177408 | AM99: 0.7128 | AN99: 0.06710954053 | AO99: 2.64e-05 | AP99: 0.0781 | AQ99: 0.1241835294 | AR99: 0.10934 | AS99: 0.0781264 | AT99: 1.87577129 | AU99: 11.88 | AV99: 0.8636375053 | AW99: 12.08630554 | AX99: 8.842934426 | AZ99: 86.36375053 | BA99: 0.1475311201 | BB99: 1.402410665 | BC99: 0.805753703 | BD99: 0.5895289618 | BE99: 0.06710954053 | BF99: 1.480537065 | BG99: 29.01852647
G100: 91 | H100: 12 | I100: 1 | J100: 3.64 | K100: 3.64 | L100: 1.112222222 | M100: 0.2831242143 | N100: 2.354777496 | O100: 4.817388748 | P100: 2.462611252 | Q100: 0 | R100: 3.702928763 | S100: 0.04799088497 | T100: 0.1 | U100: 0.1485612519 | V100: 0.6797657106 | W100: 0.0004620814213 | X100: 0.0004620814213 | Y100: 1.668229589 | Z100: 0.002782989961 | AA100: 0.002782989961 | AB100: 1.970306836 | AC100: 0.09317061671 | AD100: 0.1809268178 | AE100: 0.06336 | AF100: 0 | AG100: 0.3393545067 | AH100: 3.135214888 | AI100: 0.176932303 | AJ100: 0.1793792 | AK100: 0.3601346704 | AL100: 0.1793792 | AM100: 0.72072 | AN100: 0.06855840711 | AO100: 2.64e-05 | AP100: 0.0781 | AQ100: 0.1241835294 | AR100: 0.10934 | AS100: 0.0781264 | AT100: 1.898079507 | AU100: 12.012 | AV100: 0.863546466 | AW100: 12.2254456 | AX100: 8.969584057 | AZ100: 86.3546466 | BA100: 0.1485612519 | BB100: 1.420209177 | BC100: 0.8150297067 | BD100: 0.5979722704 | BE100: 0.06855840711 | BF100: 1.498335577 | BG100: 29.36737731
G101: 92 | H101: 12 | I101: 1 | J101: 3.68 | K101: 3.68 | L101: 1.124444444 | M101: 0.2832135188 | N101: 2.355218961 | O101: 4.85760948 | P101: 2.50239052 | Q101: 0 | R101: 3.742279345 | S101: 0.04901629144 | T101: 0.1 | U101: 0.1496029299 | V101: 0.6798931505 | W101: 0.0004622546961 | X101: 0.0004622546961 | Y101: 1.686118508 | Z101: 0.002842995622 | AA101: 0.002842995622 | AB101: 1.991559072 | AC101: 0.09519138087 | AD101: 0.1829150246 | AE101: 0.06336 | AF101: 0 | AG101: 0.343427888 | AH101: 3.168335077 | AI101: 0.1806902489 | AJ101: 0.1813504 | AK101: 0.3660087011 | AL101: 0.1813504 | AM101: 0.72864 | AN101: 0.07002327348 | AO101: 2.64e-05 | AP101: 0.0781 | AQ101: 0.1241835294 | AR101: 0.10934 | AS101: 0.0781264 | AT101: 1.920484843 | AU101: 12.144 | AV101: 0.863451462 | AW101: 12.36495432 | AX101: 9.096898516 | AZ101: 86.3451462 | BA101: 0.1496029299 | BB101: 1.438076589 | BC101: 0.824330288 | BD101: 0.6064599011 | BE101: 0.07002327348 | BF101: 1.516202989 | BG101: 29.71757859
G102: 93 | H102: 12 | I102: 1 | J102: 3.72 | K102: 3.72 | L102: 1.136666667 | M102: 0.2833028239 | N102: 2.355660241 | O102: 4.89783012 | P102: 2.54216988 | Q102: 0 | R102: 3.781643549 | S102: 0.05005289776 | T102: 0.1 | U102: 0.1506561599 | V102: 0.680020537 | W102: 0.0004624279308 | X102: 0.0004624279308 | Y102: 1.704016866 | Z102: 0.002903673479 | AA102: 0.002903673479 | AB102: 2.012825113 | AC102: 0.09723515848 | AD102: 0.1849032314 | AE102: 0.06336 | AF102: 0 | AG102: 0.347525894 | AH102: 3.201462634 | AI102: 0.1844885339 | AJ102: 0.1833216 | AK102: 0.3719271111 | AL102: 0.1833216 | AM102: 0.73656 | AN102: 0.07150413965 | AO102: 2.64e-05 | AP102: 0.0781 | AQ102: 0.1241835294 | AR102: 0.10934 | AS102: 0.0781264 | AT102: 1.942987406 | AU102: 12.276 | AV102: 0.8633526178 | AW102: 12.50483241 | AX102: 9.224878667 | AZ102: 86.33526178 | BA102: 0.1506561599 | BB102: 1.456013005 | BC102: 0.833655494 | BD102: 0.6149919111 | BE102: 0.07150413965 | BF102: 1.534139405 | BG102: 30.06913234
G103: 94 | H103: 12 | I103: 1 | J103: 3.76 | K103: 3.76 | L103: 1.148888889 | M103: 0.2833921295 | N103: 2.356101335 | O103: 4.938050668 | P103: 2.581949332 | Q103: 0 | R103: 3.821020953 | S103: 0.05110070394 | T103: 0.1 | U103: 0.1517209477 | V103: 0.6801478701 | W103: 0.0004626011252 | X103: 0.0004626011252 | Y103: 1.721924473 | Z103: 0.002965023889 | AA103: 0.002965023889 | AB103: 2.034104739 | AC103: 0.09930197012 | AD103: 0.1868914382 | AE103: 0.06336 | AF103: 0 | AG103: 0.3516485721 | AH103: 3.234597199 | AI103: 0.1883271427 | AJ103: 0.1852928 | AK103: 0.3778899588 | AL103: 0.1852928 | AM103: 0.74448 | AN103: 0.07300100563 | AO103: 2.64e-05 | AP103: 0.0781 | AQ103: 0.1241835294 | AR103: 0.10934 | AS103: 0.0781264 | AT103: 1.965587309 | AU103: 12.408 | AV103: 0.8632500525 | AW103: 12.64508058 | AX103: 9.353525382 | AZ103: 86.32500525 | BA103: 0.1517209477 | BB103: 1.474018531 | BC103: 0.8430053721 | BD103: 0.6235683588 | BE103: 0.07300100563 | BF103: 1.552144931 | BG103: 30.42204065
G104: 95 | H104: 12 | I104: 1 | J104: 3.8 | K104: 3.8 | L104: 1.161111111 | M104: 0.2834814358 | N104: 2.356542245 | O104: 4.978271122 | P104: 2.621728878 | Q104: 0 | R104: 3.860411154 | S104: 0.05215970998 | T104: 0.1 | U104: 0.152797299 | V104: 0.6802751497 | W104: 0.0004627742794 | X104: 0.0004627742794 | Y104: 1.739841145 | Z104: 0.00302704721 | AA104: 0.00302704721 | AB104: 2.055397735 | AC104: 0.1013918364 | AD104: 0.188879645 | AE104: 0.06336 | AF104: 0 | AG104: 0.3557959698 | AH104: 3.267738427 | AI104: 0.1922060597 | AJ104: 0.187264 | AK104: 0.383897303 | AL104: 0.187264 | AM104: 0.7524 | AN104: 0.0745138714 | AO104: 2.64e-05 | AP104: 0.0781 | AQ104: 0.1241835294 | AR104: 0.10934 | AS104: 0.0781264 | AT104: 1.988284665 | AU104: 12.54 | AV104: 0.8631438803 | AW104: 12.78569955 | AX104: 9.482839545 | AZ104: 86.31438803 | BA104: 0.152797299 | BB104: 1.492093273 | BC104: 0.8523799698 | BD104: 0.632189303 | BE104: 0.0745138714 | BF104: 1.570219673 | BG104: 30.77630559
G105: 96 | H105: 12 | I105: 1 | J105: 3.84 | K105: 3.84 | L105: =Vout*K105/(Vin*Efficiency) -> 1.173333333 | M105: 0.2835707426 | N105: =(Vin-(Rdson1+Rdcr)*K105-Vout)*M105/(Fsw*Lf) -> 2.35698297 | O105: 5.018491485 | P105: 2.661508515 | Q105: =IF(MIN(Vin, -P105/(Coss_Q1+Coss_Q2)*0.00000002)<0, 0, MIN(Vin, -P105/(Coss_Q1+Coss_Q2)*0.00000002)) -> 0 | R105: 3.899813764 | S105: =R105^2*Rdcr -> 0.05322991588 | T105: 0.1 | U105: =(T105+S105*(1+Ltc*(Ta-25)))/(1-S105*Ltc*ThetaCa) -> 0.1538852197 | V105: 0.680402376 | W105: 0.0004629473932 | X105: 0.0004629473932 | Y105: 1.757766708 | Z105: 0.003089743798 | AA105: 0.003089743798 | AB105: 2.076703898 | AC105: =Rdson1*AB105^2 -> 0.1035047779 | AD105: 0.1908678518 | AE105: 0.06336 | AF105: 0 | AG105: =(AF105+AE105+AD105+AC105*(1+RdsonTopTc*Ta-RdsonTopTc*25))/(1-AC105*RdsonTopTc*ThetaJA_Q1) -> 0.359968135 | AH105: 3.300885989 | AI105: =Rdson2*AH105^2 -> 0.1961252697 | AJ105: 0.1892352 | AK105: =(AJ105+AI105*(1+RdsonBotTc*Ta-RdsonBotTc*25))/(1-AI105*RdsonBotTc*ThetaJA_Q2) -> 0.3899492032 | AL105: 0.1892352 | AM105: 0.76032 | AN105: 0.07604273697 | AO105: 2.64e-05 | AP105: 0.0781 | AQ105: 0.1241835294 | AR105: 0.10934 | AS105: 0.0781264 | AT105: =SUM(U105,X105,AA105,AG105,AK105,AL105,AM105,AS105,AN105) -> 2.011079586 | AU105: 12.672 | AV105: 0.8630342106 | AW105: 12.92669002 | AX105: 9.612822048 | AZ105: 86.30342106 | BA105: 0.1538852197 | BB105: 1.510237338 | BC105: 0.861779335 | BD105: 0.6408548032 | BE105: 0.07604273697 | BF105: 1.588363738 | BG105: 31.13192927
G106: 97 | H106: 12 | I106: 1 | J106: 3.88 | K106: 3.88 | L106: =Vout*K106/(Vin*Efficiency) -> 1.185555556 | M106: 0.2836600501 | N106: =(Vin-(Rdson1+Rdcr)*K106-Vout)*M106/(Fsw*Lf) -> 2.357423509 | O106: 5.058711755 | P106: 2.701288245 | Q106: =IF(MIN(Vin, -P106/(Coss_Q1+Coss_Q2)*0.00000002)<0, 0, MIN(Vin, -P106/(Coss_Q1+Coss_Q2)*0.00000002)) -> 0 | R106: 3.93922841 | S106: =R106^2*Rdcr -> 0.05431132163 | T106: 0.1 | U106: =(T106+S106*(1+Ltc*(Ta-25)))/(1-S106*Ltc*ThetaCa) -> 0.1549847156 | V106: 0.6805295488 | W106: 0.0004631204668 | X106: 0.0004631204668 | Y106: 1.775700991 | Z106: 0.003153114011 | AA106: 0.003153114011 | AB106: 2.09802303 | AC106: =Rdson1*AB106^2 -> 0.1056408152 | AD106: 0.1928560586 | AE106: 0.06336 | AF106: 0 | AG106: =(AF106+AE106+AD106+AC106*(1+RdsonTopTc*Ta-RdsonTopTc*25))/(1-AC106*RdsonTopTc*ThetaJA_Q1) -> 0.3641651157 | AH106: 3.334039567 | AI106: =Rdson2*AH106^2 -> 0.200084757 | AJ106: 0.1912064 | AK106: =(AJ106+AI106*(1+RdsonBotTc*Ta-RdsonBotTc*25))/(1-AI106*RdsonBotTc*ThetaJA_Q2) -> 0.3960457197 | AL106: 0.1912064 | AM106: 0.76824 | AN106: 0.07758760233 | AO106: 2.64e-05 | AP106: 0.0781 | AQ106: 0.1241835294 | AR106: 0.10934 | AS106: 0.0781264 | AT106: =SUM(U106,X106,AA106,AG106,AK106,AL106,AM106,AS106,AN106) -> 2.033972188 | AU106: 12.804 | AV106: 0.8629211484 | AW106: 13.06805274 | AX106: 9.743473796 | AZ106: 86.29211484 | BA106: 0.1549847156 | BB106: 1.528450835 | BC106: 0.8712035157 | BD106: 0.6495649197 | BE106: 0.07758760233 | BF106: 1.606577235 | BG106: 31.48891381
G107: 98 | H107: 12 | I107: 1 | J107: 3.92 | K107: 3.92 | L107: =Vout*K107/(Vin*Efficiency) -> 1.197777778 | M107: 0.2837493581 | N107: =(Vin-(Rdson1+Rdcr)*K107-Vout)*M107/(Fsw*Lf) -> 2.357863864 | O107: 5.098931932 | P107: 2.741068068 | Q107: =IF(MIN(Vin, -P107/(Coss_Q1+Coss_Q2)*0.00000002)<0, 0, MIN(Vin, -P107/(Coss_Q1+Coss_Q2)*0.00000002)) -> 0 | R107: 3.978654735 | S107: =R107^2*Rdcr -> 0.05540392725 | T107: 0.1 | U107: =(T107+S107*(1+Ltc*(Ta-25)))/(1-S107*Ltc*ThetaCa) -> 0.1560957928 | V107: 0.6806566682 | W107: 0.0004632934999 | X107: 0.0004632934999 | Y107: 1.793643834 | Z107: 0.003217158204 | AA107: 0.003217158204 | AB107: 2.119354942 | AC107: =Rdson1*AB107^2 -> 0.1077999689 | AD107: 0.1948442654 | AE107: 0.06336 | AF107: 0 | AG107: =(AF107+AE107+AD107+AC107*(1+RdsonTopTc*Ta-RdsonTopTc*25))/(1-AC107*RdsonTopTc*ThetaJA_Q1) -> 0.3683869604 | AH107: 3.367198855 | AI107: =Rdson2*AH107^2 -> 0.2040845063 | AJ107: 0.1931776 | AK107: =(AJ107+AI107*(1+RdsonBotTc*Ta-RdsonBotTc*25))/(1-AI107*RdsonBotTc*ThetaJA_Q2) -> 0.4021869134 | AL107: 0.1931776 | AM107: 0.77616 | AN107: 0.0791484675 | AO107: 2.64e-05 | AP107: 0.0781 | AQ107: 0.1241835294 | AR107: 0.10934 | AS107: 0.0781264 | AT107: =SUM(U107,X107,AA107,AG107,AK107,AL107,AM107,AS107,AN107) -> 2.056962586 | AU107: 12.936 | AV107: 0.8628047943 | AW107: 13.20978841 | AX107: 9.874795701 | AZ107: 86.28047943 | BA107: 0.1560957928 | BB107: 1.546733874 | BC107: 0.8806525604 | BD107: 0.6583197134 | BE107: 0.0791484675 | BF107: 1.624860274 | BG107: 31.84726137
G108: 99 | H108: 12 | I108: 1 | J108: 3.96 | K108: 3.96 | L108: =Vout*K108/(Vin*Efficiency) -> 1.21 | M108: 0.2838386668 | N108: =(Vin-(Rdson1+Rdcr)*K108-Vout)*M108/(Fsw*Lf) -> 2.358304033 | O108: 5.139152016 | P108: 2.780847984 | Q108: =IF(MIN(Vin, -P108/(Coss_Q1+Coss_Q2)*0.00000002)<0, 0, MIN(Vin, -P108/(Coss_Q1+Coss_Q2)*0.00000002)) -> 0 | R108: 4.018092395 | S108: =R108^2*Rdcr -> 0.05650773272 | T108: 0.1 | U108: =(T108+S108*(1+Ltc*(Ta-25)))/(1-S108*Ltc*ThetaCa) -> 0.1572184574 | V108: 0.6807837341 | W108: 0.0004634664926 | X108: 0.0004634664926 | Y108: 1.81159508 | Z108: 0.003281876735 | AA108: 0.003281876735 | AB108: 2.140699453 | AC108: =Rdson1*AB108^2 -> 0.1099822596 | AD108: 0.1968324721 | AE108: 0.06336 | AF108: 0 | AG108: =(AF108+AE108+AD108+AC108*(1+RdsonTopTc*Ta-RdsonTopTc*25))/(1-AC108*RdsonTopTc*ThetaJA_Q1) -> 0.3726337176 | AH108: 3.400363561 | AI108: =Rdson2*AH108^2 -> 0.2081245022 | AJ108: 0.1951488 | AK108: =(AJ108+AI108*(1+RdsonBotTc*Ta-RdsonBotTc*25))/(1-AI108*RdsonBotTc*ThetaJA_Q2) -> 0.4083728459 | AL108: 0.1951488 | AM108: 0.78408 | AN108: 0.08072533246 | AO108: 2.64e-05 | AP108: 0.0781 | AQ108: 0.1241835294 | AR108: 0.10934 | AS108: 0.0781264 | AT108: =SUM(U108,X108,AA108,AG108,AK108,AL108,AM108,AS108,AN108) -> 2.080050897 | AU108: 13.068 | AV108: 0.8626852451 | AW108: 13.35189776 | AX108: 10.00678869 | AZ108: 86.26852451 | BA108: 0.1572184574 | BB108: 1.565086564 | BC108: 0.8901265176 | BD108: 0.6671192459 | BE108: 0.08072533246 | BF108: 1.643212964 | BG108: 32.20697408
G109: 100 | H109: 12 | I109: 1 | J109: 4 | K109: 4 | L109: =Vout*K109/(Vin*Efficiency) -> 1.222222222 | M109: 0.283927976 | N109: =(Vin-(Rdson1+Rdcr)*K109-Vout)*M109/(Fsw*Lf) -> 2.358744017 | O109: 5.179372009 | P109: 2.820627991 | Q109: =IF(MIN(Vin, -P109/(Coss_Q1+Coss_Q2)*0.00000002)<0, 0, MIN(Vin, -P109/(Coss_Q1+Coss_Q2)*0.00000002)) -> 0 | R109: 4.057541059 | S109: =R109^2*Rdcr -> 0.05762273806 | T109: 0.1 | U109: =(T109+S109*(1+Ltc*(Ta-25)))/(1-S109*Ltc*ThetaCa) -> 0.1583527154 | V109: 0.6809107466 | W109: 0.0004636394449 | X109: 0.0004636394449 | Y109: 1.829554579 | Z109: 0.003347269958 | AA109: 0.003347269958 | AB109: 2.162056388 | AC109: =Rdson1*AB109^2 -> 0.1121877078 | AD109: 0.1988206789 | AE109: 0.06336 | AF109: 0 | AG109: =(AF109+AE109+AD109+AC109*(1+RdsonTopTc*Ta-RdsonTopTc*25))/(1-AC109*RdsonTopTc*ThetaJA_Q1) -> 0.3769054362 | AH109: 3.433533402 | AI109: =Rdson2*AH109^2 -> 0.2122047292 | AJ109: 0.19712 | AK109: =(AJ109+AI109*(1+RdsonBotTc*Ta-RdsonBotTc*25))/(1-AI109*RdsonBotTc*ThetaJA_Q2) -> 0.4146035796 | AL109: 0.19712 | AM109: 0.792 | AN109: 0.08231819722 | AO109: 2.64e-05 | AP109: 0.0781 | AQ109: 0.1241835294 | AR109: 0.10934 | AS109: 0.0781264 | AT109: =SUM(U109,X109,AA109,AG109,AK109,AL109,AM109,AS109,AN109) -> 2.103237238 | AU109: 13.2 | AV109: 0.8625625935 | AW109: 13.49438154 | AX109: 10.13945369 | AZ109: 86.25625935 | BA109: 0.1583527154 | BB109: 1.583509016 | BC109: 0.8996254362 | BD109: 0.6759635796 | BE109: 0.08231819722 | BF109: 1.661635416 | BG109: 32.56805415

Sheet Efficiency Plot Management (hidden)
A2: =IF(PLOT_TYPE=1, "EFF_Ch1", "EFF_Ch2") -> EFF_Ch1

Sheet Standard Value Calculator (hidden)
A2: Capacitors | B2: Css | C2: Cc1ea | D2: Cc2ea | E2: Cout | F2: Cin | G2: Cres | H2: Cdither | I2: Cc3ea | J2: Cc4ea | K2: Cin_Passive | L2: Cdamp_Pssv | M2: Cinj_AEF | N2: Cdamp_AEF
A3: Inputs | B3: =Css -> 0 | C3: =Cc1ea -> 1.370178965e-08 | D3: =Cc2ea -> 3.044987338e-11 | E3: =Cout -> 4e-05 | F3: =Cin -> 4.4e-05 | G3: =Cres -> 8.333333333e-08 | H3: =Cdither_init -> 2.022653722e-09 | I3: =Cc3ea -> 0 | J3: =Cc4ea -> 0 | K3: ='Variable Management'!B291*0.000001 ->  | L3: =K3*4 ->  | M3: =Cinj_AEF*0.000001 ->  | N3: ='Variable Management'!B294*0.000001 ->  | Q3: Resistors | R3: inputs | S3: Standard Result
A4: Standard Result | B4: =SUM(B6:B158)/1000000000000 -> 0 | C4: =IF(C3="OPEN","OPEN",SUM(C6:C158)/1000000000000) -> 1.5e-08 | D4: =SUM(D6:D158)/1000000000000 -> 3.3e-11 | E4: =SUM(E6:E158)/1000000000000 -> 3.9e-05 | F4: =SUM(F6:F158)/1000000000000 -> 4.7e-05 | G4: =SUM(G6:G158)/1000000000000 -> 8.2e-08 | H4: =IF(H3="OPEN","OPEN",SUM(H6:H158)/1000000000000) -> 2.2e-09 | I4: 0 | J4: 0 | Q4: Rt | R4: =Rfadj -> 9.09 | S4: =IF(R4>(INT(0.5+100*POWER(10,IF(96*(LOG(R4)-INT(LOG(R4)))-ROUND(96*(LOG(R4)-INT(LOG(R4))),0)<0,ROUND(96*(LOG(R4)-INT(LOG(R4))),0)-1,ROUND(96*(LOG(R4)-INT(LOG(R4))),0))/96))*POWER(10,INT(LOG(R4))-2)+INT(0.5+100*POWER(10,(IF(96*(LOG(R4)-INT(LOG(R4)))-ROUND(96*(LOG(R4)-INT(LOG(R4))),0)<0,ROUND(96*(LOG(R4)-INT(LOG(R4))),0)-1,ROUND(96*(LOG(R4)-INT(LOG(R4))),0))+1)/96))*POWER(10,INT(LOG(R4))-2))/2,INT(0.5+100*POWER(10,(IF(96*(LOG(R4)-INT(LOG(R4)))-ROUND(96*(LOG(R4)-INT(LOG(R4))),0)<0,ROUND(96*(LOG(R4)-INT(LOG(R4))),0)-1,ROUND(96*(LOG(R4)-INT(LOG(R4))),0))+1)/96))*POWER(10,INT(LOG(R4))-2),INT(0.5+100*POWER(10,IF(96*(LOG(R4)-INT(LOG(R4)))-ROUND(96*(LOG(R4)-INT(LOG(R4))),0)<0,ROUND(96*(LOG(R4)-INT(LOG(R4))),0)-1,ROUND(96*(LOG(R4)-INT(LOG(R4))),0))/96))*POWER(10,INT(LOG(R4))-2)) -> 9.09 | T4: Ω
A5: (pF)
A6: 0.47 | B6: =IF(IF((B$3*10^12-$A7)*(B$3*10^12-$A6)*-1<0,0,1)*IF(ABS(B$3*10^12-$A7)>(B$3*10^12-$A6),$A6,$A7)=B7,0,IF((B$3*10^12-$A7)*(B$3*10^12-$A6)*-1<0,0,1)*IF(ABS(B$3*10^12-$A7)>(B$3*10^12-$A6),$A6,$A7)) -> 0 | C6: 0 | D6: 0 | E6: 0 | F6: 0 | G6: 0 | H6: 0 | I6: 0 | J6: 0
A7: 0.56 | B7: =IF(IF((B$3*10^12-$A8)*(B$3*10^12-$A7)*-1<0,0,1)*IF(ABS(B$3*10^12-$A8)>(B$3*10^12-$A7),$A7,$A8)=B8,0,IF((B$3*10^12-$A8)*(B$3*10^12-$A7)*-1<0,0,1)*IF(ABS(B$3*10^12-$A8)>(B$3*10^12-$A7),$A7,$A8)) -> 0 | C7: =IF(IF((C$3*10^12-$A8)*(C$3*10^12-$A7)*-1<0,0,1)*IF(ABS(C$3*10^12-$A8)>(C$3*10^12-$A7),$A7,$A8)=C8,0,IF((C$3*10^12-$A8)*(C$3*10^12-$A7)*-1<0,0,1)*IF(ABS(C$3*10^12-$A8)>(C$3*10^12-$A7),$A7,$A8)) -> 0 | D7: =IF(IF((D$3*10^12-$A8)*(D$3*10^12-$A7)*-1<0,0,1)*IF(ABS(D$3*10^12-$A8)>(D$3*10^12-$A7),$A7,$A8)=D8,0,IF((D$3*10^12-$A8)*(D$3*10^12-$A7)*-1<0,0,1)*IF(ABS(D$3*10^12-$A8)>(D$3*10^12-$A7),$A7,$A8)) -> 0 | E7: =IF(IF((E$3*10^12-$A8)*(E$3*10^12-$A7)*-1<0,0,1)*IF(ABS(E$3*10^12-$A8)>(E$3*10^12-$A7),$A7,$A8)=E8,0,IF((E$3*10^12-$A8)*(E$3*10^12-$A7)*-1<0,0,1)*IF(ABS(E$3*10^12-$A8)>(E$3*10^12-$A7),$A7,$A8)) -> 0 | F7: =IF(IF((F$3*10^12-$A8)*(F$3*10^12-$A7)*-1<0,0,1)*IF(ABS(F$3*10^12-$A8)>(F$3*10^12-$A7),$A7,$A8)=F8,0,IF((F$3*10^12-$A8)*(F$3*10^12-$A7)*-1<0,0,1)*IF(ABS(F$3*10^12-$A8)>(F$3*10^12-$A7),$A7,$A8)) -> 0 | G7: =IF(IF((G$3*10^12-$A8)*(G$3*10^12-$A7)*-1<0,0,1)*IF(ABS(G$3*10^12-$A8)>(G$3*10^12-$A7),$A7,$A8)=G8,0,IF((G$3*10^12-$A8)*(G$3*10^12-$A7)*-1<0,0,1)*IF(ABS(G$3*10^12-$A8)>(G$3*10^12-$A7),$A7,$A8)) -> 0 | H7: 0 | I7: 0 | J7: 0 | K7: =IF(IF((K$3*10^12-$A8)*(K$3*10^12-$A7)*-1<0,0,1)*IF(ABS(K$3*10^12-$A8)>(K$3*10^12-$A7),$A7,$A8)=K8,0,IF((K$3*10^12-$A8)*(K$3*10^12-$A7)*-1<0,0,1)*IF(ABS(K$3*10^12-$A8)>(K$3*10^12-$A7),$A7,$A8)) ->  | Q7: Rc1ea | R7: =Rcea1 -> 2323.126356 | S7: =IF(R7>(INT(0.5+100*POWER(10,IF(96*(LOG(R7)-INT(LOG(R7)))-ROUND(96*(LOG(R7)-INT(LOG(R7))),0)<0,ROUND(96*(LOG(R7)-INT(LOG(R7))),0)-1,ROUND(96*(LOG(R7)-INT(LOG(R7))),0))/96))*POWER(10,INT(LOG(R7))-2)+INT(0.5+100*POWER(10,(IF(96*(LOG(R7)-INT(LOG(R7)))-ROUND(96*(LOG(R7)-INT(LOG(R7))),0)<0,ROUND(96*(LOG(R7)-INT(LOG(R7))),0)-1,ROUND(96*(LOG(R7)-INT(LOG(R7))),0))+1)/96))*POWER(10,INT(LOG(R7))-2))/2,INT(0.5+100*POWER(10,(IF(96*(LOG(R7)-INT(LOG(R7)))-ROUND(96*(LOG(R7)-INT(LOG(R7))),0)<0,ROUND(96*(LOG(R7)-INT(LOG(R7))),0)-1,ROUND(96*(LOG(R7)-INT(LOG(R7))),0))+1)/96))*POWER(10,INT(LOG(R7))-2),INT(0.5+100*POWER(10,IF(96*(LOG(R7)-INT(LOG(R7)))-ROUND(96*(LOG(R7)-INT(LOG(R7))),0)<0,ROUND(96*(LOG(R7)-INT(LOG(R7))),0)-1,ROUND(96*(LOG(R7)-INT(LOG(R7))),0))/96))*POWER(10,INT(LOG(R7))-2)) -> 2320 | T7: Ω
A8: 0.68 | B8: 0 | C8: 0 | D8: 0 | E8: 0 | F8: 0 | G8: 0 | H8: 0 | I8: 0 | J8: 0 | Q8: Rc1ea | R8: =Rcea2 -> 0 | S8: =IF(R8>(INT(0.5+100*POWER(10,IF(96*(LOG(R8)-INT(LOG(R8)))-ROUND(96*(LOG(R8)-INT(LOG(R8))),0)<0,ROUND(96*(LOG(R8)-INT(LOG(R8))),0)-1,ROUND(96*(LOG(R8)-INT(LOG(R8))),0))/96))*POWER(10,INT(LOG(R8))-2)+INT(0.5+100*POWER(10,(IF(96*(LOG(R8)-INT(LOG(R8)))-ROUND(96*(LOG(R8)-INT(LOG(R8))),0)<0,ROUND(96*(LOG(R8)-INT(LOG(R8))),0)-1,ROUND(96*(LOG(R8)-INT(LOG(R8))),0))+1)/96))*POWER(10,INT(LOG(R8))-2))/2,INT(0.5+100*POWER(10,(IF(96*(LOG(R8)-INT(LOG(R8)))-ROUND(96*(LOG(R8)-INT(LOG(R8))),0)<0,ROUND(96*(LOG(R8)-INT(LOG(R8))),0)-1,ROUND(96*(LOG(R8)-INT(LOG(R8))),0))+1)/96))*POWER(10,INT(LOG(R8))-2),INT(0.5+100*POWER(10,IF(96*(LOG(R8)-INT(LOG(R8)))-ROUND(96*(LOG(R8)-INT(LOG(R8))),0)<0,ROUND(96*(LOG(R8)-INT(LOG(R8))),0)-1,ROUND(96*(LOG(R8)-INT(LOG(R8))),0))/96))*POWER(10,INT(LOG(R8))-2)) ->  | T8: Ω
A9: 0.82 | B9: 0 | C9: 0 | D9: 0 | E9: 0 | F9: 0 | G9: 0 | H9: 0 | I9: 0 | J9: 0
A10: 1 | B10: 0 | C10: 0 | D10: 0 | E10: 0 | F10: 0 | G10: 0 | H10: 0 | I10: 0 | J10: 0 | Q10: Rfb1 | R10: =Rfb1_ -> 2500000 | S10: =IF(R10>(INT(0.5+100*POWER(10,IF(96*(LOG(R10)-INT(LOG(R10)))-ROUND(96*(LOG(R10)-INT(LOG(R10))),0)<0,ROUND(96*(LOG(R10)-INT(LOG(R10))),0)-1,ROUND(96*(LOG(R10)-INT(LOG(R10))),0))/96))*POWER(10,INT(LOG(R10))-2)+INT(0.5+100*POWER(10,(IF(96*(LOG(R10)-INT(LOG(R10)))-ROUND(96*(LOG(R10)-INT(LOG(R10))),0)<0,ROUND(96*(LOG(R10)-INT(LOG(R10))),0)-1,ROUND(96*(LOG(R10)-INT(LOG(R10))),0))+1)/96))*POWER(10,INT(LOG(R10))-2))/2,INT(0.5+100*POWER(10,(IF(96*(LOG(R10)-INT(LOG(R10)))-ROUND(96*(LOG(R10)-INT(LOG(R10))),0)<0,ROUND(96*(LOG(R10)-INT(LOG(R10))),0)-1,ROUND(96*(LOG(R10)-INT(LOG(R10))),0))+1)/96))*POWER(10,INT(LOG(R10))-2),INT(0.5+100*POWER(10,IF(96*(LOG(R10)-INT(LOG(R10)))-ROUND(96*(LOG(R10)-INT(LOG(R10))),0)<0,ROUND(96*(LOG(R10)-INT(LOG(R10))),0)-1,ROUND(96*(LOG(R10)-INT(LOG(R10))),0))/96))*POWER(10,INT(LOG(R10))-2)) -> 2490000 | T10: Ω
A11: 1.2 | B11: 0 | C11: 0 | D11: 0 | E11: 0 | F11: 0 | G11: 0 | H11: 0 | I11: 0 | J11: 0 | M11: =IF(IF((M$3*10^12-$A12)*(M$3*10^12-$A11)*-1<0,0,1)*IF(ABS(M$3*10^12-$A12)>(M$3*10^12-$A11),$A11,$A12)=M12,0,IF((M$3*10^12-$A12)*(M$3*10^12-$A11)*-1<0,0,1)*IF(ABS(M$3*10^12-$A12)>(M$3*10^12-$A11),$A11,$A12)) ->  | Q11: Rfb2 | R11: =Rfb2_ -> 800000 | S11: =IF(R11="OPEN","OPEN",IF(R11>(INT(0.5+100*POWER(10,IF(96*(LOG(R11)-INT(LOG(R11)))-ROUND(96*(LOG(R11)-INT(LOG(R11))),0)<0,ROUND(96*(LOG(R11)-INT(LOG(R11))),0)-1,ROUND(96*(LOG(R11)-INT(LOG(R11))),0))/96))*POWER(10,INT(LOG(R11))-2)+INT(0.5+100*POWER(10,(IF(96*(LOG(R11)-INT(LOG(R11)))-ROUND(96*(LOG(R11)-INT(LOG(R11))),0)<0,ROUND(96*(LOG(R11)-INT(LOG(R11))),0)-1,ROUND(96*(LOG(R11)-INT(LOG(R11))),0))+1)/96))*POWER(10,INT(LOG(R11))-2))/2,INT(0.5+100*POWER(10,(IF(96*(LOG(R11)-INT(LOG(R11)))-ROUND(96*(LOG(R11)-INT(LOG(R11))),0)<0,ROUND(96*(LOG(R11)-INT(LOG(R11))),0)-1,ROUND(96*(LOG(R11)-INT(LOG(R11))),0))+1)/96))*POWER(10,INT(LOG(R11))-2),INT(0.5+100*POWER(10,IF(96*(LOG(R11)-INT(LOG(R11)))-ROUND(96*(LOG(R11)-INT(LOG(R11))),0)<0,ROUND(96*(LOG(R11)-INT(LOG(R11))),0)-1,ROUND(96*(LOG(R11)-INT(LOG(R11))),0))/96))*POWER(10,INT(LOG(R11))-2))) -> 806000 | T11: Ω
A12: 1.5 | B12: 0 | C12: 0 | D12: 0 | E12: 0 | F12: 0 | G12: 0 | H12: 0 | I12: 0 | J12: 0 | Q12: Rt1 | R12: ='Variable Management'!B27*1000 -> 9023.232323 | S12: =IF(R12>(INT(0.5+100*POWER(10,IF(96*(LOG(R12)-INT(LOG(R12)))-ROUND(96*(LOG(R12)-INT(LOG(R12))),0)<0,ROUND(96*(LOG(R12)-INT(LOG(R12))),0)-1,ROUND(96*(LOG(R12)-INT(LOG(R12))),0))/96))*POWER(10,INT(LOG(R12))-2)+INT(0.5+100*POWER(10,(IF(96*(LOG(R12)-INT(LOG(R12)))-ROUND(96*(LOG(R12)-INT(LOG(R12))),0)<0,ROUND(96*(LOG(R12)-INT(LOG(R12))),0)-1,ROUND(96*(LOG(R12)-INT(LOG(R12))),0))+1)/96))*POWER(10,INT(LOG(R12))-2))/2,INT(0.5+100*POWER(10,(IF(96*(LOG(R12)-INT(LOG(R12)))-ROUND(96*(LOG(R12)-INT(LOG(R12))),0)<0,ROUND(96*(LOG(R12)-INT(LOG(R12))),0)-1,ROUND(96*(LOG(R12)-INT(LOG(R12))),0))+1)/96))*POWER(10,INT(LOG(R12))-2),INT(0.5+100*POWER(10,IF(96*(LOG(R12)-INT(LOG(R12)))-ROUND(96*(LOG(R12)-INT(LOG(R12))),0)<0,ROUND(96*(LOG(R12)-INT(LOG(R12))),0)-1,ROUND(96*(LOG(R12)-INT(LOG(R12))),0))/96))*POWER(10,INT(LOG(R12))-2)) -> 9090 | T12: Ω
A13: 1.8 | B13: 0 | C13: 0 | D13: 0 | E13: 0 | F13: 0 | G13: 0 | H13: 0 | I13: 0 | J13: 0 | Q13: Rd | R13: ='Variable Management'!B28*1000 -> 0 | S13: =IF(R13="OPEN","OPEN",IF(R13>(INT(0.5+100*POWER(10,IF(96*(LOG(R13)-INT(LOG(R13)))-ROUND(96*(LOG(R13)-INT(LOG(R13))),0)<0,ROUND(96*(LOG(R13)-INT(LOG(R13))),0)-1,ROUND(96*(LOG(R13)-INT(LOG(R13))),0))/96))*POWER(10,INT(LOG(R13))-2)+INT(0.5+100*POWER(10,(IF(96*(LOG(R13)-INT(LOG(R13)))-ROUND(96*(LOG(R13)-INT(LOG(R13))),0)<0,ROUND(96*(LOG(R13)-INT(LOG(R13))),0)-1,ROUND(96*(LOG(R13)-INT(LOG(R13))),0))+1)/96))*POWER(10,INT(LOG(R13))-2))/2,INT(0.5+100*POWER(10,(IF(96*(LOG(R13)-INT(LOG(R13)))-ROUND(96*(LOG(R13)-INT(LOG(R13))),0)<0,ROUND(96*(LOG(R13)-INT(LOG(R13))),0)-1,ROUND(96*(LOG(R13)-INT(LOG(R13))),0))+1)/96))*POWER(10,INT(LOG(R13))-2),INT(0.5+100*POWER(10,IF(96*(LOG(R13)-INT(LOG(R13)))-ROUND(96*(LOG(R13)-INT(LOG(R13))),0)<0,ROUND(96*(LOG(R13)-INT(LOG(R13))),0)-1,ROUND(96*(LOG(R13)-INT(LOG(R13))),0))/96))*POWER(10,INT(LOG(R13))-2))) ->  | T13: Ω
A14: 2.2 | B14: =IF(IF((B$3*10^12-$A15)*(B$3*10^12-$A14)*-1<0,0,1)*IF(ABS(B$3*10^12-$A15)>(B$3*10^12-$A14),$A14,$A15)=B15,0,IF((B$3*10^12-$A15)*(B$3*10^12-$A14)*-1<0,0,1)*IF(ABS(B$3*10^12-$A15)>(B$3*10^12-$A14),$A14,$A15)) -> 0 | C14: 0 | D14: 0 | E14: 0 | F14: 0 | G14: 0 | H14: 0 | I14: 0 | J14: 0 | Q14: Rd_AEF | R14: ='Variable Management'!B300 -> 0 | S14: =IF(R14="OPEN","OPEN",IF(R14>(INT(0.5+100*POWER(10,IF(96*(LOG(R14)-INT(LOG(R14)))-ROUND(96*(LOG(R14)-INT(LOG(R14))),0)<0,ROUND(96*(LOG(R14)-INT(LOG(R14))),0)-1,ROUND(96*(LOG(R14)-INT(LOG(R14))),0))/96))*POWER(10,INT(LOG(R14))-2)+INT(0.5+100*POWER(10,(IF(96*(LOG(R14)-INT(LOG(R14)))-ROUND(96*(LOG(R14)-INT(LOG(R14))),0)<0,ROUND(96*(LOG(R14)-INT(LOG(R14))),0)-1,ROUND(96*(LOG(R14)-INT(LOG(R14))),0))+1)/96))*POWER(10,INT(LOG(R14))-2))/2,INT(0.5+100*POWER(10,(IF(96*(LOG(R14)-INT(LOG(R14)))-ROUND(96*(LOG(R14)-INT(LOG(R14))),0)<0,ROUND(96*(LOG(R14)-INT(LOG(R14))),0)-1,ROUND(96*(LOG(R14)-INT(LOG(R14))),0))+1)/96))*POWER(10,INT(LOG(R14))-2),INT(0.5+100*POWER(10,IF(96*(LOG(R14)-INT(LOG(R14)))-ROUND(96*(LOG(R14)-INT(LOG(R14))),0)<0,ROUND(96*(LOG(R14)-INT(LOG(R14))),0)-1,ROUND(96*(LOG(R14)-INT(LOG(R14))),0))/96))*POWER(10,INT(LOG(R14))-2))) ->  | T14: Ω
A15: 2.7 | B15: 0 | C15: 0 | D15: 0 | E15: 0 | F15: 0 | G15: 0 | H15: 0 | I15: 0 | J15: 0 | K15: =IF(IF((K$3*10^12-$A16)*(K$3*10^12-$A15)*-1<0,0,1)*IF(ABS(K$3*10^12-$A16)>(K$3*10^12-$A15),$A15,$A16)=K16,0,IF((K$3*10^12-$A16)*(K$3*10^12-$A15)*-1<0,0,1)*IF(ABS(K$3*10^12-$A16)>(K$3*10^12-$A15),$A15,$A16)) -> 
A16: 3.3 | B16: 0 | C16: 0 | D16: 0 | E16: 0 | F16: 0 | G16: 0 | H16: 0 | I16: 0 | J16: 0 | Q16: Rs | R16: =Rs_ideal*1000 -> 6.856955503 | S16: =IF(R16=0,0,IF(R16>(INT(0.5+100*POWER(10,IF(96*(LOG(R16)-INT(LOG(R16)))-ROUND(96*(LOG(R16)-INT(LOG(R16))),0)<0,ROUND(96*(LOG(R16)-INT(LOG(R16))),0)-1,ROUND(96*(LOG(R16)-INT(LOG(R16))),0))/96))*POWER(10,INT(LOG(R16))-2)+INT(0.5+100*POWER(10,(IF(96*(LOG(R16)-INT(LOG(R16)))-ROUND(96*(LOG(R16)-INT(LOG(R16))),0)<0,ROUND(96*(LOG(R16)-INT(LOG(R16))),0)-1,ROUND(96*(LOG(R16)-INT(LOG(R16))),0))+1)/96))*POWER(10,INT(LOG(R16))-2))/2,INT(0.5+100*POWER(10,(IF(96*(LOG(R16)-INT(LOG(R16)))-ROUND(96*(LOG(R16)-INT(LOG(R16))),0)<0,ROUND(96*(LOG(R16)-INT(LOG(R16))),0)-1,ROUND(96*(LOG(R16)-INT(LOG(R16))),0))+1)/96))*POWER(10,INT(LOG(R16))-2),INT(0.5+100*POWER(10,IF(96*(LOG(R16)-INT(LOG(R16)))-ROUND(96*(LOG(R16)-INT(LOG(R16))),0)<0,ROUND(96*(LOG(R16)-INT(LOG(R16))),0)-1,ROUND(96*(LOG(R16)-INT(LOG(R16))),0))/96))*POWER(10,INT(LOG(R16))-2))) -> 6.81 | T16: mΩ
A17: 3.9 | B17: 0 | C17: 0 | D17: 0 | E17: 0 | F17: 0 | G17: 0 | H17: 0 | I17: 0 | J17: 0 | Q17: Cres | R17: =Cres -> 8.333333333e-08 | S17: =G4*1000000000000 -> 82000 | T17: pF
A18: 4.7 | B18: 0 | C18: 0 | D18: 0 | E18: 0 | F18: 0 | G18: 0 | H18: 0 | I18: 0 | J18: 0
A19: 5.6 | B19: 0 | C19: 0 | D19: 0 | E19: 0 | F19: 0 | G19: 0 | H19: 0 | I19: 0 | J19: 0
A20: 6.8 | B20: 0 | C20: 0 | D20: 0 | E20: 0 | F20: 0 | G20: 0 | H20: 0 | I20: 0 | J20: 0
A21: 8.2 | B21: 0 | C21: 0 | D21: 0 | E21: 0 | F21: 0 | G21: 0 | H21: 0 | I21: 0 | J21: 0 | Q21: Cdither | R21: =Cdither_init -> 2.022653722e-09 | S21: =H4 -> 2.2e-09
A22: 10 | B22: 0 | C22: 0 | D22: 0 | E22: 0 | F22: 0 | G22: 0 | H22: 0 | I22: 0 | J22: 0 | K22: =IF(IF((K$3*10^12-$A23)*(K$3*10^12-$A22)*-1<0,0,1)*IF(ABS(K$3*10^12-$A23)>(K$3*10^12-$A22),$A22,$A23)=K23,0,IF((K$3*10^12-$A23)*(K$3*10^12-$A22)*-1<0,0,1)*IF(ABS(K$3*10^12-$A23)>(K$3*10^12-$A22),$A22,$A23)) -> 
A23: 12 | B23: 0 | C23: 0 | D23: 0 | E23: 0 | F23: 0 | G23: 0 | H23: 0 | I23: 0 | J23: 0 | Q23: Cin_Passive | R23: =K4 ->  | S23: =R23*1000000 ->  | T23: uF
A24: 15 | B24: 0 | C24: 0 | D24: 0 | E24: 0 | F24: 0 | G24: 0 | H24: 0 | I24: 0 | J24: 0 | Q24: Cinj_AEF | R24: =Cinj_AEF ->  | S24: =M4*1000000 ->  | T24: uF
A25: 18 | B25: 0 | C25: 0 | D25: 0 | E25: 0 | F25: 0 | G25: 0 | H25: 0 | I25: 0 | J25: 0 | Q25: Cdamp_AEF | R25: ='Variable Management'!B294 ->  | S25: =N4*1000000 ->  | T25: uF
A26: 22 | B26: 0 | C26: 0 | D26: 0 | E26: 0 | F26: 0 | G26: 0 | H26: 0 | I26: 0 | J26: 0 | Q26: Rdamp_AEF | R26: ='Variable Management'!B295 ->  | S26: =IF(R26="OPEN","OPEN",IF(R26>(INT(0.5+100*POWER(10,IF(96*(LOG(R26)-INT(LOG(R26)))-ROUND(96*(LOG(R26)-INT(LOG(R26))),0)<0,ROUND(96*(LOG(R26)-INT(LOG(R26))),0)-1,ROUND(96*(LOG(R26)-INT(LOG(R26))),0))/96))*POWER(10,INT(LOG(R26))-2)+INT(0.5+100*POWER(10,(IF(96*(LOG(R26)-INT(LOG(R26)))-ROUND(96*(LOG(R26)-INT(LOG(R26))),0)<0,ROUND(96*(LOG(R26)-INT(LOG(R26))),0)-1,ROUND(96*(LOG(R26)-INT(LOG(R26))),0))+1)/96))*POWER(10,INT(LOG(R26))-2))/2,INT(0.5+100*POWER(10,(IF(96*(LOG(R26)-INT(LOG(R26)))-ROUND(96*(LOG(R26)-INT(LOG(R26))),0)<0,ROUND(96*(LOG(R26)-INT(LOG(R26))),0)-1,ROUND(96*(LOG(R26)-INT(LOG(R26))),0))+1)/96))*POWER(10,INT(LOG(R26))-2),INT(0.5+100*POWER(10,IF(96*(LOG(R26)-INT(LOG(R26)))-ROUND(96*(LOG(R26)-INT(LOG(R26))),0)<0,ROUND(96*(LOG(R26)-INT(LOG(R26))),0)-1,ROUND(96*(LOG(R26)-INT(LOG(R26))),0))/96))*POWER(10,INT(LOG(R26))-2))) ->  | T26: Ω
A27: 27 | B27: 0 | C27: 0 | D27: 33 | E27: 0 | F27: 0 | G27: 0 | H27: 0 | I27: 0 | J27: 0 | M27: =IF(IF((M$3*10^12-$A28)*(M$3*10^12-$A27)*-1<0,0,1)*IF(ABS(M$3*10^12-$A28)>(M$3*10^12-$A27),$A27,$A28)=M28,0,IF((M$3*10^12-$A28)*(M$3*10^12-$A27)*-1<0,0,1)*IF(ABS(M$3*10^12-$A28)>(M$3*10^12-$A27),$A27,$A28)) ->  | Q27: Rdamp_Passive | R27: =SQRT(L_infilterStd/K4) ->  | S27: =IF(R27="OPEN","OPEN",IF(R27>(INT(0.5+100*POWER(10,IF(96*(LOG(R27)-INT(LOG(R27)))-ROUND(96*(LOG(R27)-INT(LOG(R27))),0)<0,ROUND(96*(LOG(R27)-INT(LOG(R27))),0)-1,ROUND(96*(LOG(R27)-INT(LOG(R27))),0))/96))*POWER(10,INT(LOG(R27))-2)+INT(0.5+100*POWER(10,(IF(96*(LOG(R27)-INT(LOG(R27)))-ROUND(96*(LOG(R27)-INT(LOG(R27))),0)<0,ROUND(96*(LOG(R27)-INT(LOG(R27))),0)-1,ROUND(96*(LOG(R27)-INT(LOG(R27))),0))+1)/96))*POWER(10,INT(LOG(R27))-2))/2,INT(0.5+100*POWER(10,(IF(96*(LOG(R27)-INT(LOG(R27)))-ROUND(96*(LOG(R27)-INT(LOG(R27))),0)<0,ROUND(96*(LOG(R27)-INT(LOG(R27))),0)-1,ROUND(96*(LOG(R27)-INT(LOG(R27))),0))+1)/96))*POWER(10,INT(LOG(R27))-2),INT(0.5+100*POWER(10,IF(96*(LOG(R27)-INT(LOG(R27)))-ROUND(96*(LOG(R27)-INT(LOG(R27))),0)<0,ROUND(96*(LOG(R27)-INT(LOG(R27))),0)-1,ROUND(96*(LOG(R27)-INT(LOG(R27))),0))/96))*POWER(10,INT(LOG(R27))-2))) ->  | T27: Ω
A28: 33 | B28: 0 | C28: 0 | D28: 0 | E28: 0 | F28: 0 | G28: 0 | H28: 0 | I28: 0 | J28: 0 | Q28: Cdamp_Passive | R28: =L4 ->  | S28: =R28*1000000 ->  | T28: uF
A29: 39 | B29: 0 | C29: 0 | D29: 0 | E29: 0 | F29: 0 | G29: 0 | H29: 0 | I29: 0 | J29: 0
A30: 47 | B30: 0 | C30: 0 | D30: 0 | E30: 0 | F30: 0 | G30: 0 | H30: 0 | I30: 0 | J30: 0
A31: 56 | B31: 0 | C31: 0 | D31: 0 | E31: 0 | F31: 0 | G31: 0 | H31: 0 | I31: 0 | J31: 0
A32: 68 | B32: 0 | C32: 0 | D32: 0 | E32: 0 | F32: 0 | G32: 0 | H32: 0 | I32: 0 | J32: 0 | Q32: Rc1 | R32: =S7/1000&" kΩ" -> 2.32 kΩ | S32: =S7/1000 -> 2.32 | T32: kΩ
A33: 82 | B33: 0 | C33: 0 | D33: 0 | E33: 0 | F33: 0 | G33: 0 | H33: 0 | I33: 0 | J33: 0 | Q33: Cc1 | R33: =C4*1000000000&" nF" -> 15 nF | S33: =C4*1000000000 -> 15 | T33: nF
A34: =A22*10 -> 100 | B34: 0 | C34: 0 | D34: 0 | E34: 0 | F34: 0 | G34: 0 | H34: 0 | I34: 0 | J34: 0 | Q34: Cc2 | R34: =D4*1000000000000&" pF" -> 33 pF | S34: =D4*1000000000000 -> 33 | T34: pF
A35: =A23*10 -> 120 | B35: 0 | C35: 0 | D35: 0 | E35: 0 | F35: 0 | G35: 0 | H35: 0 | I35: 0 | J35: 0
A36: 150 | B36: 0 | C36: 0 | D36: 0 | E36: 0 | F36: 0 | G36: 0 | H36: 0 | I36: 0 | J36: 0 | Q36: Rc2 | R36: =S8/1000&" kΩ" ->  | S36: =S8/1000 ->  | T36: kΩ
A37: 180 | B37: 0 | C37: 0 | D37: 0 | E37: 0 | F37: 0 | G37: 0 | H37: 0 | I37: 0 | J37: 0 | Q37: Cc3 | R37: =I4*1000000000&" nF" -> 0 nF | S37: =I4*1000000000 -> 0 | T37: nF
A38: 220 | B38: 0 | C38: 0 | D38: 0 | E38: 0 | F38: 0 | G38: 0 | H38: 0 | I38: 0 | J38: 0 | Q38: Cc4 | R38: =J4*1000000000000&" pF" -> 0 pF | S38: =J4*1000000000000 -> 0 | T38: pF
A39: 270 | B39: 0 | C39: =IF(IF((C$3*10^12-$A40)*(C$3*10^12-$A39)*-1<0,0,1)*IF(ABS(C$3*10^12-$A40)>(C$3*10^12-$A39),$A39,$A40)=C40,0,IF((C$3*10^12-$A40)*(C$3*10^12-$A39)*-1<0,0,1)*IF(ABS(C$3*10^12-$A40)>(C$3*10^12-$A39),$A39,$A40)) -> 0 | D39: 0 | E39: 0 | F39: 0 | G39: 0 | H39: 0 | I39: 0 | J39: 0
A40: 330 | B40: 0 | C40: 0 | D40: 0 | E40: 0 | F40: 0 | G40: 0 | H40: 0 | I40: 0 | J40: 0 | Q40: Rent | R40: ='Variable Management'!B185/1000 -> 100 | S40: =IF(R40>(INT(0.5+100*POWER(10,IF(96*(LOG(R40)-INT(LOG(R40)))-ROUND(96*(LOG(R40)-INT(LOG(R40))),0)<0,ROUND(96*(LOG(R40)-INT(LOG(R40))),0)-1,ROUND(96*(LOG(R40)-INT(LOG(R40))),0))/96))*POWER(10,INT(LOG(R40))-2)+INT(0.5+100*POWER(10,(IF(96*(LOG(R40)-INT(LOG(R40)))-ROUND(96*(LOG(R40)-INT(LOG(R40))),0)<0,ROUND(96*(LOG(R40)-INT(LOG(R40))),0)-1,ROUND(96*(LOG(R40)-INT(LOG(R40))),0))+1)/96))*POWER(10,INT(LOG(R40))-2))/2,INT(0.5+100*POWER(10,(IF(96*(LOG(R40)-INT(LOG(R40)))-ROUND(96*(LOG(R40)-INT(LOG(R40))),0)<0,ROUND(96*(LOG(R40)-INT(LOG(R40))),0)-1,ROUND(96*(LOG(R40)-INT(LOG(R40))),0))+1)/96))*POWER(10,INT(LOG(R40))-2),INT(0.5+100*POWER(10,IF(96*(LOG(R40)-INT(LOG(R40)))-ROUND(96*(LOG(R40)-INT(LOG(R40))),0)<0,ROUND(96*(LOG(R40)-INT(LOG(R40))),0)-1,ROUND(96*(LOG(R40)-INT(LOG(R40))),0))/96))*POWER(10,INT(LOG(R40))-2)) -> 100 | T40: kΩ
A41: 390 | B41: 0 | C41: 0 | D41: 0 | E41: 0 | F41: 0 | G41: 0 | H41: 0 | I41: 0 | J41: 0 | Q41: Renb | R41: ='Variable Management'!B186/1000 -> 20 | S41: =IF(R41>(INT(0.5+100*POWER(10,IF(96*(LOG(R41)-INT(LOG(R41)))-ROUND(96*(LOG(R41)-INT(LOG(R41))),0)<0,ROUND(96*(LOG(R41)-INT(LOG(R41))),0)-1,ROUND(96*(LOG(R41)-INT(LOG(R41))),0))/96))*POWER(10,INT(LOG(R41))-2)+INT(0.5+100*POWER(10,(IF(96*(LOG(R41)-INT(LOG(R41)))-ROUND(96*(LOG(R41)-INT(LOG(R41))),0)<0,ROUND(96*(LOG(R41)-INT(LOG(R41))),0)-1,ROUND(96*(LOG(R41)-INT(LOG(R41))),0))+1)/96))*POWER(10,INT(LOG(R41))-2))/2,INT(0.5+100*POWER(10,(IF(96*(LOG(R41)-INT(LOG(R41)))-ROUND(96*(LOG(R41)-INT(LOG(R41))),0)<0,ROUND(96*(LOG(R41)-INT(LOG(R41))),0)-1,ROUND(96*(LOG(R41)-INT(LOG(R41))),0))+1)/96))*POWER(10,INT(LOG(R41))-2),INT(0.5+100*POWER(10,IF(96*(LOG(R41)-INT(LOG(R41)))-ROUND(96*(LOG(R41)-INT(LOG(R41))),0)<0,ROUND(96*(LOG(R41)-INT(LOG(R41))),0)-1,ROUND(96*(LOG(R41)-INT(LOG(R41))),0))/96))*POWER(10,INT(LOG(R41))-2)) -> 20 | T41: kΩ
A42: 470 | B42: 0 | C42: 0 | D42: 0 | E42: 0 | F42: 0 | G42: 0 | H42: 0 | I42: 0 | J42: 0
A43: 560 | B43: 0 | C43: 0 | D43: 0 | E43: 0 | F43: 0 | G43: 0 | H43: 0 | I43: 0 | J43: 0 | M43: =IF(IF((M$3*10^12-$A44)*(M$3*10^12-$A43)*-1<0,0,1)*IF(ABS(M$3*10^12-$A44)>(M$3*10^12-$A43),$A43,$A44)=M44,0,IF((M$3*10^12-$A44)*(M$3*10^12-$A43)*-1<0,0,1)*IF(ABS(M$3*10^12-$A44)>(M$3*10^12-$A43),$A43,$A44)) -> 
A44: 680 | B44: 0 | C44: 0 | D44: 0 | E44: 0 | F44: 0 | G44: 0 | H44: 0 | I44: 0 | J44: 0
A45: =A33*10 -> 820 | B45: 0 | C45: 0 | D45: 0 | E45: 0 | F45: 0 | G45: 0 | H45: 0 | I45: 0 | J45: 0
A46: 1000 | B46: 0 | C46: 0 | D46: 0 | E46: 0 | F46: 0 | G46: 0 | H46: 0 | I46: 0 | J46: 0
A47: 1200 | B47: 0 | C47: 0 | D47: 0 | E47: 0 | F47: 0 | G47: 0 | H47: 0 | I47: 0 | J47: 0
A48: 1500 | B48: 0 | C48: 0 | D48: 0 | E48: 0 | F48: 0 | G48: 0 | H48: 0 | I48: 0 | J48: 0
A49: 1800 | B49: 0 | C49: 0 | D49: 0 | E49: 0 | F49: 0 | G49: 0 | H49: 2200 | I49: 0 | J49: 0
A50: 2200 | B50: 0 | C50: 0 | D50: 0 | E50: 0 | F50: 0 | G50: 0 | H50: 0 | I50: 0 | J50: 0
A51: 2700 | B51: 0 | C51: 0 | D51: 0 | E51: 0 | F51: 0 | G51: 0 | H51: 0 | I51: 0 | J51: 0
A52: 3300 | B52: 0 | C52: 0 | D52: 0 | E52: 0 | F52: 0 | G52: 0 | H52: 0 | I52: 0 | J52: 0
A53: 3900 | B53: 0 | C53: 0 | D53: 0 | E53: 0 | F53: 0 | G53: 0 | H53: 0 | I53: 0 | J53: 0
A54: 4700 | B54: 0 | C54: 0 | D54: 0 | E54: 0 | F54: 0 | G54: 0 | H54: 0 | I54: 0 | J54: 0
A55: 5600 | B55: 0 | C55: 0 | D55: 0 | E55: 0 | F55: 0 | G55: 0 | H55: 0 | I55: 0 | J55: 0
A56: 6800 | B56: 0 | C56: 0 | D56: 0 | E56: 0 | F56: 0 | G56: 0 | H56: 0 | I56: 0 | J56: 0
A57: 8200 | B57: 0 | C57: 0 | D57: 0 | E57: 0 | F57: 0 | G57: 0 | H57: 0 | I57: 0 | J57: 0
A58: 10000 | B58: 0 | C58: 0 | D58: 0 | E58: 0 | F58: 0 | G58: 0 | H58: 0 | I58: 0 | J58: 0
A59: 12000 | B59: 0 | C59: 15000 | D59: 0 | E59: 0 | F59: 0 | G59: 0 | H59: 0 | I59: 0 | J59: 0 | M59: =IF(IF((M$3*10^12-$A60)*(M$3*10^12-$A59)*-1<0,0,1)*IF(ABS(M$3*10^12-$A60)>(M$3*10^12-$A59),$A59,$A60)=M60,0,IF((M$3*10^12-$A60)*(M$3*10^12-$A59)*-1<0,0,1)*IF(ABS(M$3*10^12-$A60)>(M$3*10^12-$A59),$A59,$A60)) -> 
A60: 15000 | B60: 0 | C60: 0 | D60: 0 | E60: 0 | F60: 0 | G60: 0 | H60: 0 | I60: 0 | J60: 0
A61: 18000 | B61: 0 | C61: 0 | D61: 0 | E61: 0 | F61: 0 | G61: 0 | H61: 0 | I61: 0 | J61: 0
A62: 22000 | B62: 0 | C62: 0 | D62: 0 | E62: 0 | F62: 0 | G62: 0 | H62: 0 | I62: 0 | J62: 0
A63: 27000 | B63: 0 | C63: 0 | D63: 0 | E63: 0 | F63: 0 | G63: 0 | H63: 0 | I63: 0 | J63: 0
A64: 33000 | B64: 0 | C64: 0 | D64: 0 | E64: 0 | F64: 0 | G64: 0 | H64: 0 | I64: 0 | J64: 0
A65: 39000 | B65: 0 | C65: 0 | D65: 0 | E65: 0 | F65: 0 | G65: 0 | H65: 0 | I65: 0 | J65: 0
A66: 47000 | B66: 0 | C66: 0 | D66: 0 | E66: 0 | F66: 0 | G66: 0 | H66: 0 | I66: 0 | J66: 0
A67: 56000 | B67: 0 | C67: 0 | D67: 0 | E67: 0 | F67: 0 | G67: 0 | H67: 0 | I67: 0 | J67: 0
A68: 68000 | B68: 0 | C68: 0 | D68: 0 | E68: 0 | F68: 0 | G68: 0 | H68: 0 | I68: 0 | J68: 0
A69: 82000 | B69: 0 | C69: 0 | D69: 0 | E69: 0 | F69: 0 | G69: 82000 | H69: 0 | I69: 0 | J69: =IF(IF((J$3*10^12-$A70)*(J$3*10^12-$A69)*-1<0,0,1)*IF(ABS(J$3*10^12-$A70)>(J$3*10^12-$A69),$A69,$A70)=J70,0,IF((J$3*10^12-$A70)*(J$3*10^12-$A69)*-1<0,0,1)*IF(ABS(J$3*10^12-$A70)>(J$3*10^12-$A69),$A69,$A70)) -> 0
A70: 100000 | B70: 0 | C70: 0 | D70: =IF(IF((D$3*10^12-$A71)*(D$3*10^12-$A70)*-1<0,0,1)*IF(ABS(D$3*10^12-$A71)>(D$3*10^12-$A70),$A70,$A71)=D71,0,IF((D$3*10^12-$A71)*(D$3*10^12-$A70)*-1<0,0,1)*IF(ABS(D$3*10^12-$A71)>(D$3*10^12-$A70),$A70,$A71)) -> 0 | E70: 0 | F70: 0 | G70: 0 | H70: 0 | I70: 0 | J70: 0
A71: 120000 | B71: =IF(IF((B$3*10^12-$A72)*(B$3*10^12-$A71)*-1<0,0,1)*IF(ABS(B$3*10^12-$A72)>(B$3*10^12-$A71),$A71,$A72)=B72,0,IF((B$3*10^12-$A72)*(B$3*10^12-$A71)*-1<0,0,1)*IF(ABS(B$3*10^12-$A72)>(B$3*10^12-$A71),$A71,$A72)) -> 0 | C71: =IF(IF((C$3*10^12-$A72)*(C$3*10^12-$A71)*-1<0,0,1)*IF(ABS(C$3*10^12-$A72)>(C$3*10^12-$A71),$A71,$A72)=C72,0,IF((C$3*10^12-$A72)*(C$3*10^12-$A71)*-1<0,0,1)*IF(ABS(C$3*10^12-$A72)>(C$3*10^12-$A71),$A71,$A72)) -> 0 | D71: 0 | E71: 0 | F71: =IF(IF((F$3*10^12-$A72)*(F$3*10^12-$A71)*-1<0,0,1)*IF(ABS(F$3*10^12-$A72)>(F$3*10^12-$A71),$A71,$A72)=F72,0,IF((F$3*10^12-$A72)*(F$3*10^12-$A71)*-1<0,0,1)*IF(ABS(F$3*10^12-$A72)>(F$3*10^12-$A71),$A71,$A72)) -> 0 | G71: =IF(IF((G$3*10^12-$A72)*(G$3*10^12-$A71)*-1<0,0,1)*IF(ABS(G$3*10^12-$A72)>(G$3*10^12-$A71),$A71,$A72)=G72,0,IF((G$3*10^12-$A72)*(G$3*10^12-$A71)*-1<0,0,1)*IF(ABS(G$3*10^12-$A72)>(G$3*10^12-$A71),$A71,$A72)) -> 0 | H71: =IF(IF((H$3*10^12-$A72)*(H$3*10^12-$A71)*-1<0,0,1)*IF(ABS(H$3*10^12-$A72)>(H$3*10^12-$A71),$A71,$A72)=H72,0,IF((H$3*10^12-$A72)*(H$3*10^12-$A71)*-1<0,0,1)*IF(ABS(H$3*10^12-$A72)>(H$3*10^12-$A71),$A71,$A72)) -> 0 | I71: =IF(IF((I$3*10^12-$A72)*(I$3*10^12-$A71)*-1<0,0,1)*IF(ABS(I$3*10^12-$A72)>(I$3*10^12-$A71),$A71,$A72)=I72,0,IF((I$3*10^12-$A72)*(I$3*10^12-$A71)*-1<0,0,1)*IF(ABS(I$3*10^12-$A72)>(I$3*10^12-$A71),$A71,$A72)) -> 0 | J71: 0
A72: 150000 | B72: 0 | C72: 0 | D72: 0 | E72: 0 | F72: 0 | G72: 0 | H72: 0 | I72: 0 | J72: 0
A73: 180000 | B73: 0 | C73: 0 | D73: 0 | E73: 0 | F73: 0 | G73: 0 | H73: 0 | I73: 0 | J73: 0
A74: 220000 | B74: 0 | C74: 0 | D74: 0 | E74: 0 | F74: 0 | G74: 0 | H74: 0 | I74: 0 | J74: 0
A75: 270000 | B75: 0 | C75: 0 | D75: 0 | E75: 0 | F75: 0 | G75: 0 | H75: 0 | I75: 0 | J75: 0
A76: 330000 | B76: 0 | C76: 0 | D76: 0 | E76: 0 | F76: 0 | G76: 0 | H76: 0 | I76: 0 | J76: 0
A77: 390000 | B77: 0 | C77: 0 | D77: 0 | E77: 0 | F77: 0 | G77: 0 | H77: 0 | I77: 0 | J77: 0
A78: 470000 | B78: 0 | C78: 0 | D78: 0 | E78: 0 | F78: 0 | G78: 0 | H78: 0 | I78: 0 | J78: 0
A79: 560000 | B79: 0 | C79: 0 | D79: 0 | E79: 0 | F79: 0 | G79: 0 | H79: 0 | I79: 0 | J79: 0
A80: 680000 | B80: 0 | C80: 0 | D80: 0 | E80: 0 | F80: 0 | G80: 0 | H80: 0 | I80: 0 | J80: 0
A81: 820000 | B81: 0 | C81: 0 | D81: 0 | E81: 0 | F81: 0 | G81: 0 | H81: 0 | I81: 0 | J81: 0
A82: 1000000 | B82: 0 | C82: 0 | D82: 0 | E82: 0 | F82: 0 | G82: 0 | H82: 0 | I82: 0 | J82: 0
A83: 1200000 | B83: 0 | C83: 0 | D83: 0 | E83: 0 | F83: 0 | G83: 0 | H83: 0 | I83: 0 | J83: 0
A84: 1500000 | B84: 0 | C84: 0 | D84: 0 | E84: 0 | F84: 0 | G84: 0 | H84: 0 | I84: 0 | J84: 0
A85: 1800000 | B85: 0 | C85: 0 | D85: 0 | E85: 0 | F85: 0 | G85: 0 | H85: 0 | I85: 0 | J85: 0 | L85: =IF(IF((L$3*10^12-$A86)*(L$3*10^12-$A85)*-1<0,0,1)*IF(ABS(L$3*10^12-$A86)>(L$3*10^12-$A85),$A85,$A86)=L86,0,IF((L$3*10^12-$A86)*(L$3*10^12-$A85)*-1<0,0,1)*IF(ABS(L$3*10^12-$A86)>(L$3*10^12-$A85),$A85,$A86)) -> 
A86: 2200000 | B86: 0 | C86: 0 | D86: 0 | E86: 0 | F86: 0 | G86: 0 | H86: 0 | I86: 0 | J86: 0
A87: 2700000 | B87: 0 | C87: 0 | D87: 0 | E87: 0 | F87: 0 | G87: 0 | H87: 0 | I87: 0 | J87: 0
A88: 3300000 | B88: 0 | C88: 0 | D88: 0 | E88: 0 | F88: 0 | G88: 0 | H88: 0 | I88: 0 | J88: 0
A89: 3900000 | B89: 0 | C89: 0 | D89: 0 | E89: 0 | F89: 0 | G89: 0 | H89: 0 | I89: 0 | J89: 0
A90: 4700000 | B90: 0 | C90: 0 | D90: 0 | E90: 0 | F90: 0 | G90: 0 | H90: 0 | I90: 0 | J90: 0
A91: 5600000 | B91: 0 | C91: 0 | D91: 0 | E91: 0 | F91: 0 | G91: 0 | H91: 0 | I91: 0 | J91: 0
A92: 6800000 | B92: 0 | C92: 0 | D92: 0 | E92: 0 | F92: 0 | G92: 0 | H92: 0 | I92: 0 | J92: 0
A93: 8200000 | B93: 0 | C93: 0 | D93: 0 | E93: 0 | F93: 0 | G93: 0 | H93: 0 | I93: 0 | J93: 0
A94: 10000000 | B94: 0 | C94: 0 | D94: 0 | E94: 0 | F94: 0 | G94: 0 | H94: 0 | I94: 0 | J94: 0
A95: 12000000 | B95: 0 | C95: 0 | D95: 0 | E95: 0 | F95: 0 | G95: 0 | H95: 0 | I95: 0 | J95: 0
A96: 15000000 | B96: 0 | C96: 0 | D96: 0 | E96: 0 | F96: 0 | G96: 0 | H96: 0 | I96: 0 | J96: 0
A97: 18000000 | B97: 0 | C97: 0 | D97: 0 | E97: 0 | F97: 0 | G97: 0 | H97: 0 | I97: 0 | J97: 0
A98: 22000000 | B98: 0 | C98: 0 | D98: 0 | E98: 0 | F98: 0 | G98: 0 | H98: 0 | I98: 0 | J98: 0
A99: =A87*10 -> 27000000 | B99: 0 | C99: 0 | D99: 0 | E99: 0 | F99: 0 | G99: 0 | H99: 0 | I99: 0 | J99: 0
A100: 33000000 | B100: 0 | C100: 0 | D100: 0 | E100: 0 | F100: 0 | G100: 0 | H100: 0 | I100: 0 | J100: 0
A101: 39000000 | B101: 0 | C101: 0 | D101: 0 | E101: 39000000 | F101: 47000000 | G101: 0 | H101: 0 | I101: 0 | J101: 0
A102: 47000000 | B102: 0 | C102: 0 | D102: 0 | E102: 0 | F102: 0 | G102: 0 | H102: 0 | I102: 0 | J102: 0
A103: 56000000 | B103: 0 | C103: 0 | D103: 0 | E103: 0 | F103: =IF(IF((F$3*10^12-$A104)*(F$3*10^12-$A103)*-1<0,0,1)*IF(ABS(F$3*10^12-$A104)>(F$3*10^12-$A103),$A103,$A104)=F104,0,IF((F$3*10^12-$A104)*(F$3*10^12-$A103)*-1<0,0,1)*IF(ABS(F$3*10^12-$A104)>(F$3*10^12-$A103),$A103,$A104)) -> 0 | G103: =IF(IF((G$3*10^12-$A104)*(G$3*10^12-$A103)*-1<0,0,1)*IF(ABS(G$3*10^12-$A104)>(G$3*10^12-$A103),$A103,$A104)=G104,0,IF((G$3*10^12-$A104)*(G$3*10^12-$A103)*-1<0,0,1)*IF(ABS(G$3*10^12-$A104)>(G$3*10^12-$A103),$A103,$A104)) -> 0 | H103: =IF(IF((H$3*10^12-$A104)*(H$3*10^12-$A103)*-1<0,0,1)*IF(ABS(H$3*10^12-$A104)>(H$3*10^12-$A103),$A103,$A104)=H104,0,IF((H$3*10^12-$A104)*(H$3*10^12-$A103)*-1<0,0,1)*IF(ABS(H$3*10^12-$A104)>(H$3*10^12-$A103),$A103,$A104)) -> 0 | I103: =IF(IF((I$3*10^12-$A104)*(I$3*10^12-$A103)*-1<0,0,1)*IF(ABS(I$3*10^12-$A104)>(I$3*10^12-$A103),$A103,$A104)=I104,0,IF((I$3*10^12-$A104)*(I$3*10^12-$A103)*-1<0,0,1)*IF(ABS(I$3*10^12-$A104)>(I$3*10^12-$A103),$A103,$A104)) -> 0 | J103: 0
A104: 68000000 | B104: 0 | C104: 0 | D104: 0 | E104: 0 | F104: 0 | G104: 0 | H104: 0 | I104: 0 | J104: 0
A105: 82000000 | B105: 0 | C105: 0 | D105: 0 | E105: 0 | F105: 0 | G105: 0 | H105: 0 | I105: 0 | J105: 0
A106: 100000000 | B106: 0 | C106: 0 | D106: 0 | E106: 0 | F106: 0 | G106: 0 | H106: 0 | I106: 0 | J106: 0
A107: 120000000 | B107: 0 | C107: 0 | D107: 0 | E107: 0 | F107: 0 | G107: 0 | H107: 0 | I107: 0 | J107: 0
A108: 150000000 | B108: 0 | C108: 0 | D108: 0 | E108: 0 | F108: 0 | G108: 0 | H108: 0 | I108: 0 | J108: 0
A109: 180000000 | B109: 0 | C109: 0 | D109: 0 | E109: 0 | F109: 0 | G109: 0 | H109: 0 | I109: 0 | J109: 0
A110: 220000000 | B110: 0 | C110: 0 | D110: 0 | E110: 0 | F110: 0 | G110: 0 | H110: 0 | I110: 0 | J110: 0
A111: 270000000 | B111: 0 | C111: 0 | D111: 0 | E111: 0 | F111: 0 | G111: 0 | H111: 0 | I111: 0 | J111: 0
A112: 330000000 | B112: 0 | C112: 0 | D112: 0 | E112: 0 | F112: 0 | G112: 0 | H112: 0 | I112: 0 | J112: 0
A113: 390000000 | B113: 0 | C113: 0 | D113: 0 | E113: 0 | F113: 0 | G113: 0 | H113: 0 | I113: 0 | J113: 0
A114: 470000000 | B114: 0 | C114: 0 | D114: 0 | E114: 0 | F114: 0 | G114: 0 | H114: 0 | I114: 0 | J114: 0
A115: 560000000 | B115: 0 | C115: 0 | D115: 0 | E115: 0 | F115: 0 | G115: 0 | H115: 0 | I115: 0 | J115: 0
A116: 680000000 | B116: 0 | C116: 0 | D116: 0 | E116: 0 | F116: 0 | G116: 0 | H116: 0 | I116: 0 | J116: 0
A117: 820000000 | B117: 0 | C117: 0 | D117: 0 | E117: 0 | F117: 0 | G117: 0 | H117: 0 | I117: 0 | J117: 0
A118: 1000000000 | B118: 0 | C118: 0 | D118: 0 | E118: 0 | F118: 0 | G118: 0 | H118: 0 | I118: 0 | J118: 0
A119: 1200000000 | B119: 0 | C119: 0 | D119: 0 | E119: 0 | F119: 0 | G119: 0 | H119: 0 | I119: 0 | J119: 0
A120: 1500000000 | B120: 0 | C120: 0 | D120: 0 | E120: 0 | F120: 0 | G120: 0 | H120: 0 | I120: 0 | J120: 0
A121: 1800000000 | B121: 0 | C121: 0 | D121: 0 | E121: 0 | F121: 0 | G121: 0 | H121: 0 | I121: 0 | J121: 0
A122: 2200000000 | B122: 0 | C122: 0 | D122: 0 | E122: 0 | F122: 0 | G122: 0 | H122: 0 | I122: 0 | J122: 0
A123: 2700000000 | B123: 0 | C123: 0 | D123: 0 | E123: 0 | F123: 0 | G123: 0 | H123: 0 | I123: 0 | J123: 0
A124: 3300000000 | B124: 0 | C124: 0 | D124: 0 | E124: 0 | F124: 0 | G124: 0 | H124: 0 | I124: 0 | J124: 0
A125: 3900000000 | B125: 0 | C125: 0 | D125: 0 | E125: 0 | F125: 0 | G125: 0 | H125: 0 | I125: 0 | J125: 0
A126: 4700000000 | B126: 0 | C126: 0 | D126: 0 | E126: 0 | F126: 0 | G126: 0 | H126: 0 | I126: 0 | J126: 0
A127: 5600000000 | B127: 0 | C127: 0 | D127: 0 | E127: 0 | F127: 0 | G127: 0 | H127: 0 | I127: 0 | J127: 0
A128: 6800000000 | B128: 0 | C128: 0 | D128: 0 | E128: 0 | F128: 0 | G128: 0 | H128: 0 | I128: 0 | J128: 0
A129: 8200000000 | B129: 0 | C129: 0 | D129: 0 | E129: 0 | F129: 0 | G129: 0 | H129: 0 | I129: 0 | J129: 0
A130: 10000000000 | B130: 0 | C130: 0 | D130: 0 | E130: 0 | F130: 0 | G130: 0 | H130: 0 | I130: 0 | J130: 0
A131: 12000000000 | B131: 0 | C131: 0 | D131: 0 | E131: 0 | F131: 0 | G131: 0 | H131: 0 | I131: 0 | J131: 0
A132: 15000000000 | B132: 0 | C132: 0 | D132: 0 | E132: 0 | F132: 0 | G132: 0 | H132: 0 | I132: 0 | J132: 0 | K132: =IF(IF((K$3*10^12-$A133)*(K$3*10^12-$A132)*-1<0,0,1)*IF(ABS(K$3*10^12-$A133)>(K$3*10^12-$A132),$A132,$A133)=K133,0,IF((K$3*10^12-$A133)*(K$3*10^12-$A132)*-1<0,0,1)*IF(ABS(K$3*10^12-$A133)>(K$3*10^12-$A132),$A132,$A133)) ->  | L132: =IF(IF((L$3*10^12-$A133)*(L$3*10^12-$A132)*-1<0,0,1)*IF(ABS(L$3*10^12-$A133)>(L$3*10^12-$A132),$A132,$A133)=L133,0,IF((L$3*10^12-$A133)*(L$3*10^12-$A132)*-1<0,0,1)*IF(ABS(L$3*10^12-$A133)>(L$3*10^12-$A132),$A132,$A133)) -> 
A133: 18000000000 | B133: 0 | C133: 0 | D133: 0 | E133: 0 | F133: 0 | G133: 0 | H133: 0 | I133: 0 | J133: =IF(IF((J$3*10^12-$A134)*(J$3*10^12-$A133)*-1<0,0,1)*IF(ABS(J$3*10^12-$A134)>(J$3*10^12-$A133),$A133,$A134)=J134,0,IF((J$3*10^12-$A134)*(J$3*10^12-$A133)*-1<0,0,1)*IF(ABS(J$3*10^12-$A134)>(J$3*10^12-$A133),$A133,$A134)) -> 0 | M133: =IF(IF((M$3*10^12-$A134)*(M$3*10^12-$A133)*-1<0,0,1)*IF(ABS(M$3*10^12-$A134)>(M$3*10^12-$A133),$A133,$A134)=M134,0,IF((M$3*10^12-$A134)*(M$3*10^12-$A133)*-1<0,0,1)*IF(ABS(M$3*10^12-$A134)>(M$3*10^12-$A133),$A133,$A134)) ->  | N133: =IF(IF((N$3*10^12-$A134)*(N$3*10^12-$A133)*-1<0,0,1)*IF(ABS(N$3*10^12-$A134)>(N$3*10^12-$A133),$A133,$A134)=N134,0,IF((N$3*10^12-$A134)*(N$3*10^12-$A133)*-1<0,0,1)*IF(ABS(N$3*10^12-$A134)>(N$3*10^12-$A133),$A133,$A134)) -> 
A134: 22000000000 | B134: 0 | C134: 0 | D134: 0 | E134: =IF(IF((E$3*10^12-$A135)*(E$3*10^12-$A134)*-1<0,0,1)*IF(ABS(E$3*10^12-$A135)>(E$3*10^12-$A134),$A134,$A135)=E135,0,IF((E$3*10^12-$A135)*(E$3*10^12-$A134)*-1<0,0,1)*IF(ABS(E$3*10^12-$A135)>(E$3*10^12-$A134),$A134,$A135)) -> 0 | F134: 0 | G134: 0 | H134: 0 | I134: 0 | J134: 0 | M134: =IF(IF((M$3*10^12-$A135)*(M$3*10^12-$A134)*-1<0,0,1)*IF(ABS(M$3*10^12-$A135)>(M$3*10^12-$A134),$A134,$A135)=M135,0,IF((M$3*10^12-$A135)*(M$3*10^12-$A134)*-1<0,0,1)*IF(ABS(M$3*10^12-$A135)>(M$3*10^12-$A134),$A134,$A135)) ->  | N134: =IF(IF((N$3*10^12-$A135)*(N$3*10^12-$A134)*-1<0,0,1)*IF(ABS(N$3*10^12-$A135)>(N$3*10^12-$A134),$A134,$A135)=N135,0,IF((N$3*10^12-$A135)*(N$3*10^12-$A134)*-1<0,0,1)*IF(ABS(N$3*10^12-$A135)>(N$3*10^12-$A134),$A134,$A135)) -> 
A135: 27000000000 | B135: =IF(IF((B$3*10^12-$A136)*(B$3*10^12-$A135)*-1<0,0,1)*IF(ABS(B$3*10^12-$A136)>(B$3*10^12-$A135),$A135,$A136)=B136,0,IF((B$3*10^12-$A136)*(B$3*10^12-$A135)*-1<0,0,1)*IF(ABS(B$3*10^12-$A136)>(B$3*10^12-$A135),$A135,$A136)) -> 0 | C135: =IF(IF((C$3*10^12-$A136)*(C$3*10^12-$A135)*-1<0,0,1)*IF(ABS(C$3*10^12-$A136)>(C$3*10^12-$A135),$A135,$A136)=C136,0,IF((C$3*10^12-$A136)*(C$3*10^12-$A135)*-1<0,0,1)*IF(ABS(C$3*10^12-$A136)>(C$3*10^12-$A135),$A135,$A136)) -> 0 | D135: 0 | E135: 0 | F135: 0 | G135: 0 | H135: 0 | I135: 0 | J135: 0
A136: 33000000000 | B136: 0 | C136: 0 | D136: 0 | E136: 0 | F136: 0 | G136: 0 | H136: 0 | I136: 0 | J136: 0
A137: 39000000000 | B137: 0 | C137: 0 | D137: 0 | E137: 0 | F137: 0 | G137: 0 | H137: 0 | I137: 0 | J137: 0
A138: 47000000000 | B138: 0 | C138: 0 | D138: 0 | E138: 0 | F138: 0 | G138: 0 | H138: 0 | I138: 0 | J138: 0
A139: 56000000000 | B139: 0 | C139: 0 | D139: 0 | E139: 0 | F139: 0 | G139: 0 | H139: 0 | I139: 0 | J139: 0
A140: 68000000000 | B140: 0 | C140: 0 | D140: 0 | E140: 0 | F140: 0 | G140: 0 | H140: 0 | I140: 0 | J140: 0
A141: 82000000000 | B141: 0 | C141: 0 | D141: 0 | E141: 0 | F141: 0 | G141: 0 | H141: 0 | I141: 0 | J141: 0
A142: 100000000000 | B142: 0 | C142: 0 | D142: 0 | E142: 0 | F142: 0 | G142: 0 | H142: 0 | I142: 0 | J142: 0
A143: 120000000000 | B143: 0 | C143: 0 | D143: 0 | E143: 0 | F143: 0 | G143: 0 | H143: 0 | I143: 0 | J143: 0
A144: 150000000000 | B144: 0 | C144: 0 | D144: 0 | E144: 0 | F144: 0 | G144: 0 | H144: 0 | I144: 0 | J144: 0
A145: 180000000000 | B145: 0 | C145: 0 | D145: 0 | E145: 0 | F145: 0 | G145: 0 | H145: 0 | I145: 0 | J145: 0
A146: 220000000000 | B146: 0 | C146: 0 | D146: 0 | E146: 0 | F146: 0 | G146: 0 | H146: 0 | I146: 0 | J146: 0
A147: 270000000000 | B147: 0 | C147: 0 | D147: 0 | E147: 0 | F147: 0 | G147: 0 | H147: 0 | I147: 0 | J147: 0
A148: 330000000000 | B148: 0 | C148: 0 | D148: 0 | E148: 0 | F148: 0 | G148: 0 | H148: 0 | I148: 0 | J148: 0
A149: 390000000000 | B149: 0 | C149: 0 | D149: 0 | E149: 0 | F149: 0 | G149: 0 | H149: 0 | I149: 0 | J149: 0
A150: 470000000000 | B150: 0 | C150: 0 | D150: 0 | E150: 0 | F150: 0 | G150: 0 | H150: 0 | I150: 0 | J150: 0
A151: 560000000000 | B151: 0 | C151: 0 | D151: 0 | E151: 0 | F151: 0 | G151: 0 | H151: 0 | I151: 0 | J151: 0
A152: 680000000000 | B152: 0 | C152: 0 | D152: 0 | E152: 0 | F152: 0 | G152: 0 | H152: 0 | I152: 0 | J152: 0
A153: 820000000000 | B153: 0 | C153: 0 | D153: 0 | E153: 0 | F153: 0 | G153: 0 | H153: 0 | I153: 0 | J153: 0
A154: 1000000000000 | B154: 0 | C154: 0 | D154: 0 | E154: 0 | F154: 0 | G154: 0 | H154: 0 | I154: 0 | J154: 0
A155: 1200000000000 | B155: 0 | C155: 0 | D155: 0 | E155: 0 | F155: 0 | G155: 0 | H155: 0 | I155: 0 | J155: 0
A156: 1500000000000 | B156: 0 | C156: 0 | D156: 0 | E156: 0 | F156: 0 | G156: 0 | H156: 0 | I156: 0 | J156: 0
A157: 1800000000000 | B157: 0 | C157: 0 | D157: 0 | E157: 0 | F157: 0 | G157: 0 | H157: 0 | I157: 0 | J157: 0
A158: 2200000000000 | B158: 0 | C158: 0 | D158: 0 | E158: 0 | F158: 0 | G158: 0 | H158: 0 | I158: 0 | J158: 0
A159: 2700000000000 | B159: 2700000000000 | C159: 2700000000000 | D159: 2700000000000 | E159: 2700000000000 | F159: 2700000000000 | G159: 2700000000000 | H159: 2700000000000 | I159: 2700000000000 | J159: 2700000000000

Sheet Snubber (hidden)
C1: UNITS | D1: STD UNITS
A2: Frequency of Ringing | B2: 85 | C2: MHz | D2: =B2*1000000 -> 85000000 | E2: Hz
A3: SW capacitance | B3: 3000 | C3: pF | D3: =B3*0.000000000001 -> 3e-09 | E3: F
A4: Lpar | B4: =1000000000*1/((D2*2*3.14159)^2*D3) -> 1.168643077 | C4: nH | D4: =B4/1000000000 -> 1.168643077e-09 | E4: H
A5: Csnub | B5: =4*B3 -> 12000 | C5: pF | D5: =B5*0.000000000001 -> 1.2e-08 | E5: F
A6: Rsnub | B6: =SQRT(D4/D3) -> 0.6241375589 | C6: Ω | D6: =B6 -> 0.6241375589 | E6: Ω

Sheet Parallel Output Caps (hidden)
A4: Fsw | B4: =Fsw -> 2200000
A6: C1 | B6: 20 | C6: uF | D6: =B6/1000000 -> 2e-05 | E6: F
A7: R1 | B7: 0.5 | C7: mOhms | D7: =B7/1000 -> 0.0005 | E7: Ohms
A9: C2 | B9: 68 | C9: uF | D9: =B9/1000000 -> 6.8e-05 | E9: F
A10: R2 | B10: 20 | C10: mOhms | D10: =B10/1000 -> 0.02 | E10: Ohms
A13: I1 | B13: =(D6/(D6+D9))*SQRT((D10*D9*B4)^2+1)/SQRT((((D7+D10)*D6*D9/(D9+D6))*B4)^2+1) -> 0.5881964666 | C13: %
A14: I2 | B14: =1-B13 -> 0.4118035334 | C14: %
A16: I1 | B16: =B13*(Iripple1/(2*SQRT(3))) ->  | C16: A
